Workbook

Sheet Foderoptimering
A1: 0
C3: Foderoptimering | I3: Næringsstoffer | K3: Indhold | L3: Min. i blanding | M3: Maks. i blanding | P3: Forholdsbegrænsninger
I4: Kr. | J4: =K3 -> Indhold | K4: 161.4541146 | P4: Fodermiddel A | Q4: skal udgøre: | R4: x % | S4: fodermiddel B
D5: Sidst optimeret: | E5: 2015-04-13T16:33:15 | I5: FEsv kontrol | K5: 1.05
D6: På baggrund af: | E6: Min kr. per 100 FE | I6: FEsv | J6: FEsv | K6: 1.05 | L6: 1.05
I7: FEso | J7: FEso | K7: 1.047977353
D8: Fytase niveau: | E8: f.P 200% fyt. | I8: TS | J8: g/kg | K8: 864.8375117
I9: Rå-prot | J9: g/FEsv | K9: 155.9624515
D10: Blandingsnavn | E10: - | I10: Rå-fedt | J10: g/FEsv | K10: 32.10981631
D11: Anvendt energi enhed | E11: FEsv | I11: Rå-aske | J11: g/FEsv | K11: 53.67205616
I12: Træ-stof | J12: g/FEsv | K12: 42.62488713
C14: Kr. per. 100 FEsv | D14: 161.4541146 | I14: St.f. råprot | J14: g/FEsv | K14: 130.0000008 | L14: 130 | P14: Grupper:
C15: Kr. pr. 100 Kg | D15: 169.5268203 | I15: St.f. Lys | J15: g/FEsv | K15: 7.400000015 | L15: 7.4
C16: DB/stiplads pr. år | D16: 564.1150708 | I16: St.f. Met | J16: g/FEsv | K16: 2.22 | L16: 2.22
F17: Min. i | G17: Maks. i | I17: St.f. Cys | J17: g/FEsv | K17: 2.536202438 | L17: 0
C18: Fodermidler | D18: Pct. i blandingen | E18: Kr. pr. hkg | F18: bland.% | G18: bland.% | I18: St.f. M+C | J18: g/FEsv | K18: 4.756202438 | L18: 4.29
C19: BYG, vår, gns. 2012-2014, varmebehandlet | D19: 15.00000875 | E19: 130 | F19: 15 | I19: St.f. Thr | J19: g/FEsv | K19: 4.880000001 | L19: 4.88
C20: HVEDE, gns. 2012-2014, varmebehandlet | D20: 57.08669188 | E20: 135 | I20: St.f. Trp | J20: g/FEsv | K20: 1.708546745 | L20: 1.48
C21: RAPSSKRÅFODER, lavt glukosinolatindhold | D21: 6 | E21: 185 | G21: 6 | I21: St.f. Iso | J21: g/FEsv | K21: 5.032263624 | L21: 4.14
C22: SOLSIKKESKRÅFODER, afskallet | D22: 6 | E22: 176 | G22: 6 | I22: St.f. Leu | J22: g/FEsv | K22: 9.134402736 | L22: 7.55
C23: SOJASKRÅFODER, afskallet toastet | D23: 11.58463807 | E23: 288 | I23: St.f. His | J23: g/FEsv | K23: 3.251473603 | L23: 2.66
C24: VEGETABILSK OLIE OG FEDTSTOF, Palme | D24: 1.109516597 | E24: 509 | G24: 3 | I24: St.f. Fen | J24: g/FEsv | K24: 6.007052926 | L24: 4.51
C25: LYSIN,L(HCl)98,5% | D25: 0.2183479541 | E25: 1028 | I25: St.f. Tyr | J25: g/FEsv | K25: 4.030065287
C26: METHIONIN,DL 99 | D26: 0.0009393854868 | E26: 2641 | I26: St.f. F+T | J26: g/FEsv | K26: 10.03711821 | L26: 8.58
C27: TREONIN,L 98,5% | D27: 0.04125017948 | E27: 1528 | I27: St.f. Val | J27: g/FEsv | K27: 5.966811916 | L27: 5
C28: TRYPTOFAN,L 98% | D28: 0 | E28: 10172 | I28: f.P 200% fyt. | J28: g/FEsv | K28: 2.500000053 | L28: 2.5
C29: VALIN, L 96,5 % | D29: 0 | E29: 8699 | I29: Calcium | J29: g/FEsv | K29: 8.000000333 | L29: 8 | M29: 9
C30: FODERKRIDT, 36 % calcium | D30: 1.821737795 | E30: 100 | I30: Fosfor | J30: g/FEsv | K30: 4.460697586 | L30: 2.5
C31: MONOCALCIUMFOS (16/22,7) | D31: 0.3648575734 | E31: 492 | I31: Natrium | J31: g/FEsv | K31: 2.000000084 | L31: 2 | M31: 3
C32: NATRIUMCLORID | D32: 0.5220118664 | E32: 100
C33: Std. 0,2 % Vitamin- og mineralforblanding, SL.SVIN | D33: 0.19 | E33: 1500 | F33: 0.19 | G33: 0.19 | I33: Indstillinger | K33: Valgt:
C34: Ronozyme HiPhos GT tør, Std. dosis: 500 FYT, dog min. 1000 FYT til søer | D34: 0.06 | E34: 4000 | F34: 0.06 | G34: 0.06 | I34: Krav til råprotein/lysin forhold | K34: Nej
C35: SUKKERROEMELASSE | D35: 0 | E35: 100 | G35: 2.5
I36: Lås Lys og P norm sammen | K36: Nej
I38: Aminosyrer skal følge lysin | K38: Nej
I40: Begræns antal stipladser | K40: Nej

Sheet Blandingsberegning
E1: u
A4: Foderblandingsberegning/optimering | G4: per. FEsv | I4: FEsv | J4: FEso | K4: g/kg | L4: g/FEsv | M4: g/FEsv | N4: g/FEsv | O4: g/FEsv | S4: g/FEsv | T4: g/FEsv | U4: g/FEsv | V4: g/FEsv | W4: g/FEsv | X4: g/FEsv | Y4: g/FEsv | Z4: g/FEsv | AA4: g/FEsv | AB4: g/FEsv | AC4: g/FEsv | AD4: g/FEsv | AE4: g/FEsv | AF4: g/FEsv | AG4: g/FEsv | AH4: g/FEsv | AI4: g/FEsv | AJ4: g/FEsv | AK4: g/FEsv | AL4: g/FEsv | AM4: g/FEsv | AN4: g/FEsv | AO4: Balanceligninger forhold | AW4: Grupper: | AZ4: Balanceligninger delblandinger | BZ4: % | CA4: % | CB4: % | CC4: % | CD4: % | CE4: % | CF4: g/kg | CG4: % | CH4: % | CJ4: FEsv Lab | CK4: FEso Lab | CL4: FEsvKorr. | CM4: FEsoKorr. | CN4: aske | CO4: råprot | CP4: Råfedt | CQ4: EFOS | CR4: EFOSi | CS4: Ny utsi | CT4: Org.stof | CU4: Ny LFK | CV4: Ny FMK | CW4: FMKso | CX4: kontrol | CY4: Fesv | CZ4: kontrol | DA4: Feso | DB4: % | DC4: %-forhold | DG4: g/kg | DH4: g/kg | DI4: g/kg
C5: % i blan-dingen | G5: Kr. | H5: FEsv kontrol | I5: FEsv | J5: FEso | K5: TS | L5: Rå-prot | M5: Rå-fedt | N5: Rå-aske | O5: Træ-stof | S5: St.f. råprot | T5: St.f. Lys | U5: St.f. Met | V5: St.f. Cys | W5: St.f. M+C | X5: St.f. Thr | Y5: St.f. Trp | Z5: St.f. Iso | AA5: St.f. Leu | AB5: St.f. His | AC5: St.f. Fen | AD5: St.f. Tyr | AE5: St.f. F+T | AF5: St.f. Val | AG5: f.P 0 fyt. | AH5: f.P 60% fyt. | AI5: f.P 100% fyt. | AJ5: f.P 150% fyt. | AK5: f.P 200% fyt. | AL5: Calcium | AM5: Fosfor | AN5: Natrium | AO5: F1 | AP5: F2 | AQ5: F3 | AR5: F4 | AS5: F5 | AT5: F6 | AU5: F7 | AV5: F8 | AW5: Grp 1 | AX5: Grp 2 | AY5: Grp 3 | AZ5: Del 1 | BA5: Del 2 | BB5: Del3 | BC5: Del 4 | BD5: Del 5 | BE5: Del 6 | BF5: Del 7 | BG5: Del 8 | BH5: Del 9 | BI5: Del 10 | BJ5: Del 11 | BK5: Del 12 | BL5: Del 13 | BM5: Del 14 | BN5: Del 15 | BO5: Del 16 | BP5: Del 17 | BQ5: Del 18 | BR5: Del 19 | BS5: Del 20 | BX5: FEsv /hkg | BY5: FEso/ hkg | BZ5: TS | CA5: Vand | CB5: Rå-prot | CC5: Rå-fedt | CD5: Rå-aske | CE5: Træ-stof | CG5: EFOS | CH5: EFOSi | CJ5: i foreliggende vare | CN5: % i ts | CO5: % i ts | CP5: % i ts | CQ5: % | CR5: % | CS5: % i ts | CT5: % i ts | CU5: % i ts | CV5: % i ts | CW5: % i ts | CX5: i tørstof | CY5: i ts | CZ5: i ts | DA5: i ts | DB5: (Tyktarms-fordøje-ligt org. stof, %) | DC5: I-Faktor EFOSi: EFOS | DG5: Org. stof | DH5: Fæcesford. org. stof | DI5: Ileumford. org. stof | DK5: FE-korr.-faktor
A6: Foderblandingen, i alt: | C6: =SUM(C16:C32) -> 100.0000001 | E6: Pr. kg | G6: =SUMPRODUCT($C$16:$C$55,G16:G55)/100 -> 169.5268203 | H6: =SUMPRODUCT($C$16:$C$55,H16:H55)/100 -> 1.05 | I6: =SUMPRODUCT($C$16:$C$55,I16:I55)/100 -> 1.05 | J6: 1.047977353 | K6: 864.8375117 | L6: 163.7605741 | M6: 33.71530713 | N6: 56.35565896 | O6: 44.75613148 | S6: 136.5000009 | T6: 7.770000015 | U6: 2.331 | V6: 2.66301256 | W6: 4.99401256 | X6: 5.124000001 | Y6: 1.793974082 | Z6: 5.283876805 | AA6: 9.591122872 | AB6: 3.414047283 | AC6: 6.307405572 | AD6: 4.231568552 | AE6: 10.53897412 | AF6: 6.265152511 | AG6: 1.639531638 | AH6: 2.142072551 | AI6: 2.324647837 | AJ6: 2.515334882 | AK6: 2.625000055 | AL6: 8.40000035 | AM6: 4.683732465 | AN6: 2.100000088 | AO6: =SUMPRODUCT($C$16:$C$55,AO16:AO55) -> 0 | AP6: 0 | AQ6: 0 | AR6: 0 | AS6: 0 | AT6: 0 | AU6: 0 | AV6: 0 | AW6: 0 | AX6: 0 | AY6: 0 | AZ6: 0 | BA6: =SUMPRODUCT($C$16:$C$55,BA16:BA55) -> 0 | BB6: 0 | BC6: 0 | BD6: 0 | BE6: 0 | BF6: 0 | BG6: 0 | BH6: 0 | BI6: 0 | BJ6: 0 | BK6: 0 | BL6: 0 | BM6: 0 | BN6: 0 | BO6: 0 | BP6: 0 | BQ6: 0 | BR6: 0 | BS6: =SUMPRODUCT($C$16:$C$55,BS16:BS55) -> 0 | BT6: =SUMPRODUCT($C$16:$C$55,BT16:BT55) -> 0 | BX6: =+I6*100 -> 105 | BY6: =+J6*100 -> 104.7977353 | BZ6: =+K6/10 -> 86.48375117 | CA6: =100-BZ6 -> 13.51624883 | CB6: =+L6/10 -> 16.37605741 | CC6: =+M6/10 -> 3.371530713 | CD6: =+N6/10 -> 5.635565896 | CE6: =+O6/10 -> 4.475613148 | CG6: =IF($DG6>0,+DH6/$DG6*100,CHAR(32)) -> 88.758393 | CH6: =IF($DG6>0,+DI6/$DG6*100,CHAR(32)) -> 81.26083386 | DB6: =IF(CG6*CH6>0,+CG6-CH6,CHAR(32)) -> 7.497559148 | DC6: =IF(CG6>0,+CH6*100/CG6,CHAR(32)) -> 91.55284487 | DG6: =SUM(DG16:DG56) -> 808.4818527 | DH6: =SUM(DH16:DH56) -> 717.5955002 | DI6: =SUM(DI16:DI56) -> 656.9790951 | DK6: =IF(H6>0,+I6/H6,CHAR(32)) -> 1
A7: Test af, hvor mange decimaler, der er nødvendigt at medtage på de to udtryk | CF7: Med .... | CG7: 1 | CH7: decimal(er): | DB7: =ROUND(+DB6,CG7) -> 7.5 | DC7: =ROUND(+DC6,$CG7) -> 91.6
A8: FEsv/hkg ud fra "beregnet EFOSi" | BX8: =+CJ8*DK6 -> 105.0491265 | CF8: Beregnet EFOSi: | CH8: =+CG6*DC7/100 -> 81.30268799 | CJ8: =+CX8/100*(100-CA6) -> 105.0491265 | CK8: =+CZ8/100*(100-CA6) -> 104.8322642 | CM8: =+CK8*DK6 -> 104.8322642 | CN8: =+CD6*100/(100-$CA6) -> 6.51632916 | CO8: =+CB6*100/(100-$CA6) -> 18.93541525 | CP8: =+CC6*100/(100-$CA6) -> 3.898455684 | CQ8: =+CG6 -> 88.758393 | CR8: =+CH8 -> 81.30268799 | CS8: =CT8*(100-CQ8)/100+CV8+CN8*0.3+0.07*CP8 -> 22.69381 | CT8: =100 - CN8 -> 93.48367084 | CU8: =CT8*CQ8/100-CO8*0.91-CP8*0.97-CV8 -> 52.00492159 | CV8: =CT8*(CQ8-CR8)/70 -> 9.956952475 | CW8: =CV8+0.18*CT8*(100-CQ8)/100 -> 11.84858451 | CX8: =(CO8*0.91*9.9+CP8*0.9*31.7+CU8*11.7+CV8*7-CS8*2.8)/7.38 -> 121.4668941 | CY8: =CX8*DK6 -> 121.4668941 | CZ8: =(CO8*0.91*9.9+CP8*0.9*31.7+CU8*11.7+CW8*9-CS8*2.8)/7.7 -> 121.2161392 | DA8: =CZ8*DK6 -> 121.2161392
A9: Pr. FEsv | E9: Pr. FEsv | G9: =$G$6/$I$6 -> 161.4541146 | L9: =$L$6/$I$6 -> 155.9624515 | M9: =$M$6/$I$6 -> 32.10981631 | N9: =$N$6/$I$6 -> 53.67205616 | O9: =$O$6/$I$6 -> 42.62488713 | S9: =$S$6/$I$6 -> 130.0000008 | T9: =$T$6/$I$6 -> 7.400000015 | U9: =$U$6/$I$6 -> 2.22 | V9: =$V$6/$I$6 -> 2.536202438 | W9: =$W$6/$I$6 -> 4.756202438 | X9: =$X$6/$I$6 -> 4.880000001 | Y9: =$Y$6/$I$6 -> 1.708546745 | Z9: =$Z$6/$I$6 -> 5.032263624 | AA9: =$AA$6/$I$6 -> 9.134402736 | AB9: =$AB$6/$I$6 -> 3.251473603 | AC9: =$AC$6/$I$6 -> 6.007052926 | AD9: =$AD$6/$I$6 -> 4.030065287 | AE9: =$AE$6/$I$6 -> 10.03711821 | AF9: =$AF$6/$I$6 -> 5.966811916 | AG9: =$AG$6/$I$6 -> 1.561458703 | AH9: =$AH$6/$I$6 -> 2.040069096 | AI9: =$AI$6/$I$6 -> 2.213950321 | AJ9: =$AJ$6/$I$6 -> 2.39555703 | AK9: =$AK$6/$I$6 -> 2.500000053 | AL9: =$AL$6/$I$6 -> 8.000000333 | AM9: =$AM$6/$I$6 -> 4.460697586 | AN9: =$AN$6/$I$6 -> 2.000000084
E10: Opnået ift. lysin, %
A11: Lysin-"forspring", % | C11: 0 | E11: Min. krav ift. lys, %
A12: Minimumkrav pr. FEsv | C12: 0.9259747877 | I12: 1.05 | S12: 130 | T12: 7.4 | U12: 2.22 | V12: 0 | W12: 4.29 | X12: 4.88 | Y12: 1.48 | Z12: 4.14 | AA12: 7.55 | AB12: 2.66 | AC12: 4.51 | AE12: 8.58 | AF12: 5 | AK12: 2.5 | AL12: 8 | AM12: 2.5 | AN12: 2 | GE12: Beregnet | GF12: Målt | GG12: Anvendt
A13: Maksimumkrav pr. FEsv | AL13: 9 | AN13: 3 | GC13: Tast | GD13: i denne kolonne | GE13: eller | GF13: i denne kolonne | GH13: FEsv | GI13: FEso | GJ13: Korr. | GK13: FEsv | GL13: FEso | GN13: FEsv | GO13: FEso | GU13: FEsv | GV13: FEso
A14: Resultat | C14: =G9 -> 161.4541146 | D14: kr. pr. 100 FEsv | G14: Bidrag | H14: Bidrag | I14: Bidrag | J14: Bidrag | K14: Bidrag | L14: Bidrag | M14: Bidrag | N14: Bidrag | O14: Bidrag | S14: Bidrag | T14: Bidrag | U14: Bidrag | V14: Bidrag | W14: Bidrag | X14: Bidrag | Y14: Bidrag | Z14: Bidrag | AA14: Bidrag | AB14: Bidrag | AC14: Bidrag | AD14: Bidrag | AE14: Bidrag | AF14: Bidrag | AG14: Bidrag | AH14: Bidrag | AI14: Bidrag | AJ14: Bidrag | AK14: Bidrag | AL14: Bidrag | AM14: Bidrag | AN14: Bidrag | BZ14: % | CA14: % | CB14: % | CC14: % | CD14: % | CE14: % | CF14: g/kg | CG14: % | CH14: % | DB14: % | DC14: %-forhold | DD14: g/kg | DE14: g/kg | DG14: g/kg | DH14: g/kg | DI14: g/kg | FU14: Fodermiddel | FV14: vand | FW14: Rå-prot | FX14: Rå-fedt | FY14: Rå-aske | FZ14: aske | GA14: råprot | GB14: Råfedt | GC14: EFOS | GD14: I-faktor | GE14: EFOSi | GF14: EFOSi | GG14: EFOSi | GH14: kontrol (på laboratoriet) | GJ14: faktor | GK14: (værdi for grisen) | GN14: kontrol (på laboratoriet) | GP14: Ny utsi | GQ14: Org.stof | GR14: Ny LFK | GS14: Ny FMK | GT14: FMKso | GU14: (værdi for grisen)
A15: Vælg fodermiddel i "rullegardin" ved at trykke på gult felt | B15: Foder-kode | E15: Min. ibland.% | F15: Maks. ibland.% | G15: Kr. | H15: FEsv lab | I15: FEsv | J15: FEso | K15: TS | L15: Rå-prot | M15: Rå-fedt | N15: Rå-aske | O15: Træ-stof | P15: EFNi | Q15: FEkorrFaktor | R15: FKraafNy | S15: =+S5 -> St.f. råprot | T15: =+T5 -> St.f. Lys | U15: =+U5 -> St.f. Met | V15: =+V5 -> St.f. Cys | W15: =+W5 -> St.f. M+C | X15: St.f. Thr | Y15: St.f. Trp | Z15: St.f. Iso | AA15: St.f. Leu | AB15: St.f. His | AC15: St.f. Fen | AD15: St.f. Tyr | AE15: St.f. F+T | AF15: St.f. Val | AG15: =+AG5 -> f.P 0 fyt. | AH15: f.P 60% fyt. | AI15: f.P 100% fyt. | AJ15: f.P 150% fyt. | AK15: f.P 200% fyt. | AL15: Calcium | AM15: Fosfor | AN15: Natrium | BX15: FEsv | BY15: FEso | BZ15: TS | CA15: Vand | CB15: Rå-prot | CC15: Rå-fedt | CD15: Rå-aske | CE15: Træ-stof | CF15: Org. stof i varen | CG15: EFOS | CH15: EFOSi | DB15: EFOS minus EFOSi | DC15: I-Faktor EFOSi: EFOS | DD15: Fæcesford. org. stof | DE15: Ileumford. org. stof | DG15: Bidrag, Org. stof | DH15: Bidrag, Fæcesford. org. stof | DI15: Bidrag, Ileumford. org. stof | DM15: FKraapNy | DN15: LysRaap | DO15: MetRaap | DP15: CysRaap | DQ15: TreRaap | DR15: TryRaap | DS15: IsoRaap | DT15: LeuRaap | DU15: HisRaap | DV15: FenRaap | DW15: TyrRaap | DX15: ValRaap | DY15: FKlysForh | DZ15: FKmetForh | EA15: FKcysForh | EB15: FKtreForh | EC15: FKtryForh | ED15: FKisoForh | EE15: FKleuForh | EF15: FKhisForh | EG15: FKfenForh | EH15: FKtyrForh | EI15: FKvalForh | EJ15: Kode | EK15: Parti | EL15: Prot_ts | EM15: Fedt_ts | EN15: Aske_ts | EO15: Trae_ts | EP15: Jodtal | EQ15: Jodtprod_kgTS | ER15: FEsv_ts | ES15: FEso_ts | ET15: Fosfor, ingen fytase tilsat | EU15: Fosfor, 60 % standard-dosis fytase tilsat | EV15: Fosfor, 100 % standard-dosis fytase tilsat | EW15: Fosfor, 150 % standard-dosis fytase tilsat | EX15: Fosfor, 200 % standard-dosis fytase tilsat | EY15: Ca_TS | EZ15: P_TS | FA15: Na_TS | FB15: Cl_TS | FC15: K_TS | FD15: Mg_TS | FE15: S_TS | FF15: Jern_TS | FG15: Cu_TS | FH15: Mn_TS | FI15: Z_TS | FJ15: Jod_TS | FK15: Se_TS | FM15: LFK_TS | FN15: FMK_TS | FO15: Stiv_TS | FP15: Suk_TS | FQ15: Opl_Fib_TS | FR15: Uopl_Fib_TS | FS15: Foder-middel-kode | FT15: Redig_dato | FV15: % | FW15: % i varen | FZ15: % i ts | GA15: % i ts | GB15: % i ts | GC15: % | GD15: % | GE15: % | GF15: % | GG15: % | GH15: pr. hkg vare | GK15: pr. hkg vare | GN15: pr. 100 kg ts | GP15: % i ts | GQ15: % i ts | GR15: % i ts | GS15: % i ts | GT15: % i ts | GU15: i ts | GV15: i ts
A16: BYG, vår, gns. 2012-2014, varmebehandlet | B16: =VLOOKUP(A16,$FV$62:$FW$356,2,FALSE) -> 50210 | C16: 15.00000875 | D16: 130 | E16: 15 | G16: =IF(A16<>"",IF(D16<>"",D16,""),"") -> 130 | H16: =IF(A16<>"",IF(A16<>"Delblanding",IF($D16<>"",+I16/Q16,""),""),"") -> 1.050514687 | I16: =IF(A16<>"",IF(A16<>"Delblanding",IF($D16<>"",+BX16,""),""),"") -> 1.050514687 | J16: =IF(A16<>"",IF(A16<>"Delblanding",IF($D16<>"",+BY16,""),""),"") -> 1.049783799 | K16: =IF(A16<>"",IF(A16<>"Delblanding",IF($D16<>"",+BZ16*10,""),""),"") -> 850 | L16: =IF(A16<>"",IF(A16<>"Delblanding",IF($D16<>"",+CB16*10,""),""),"") -> 86 | M16: =IF(A16<>"",IF(A16<>"Delblanding",IF($D16<>"",+CC16*10,""),""),"") -> 26 | N16: =IF(A16<>"",IF(A16<>"Delblanding",IF($D16<>"",+CD16*10,""),""),"") -> 19 | O16: =IF(A16<>"",IF(A16<>"Delblanding",IF($D16<>"",+CE16*10,""),""),"") -> 48 | P16: =IF(A16<>"",IF($B16>0,VLOOKUP($B16,VSP_Fodermiddeldatabase!$A$3:$CP$489,10,),CHAR(32)),"") -> 90 | Q16: =IF(A16<>"",IF($B16>0,VLOOKUP($B16,VSP_Fodermiddeldatabase!$A$3:$CP$489,11,),CHAR(32)),"") -> 1 | R16: 90 | S16: =IF(A16<>"",IF(A16<>"Delblanding",IF($D16<>"",+$L16*$DM16/100,""),""),"") -> 64.48497857 | T16: =IF(A16<>"",IF(A16<>"Delblanding",IF($D16<>"",+$S16*DN16/100*DY16,CHAR(32)),""),"") -> 2.37307604 | U16: =IF(A16<>"",IF(A16<>"Delblanding",IF($D16<>"",+$S16*DO16/100*DZ16,CHAR(32)),""),"") -> 1.215570675 | V16: =IF(A16<>"",IF(A16<>"Delblanding",IF($D16<>"",+$S16*DP16/100*EA16,CHAR(32)),""),"") -> 1.628684965 | W16: =IF(A16<>"",IF(A16<>"Delblanding",IF($D16<>"",+U16+V16,CHAR(32)),""),"") -> 2.84425564 | X16: =IF(A16<>"",IF(A16<>"Delblanding",IF($D16<>"",+$S16*DQ16/100*EB16,CHAR(32)),""),"") -> 2.157170469 | Y16: =IF(A16<>"",IF(A16<>"Delblanding",IF($D16<>"",+$S16*DR16/100*EC16,CHAR(32)),""),"") -> 0.8454117247 | Z16: =IF(A16<>"",IF(A16<>"Delblanding",IF($D16<>"",+$S16*DS16/100*ED16,CHAR(32)),""),"") -> 2.346191114 | AA16: =IF(A16<>"",IF(A16<>"Delblanding",IF($D16<>"",+$S16*DT16/100*EE16,CHAR(32)),""),"") -> 4.498555556 | AB16: =IF(A16<>"",IF(A16<>"Delblanding",IF($D16<>"",+$S16*DU16/100*EF16,CHAR(32)),""),"") -> 1.493851427 | AC16: =IF(A16<>"",IF(A16<>"Delblanding",IF($D16<>"",+$S16*DV16/100*EG16,CHAR(32)),""),"") -> 3.154313831 | AD16: =IF(A16<>"",IF(A16<>"Delblanding",IF($D16<>"",+$S16*DW16/100*EH16,CHAR(32)),""),"") -> 1.996830467 | AE16: =IF(A16<>"",IF(A16<>"Delblanding",IF($D16<>"",+AC16+AD16,CHAR(32)),""),"") -> 5.151144298 | AF16: =IF(A16<>"",IF(A16<>"Delblanding",IF($D16<>"",+$S16*DX16/100*EI16,CHAR(32)),""),"") -> 3.208529767 | AG16: =IF(A16<>"",IF(A16<>"Delblanding",IF($D16<>"",+($EZ16*$BZ16/100)*ET16/100,CHAR(32)),""),"") -> 0.84 | AH16: =IF(A16<>"",IF(A16<>"Delblanding",IF($D16<>"",+($EZ16*$BZ16/100)*EU16/100,CHAR(32)),""),"") -> 1.176 | AI16: =IF(A16<>"",IF(A16<>"Delblanding",IF($D16<>"",+($EZ16*$BZ16/100)*EV16/100,CHAR(32)),""),"") -> 1.288 | AJ16: =IF(A16<>"",IF(A16<>"Delblanding",IF($D16<>"",+($EZ16*$BZ16/100)*EW16/100,CHAR(32)),""),"") -> 1.4 | AK16: =IF(A16<>"",IF(A16<>"Delblanding",IF($D16<>"",+($EZ16*$BZ16/100)*EX16/100,CHAR(32)),""),"") -> 1.484 | AL16: =IF(A16<>"",IF(A16<>"Delblanding",IF($D16<>"",+(EY16*$BZ16/100),CHAR(32)),""),"") -> 0.42 | AM16: =IF(A16<>"",IF(A16<>"Delblanding",IF($D16<>"",+(EZ16*$BZ16/100),CHAR(32)),""),"") -> 2.8 | AN16: =IF(A16<>"",IF(A16<>"Delblanding",IF($D16<>"",+(FA16*$BZ16/100),CHAR(32)),""),"") -> 0.17 | BX16: =IF(B16>0,+CJ16*$Q16/100,CHAR(32)) -> 1.050514687 | BY16: =IF(B16>0,+CK16*$Q16/100,CHAR(32)) -> 1.049783799 | BZ16: =IF($B16>0,VLOOKUP($B16,VSP_Fodermiddeldatabase!$A$3:$CP$489,12,),CHAR(32)) -> 85 | CA16: =IF(B16>0,100-BZ16,CHAR(32)) -> 15 | CB16: =IF($B16>0,VLOOKUP($B16,VSP_Fodermiddeldatabase!$A$3:$CP$489,13,),CHAR(32)) -> 8.6 | CC16: =IF($B16>0,VLOOKUP($B16,VSP_Fodermiddeldatabase!$A$3:$CP$489,14,),CHAR(32)) -> 2.6 | CD16: =IF($B16>0,VLOOKUP($B16,VSP_Fodermiddeldatabase!$A$3:$CP$489,15,),CHAR(32)) -> 1.9 | CE16: =IF($B16>0,VLOOKUP($B16,VSP_Fodermiddeldatabase!$A$3:$CP$489,16,),CHAR(32)) -> 4.8 | CF16: =+(BZ16-CD16)*10 -> 831 | CG16: =IF($B16>0,VLOOKUP($B16,VSP_Fodermiddeldatabase!$A$3:$CP$489,8,),CHAR(32)) -> 85.5 | CH16: =IF($B16>0,VLOOKUP($B16,VSP_Fodermiddeldatabase!$A$3:$CP$489,9,),CHAR(32)) -> 79.7999715 | CJ16: =+CX16/100*(100-CA16) -> 105.0514687 | CK16: =+CZ16/100*(100-CA16) -> 104.9783799 | CM16: =+CK16*DK16 -> 0 | CN16: =+CD16*100/(100-$CA16) -> 2.235294118 | CO16: =+CB16*100/(100-$CA16) -> 10.11764706 | CP16: =+CC16*100/(100-$CA16) -> 3.058823529 | CQ16: =+CG16 -> 85.5 | CR16: 79.7999715 | CS16: =CT16*(100-CQ16)/100+CV16+CN16*0.3+0.07*CP16 -> 23.02146838 | CT16: =100 - CN16 -> 97.76470588 | CU16: =CT16*CQ16/100-CO16*0.91-CP16*0.97-CV16 -> 63.45382574 | CV16: =CT16*(CQ16-CR16)/70 -> 7.96088014 | CW16: =CV16+0.18*CT16*(100-CQ16)/100 -> 10.51253896 | CX16: =(CO16*0.91*9.9+CP16*0.9*31.7+CU16*11.7+CV16*7-CS16*2.8)/7.38 -> 123.5899632 | CY16: =CX16*DK16 -> 0 | CZ16: =(CO16*0.91*9.9+CP16*0.9*31.7+CU16*11.7+CW16*9-CS16*2.8)/7.7 -> 123.5039764 | DA16: =CZ16*DK16 -> 0 | DB16: =IF(B16>0.01,+CG16-CH16,CHAR(32)) -> 5.7000285 | DC16: =IF(B16>0,+CH16*100/CG16,CHAR(32)) -> 93.3333 | DD16: =IF(B16>0,+CF16*CG16/100,CHAR(32)) -> 710.505 | DE16: =IF(B16>0,+CF16*CH16/100,CHAR(32)) -> 663.1377632 | DG16: =IF($C16>0,+CF16*$C16/100,CHAR(32)) -> 124.6500727 | DH16: =IF($C16>0,+DD16*$C16/100,CHAR(32)) -> 106.5758122 | DI16: =IF($C16>0,+DE16*$C16/100,CHAR(32)) -> 99.47072251 | DM16: =IF($B16>0,VLOOKUP($B16,VSP_Fodermiddeldatabase!$A$3:$CP$489,18,),CHAR(32)) -> 74.98253322 | DN16: =IF($B16>0,VLOOKUP($B16,VSP_Fodermiddeldatabase!$A$3:$CP$489,39,),CHAR(32)) -> 3.914941176 | DO16: =IF($B16>0,VLOOKUP($B16,VSP_Fodermiddeldatabase!$A$3:$CP$489,40,),CHAR(32)) -> 1.745411765 | DP16: =IF($B16>0,VLOOKUP($B16,VSP_Fodermiddeldatabase!$A$3:$CP$489,41,),CHAR(32)) -> 2.452117647 | DQ16: =IF($B16>0,VLOOKUP($B16,VSP_Fodermiddeldatabase!$A$3:$CP$489,42,),CHAR(32)) -> 3.521294118 | DR16: =IF($B16>0,VLOOKUP($B16,VSP_Fodermiddeldatabase!$A$3:$CP$489,43,),CHAR(32)) -> 1.365647059 | DS16: =IF($B16>0,VLOOKUP($B16,VSP_Fodermiddeldatabase!$A$3:$CP$489,44,),CHAR(32)) -> 3.638352941 | DT16: =IF($B16>0,VLOOKUP($B16,VSP_Fodermiddeldatabase!$A$3:$CP$489,45,),CHAR(32)) -> 6.907058824 | DU16: =IF($B16>0,VLOOKUP($B16,VSP_Fodermiddeldatabase!$A$3:$CP$489,46,),CHAR(32)) -> 2.316588235 | DV16: =IF($B16>0,VLOOKUP($B16,VSP_Fodermiddeldatabase!$A$3:$CP$489,47,),CHAR(32)) -> 4.703411765 | DW16: =IF($B16>0,VLOOKUP($B16,VSP_Fodermiddeldatabase!$A$3:$CP$489,48,),CHAR(32)) -> 3.192352941 | DX16: =IF($B16>0,VLOOKUP($B16,VSP_Fodermiddeldatabase!$A$3:$CP$489,49,),CHAR(32)) -> 5.182941176 | DY16: =IF($B16>0,VLOOKUP($B16,VSP_Fodermiddeldatabase!$A$3:$CP$489,51,),CHAR(32)) -> 0.94 | DZ16: =IF($B16>0,VLOOKUP($B16,VSP_Fodermiddeldatabase!$A$3:$CP$489,52,),CHAR(32)) -> 1.08 | EA16: =IF($B16>0,VLOOKUP($B16,VSP_Fodermiddeldatabase!$A$3:$CP$489,53,),CHAR(32)) -> 1.03 | EB16: =IF($B16>0,VLOOKUP($B16,VSP_Fodermiddeldatabase!$A$3:$CP$489,54,),CHAR(32)) -> 0.95 | EC16: =IF($B16>0,VLOOKUP($B16,VSP_Fodermiddeldatabase!$A$3:$CP$489,55,),CHAR(32)) -> 0.96 | ED16: =IF($B16>0,VLOOKUP($B16,VSP_Fodermiddeldatabase!$A$3:$CP$489,56,),CHAR(32)) -> 1 | EE16: =IF($B16>0,VLOOKUP($B16,VSP_Fodermiddeldatabase!$A$3:$CP$489,57,),CHAR(32)) -> 1.01 | EF16: =IF($B16>0,VLOOKUP($B16,VSP_Fodermiddeldatabase!$A$3:$CP$489,58,),CHAR(32)) -> 1 | EG16: =IF($B16>0,VLOOKUP($B16,VSP_Fodermiddeldatabase!$A$3:$CP$489,59,),CHAR(32)) -> 1.04 | EH16: =IF($B16>0,VLOOKUP($B16,VSP_Fodermiddeldatabase!$A$3:$CP$489,60,),CHAR(32)) -> 0.97 | EI16: =IF($B16>0,VLOOKUP($B16,VSP_Fodermiddeldatabase!$A$3:$CP$489,61,),CHAR(32)) -> 0.96 | EJ16: =IF($B16>0,VLOOKUP($B16,VSP_Fodermiddeldatabase!$A$3:$CP$489,2,),CHAR(32)) -> 502 | EK16: =IF($B16>0,VLOOKUP($B16,VSP_Fodermiddeldatabase!$A$3:$CP$489,3,),CHAR(32)) -> 10 | EL16: =IF($B16>0,VLOOKUP($B16,VSP_Fodermiddeldatabase!$A$3:$CP$489,63,),CHAR(32)) -> 10.11764706 | EM16: =IF($B16>0,VLOOKUP($B16,VSP_Fodermiddeldatabase!$A$3:$CP$489,64,),CHAR(32)) -> 3.058823529 | EN16: =IF($B16>0,VLOOKUP($B16,VSP_Fodermiddeldatabase!$A$3:$CP$489,65,),CHAR(32)) -> 2.235294118 | EO16: =IF($B16>0,VLOOKUP($B16,VSP_Fodermiddeldatabase!$A$3:$CP$489,66,),CHAR(32)) -> 5.647058824 | EP16: =IF($B16>0,VLOOKUP($B16,VSP_Fodermiddeldatabase!$A$3:$CP$489,68,),CHAR(32)) -> 120 | EQ16: =IF($B16>0,VLOOKUP($B16,VSP_Fodermiddeldatabase!$A$3:$CP$489,69,),CHAR(32)) -> 36.70588235 | ER16: =IF($B16>0,VLOOKUP($B16,VSP_Fodermiddeldatabase!$A$3:$CP$489,70,),CHAR(32)) -> 1.235913746 | ES16: =IF($B16>0,VLOOKUP($B16,VSP_Fodermiddeldatabase!$A$3:$CP$489,71,),CHAR(32)) -> 1.235053188 | ET16: =IF($B16>0,VLOOKUP($B16,VSP_Fodermiddeldatabase!$A$3:$CP$489,19,),CHAR(32)) -> 30 | EU16: =IF($B16>0,VLOOKUP($B16,VSP_Fodermiddeldatabase!$A$3:$CP$489,20,),CHAR(32)) -> 42 | EV16: =IF($B16>0,VLOOKUP($B16,VSP_Fodermiddeldatabase!$A$3:$CP$489,21,),CHAR(32)) -> 46 | EW16: =IF($B16>0,VLOOKUP($B16,VSP_Fodermiddeldatabase!$A$3:$CP$489,22,),CHAR(32)) -> 50 | EX16: =IF($B16>0,VLOOKUP($B16,VSP_Fodermiddeldatabase!$A$3:$CP$489,23,),CHAR(32)) -> 53 | EY16: =IF($B16>0,VLOOKUP($B16,VSP_Fodermiddeldatabase!$A$3:$CP$489,25,),CHAR(32)) -> 0.4941176471 | EZ16: =IF($B16>0,VLOOKUP($B16,VSP_Fodermiddeldatabase!$A$3:$CP$489,26,),CHAR(32)) -> 3.294117647 | FA16: =IF($B16>0,VLOOKUP($B16,VSP_Fodermiddeldatabase!$A$3:$CP$489,27,),CHAR(32)) -> 0.2 | FB16: =IF($B16>0,VLOOKUP($B16,VSP_Fodermiddeldatabase!$A$3:$CP$489,28,),CHAR(32)) -> 1.5 | FC16: =IF($B16>0,VLOOKUP($B16,VSP_Fodermiddeldatabase!$A$3:$CP$489,29,),CHAR(32)) -> 5.7 | FD16: =IF($B16>0,VLOOKUP($B16,VSP_Fodermiddeldatabase!$A$3:$CP$489,30,),CHAR(32)) -> 1.2 | FE16: =IF($B16>0,VLOOKUP($B16,VSP_Fodermiddeldatabase!$A$3:$CP$489,31,),CHAR(32)) -> 1.1 | FF16: =IF($B16>0,VLOOKUP($B16,VSP_Fodermiddeldatabase!$A$3:$CP$489,32,),CHAR(32)) -> 34 | FG16: =IF($B16>0,VLOOKUP($B16,VSP_Fodermiddeldatabase!$A$3:$CP$489,33,),CHAR(32)) -> 2.9 | FH16: =IF($B16>0,VLOOKUP($B16,VSP_Fodermiddeldatabase!$A$3:$CP$489,34,),CHAR(32)) -> 14 | FI16: =IF($B16>0,VLOOKUP($B16,VSP_Fodermiddeldatabase!$A$3:$CP$489,35,),CHAR(32)) -> 28 | FJ16: =IF($B16>0,VLOOKUP($B16,VSP_Fodermiddeldatabase!$A$3:$CP$489,36,),CHAR(32)) -> 0 | FK16: =IF($B16>0,VLOOKUP($B16,VSP_Fodermiddeldatabase!$A$3:$CP$489,37,),CHAR(32)) -> 0.04 | FM16: =IF($B16>0,VLOOKUP($B16,VSP_Fodermiddeldatabase!$A$3:$CP$489,74,),CHAR(32)) -> 634.5386555 | FN16: =IF($B16>0,VLOOKUP($B16,VSP_Fodermiddeldatabase!$A$3:$CP$489,75,),CHAR(32)) -> 79.6088014 | FO16: =IF($B16>0,VLOOKUP($B16,VSP_Fodermiddeldatabase!$A$3:$CP$489,76,),CHAR(32)) -> 604 | FP16: =IF($B16>0,VLOOKUP($B16,VSP_Fodermiddeldatabase!$A$3:$CP$489,77,),CHAR(32)) -> 21 | FQ16: =IF($B16>0,VLOOKUP($B16,VSP_Fodermiddeldatabase!$A$3:$CP$489,78,),CHAR(32)) -> 56 | FR16: =IF($B16>0,VLOOKUP($B16,VSP_Fodermiddeldatabase!$A$3:$CP$489,79,),CHAR(32)) -> 165 | FS16: =IF($B16>0,VLOOKUP($B16,VSP_Fodermiddeldatabase!$A$3:$CP$489,1,),CHAR(32)) -> 50210 | FT16: =IF($B16>0,VLOOKUP($B16,VSP_Fodermiddeldatabase!$A$3:$CP$489,5,),CHAR(32)) -> 2014-09-29 | FU16: =IF(A16<>"",A16,"") -> BYG, vår, gns. 2012-2014, varmebehandlet | FV16: =IF($A16<>"",100-VLOOKUP($B16,VSP_Fodermiddeldatabase!$A$3:$CP$489,12,)) -> 15 | FW16: =IF($A16<>"",VLOOKUP($B16,VSP_Fodermiddeldatabase!$A$3:$CP$489,13,)) -> 8.6 | FX16: =IF($A16<>"",VLOOKUP($B16,VSP_Fodermiddeldatabase!$A$3:$CP$489,14,)) -> 2.6 | FY16: =IF($A16<>"",VLOOKUP($B16,VSP_Fodermiddeldatabase!$A$3:$CP$489,15,)) -> 1.9 | FZ16: =IF(+FV16>-1,+FY16*100/(100-FV16),CHAR(32)) -> 2.235294118 | GA16: =IF(+FV16>-1,+FW16*100/(100-FV16),CHAR(32)) -> 10.11764706 | GB16: =IF(+FV16>-1,+FX16*100/(100-FV16),CHAR(32)) -> 3.058823529 | GC16: =IF($A16<>"",VLOOKUP($B16,VSP_Fodermiddeldatabase!$A$3:$CP$489,8,)) -> 85.5 | GE16: =IF(GD16>0,+GC16*GD16/100,CHAR(32)) ->  | GF16: =IF($A16<>"",VLOOKUP($B16,VSP_Fodermiddeldatabase!$A$3:$CP$489,9,)) -> 79.7999715 | GG16: =IF(GD16>0,+GE16,+GF16) -> 79.7999715 | GH16: =+GN16/100*(100-$FV16) -> 105.0514687 | GI16: =+GO16/100*(100-$FV16) -> 104.9783799 | GJ16: =IF($A16<>"",VLOOKUP($B16,VSP_Fodermiddeldatabase!$A$3:$CP$489,11,)) -> 1 | GK16: =+GH16*$GJ16 -> 105.0514687 | GL16: =+GI16*$GJ16 -> 104.9783799 | GN16: =(GA16*0.91*9.9+GB16*0.9*31.7+GR16*11.7+GS16*7-GP16*2.8)/7.38 -> 123.5899632 | GO16: =(GA16*0.91*9.9+GB16*0.9*31.7+GR16*11.7+GT16*9-GP16*2.8)/7.7 -> 123.5039764 | GP16: =GQ16*(100-GC16)/100+GS16+FZ16*0.3+0.07*GB16 -> 23.02146838 | GQ16: =100 - FZ16 -> 97.76470588 | GR16: =GQ16*GC16/100-GA16*0.91-GB16*0.97-GS16 -> 63.45382574 | GS16: =GQ16*(GC16-GG16)/70 -> 7.96088014 | GT16: =GS16+0.18*GQ16*(100-GC16)/100 -> 10.51253896 | GU16: =GN16*GJ16 -> 123.5899632 | GV16: =GO16*GJ16 -> 123.5039764
A17: HVEDE, gns. 2012-2014, varmebehandlet | B17: =VLOOKUP(A17,$FV$62:$FW$356,2,FALSE) -> 51210 | C17: 57.08669188 | D17: 135 | G17: 135 | H17: =IF(A17<>"",IF(A17<>"Delblanding",IF($D17<>"",+I17/Q17,""),""),"") -> 1.146327503 | I17: =IF(A17<>"",IF(A17<>"Delblanding",IF($D17<>"",+BX17,""),""),"") -> 1.146327503 | J17: =IF(A17<>"",IF(A17<>"Delblanding",IF($D17<>"",+BY17,""),""),"") -> 1.129814746 | K17: =IF(A17<>"",IF(A17<>"Delblanding",IF($D17<>"",+BZ17*10,""),""),"") -> 850 | L17: =IF(A17<>"",IF(A17<>"Delblanding",IF($D17<>"",+CB17*10,""),""),"") -> 89 | M17: =IF(A17<>"",IF(A17<>"Delblanding",IF($D17<>"",+CC17*10,""),""),"") -> 22 | N17: =IF(A17<>"",IF(A17<>"Delblanding",IF($D17<>"",+CD17*10,""),""),"") -> 15 | O17: =IF(A17<>"",IF(A17<>"Delblanding",IF($D17<>"",+CE17*10,""),""),"") -> 27 | P17: =IF(A17<>"",IF($B17>0,VLOOKUP($B17,VSP_Fodermiddeldatabase!$A$3:$CP$489,10,),CHAR(32)),"") -> 93 | Q17: =IF(A17<>"",IF($B17>0,VLOOKUP($B17,VSP_Fodermiddeldatabase!$A$3:$CP$489,11,),CHAR(32)),"") -> 1 | R17: 90 | S17: =IF(A17<>"",IF(A17<>"Delblanding",IF($D17<>"",+$L17*$DM17/100,""),""),"") -> 73.53014143 | T17: =IF(A17<>"",IF(A17<>"Delblanding",IF($D17<>"",+$S17*DN17/100*DY17,CHAR(32)),""),"") -> 2.085380158 | U17: =IF(A17<>"",IF(A17<>"Delblanding",IF($D17<>"",+$S17*DO17/100*DZ17,CHAR(32)),""),"") -> 1.159655106 | V17: =IF(A17<>"",IF(A17<>"Delblanding",IF($D17<>"",+$S17*DP17/100*EA17,CHAR(32)),""),"") -> 1.710129263 | W17: =IF(A17<>"",IF(A17<>"Delblanding",IF($D17<>"",+U17+V17,CHAR(32)),""),"") -> 2.869784369 | X17: =IF(A17<>"",IF(A17<>"Delblanding",IF($D17<>"",+$S17*DQ17/100*EB17,CHAR(32)),""),"") -> 2.037785377 | Y17: =IF(A17<>"",IF(A17<>"Delblanding",IF($D17<>"",+$S17*DR17/100*EC17,CHAR(32)),""),"") -> 1.010405654 | Z17: =IF(A17<>"",IF(A17<>"Delblanding",IF($D17<>"",+$S17*DS17/100*ED17,CHAR(32)),""),"") -> 2.433781573 | AA17: =IF(A17<>"",IF(A17<>"Delblanding",IF($D17<>"",+$S17*DT17/100*EE17,CHAR(32)),""),"") -> 4.942038228 | AB17: =IF(A17<>"",IF(A17<>"Delblanding",IF($D17<>"",+$S17*DU17/100*EF17,CHAR(32)),""),"") -> 1.673084488 | AC17: =IF(A17<>"",IF(A17<>"Delblanding",IF($D17<>"",+$S17*DV17/100*EG17,CHAR(32)),""),"") -> 3.268370521 | AD17: =IF(A17<>"",IF(A17<>"Delblanding",IF($D17<>"",+$S17*DW17/100*EH17,CHAR(32)),""),"") -> 2.019358274 | AE17: =IF(A17<>"",IF(A17<>"Delblanding",IF($D17<>"",+AC17+AD17,CHAR(32)),""),"") -> 5.287728795 | AF17: =IF(A17<>"",IF(A17<>"Delblanding",IF($D17<>"",+$S17*DX17/100*EI17,CHAR(32)),""),"") -> 3.055701188 | AG17: =IF(A17<>"",IF(A17<>"Delblanding",IF($D17<>"",+($EZ17*$BZ17/100)*ET17/100,CHAR(32)),""),"") -> 0.756 | AH17: =IF(A17<>"",IF(A17<>"Delblanding",IF($D17<>"",+($EZ17*$BZ17/100)*EU17/100,CHAR(32)),""),"") -> 1.161 | AI17: =IF(A17<>"",IF(A17<>"Delblanding",IF($D17<>"",+($EZ17*$BZ17/100)*EV17/100,CHAR(32)),""),"") -> 1.296 | AJ17: =IF(A17<>"",IF(A17<>"Delblanding",IF($D17<>"",+($EZ17*$BZ17/100)*EW17/100,CHAR(32)),""),"") -> 1.458 | AK17: =IF(A17<>"",IF(A17<>"Delblanding",IF($D17<>"",+($EZ17*$BZ17/100)*EX17/100,CHAR(32)),""),"") -> 1.539 | AL17: =IF(A17<>"",IF(A17<>"Delblanding",IF($D17<>"",+(EY17*$BZ17/100),CHAR(32)),""),"") -> 0.34 | AM17: =IF(A17<>"",IF(A17<>"Delblanding",IF($D17<>"",+(EZ17*$BZ17/100),CHAR(32)),""),"") -> 2.7 | AN17: =IF(A17<>"",IF(A17<>"Delblanding",IF($D17<>"",+(FA17*$BZ17/100),CHAR(32)),""),"") -> 0.085 | BX17: 1.146327503 | BY17: 1.129814746 | BZ17: =IF($B17>0,VLOOKUP($B17,VSP_Fodermiddeldatabase!$A$3:$CP$489,12,),CHAR(32)) -> 85 | CA17: 15 | CB17: =IF($B17>0,VLOOKUP($B17,VSP_Fodermiddeldatabase!$A$3:$CP$489,13,),CHAR(32)) -> 8.9 | CC17: =IF($B17>0,VLOOKUP($B17,VSP_Fodermiddeldatabase!$A$3:$CP$489,14,),CHAR(32)) -> 2.2 | CD17: =IF($B17>0,VLOOKUP($B17,VSP_Fodermiddeldatabase!$A$3:$CP$489,15,),CHAR(32)) -> 1.5 | CE17: =IF($B17>0,VLOOKUP($B17,VSP_Fodermiddeldatabase!$A$3:$CP$489,16,),CHAR(32)) -> 2.7 | CF17: =+(BZ17-CD17)*10 -> 835 | CG17: =IF($B17>0,VLOOKUP($B17,VSP_Fodermiddeldatabase!$A$3:$CP$489,8,),CHAR(32)) -> 91.1 | CH17: =IF($B17>0,VLOOKUP($B17,VSP_Fodermiddeldatabase!$A$3:$CP$489,9,),CHAR(32)) -> 86.0999765 | CJ17: =+CX17/100*(100-CA17) -> 114.6327503 | CK17: =+CZ17/100*(100-CA17) -> 112.9814746 | CM17: =+CK17*DK17 -> 0 | CN17: 1.764705882 | CO17: 10.47058824 | CP17: 2.588235294 | CQ17: 91.1 | CR17: 86.0999765 | CS17: =CT17*(100-CQ17)/100+CV17+CN17*0.3+0.07*CP17 -> 16.47036911 | CT17: =100 - CN17 -> 98.23529412 | CU17: =CT17*CQ17/100-CO17*0.91-CP17*0.97-CV17 -> 70.43668971 | CV17: =CT17*(CQ17-CR17)/70 -> 7.016839702 | CW17: =CV17+0.18*CT17*(100-CQ17)/100 -> 8.590569113 | CX17: =(CO17*0.91*9.9+CP17*0.9*31.7+CU17*11.7+CV17*7-CS17*2.8)/7.38 -> 134.8620591 | CY17: =CX17*DK17 -> 0 | CZ17: =(CO17*0.91*9.9+CP17*0.9*31.7+CU17*11.7+CW17*9-CS17*2.8)/7.7 -> 132.9193819 | DA17: =CZ17*DK17 -> 0 | DB17: 5.0000235 | DC17: 94.5115 | DD17: 760.685 | DE17: 718.9348038 | DG17: 476.6738772 | DH17: 434.2499022 | DI17: 410.4160963 | DM17: =IF($B17>0,VLOOKUP($B17,VSP_Fodermiddeldatabase!$A$3:$CP$489,18,),CHAR(32)) -> 82.61813644 | DN17: =IF($B17>0,VLOOKUP($B17,VSP_Fodermiddeldatabase!$A$3:$CP$489,39,),CHAR(32)) -> 3.082705294 | DO17: =IF($B17>0,VLOOKUP($B17,VSP_Fodermiddeldatabase!$A$3:$CP$489,40,),CHAR(32)) -> 1.577115294 | DP17: =IF($B17>0,VLOOKUP($B17,VSP_Fodermiddeldatabase!$A$3:$CP$489,41,),CHAR(32)) -> 2.373217059 | DQ17: =IF($B17>0,VLOOKUP($B17,VSP_Fodermiddeldatabase!$A$3:$CP$489,42,),CHAR(32)) -> 2.979957647 | DR17: =IF($B17>0,VLOOKUP($B17,VSP_Fodermiddeldatabase!$A$3:$CP$489,43,),CHAR(32)) -> 1.388018235 | DS17: =IF($B17>0,VLOOKUP($B17,VSP_Fodermiddeldatabase!$A$3:$CP$489,44,),CHAR(32)) -> 3.343343529 | DT17: =IF($B17>0,VLOOKUP($B17,VSP_Fodermiddeldatabase!$A$3:$CP$489,45,),CHAR(32)) -> 6.721105294 | DU17: =IF($B17>0,VLOOKUP($B17,VSP_Fodermiddeldatabase!$A$3:$CP$489,46,),CHAR(32)) -> 2.298355882 | DV17: =IF($B17>0,VLOOKUP($B17,VSP_Fodermiddeldatabase!$A$3:$CP$489,47,),CHAR(32)) -> 4.357784118 | DW17: =IF($B17>0,VLOOKUP($B17,VSP_Fodermiddeldatabase!$A$3:$CP$489,48,),CHAR(32)) -> 2.7463 | DX17: =IF($B17>0,VLOOKUP($B17,VSP_Fodermiddeldatabase!$A$3:$CP$489,49,),CHAR(32)) -> 4.328867059 | DY17: =IF($B17>0,VLOOKUP($B17,VSP_Fodermiddeldatabase!$A$3:$CP$489,51,),CHAR(32)) -> 0.92 | DZ17: =IF($B17>0,VLOOKUP($B17,VSP_Fodermiddeldatabase!$A$3:$CP$489,52,),CHAR(32)) -> 1 | EA17: =IF($B17>0,VLOOKUP($B17,VSP_Fodermiddeldatabase!$A$3:$CP$489,53,),CHAR(32)) -> 0.98 | EB17: =IF($B17>0,VLOOKUP($B17,VSP_Fodermiddeldatabase!$A$3:$CP$489,54,),CHAR(32)) -> 0.93 | EC17: =IF($B17>0,VLOOKUP($B17,VSP_Fodermiddeldatabase!$A$3:$CP$489,55,),CHAR(32)) -> 0.99 | ED17: =IF($B17>0,VLOOKUP($B17,VSP_Fodermiddeldatabase!$A$3:$CP$489,56,),CHAR(32)) -> 0.99 | EE17: =IF($B17>0,VLOOKUP($B17,VSP_Fodermiddeldatabase!$A$3:$CP$489,57,),CHAR(32)) -> 1 | EF17: =IF($B17>0,VLOOKUP($B17,VSP_Fodermiddeldatabase!$A$3:$CP$489,58,),CHAR(32)) -> 0.99 | EG17: =IF($B17>0,VLOOKUP($B17,VSP_Fodermiddeldatabase!$A$3:$CP$489,59,),CHAR(32)) -> 1.02 | EH17: =IF($B17>0,VLOOKUP($B17,VSP_Fodermiddeldatabase!$A$3:$CP$489,60,),CHAR(32)) -> 1 | EI17: =IF($B17>0,VLOOKUP($B17,VSP_Fodermiddeldatabase!$A$3:$CP$489,61,),CHAR(32)) -> 0.96 | EJ17: =IF($B17>0,VLOOKUP($B17,VSP_Fodermiddeldatabase!$A$3:$CP$489,2,),CHAR(32)) -> 512 | EK17: =IF($B17>0,VLOOKUP($B17,VSP_Fodermiddeldatabase!$A$3:$CP$489,3,),CHAR(32)) -> 10 | EL17: =IF($B17>0,VLOOKUP($B17,VSP_Fodermiddeldatabase!$A$3:$CP$489,63,),CHAR(32)) -> 10.47058824 | EM17: =IF($B17>0,VLOOKUP($B17,VSP_Fodermiddeldatabase!$A$3:$CP$489,64,),CHAR(32)) -> 2.588235294 | EN17: =IF($B17>0,VLOOKUP($B17,VSP_Fodermiddeldatabase!$A$3:$CP$489,65,),CHAR(32)) -> 1.764705882 | EO17: =IF($B17>0,VLOOKUP($B17,VSP_Fodermiddeldatabase!$A$3:$CP$489,66,),CHAR(32)) -> 3.176470588 | EP17: =IF($B17>0,VLOOKUP($B17,VSP_Fodermiddeldatabase!$A$3:$CP$489,68,),CHAR(32)) -> 105 | EQ17: =IF($B17>0,VLOOKUP($B17,VSP_Fodermiddeldatabase!$A$3:$CP$489,69,),CHAR(32)) -> 27.17647059 | ER17: =IF($B17>0,VLOOKUP($B17,VSP_Fodermiddeldatabase!$A$3:$CP$489,70,),CHAR(32)) -> 1.348635114 | ES17: =IF($B17>0,VLOOKUP($B17,VSP_Fodermiddeldatabase!$A$3:$CP$489,71,),CHAR(32)) -> 1.329207653 | ET17: =IF($B17>0,VLOOKUP($B17,VSP_Fodermiddeldatabase!$A$3:$CP$489,19,),CHAR(32)) -> 28 | EU17: =IF($B17>0,VLOOKUP($B17,VSP_Fodermiddeldatabase!$A$3:$CP$489,20,),CHAR(32)) -> 43 | EV17: =IF($B17>0,VLOOKUP($B17,VSP_Fodermiddeldatabase!$A$3:$CP$489,21,),CHAR(32)) -> 48 | EW17: =IF($B17>0,VLOOKUP($B17,VSP_Fodermiddeldatabase!$A$3:$CP$489,22,),CHAR(32)) -> 54 | EX17: =IF($B17>0,VLOOKUP($B17,VSP_Fodermiddeldatabase!$A$3:$CP$489,23,),CHAR(32)) -> 57 | EY17: =IF($B17>0,VLOOKUP($B17,VSP_Fodermiddeldatabase!$A$3:$CP$489,25,),CHAR(32)) -> 0.4 | EZ17: =IF($B17>0,VLOOKUP($B17,VSP_Fodermiddeldatabase!$A$3:$CP$489,26,),CHAR(32)) -> 3.176470588 | FA17: =IF($B17>0,VLOOKUP($B17,VSP_Fodermiddeldatabase!$A$3:$CP$489,27,),CHAR(32)) -> 0.1 | FB17: =IF($B17>0,VLOOKUP($B17,VSP_Fodermiddeldatabase!$A$3:$CP$489,28,),CHAR(32)) -> 1 | FC17: =IF($B17>0,VLOOKUP($B17,VSP_Fodermiddeldatabase!$A$3:$CP$489,29,),CHAR(32)) -> 5.8 | FD17: =IF($B17>0,VLOOKUP($B17,VSP_Fodermiddeldatabase!$A$3:$CP$489,30,),CHAR(32)) -> 1.2 | FE17: =IF($B17>0,VLOOKUP($B17,VSP_Fodermiddeldatabase!$A$3:$CP$489,31,),CHAR(32)) -> 1.3 | FF17: =IF($B17>0,VLOOKUP($B17,VSP_Fodermiddeldatabase!$A$3:$CP$489,32,),CHAR(32)) -> 32 | FG17: =IF($B17>0,VLOOKUP($B17,VSP_Fodermiddeldatabase!$A$3:$CP$489,33,),CHAR(32)) -> 3.2 | FH17: =IF($B17>0,VLOOKUP($B17,VSP_Fodermiddeldatabase!$A$3:$CP$489,34,),CHAR(32)) -> 29 | FI17: =IF($B17>0,VLOOKUP($B17,VSP_Fodermiddeldatabase!$A$3:$CP$489,35,),CHAR(32)) -> 40 | FJ17: =IF($B17>0,VLOOKUP($B17,VSP_Fodermiddeldatabase!$A$3:$CP$489,36,),CHAR(32)) -> 0 | FK17: =IF($B17>0,VLOOKUP($B17,VSP_Fodermiddeldatabase!$A$3:$CP$489,37,),CHAR(32)) -> 0.06 | FM17: =IF($B17>0,VLOOKUP($B17,VSP_Fodermiddeldatabase!$A$3:$CP$489,74,),CHAR(32)) -> 704.3672269 | FN17: =IF($B17>0,VLOOKUP($B17,VSP_Fodermiddeldatabase!$A$3:$CP$489,75,),CHAR(32)) -> 70.16839702 | FO17: =IF($B17>0,VLOOKUP($B17,VSP_Fodermiddeldatabase!$A$3:$CP$489,76,),CHAR(32)) -> 670 | FP17: =IF($B17>0,VLOOKUP($B17,VSP_Fodermiddeldatabase!$A$3:$CP$489,77,),CHAR(32)) -> 19 | FQ17: =IF($B17>0,VLOOKUP($B17,VSP_Fodermiddeldatabase!$A$3:$CP$489,78,),CHAR(32)) -> 25 | FR17: =IF($B17>0,VLOOKUP($B17,VSP_Fodermiddeldatabase!$A$3:$CP$489,79,),CHAR(32)) -> 113 | FS17: =IF($B17>0,VLOOKUP($B17,VSP_Fodermiddeldatabase!$A$3:$CP$489,1,),CHAR(32)) -> 51210 | FT17: =IF($B17>0,VLOOKUP($B17,VSP_Fodermiddeldatabase!$A$3:$CP$489,5,),CHAR(32)) -> 2014-09-29 | FU17: =IF(A17<>"",A17,"") -> HVEDE, gns. 2012-2014, varmebehandlet | FV17: =IF($A17<>"",100-VLOOKUP($B17,VSP_Fodermiddeldatabase!$A$3:$CP$489,12,)) -> 15 | FW17: =IF($A17<>"",VLOOKUP($B17,VSP_Fodermiddeldatabase!$A$3:$CP$489,13,)) -> 8.9 | FX17: =IF($A17<>"",VLOOKUP($B17,VSP_Fodermiddeldatabase!$A$3:$CP$489,14,)) -> 2.2 | FY17: =IF($A17<>"",VLOOKUP($B17,VSP_Fodermiddeldatabase!$A$3:$CP$489,15,)) -> 1.5 | FZ17: =IF(+FV17>-1,+FY17*100/(100-FV17),CHAR(32)) -> 1.764705882 | GA17: =IF(+FV17>-1,+FW17*100/(100-FV17),CHAR(32)) -> 10.47058824 | GB17: =IF(+FV17>-1,+FX17*100/(100-FV17),CHAR(32)) -> 2.588235294 | GC17: =IF($A17<>"",VLOOKUP($B17,VSP_Fodermiddeldatabase!$A$3:$CP$489,8,)) -> 91.1 | GE17: =IF(GD17>0,+GC17*GD17/100,CHAR(32)) ->  | GF17: =IF($A17<>"",VLOOKUP($B17,VSP_Fodermiddeldatabase!$A$3:$CP$489,9,)) -> 86.0999765 | GG17: =IF(GD17>0,+GE17,+GF17) -> 86.0999765 | GH17: =+GN17/100*(100-$FV17) -> 114.6327503 | GI17: =+GO17/100*(100-$FV17) -> 112.9814746 | GJ17: =IF($A17<>"",VLOOKUP($B17,VSP_Fodermiddeldatabase!$A$3:$CP$489,11,)) -> 1 | GK17: =+GH17*$GJ17 -> 114.6327503 | GL17: =+GI17*$GJ17 -> 112.9814746 | GN17: =(GA17*0.91*9.9+GB17*0.9*31.7+GR17*11.7+GS17*7-GP17*2.8)/7.38 -> 134.8620591 | GO17: =(GA17*0.91*9.9+GB17*0.9*31.7+GR17*11.7+GT17*9-GP17*2.8)/7.7 -> 132.9193819 | GP17: =GQ17*(100-GC17)/100+GS17+FZ17*0.3+0.07*GB17 -> 16.47036911 | GQ17: =100 - FZ17 -> 98.23529412 | GR17: =GQ17*GC17/100-GA17*0.91-GB17*0.97-GS17 -> 70.43668971 | GS17: =GQ17*(GC17-GG17)/70 -> 7.016839702 | GT17: =GS17+0.18*GQ17*(100-GC17)/100 -> 8.590569113 | GU17: =GN17*GJ17 -> 134.8620591 | GV17: =GO17*GJ17 -> 132.9193819
A18: RAPSSKRÅFODER, lavt glukosinolatindhold | B18: 58100 | C18: 6 | D18: 185 | F18: 6 | G18: 185 | H18: 0.7323184635 | I18: 0.7323184635 | J18: 0.7936877212 | K18: 888.6 | L18: 357.4 | M18: 37.9 | N18: 66.6 | O18: 117.6 | P18: =IF(A18<>"",IF($B18>0,VLOOKUP($B18,VSP_Fodermiddeldatabase!$A$3:$CP$489,10,),CHAR(32)),"") -> 86 | Q18: =IF(A18<>"",IF($B18>0,VLOOKUP($B18,VSP_Fodermiddeldatabase!$A$3:$CP$489,11,),CHAR(32)),"") -> 1 | R18: 90 | S18: 271.624 | T18: 15.0887132 | U18: 6.1930272 | V18: 7.236878232 | W18: 13.42990543 | X18: 11.951456 | Y18: 3.415128552 | Z18: 10.91113608 | AA18: 20.63527528 | AB18: 8.260357464 | AC18: 11.6255072 | AD18: 8.531166592 | AE18: 20.15667379 | AF18: 14.23825846 | AG18: 2.538 | AH18: 3.76 | AI18: 4.23 | AJ18: 4.7 | AK18: 4.982 | AL18: 6.5 | AM18: 9.4 | AN18: 0.35544 | BX18: 0.7323184635 | BY18: 0.7936877212 | BZ18: =IF($B18>0,VLOOKUP($B18,VSP_Fodermiddeldatabase!$A$3:$CP$489,12,),CHAR(32)) -> 88.86 | CA18: 11.14 | CB18: =IF($B18>0,VLOOKUP($B18,VSP_Fodermiddeldatabase!$A$3:$CP$489,13,),CHAR(32)) -> 35.74 | CC18: =IF($B18>0,VLOOKUP($B18,VSP_Fodermiddeldatabase!$A$3:$CP$489,14,),CHAR(32)) -> 3.79 | CD18: =IF($B18>0,VLOOKUP($B18,VSP_Fodermiddeldatabase!$A$3:$CP$489,15,),CHAR(32)) -> 6.66 | CE18: =IF($B18>0,VLOOKUP($B18,VSP_Fodermiddeldatabase!$A$3:$CP$489,16,),CHAR(32)) -> 11.76 | CF18: =+(BZ18-CD18)*10 -> 822 | CG18: =IF($B18>0,VLOOKUP($B18,VSP_Fodermiddeldatabase!$A$3:$CP$489,8,),CHAR(32)) -> 77.41 | CH18: =IF($B18>0,VLOOKUP($B18,VSP_Fodermiddeldatabase!$A$3:$CP$489,9,),CHAR(32)) -> 60.12001204 | CJ18: =+CX18/100*(100-CA18) -> 73.23184635 | CK18: =+CZ18/100*(100-CA18) -> 79.36877212 | CM18: =+CK18*DK18 -> 0 | CN18: 7.494935854 | CO18: 40.22057169 | CP18: 4.265136169 | CQ18: 77.41 | CR18: 60.12001204 | CS18: =CT18*(100-CQ18)/100+CV18+CN18*0.3+0.07*CP18 -> 46.29266921 | CT18: =100 - CN18 -> 92.50506415 | CU18: =CT18*CQ18/100-CO18*0.91-CP18*0.97-CV18 -> 8.021532904 | CV18: =CT18*(CQ18-CR18)/70 -> 22.84873493 | CW18: =CV18+0.18*CT18*(100-CQ18)/100 -> 26.61017585 | CX18: =(CO18*0.91*9.9+CP18*0.9*31.7+CU18*11.7+CV18*7-CS18*2.8)/7.38 -> 82.41261124 | CY18: =CX18*DK18 -> 0 | CZ18: =(CO18*0.91*9.9+CP18*0.9*31.7+CU18*11.7+CW18*9-CS18*2.8)/7.7 -> 89.31889728 | DA18: =CZ18*DK18 -> 0 | DB18: 17.28998796 | DC18: 77.6644 | DD18: 636.3102 | DE18: 494.186499 | DG18: 49.32 | DH18: 38.178612 | DI18: 29.65118994 | DM18: =IF($B18>0,VLOOKUP($B18,VSP_Fodermiddeldatabase!$A$3:$CP$489,18,),CHAR(32)) -> 76 | DN18: =IF($B18>0,VLOOKUP($B18,VSP_Fodermiddeldatabase!$A$3:$CP$489,39,),CHAR(32)) -> 5.5 | DO18: =IF($B18>0,VLOOKUP($B18,VSP_Fodermiddeldatabase!$A$3:$CP$489,40,),CHAR(32)) -> 2 | DP18: =IF($B18>0,VLOOKUP($B18,VSP_Fodermiddeldatabase!$A$3:$CP$489,41,),CHAR(32)) -> 2.49 | DQ18: =IF($B18>0,VLOOKUP($B18,VSP_Fodermiddeldatabase!$A$3:$CP$489,42,),CHAR(32)) -> 4.4 | DR18: =IF($B18>0,VLOOKUP($B18,VSP_Fodermiddeldatabase!$A$3:$CP$489,43,),CHAR(32)) -> 1.27 | DS18: =IF($B18>0,VLOOKUP($B18,VSP_Fodermiddeldatabase!$A$3:$CP$489,44,),CHAR(32)) -> 3.9 | DT18: =IF($B18>0,VLOOKUP($B18,VSP_Fodermiddeldatabase!$A$3:$CP$489,45,),CHAR(32)) -> 7.1 | DU18: =IF($B18>0,VLOOKUP($B18,VSP_Fodermiddeldatabase!$A$3:$CP$489,46,),CHAR(32)) -> 2.79 | DV18: =IF($B18>0,VLOOKUP($B18,VSP_Fodermiddeldatabase!$A$3:$CP$489,47,),CHAR(32)) -> 4 | DW18: =IF($B18>0,VLOOKUP($B18,VSP_Fodermiddeldatabase!$A$3:$CP$489,48,),CHAR(32)) -> 3.02 | DX18: =IF($B18>0,VLOOKUP($B18,VSP_Fodermiddeldatabase!$A$3:$CP$489,49,),CHAR(32)) -> 5.19 | DY18: =IF($B18>0,VLOOKUP($B18,VSP_Fodermiddeldatabase!$A$3:$CP$489,51,),CHAR(32)) -> 1.01 | DZ18: =IF($B18>0,VLOOKUP($B18,VSP_Fodermiddeldatabase!$A$3:$CP$489,52,),CHAR(32)) -> 1.14 | EA18: =IF($B18>0,VLOOKUP($B18,VSP_Fodermiddeldatabase!$A$3:$CP$489,53,),CHAR(32)) -> 1.07 | EB18: =IF($B18>0,VLOOKUP($B18,VSP_Fodermiddeldatabase!$A$3:$CP$489,54,),CHAR(32)) -> 1 | EC18: =IF($B18>0,VLOOKUP($B18,VSP_Fodermiddeldatabase!$A$3:$CP$489,55,),CHAR(32)) -> 0.99 | ED18: =IF($B18>0,VLOOKUP($B18,VSP_Fodermiddeldatabase!$A$3:$CP$489,56,),CHAR(32)) -> 1.03 | EE18: =IF($B18>0,VLOOKUP($B18,VSP_Fodermiddeldatabase!$A$3:$CP$489,57,),CHAR(32)) -> 1.07 | EF18: =IF($B18>0,VLOOKUP($B18,VSP_Fodermiddeldatabase!$A$3:$CP$489,58,),CHAR(32)) -> 1.09 | EG18: =IF($B18>0,VLOOKUP($B18,VSP_Fodermiddeldatabase!$A$3:$CP$489,59,),CHAR(32)) -> 1.07 | EH18: =IF($B18>0,VLOOKUP($B18,VSP_Fodermiddeldatabase!$A$3:$CP$489,60,),CHAR(32)) -> 1.04 | EI18: =IF($B18>0,VLOOKUP($B18,VSP_Fodermiddeldatabase!$A$3:$CP$489,61,),CHAR(32)) -> 1.01 | EJ18: =IF($B18>0,VLOOKUP($B18,VSP_Fodermiddeldatabase!$A$3:$CP$489,2,),CHAR(32)) -> 581 | EK18: =IF($B18>0,VLOOKUP($B18,VSP_Fodermiddeldatabase!$A$3:$CP$489,3,),CHAR(32)) -> 0 | EL18: =IF($B18>0,VLOOKUP($B18,VSP_Fodermiddeldatabase!$A$3:$CP$489,63,),CHAR(32)) -> 40.22057169 | EM18: =IF($B18>0,VLOOKUP($B18,VSP_Fodermiddeldatabase!$A$3:$CP$489,64,),CHAR(32)) -> 4.265136169 | EN18: =IF($B18>0,VLOOKUP($B18,VSP_Fodermiddeldatabase!$A$3:$CP$489,65,),CHAR(32)) -> 7.494935854 | EO18: =IF($B18>0,VLOOKUP($B18,VSP_Fodermiddeldatabase!$A$3:$CP$489,66,),CHAR(32)) -> 13.23430115 | EP18: =IF($B18>0,VLOOKUP($B18,VSP_Fodermiddeldatabase!$A$3:$CP$489,68,),CHAR(32)) -> 116 | EQ18: =IF($B18>0,VLOOKUP($B18,VSP_Fodermiddeldatabase!$A$3:$CP$489,69,),CHAR(32)) -> 49.47557956 | ER18: =IF($B18>0,VLOOKUP($B18,VSP_Fodermiddeldatabase!$A$3:$CP$489,70,),CHAR(32)) -> 0.8241802992 | ES18: =IF($B18>0,VLOOKUP($B18,VSP_Fodermiddeldatabase!$A$3:$CP$489,71,),CHAR(32)) -> 0.8932410937 | ET18: =IF($B18>0,VLOOKUP($B18,VSP_Fodermiddeldatabase!$A$3:$CP$489,19,),CHAR(32)) -> 27 | EU18: =IF($B18>0,VLOOKUP($B18,VSP_Fodermiddeldatabase!$A$3:$CP$489,20,),CHAR(32)) -> 40 | EV18: =IF($B18>0,VLOOKUP($B18,VSP_Fodermiddeldatabase!$A$3:$CP$489,21,),CHAR(32)) -> 45 | EW18: =IF($B18>0,VLOOKUP($B18,VSP_Fodermiddeldatabase!$A$3:$CP$489,22,),CHAR(32)) -> 50 | EX18: =IF($B18>0,VLOOKUP($B18,VSP_Fodermiddeldatabase!$A$3:$CP$489,23,),CHAR(32)) -> 53 | EY18: =IF($B18>0,VLOOKUP($B18,VSP_Fodermiddeldatabase!$A$3:$CP$489,25,),CHAR(32)) -> 7.314877335 | EZ18: =IF($B18>0,VLOOKUP($B18,VSP_Fodermiddeldatabase!$A$3:$CP$489,26,),CHAR(32)) -> 10.57843799 | FA18: =IF($B18>0,VLOOKUP($B18,VSP_Fodermiddeldatabase!$A$3:$CP$489,27,),CHAR(32)) -> 0.4 | FB18: =IF($B18>0,VLOOKUP($B18,VSP_Fodermiddeldatabase!$A$3:$CP$489,28,),CHAR(32)) -> 0 | FC18: =IF($B18>0,VLOOKUP($B18,VSP_Fodermiddeldatabase!$A$3:$CP$489,29,),CHAR(32)) -> 15 | FD18: =IF($B18>0,VLOOKUP($B18,VSP_Fodermiddeldatabase!$A$3:$CP$489,30,),CHAR(32)) -> 5.3 | FE18: =IF($B18>0,VLOOKUP($B18,VSP_Fodermiddeldatabase!$A$3:$CP$489,31,),CHAR(32)) -> 7.3 | FF18: =IF($B18>0,VLOOKUP($B18,VSP_Fodermiddeldatabase!$A$3:$CP$489,32,),CHAR(32)) -> 260 | FG18: =IF($B18>0,VLOOKUP($B18,VSP_Fodermiddeldatabase!$A$3:$CP$489,33,),CHAR(32)) -> 6.4 | FH18: =IF($B18>0,VLOOKUP($B18,VSP_Fodermiddeldatabase!$A$3:$CP$489,34,),CHAR(32)) -> 76 | FI18: =IF($B18>0,VLOOKUP($B18,VSP_Fodermiddeldatabase!$A$3:$CP$489,35,),CHAR(32)) -> 73 | FJ18: =IF($B18>0,VLOOKUP($B18,VSP_Fodermiddeldatabase!$A$3:$CP$489,36,),CHAR(32)) -> 0 | FK18: =IF($B18>0,VLOOKUP($B18,VSP_Fodermiddeldatabase!$A$3:$CP$489,37,),CHAR(32)) -> 0.09 | FM18: =IF($B18>0,VLOOKUP($B18,VSP_Fodermiddeldatabase!$A$3:$CP$489,74,),CHAR(32)) -> 80.21516993 | FN18: =IF($B18>0,VLOOKUP($B18,VSP_Fodermiddeldatabase!$A$3:$CP$489,75,),CHAR(32)) -> 228.4873493 | FO18: =IF($B18>0,VLOOKUP($B18,VSP_Fodermiddeldatabase!$A$3:$CP$489,76,),CHAR(32)) ->  | FP18: =IF($B18>0,VLOOKUP($B18,VSP_Fodermiddeldatabase!$A$3:$CP$489,77,),CHAR(32)) ->  | FQ18: =IF($B18>0,VLOOKUP($B18,VSP_Fodermiddeldatabase!$A$3:$CP$489,78,),CHAR(32)) -> 51 | FR18: =IF($B18>0,VLOOKUP($B18,VSP_Fodermiddeldatabase!$A$3:$CP$489,79,),CHAR(32)) -> 286 | FS18: =IF($B18>0,VLOOKUP($B18,VSP_Fodermiddeldatabase!$A$3:$CP$489,1,),CHAR(32)) -> 58100 | FT18: =IF($B18>0,VLOOKUP($B18,VSP_Fodermiddeldatabase!$A$3:$CP$489,5,),CHAR(32)) -> 2014-06-24 | FU18: RAPSSKRÅFODER, lavt glukosinolatindhold | FV18: =IF($A18<>"",100-VLOOKUP($B18,VSP_Fodermiddeldatabase!$A$3:$CP$489,12,)) -> 11.14 | FW18: =IF($A18<>"",VLOOKUP($B18,VSP_Fodermiddeldatabase!$A$3:$CP$489,13,)) -> 35.74 | FX18: =IF($A18<>"",VLOOKUP($B18,VSP_Fodermiddeldatabase!$A$3:$CP$489,14,)) -> 3.79 | FY18: =IF($A18<>"",VLOOKUP($B18,VSP_Fodermiddeldatabase!$A$3:$CP$489,15,)) -> 6.66 | FZ18: 7.494935854 | GA18: 40.22057169 | GB18: 4.265136169 | GC18: =IF($A18<>"",VLOOKUP($B18,VSP_Fodermiddeldatabase!$A$3:$CP$489,8,)) -> 77.41 | GF18: =IF($A18<>"",VLOOKUP($B18,VSP_Fodermiddeldatabase!$A$3:$CP$489,9,)) -> 60.12001204 | GG18: 60.12001204 | GH18: 73.23184635 | GI18: 79.36877212 | GJ18: =IF($A18<>"",VLOOKUP($B18,VSP_Fodermiddeldatabase!$A$3:$CP$489,11,)) -> 1 | GK18: 73.23184635 | GL18: 79.36877212 | GN18: 82.41261124 | GO18: 89.31889728 | GP18: 46.29266921 | GQ18: 92.50506415 | GR18: 8.021532904 | GS18: 22.84873493 | GT18: 26.61017585 | GU18: 82.41261124 | GV18: 89.31889728
A19: SOLSIKKESKRÅFODER, afskallet | B19: 62200 | C19: 6 | D19: 176 | F19: 6 | G19: 176 | H19: 0.67817404 | I19: 0.67817404 | J19: 0.7426708117 | K19: 902.8 | L19: 374.3 | M19: 23.6 | N19: 63.5 | O19: 181.7 | P19: =IF(A19<>"",IF($B19>0,VLOOKUP($B19,VSP_Fodermiddeldatabase!$A$3:$CP$489,10,),CHAR(32)),"") -> 93 | Q19: =IF(A19<>"",IF($B19>0,VLOOKUP($B19,VSP_Fodermiddeldatabase!$A$3:$CP$489,11,),CHAR(32)),"") -> 1 | R19: 90 | S19: 314.412 | T19: 10.5642432 | U19: 7.33208784 | V19: 5.71601016 | W19: 13.048098 | X19: 11.40057912 | Y19: 3.683650992 | Z19: 12.76198308 | AA19: 19.60987644 | AB19: 7.62134688 | AC19: 14.2900254 | AD19: 7.781697 | AE19: 22.0717224 | AF19: 15.406188 | AG19: 1.5 | AH19: 2.5 | AI19: 2.9 | AJ19: 3.3 | AK19: 3.5 | AL19: 4 | AM19: 10 | AN19: 0.18056 | BX19: 0.67817404 | BY19: 0.7426708117 | BZ19: =IF($B19>0,VLOOKUP($B19,VSP_Fodermiddeldatabase!$A$3:$CP$489,12,),CHAR(32)) -> 90.28 | CA19: 9.72 | CB19: =IF($B19>0,VLOOKUP($B19,VSP_Fodermiddeldatabase!$A$3:$CP$489,13,),CHAR(32)) -> 37.43 | CC19: =IF($B19>0,VLOOKUP($B19,VSP_Fodermiddeldatabase!$A$3:$CP$489,14,),CHAR(32)) -> 2.36 | CD19: =IF($B19>0,VLOOKUP($B19,VSP_Fodermiddeldatabase!$A$3:$CP$489,15,),CHAR(32)) -> 6.35 | CE19: =IF($B19>0,VLOOKUP($B19,VSP_Fodermiddeldatabase!$A$3:$CP$489,16,),CHAR(32)) -> 18.17 | CF19: =+(BZ19-CD19)*10 -> 839.3 | CG19: =IF($B19>0,VLOOKUP($B19,VSP_Fodermiddeldatabase!$A$3:$CP$489,8,),CHAR(32)) -> 73.51 | CH19: =IF($B19>0,VLOOKUP($B19,VSP_Fodermiddeldatabase!$A$3:$CP$489,9,),CHAR(32)) -> 58.76999533 | CJ19: =+CX19/100*(100-CA19) -> 67.817404 | CK19: =+CZ19/100*(100-CA19) -> 74.26708117 | CM19: =+CK19*DK19 -> 0 | CN19: 7.033673017 | CO19: 41.45990253 | CP19: 2.614089499 | CQ19: =+CG19 -> 73.51 | CR19: =+CH19 -> 58.76999533 | CS19: =CT19*(100-CQ19)/100+CV19+CN19*0.3+0.07*CP19 -> 46.49592667 | CT19: =100 - CN19 -> 92.96632698 | CU19: =CT19*CQ19/100-CO19*0.91-CP19*0.97-CV19 -> 8.499310368 | CV19: =CT19*(CQ19-CR19)/70 -> 19.57605848 | CW19: =CV19+0.18*CT19*(100-CQ19)/100 -> 24.00887889 | CX19: =(CO19*0.91*9.9+CP19*0.9*31.7+CU19*11.7+CV19*7-CS19*2.8)/7.38 -> 75.11896765 | CY19: =CX19*DK19 -> 0 | CZ19: =(CO19*0.91*9.9+CP19*0.9*31.7+CU19*11.7+CW19*9-CS19*2.8)/7.7 -> 82.2630496 | DA19: =CZ19*DK19 -> 0 | DB19: 14.74000467 | DC19: 79.9483 | DD19: 616.96943 | DE19: 493.2565708 | DG19: 50.358 | DH19: 37.0181658 | DI19: 29.59539425 | DM19: =IF($B19>0,VLOOKUP($B19,VSP_Fodermiddeldatabase!$A$3:$CP$489,18,),CHAR(32)) -> 84 | DN19: =IF($B19>0,VLOOKUP($B19,VSP_Fodermiddeldatabase!$A$3:$CP$489,39,),CHAR(32)) -> 3.5 | DO19: =IF($B19>0,VLOOKUP($B19,VSP_Fodermiddeldatabase!$A$3:$CP$489,40,),CHAR(32)) -> 2.2 | DP19: =IF($B19>0,VLOOKUP($B19,VSP_Fodermiddeldatabase!$A$3:$CP$489,41,),CHAR(32)) -> 1.8 | DQ19: =IF($B19>0,VLOOKUP($B19,VSP_Fodermiddeldatabase!$A$3:$CP$489,42,),CHAR(32)) -> 3.7 | DR19: =IF($B19>0,VLOOKUP($B19,VSP_Fodermiddeldatabase!$A$3:$CP$489,43,),CHAR(32)) -> 1.16 | DS19: =IF($B19>0,VLOOKUP($B19,VSP_Fodermiddeldatabase!$A$3:$CP$489,44,),CHAR(32)) -> 4.1 | DT19: =IF($B19>0,VLOOKUP($B19,VSP_Fodermiddeldatabase!$A$3:$CP$489,45,),CHAR(32)) -> 6.3 | DU19: =IF($B19>0,VLOOKUP($B19,VSP_Fodermiddeldatabase!$A$3:$CP$489,46,),CHAR(32)) -> 2.4 | DV19: =IF($B19>0,VLOOKUP($B19,VSP_Fodermiddeldatabase!$A$3:$CP$489,47,),CHAR(32)) -> 4.5 | DW19: =IF($B19>0,VLOOKUP($B19,VSP_Fodermiddeldatabase!$A$3:$CP$489,48,),CHAR(32)) -> 2.5 | DX19: =IF($B19>0,VLOOKUP($B19,VSP_Fodermiddeldatabase!$A$3:$CP$489,49,),CHAR(32)) -> 5 | DY19: =IF($B19>0,VLOOKUP($B19,VSP_Fodermiddeldatabase!$A$3:$CP$489,51,),CHAR(32)) -> 0.96 | DZ19: =IF($B19>0,VLOOKUP($B19,VSP_Fodermiddeldatabase!$A$3:$CP$489,52,),CHAR(32)) -> 1.06 | EA19: =IF($B19>0,VLOOKUP($B19,VSP_Fodermiddeldatabase!$A$3:$CP$489,53,),CHAR(32)) -> 1.01 | EB19: =IF($B19>0,VLOOKUP($B19,VSP_Fodermiddeldatabase!$A$3:$CP$489,54,),CHAR(32)) -> 0.98 | EC19: =IF($B19>0,VLOOKUP($B19,VSP_Fodermiddeldatabase!$A$3:$CP$489,55,),CHAR(32)) -> 1.01 | ED19: =IF($B19>0,VLOOKUP($B19,VSP_Fodermiddeldatabase!$A$3:$CP$489,56,),CHAR(32)) -> 0.99 | EE19: =IF($B19>0,VLOOKUP($B19,VSP_Fodermiddeldatabase!$A$3:$CP$489,57,),CHAR(32)) -> 0.99 | EF19: =IF($B19>0,VLOOKUP($B19,VSP_Fodermiddeldatabase!$A$3:$CP$489,58,),CHAR(32)) -> 1.01 | EG19: =IF($B19>0,VLOOKUP($B19,VSP_Fodermiddeldatabase!$A$3:$CP$489,59,),CHAR(32)) -> 1.01 | EH19: =IF($B19>0,VLOOKUP($B19,VSP_Fodermiddeldatabase!$A$3:$CP$489,60,),CHAR(32)) -> 0.99 | EI19: =IF($B19>0,VLOOKUP($B19,VSP_Fodermiddeldatabase!$A$3:$CP$489,61,),CHAR(32)) -> 0.98 | EJ19: =IF($B19>0,VLOOKUP($B19,VSP_Fodermiddeldatabase!$A$3:$CP$489,2,),CHAR(32)) -> 622 | EK19: =IF($B19>0,VLOOKUP($B19,VSP_Fodermiddeldatabase!$A$3:$CP$489,3,),CHAR(32)) -> 0 | EL19: =IF($B19>0,VLOOKUP($B19,VSP_Fodermiddeldatabase!$A$3:$CP$489,63,),CHAR(32)) -> 41.45990253 | EM19: =IF($B19>0,VLOOKUP($B19,VSP_Fodermiddeldatabase!$A$3:$CP$489,64,),CHAR(32)) -> 2.614089499 | EN19: =IF($B19>0,VLOOKUP($B19,VSP_Fodermiddeldatabase!$A$3:$CP$489,65,),CHAR(32)) -> 7.033673017 | EO19: =IF($B19>0,VLOOKUP($B19,VSP_Fodermiddeldatabase!$A$3:$CP$489,66,),CHAR(32)) -> 20.12627381 | EP19: =IF($B19>0,VLOOKUP($B19,VSP_Fodermiddeldatabase!$A$3:$CP$489,68,),CHAR(32)) -> 130 | EQ19: =IF($B19>0,VLOOKUP($B19,VSP_Fodermiddeldatabase!$A$3:$CP$489,69,),CHAR(32)) -> 33.98316349 | ER19: =IF($B19>0,VLOOKUP($B19,VSP_Fodermiddeldatabase!$A$3:$CP$489,70,),CHAR(32)) -> 0.7514399646 | ES19: =IF($B19>0,VLOOKUP($B19,VSP_Fodermiddeldatabase!$A$3:$CP$489,71,),CHAR(32)) -> 0.8228843598 | ET19: =IF($B19>0,VLOOKUP($B19,VSP_Fodermiddeldatabase!$A$3:$CP$489,19,),CHAR(32)) -> 15 | EU19: =IF($B19>0,VLOOKUP($B19,VSP_Fodermiddeldatabase!$A$3:$CP$489,20,),CHAR(32)) -> 25 | EV19: =IF($B19>0,VLOOKUP($B19,VSP_Fodermiddeldatabase!$A$3:$CP$489,21,),CHAR(32)) -> 29 | EW19: =IF($B19>0,VLOOKUP($B19,VSP_Fodermiddeldatabase!$A$3:$CP$489,22,),CHAR(32)) -> 33 | EX19: =IF($B19>0,VLOOKUP($B19,VSP_Fodermiddeldatabase!$A$3:$CP$489,23,),CHAR(32)) -> 35 | EY19: =IF($B19>0,VLOOKUP($B19,VSP_Fodermiddeldatabase!$A$3:$CP$489,25,),CHAR(32)) -> 4.430660168 | EZ19: =IF($B19>0,VLOOKUP($B19,VSP_Fodermiddeldatabase!$A$3:$CP$489,26,),CHAR(32)) -> 11.07665042 | FA19: =IF($B19>0,VLOOKUP($B19,VSP_Fodermiddeldatabase!$A$3:$CP$489,27,),CHAR(32)) -> 0.2 | FB19: =IF($B19>0,VLOOKUP($B19,VSP_Fodermiddeldatabase!$A$3:$CP$489,28,),CHAR(32)) -> 0 | FC19: =IF($B19>0,VLOOKUP($B19,VSP_Fodermiddeldatabase!$A$3:$CP$489,29,),CHAR(32)) -> 17 | FD19: =IF($B19>0,VLOOKUP($B19,VSP_Fodermiddeldatabase!$A$3:$CP$489,30,),CHAR(32)) -> 6.7 | FE19: =IF($B19>0,VLOOKUP($B19,VSP_Fodermiddeldatabase!$A$3:$CP$489,31,),CHAR(32)) -> 4.8 | FF19: =IF($B19>0,VLOOKUP($B19,VSP_Fodermiddeldatabase!$A$3:$CP$489,32,),CHAR(32)) -> 170 | FG19: =IF($B19>0,VLOOKUP($B19,VSP_Fodermiddeldatabase!$A$3:$CP$489,33,),CHAR(32)) -> 36 | FH19: =IF($B19>0,VLOOKUP($B19,VSP_Fodermiddeldatabase!$A$3:$CP$489,34,),CHAR(32)) -> 47 | FI19: =IF($B19>0,VLOOKUP($B19,VSP_Fodermiddeldatabase!$A$3:$CP$489,35,),CHAR(32)) -> 110 | FJ19: =IF($B19>0,VLOOKUP($B19,VSP_Fodermiddeldatabase!$A$3:$CP$489,36,),CHAR(32)) -> 0 | FK19: =IF($B19>0,VLOOKUP($B19,VSP_Fodermiddeldatabase!$A$3:$CP$489,37,),CHAR(32)) -> 0.15 | FM19: =IF($B19>0,VLOOKUP($B19,VSP_Fodermiddeldatabase!$A$3:$CP$489,74,),CHAR(32)) -> 84.99316571 | FN19: =IF($B19>0,VLOOKUP($B19,VSP_Fodermiddeldatabase!$A$3:$CP$489,75,),CHAR(32)) -> 195.7605848 | FO19: =IF($B19>0,VLOOKUP($B19,VSP_Fodermiddeldatabase!$A$3:$CP$489,76,),CHAR(32)) -> 16.75977654 | FP19: =IF($B19>0,VLOOKUP($B19,VSP_Fodermiddeldatabase!$A$3:$CP$489,77,),CHAR(32)) -> 55.86592179 | FQ19: =IF($B19>0,VLOOKUP($B19,VSP_Fodermiddeldatabase!$A$3:$CP$489,78,),CHAR(32)) -> 56.98324022 | FR19: =IF($B19>0,VLOOKUP($B19,VSP_Fodermiddeldatabase!$A$3:$CP$489,79,),CHAR(32)) -> 354.1899441 | FS19: =IF($B19>0,VLOOKUP($B19,VSP_Fodermiddeldatabase!$A$3:$CP$489,1,),CHAR(32)) -> 62200 | FT19: =IF($B19>0,VLOOKUP($B19,VSP_Fodermiddeldatabase!$A$3:$CP$489,5,),CHAR(32)) -> 2013-08-13 | FU19: SOLSIKKESKRÅFODER, afskallet | FV19: =IF($A19<>"",100-VLOOKUP($B19,VSP_Fodermiddeldatabase!$A$3:$CP$489,12,)) -> 9.72 | FW19: =IF($A19<>"",VLOOKUP($B19,VSP_Fodermiddeldatabase!$A$3:$CP$489,13,)) -> 37.43 | FX19: =IF($A19<>"",VLOOKUP($B19,VSP_Fodermiddeldatabase!$A$3:$CP$489,14,)) -> 2.36 | FY19: =IF($A19<>"",VLOOKUP($B19,VSP_Fodermiddeldatabase!$A$3:$CP$489,15,)) -> 6.35 | FZ19: 7.033673017 | GA19: 41.45990253 | GB19: 2.614089499 | GC19: =IF($A19<>"",VLOOKUP($B19,VSP_Fodermiddeldatabase!$A$3:$CP$489,8,)) -> 73.51 | GF19: =IF($A19<>"",VLOOKUP($B19,VSP_Fodermiddeldatabase!$A$3:$CP$489,9,)) -> 58.76999533 | GG19: 58.76999533 | GH19: 67.817404 | GI19: 74.26708117 | GJ19: =IF($A19<>"",VLOOKUP($B19,VSP_Fodermiddeldatabase!$A$3:$CP$489,11,)) -> 1 | GK19: 67.817404 | GL19: 74.26708117 | GN19: 75.11896765 | GO19: 82.2630496 | GP19: 46.49592667 | GQ19: 92.96632698 | GR19: 8.499310368 | GS19: 19.57605848 | GT19: 24.00887889 | GU19: 75.11896765 | GV19: 82.2630496
A20: SOJASKRÅFODER, afskallet toastet | B20: 61200 | C20: 11.58463807 | D20: 288 | G20: 288 | H20: 0.9605259232 | I20: 0.9605259232 | J20: 0.9746650179 | K20: 878 | L20: 464.2114859 | M20: 21.40975387 | N20: 65.52985415 | O20: 36.11645397 | P20: =IF(A20<>"",IF($B20>0,VLOOKUP($B20,VSP_Fodermiddeldatabase!$A$3:$CP$489,10,),CHAR(32)),"") -> 96 | Q20: =IF(A20<>"",IF($B20>0,VLOOKUP($B20,VSP_Fodermiddeldatabase!$A$3:$CP$489,11,),CHAR(32)),"") -> 1 | R20: 90 | S20: 408.5061076 | T20: 25.5839205 | U20: 5.747680933 | V20: 5.74277886 | W20: 11.49045979 | X20: 15.81286292 | Y20: 5.73542575 | Z20: 18.31904789 | AA20: 31.76951999 | AB20: 11.06602195 | AC20: 20.83381149 | AD20: 15.54202337 | AE20: 36.37583485 | AF20: 19.51556228 | AG20: 2.458119872 | AH20: 3.214464448 | AI20: 3.529608022 | AJ20: 3.781722881 | AK20: 3.970809025 | AL20: 3.201458523 | AM20: 6.302871468 | AN20: 0.0878 | BX20: 0.9605259232 | BY20: 0.9746650179 | BZ20: =IF($B20>0,VLOOKUP($B20,VSP_Fodermiddeldatabase!$A$3:$CP$489,12,),CHAR(32)) -> 87.8 | CA20: 12.2 | CB20: =IF($B20>0,VLOOKUP($B20,VSP_Fodermiddeldatabase!$A$3:$CP$489,13,),CHAR(32)) -> 46.42114859 | CC20: =IF($B20>0,VLOOKUP($B20,VSP_Fodermiddeldatabase!$A$3:$CP$489,14,),CHAR(32)) -> 2.140975387 | CD20: =IF($B20>0,VLOOKUP($B20,VSP_Fodermiddeldatabase!$A$3:$CP$489,15,),CHAR(32)) -> 6.552985415 | CE20: =IF($B20>0,VLOOKUP($B20,VSP_Fodermiddeldatabase!$A$3:$CP$489,16,),CHAR(32)) -> 3.611645397 | CF20: 812.4701459 | CG20: =IF($B20>0,VLOOKUP($B20,VSP_Fodermiddeldatabase!$A$3:$CP$489,8,),CHAR(32)) -> 94.09 | CH20: =IF($B20>0,VLOOKUP($B20,VSP_Fodermiddeldatabase!$A$3:$CP$489,9,),CHAR(32)) -> 79.51000178 | CJ20: 96.05259232 | CK20: 97.46650179 | CM20: 0 | CN20: 7.463536919 | CO20: 52.87146764 | CP20: 2.438468551 | CQ20: 94.09 | CR20: 79.51000178 | CS20: 27.1526798 | CT20: 92.53646308 | CU20: 17.31518711 | CV20: 19.27402096 | CW20: 20.25842385 | CX20: 109.3993079 | CY20: 0 | CZ20: 111.0096831 | DA20: 0 | DB20: 14.57999822 | DC20: 84.5042 | DD20: 764.4531602 | DE20: 645.9950274 | DG20: 94.12172579 | DH20: 88.5591318 | DI20: 74.83618585 | DM20: =IF($B20>0,VLOOKUP($B20,VSP_Fodermiddeldatabase!$A$3:$CP$489,18,),CHAR(32)) -> 88 | DN20: =IF($B20>0,VLOOKUP($B20,VSP_Fodermiddeldatabase!$A$3:$CP$489,39,),CHAR(32)) -> 6.14 | DO20: =IF($B20>0,VLOOKUP($B20,VSP_Fodermiddeldatabase!$A$3:$CP$489,40,),CHAR(32)) -> 1.34 | DP20: =IF($B20>0,VLOOKUP($B20,VSP_Fodermiddeldatabase!$A$3:$CP$489,41,),CHAR(32)) -> 1.42 | DQ20: =IF($B20>0,VLOOKUP($B20,VSP_Fodermiddeldatabase!$A$3:$CP$489,42,),CHAR(32)) -> 3.91 | DR20: =IF($B20>0,VLOOKUP($B20,VSP_Fodermiddeldatabase!$A$3:$CP$489,43,),CHAR(32)) -> 1.35 | DS20: =IF($B20>0,VLOOKUP($B20,VSP_Fodermiddeldatabase!$A$3:$CP$489,44,),CHAR(32)) -> 4.44 | DT20: =IF($B20>0,VLOOKUP($B20,VSP_Fodermiddeldatabase!$A$3:$CP$489,45,),CHAR(32)) -> 7.7 | DU20: =IF($B20>0,VLOOKUP($B20,VSP_Fodermiddeldatabase!$A$3:$CP$489,46,),CHAR(32)) -> 2.63 | DV20: =IF($B20>0,VLOOKUP($B20,VSP_Fodermiddeldatabase!$A$3:$CP$489,47,),CHAR(32)) -> 5 | DW20: =IF($B20>0,VLOOKUP($B20,VSP_Fodermiddeldatabase!$A$3:$CP$489,48,),CHAR(32)) -> 3.73 | DX20: =IF($B20>0,VLOOKUP($B20,VSP_Fodermiddeldatabase!$A$3:$CP$489,49,),CHAR(32)) -> 4.73 | DY20: =IF($B20>0,VLOOKUP($B20,VSP_Fodermiddeldatabase!$A$3:$CP$489,51,),CHAR(32)) -> 1.02 | DZ20: =IF($B20>0,VLOOKUP($B20,VSP_Fodermiddeldatabase!$A$3:$CP$489,52,),CHAR(32)) -> 1.05 | EA20: =IF($B20>0,VLOOKUP($B20,VSP_Fodermiddeldatabase!$A$3:$CP$489,53,),CHAR(32)) -> 0.99 | EB20: =IF($B20>0,VLOOKUP($B20,VSP_Fodermiddeldatabase!$A$3:$CP$489,54,),CHAR(32)) -> 0.99 | EC20: =IF($B20>0,VLOOKUP($B20,VSP_Fodermiddeldatabase!$A$3:$CP$489,55,),CHAR(32)) -> 1.04 | ED20: =IF($B20>0,VLOOKUP($B20,VSP_Fodermiddeldatabase!$A$3:$CP$489,56,),CHAR(32)) -> 1.01 | EE20: =IF($B20>0,VLOOKUP($B20,VSP_Fodermiddeldatabase!$A$3:$CP$489,57,),CHAR(32)) -> 1.01 | EF20: =IF($B20>0,VLOOKUP($B20,VSP_Fodermiddeldatabase!$A$3:$CP$489,58,),CHAR(32)) -> 1.03 | EG20: =IF($B20>0,VLOOKUP($B20,VSP_Fodermiddeldatabase!$A$3:$CP$489,59,),CHAR(32)) -> 1.02 | EH20: =IF($B20>0,VLOOKUP($B20,VSP_Fodermiddeldatabase!$A$3:$CP$489,60,),CHAR(32)) -> 1.02 | EI20: =IF($B20>0,VLOOKUP($B20,VSP_Fodermiddeldatabase!$A$3:$CP$489,61,),CHAR(32)) -> 1.01 | EJ20: =IF($B20>0,VLOOKUP($B20,VSP_Fodermiddeldatabase!$A$3:$CP$489,2,),CHAR(32)) -> 612 | EK20: =IF($B20>0,VLOOKUP($B20,VSP_Fodermiddeldatabase!$A$3:$CP$489,3,),CHAR(32)) -> 0 | EL20: =IF($B20>0,VLOOKUP($B20,VSP_Fodermiddeldatabase!$A$3:$CP$489,63,),CHAR(32)) -> 52.87146764 | EM20: =IF($B20>0,VLOOKUP($B20,VSP_Fodermiddeldatabase!$A$3:$CP$489,64,),CHAR(32)) -> 2.438468551 | EN20: =IF($B20>0,VLOOKUP($B20,VSP_Fodermiddeldatabase!$A$3:$CP$489,65,),CHAR(32)) -> 7.463536919 | EO20: =IF($B20>0,VLOOKUP($B20,VSP_Fodermiddeldatabase!$A$3:$CP$489,66,),CHAR(32)) -> 4.11349134 | EP20: =IF($B20>0,VLOOKUP($B20,VSP_Fodermiddeldatabase!$A$3:$CP$489,68,),CHAR(32)) -> 130 | EQ20: =IF($B20>0,VLOOKUP($B20,VSP_Fodermiddeldatabase!$A$3:$CP$489,69,),CHAR(32)) -> 31.70009116 | ER20: =IF($B20>0,VLOOKUP($B20,VSP_Fodermiddeldatabase!$A$3:$CP$489,70,),CHAR(32)) -> 1.09406472 | ES20: =IF($B20>0,VLOOKUP($B20,VSP_Fodermiddeldatabase!$A$3:$CP$489,71,),CHAR(32)) -> 1.110165496 | ET20: =IF($B20>0,VLOOKUP($B20,VSP_Fodermiddeldatabase!$A$3:$CP$489,19,),CHAR(32)) -> 39 | EU20: =IF($B20>0,VLOOKUP($B20,VSP_Fodermiddeldatabase!$A$3:$CP$489,20,),CHAR(32)) -> 51 | EV20: =IF($B20>0,VLOOKUP($B20,VSP_Fodermiddeldatabase!$A$3:$CP$489,21,),CHAR(32)) -> 56 | EW20: =IF($B20>0,VLOOKUP($B20,VSP_Fodermiddeldatabase!$A$3:$CP$489,22,),CHAR(32)) -> 60 | EX20: =IF($B20>0,VLOOKUP($B20,VSP_Fodermiddeldatabase!$A$3:$CP$489,23,),CHAR(32)) -> 63 | EY20: =IF($B20>0,VLOOKUP($B20,VSP_Fodermiddeldatabase!$A$3:$CP$489,25,),CHAR(32)) -> 3.646308113 | EZ20: =IF($B20>0,VLOOKUP($B20,VSP_Fodermiddeldatabase!$A$3:$CP$489,26,),CHAR(32)) -> 7.178669098 | FA20: =IF($B20>0,VLOOKUP($B20,VSP_Fodermiddeldatabase!$A$3:$CP$489,27,),CHAR(32)) -> 0.1 | FB20: =IF($B20>0,VLOOKUP($B20,VSP_Fodermiddeldatabase!$A$3:$CP$489,28,),CHAR(32)) -> 0 | FC20: =IF($B20>0,VLOOKUP($B20,VSP_Fodermiddeldatabase!$A$3:$CP$489,29,),CHAR(32)) -> 24 | FD20: =IF($B20>0,VLOOKUP($B20,VSP_Fodermiddeldatabase!$A$3:$CP$489,30,),CHAR(32)) -> 3.3 | FE20: =IF($B20>0,VLOOKUP($B20,VSP_Fodermiddeldatabase!$A$3:$CP$489,31,),CHAR(32)) -> 3.8 | FF20: =IF($B20>0,VLOOKUP($B20,VSP_Fodermiddeldatabase!$A$3:$CP$489,32,),CHAR(32)) -> 212 | FG20: =IF($B20>0,VLOOKUP($B20,VSP_Fodermiddeldatabase!$A$3:$CP$489,33,),CHAR(32)) -> 14 | FH20: =IF($B20>0,VLOOKUP($B20,VSP_Fodermiddeldatabase!$A$3:$CP$489,34,),CHAR(32)) -> 49 | FI20: =IF($B20>0,VLOOKUP($B20,VSP_Fodermiddeldatabase!$A$3:$CP$489,35,),CHAR(32)) -> 51 | FJ20: =IF($B20>0,VLOOKUP($B20,VSP_Fodermiddeldatabase!$A$3:$CP$489,36,),CHAR(32)) -> 0 | FK20: =IF($B20>0,VLOOKUP($B20,VSP_Fodermiddeldatabase!$A$3:$CP$489,37,),CHAR(32)) -> 0.2 | FM20: =IF($B20>0,VLOOKUP($B20,VSP_Fodermiddeldatabase!$A$3:$CP$489,74,),CHAR(32)) -> 173.1518711 | FN20: =IF($B20>0,VLOOKUP($B20,VSP_Fodermiddeldatabase!$A$3:$CP$489,75,),CHAR(32)) -> 192.7402096 | FO20: =IF($B20>0,VLOOKUP($B20,VSP_Fodermiddeldatabase!$A$3:$CP$489,76,),CHAR(32)) -> 64.77272727 | FP20: =IF($B20>0,VLOOKUP($B20,VSP_Fodermiddeldatabase!$A$3:$CP$489,77,),CHAR(32)) -> 109.0909091 | FQ20: =IF($B20>0,VLOOKUP($B20,VSP_Fodermiddeldatabase!$A$3:$CP$489,78,),CHAR(32)) ->  | FR20: =IF($B20>0,VLOOKUP($B20,VSP_Fodermiddeldatabase!$A$3:$CP$489,79,),CHAR(32)) ->  | FS20: =IF($B20>0,VLOOKUP($B20,VSP_Fodermiddeldatabase!$A$3:$CP$489,1,),CHAR(32)) -> 61200 | FT20: =IF($B20>0,VLOOKUP($B20,VSP_Fodermiddeldatabase!$A$3:$CP$489,5,),CHAR(32)) -> 2014-01-09 | FU20: SOJASKRÅFODER, afskallet toastet | FV20: =IF($A20<>"",100-VLOOKUP($B20,VSP_Fodermiddeldatabase!$A$3:$CP$489,12,)) -> 12.2 | FW20: =IF($A20<>"",VLOOKUP($B20,VSP_Fodermiddeldatabase!$A$3:$CP$489,13,)) -> 46.42114859 | FX20: =IF($A20<>"",VLOOKUP($B20,VSP_Fodermiddeldatabase!$A$3:$CP$489,14,)) -> 2.140975387 | FY20: =IF($A20<>"",VLOOKUP($B20,VSP_Fodermiddeldatabase!$A$3:$CP$489,15,)) -> 6.552985415 | FZ20: 7.463536919 | GA20: 52.87146764 | GB20: 2.438468551 | GC20: =IF($A20<>"",VLOOKUP($B20,VSP_Fodermiddeldatabase!$A$3:$CP$489,8,)) -> 94.09 | GF20: =IF($A20<>"",VLOOKUP($B20,VSP_Fodermiddeldatabase!$A$3:$CP$489,9,)) -> 79.51000178 | GG20: 79.51000178 | GH20: 96.05259232 | GI20: 97.46650179 | GJ20: =IF($A20<>"",VLOOKUP($B20,VSP_Fodermiddeldatabase!$A$3:$CP$489,11,)) -> 1 | GK20: 96.05259232 | GL20: 97.46650179 | GN20: 109.3993079 | GO20: 111.0096831 | GP20: 27.1526798 | GQ20: 92.53646308 | GR20: 17.31518711 | GS20: 19.27402096 | GT20: 20.25842385 | GU20: 109.3993079 | GV20: 111.0096831
A21: VEGETABILSK OLIE OG FEDTSTOF, Palme | B21: 88600 | C21: 1.109516597 | D21: 509 | F21: 3 | G21: 509 | H21: 3.80877349 | I21: 3.80877349 | J21: 3.656766929 | K21: 995 | L21: 0.001005050505 | M21: 995 | N21: 0 | O21: 0 | P21: =IF(A21<>"",IF($B21>0,VLOOKUP($B21,VSP_Fodermiddeldatabase!$A$3:$CP$489,10,),CHAR(32)),"") -> 90 | Q21: =IF(A21<>"",IF($B21>0,VLOOKUP($B21,VSP_Fodermiddeldatabase!$A$3:$CP$489,11,),CHAR(32)),"") -> 1 | R21: 90 | S21: 0 | T21: 0 | U21: 0 | V21: 0 | W21: 0 | X21: 0 | Y21: 0 | Z21: 0 | AA21: 0 | AB21: 0 | AC21: 0 | AD21: 0 | AE21: 0 | AF21: 0 | AG21: 0 | AH21: 0 | AI21: 0 | AJ21: 0 | AK21: 0 | AL21: 0 | AM21: 0 | AN21: 0 | BX21: 3.80877349 | BY21: 3.656766929 | BZ21: =IF($B21>0,VLOOKUP($B21,VSP_Fodermiddeldatabase!$A$3:$CP$489,12,),CHAR(32)) -> 99.5 | CA21: 0.5 | CB21: =IF($B21>0,VLOOKUP($B21,VSP_Fodermiddeldatabase!$A$3:$CP$489,13,),CHAR(32)) -> 0.0001005050505 | CC21: =IF($B21>0,VLOOKUP($B21,VSP_Fodermiddeldatabase!$A$3:$CP$489,14,),CHAR(32)) -> 99.5 | CD21: =IF($B21>0,VLOOKUP($B21,VSP_Fodermiddeldatabase!$A$3:$CP$489,15,),CHAR(32)) -> 0 | CE21: =IF($B21>0,VLOOKUP($B21,VSP_Fodermiddeldatabase!$A$3:$CP$489,16,),CHAR(32)) -> 0 | CF21: 995 | CG21: =IF($B21>0,VLOOKUP($B21,VSP_Fodermiddeldatabase!$A$3:$CP$489,8,),CHAR(32)) -> 97 | CH21: =IF($B21>0,VLOOKUP($B21,VSP_Fodermiddeldatabase!$A$3:$CP$489,9,),CHAR(32)) -> 97 | CJ21: 380.877349 | CK21: 365.6766929 | CM21: 0 | CN21: 0 | CO21: 0.000101010101 | CP21: 100 | CQ21: 97 | CR21: 97 | CS21: 10 | CT21: 100 | CU21: -9.191919192e-05 | CV21: 0 | CW21: 0.54 | CX21: 382.7913055 | CY21: 0 | CZ21: 367.5142642 | DA21: 0 | DB21: 0 | DC21: 100 | DD21: 965.15 | DE21: 965.15 | DG21: 11.03969014 | DH21: 10.70849944 | DI21: 10.70849944 | DM21: =IF($B21>0,VLOOKUP($B21,VSP_Fodermiddeldatabase!$A$3:$CP$489,18,),CHAR(32)) -> 0 | DN21: =IF($B21>0,VLOOKUP($B21,VSP_Fodermiddeldatabase!$A$3:$CP$489,39,),CHAR(32)) -> 0 | DO21: =IF($B21>0,VLOOKUP($B21,VSP_Fodermiddeldatabase!$A$3:$CP$489,40,),CHAR(32)) -> 0 | DP21: =IF($B21>0,VLOOKUP($B21,VSP_Fodermiddeldatabase!$A$3:$CP$489,41,),CHAR(32)) -> 0 | DQ21: =IF($B21>0,VLOOKUP($B21,VSP_Fodermiddeldatabase!$A$3:$CP$489,42,),CHAR(32)) -> 0 | DR21: =IF($B21>0,VLOOKUP($B21,VSP_Fodermiddeldatabase!$A$3:$CP$489,43,),CHAR(32)) -> 0 | DS21: =IF($B21>0,VLOOKUP($B21,VSP_Fodermiddeldatabase!$A$3:$CP$489,44,),CHAR(32)) -> 0 | DT21: =IF($B21>0,VLOOKUP($B21,VSP_Fodermiddeldatabase!$A$3:$CP$489,45,),CHAR(32)) -> 0 | DU21: =IF($B21>0,VLOOKUP($B21,VSP_Fodermiddeldatabase!$A$3:$CP$489,46,),CHAR(32)) -> 0 | DV21: =IF($B21>0,VLOOKUP($B21,VSP_Fodermiddeldatabase!$A$3:$CP$489,47,),CHAR(32)) -> 0 | DW21: =IF($B21>0,VLOOKUP($B21,VSP_Fodermiddeldatabase!$A$3:$CP$489,48,),CHAR(32)) -> 0 | DX21: =IF($B21>0,VLOOKUP($B21,VSP_Fodermiddeldatabase!$A$3:$CP$489,49,),CHAR(32)) -> 0 | DY21: =IF($B21>0,VLOOKUP($B21,VSP_Fodermiddeldatabase!$A$3:$CP$489,51,),CHAR(32)) -> 1 | DZ21: =IF($B21>0,VLOOKUP($B21,VSP_Fodermiddeldatabase!$A$3:$CP$489,52,),CHAR(32)) -> 1 | EA21: =IF($B21>0,VLOOKUP($B21,VSP_Fodermiddeldatabase!$A$3:$CP$489,53,),CHAR(32)) -> 1 | EB21: =IF($B21>0,VLOOKUP($B21,VSP_Fodermiddeldatabase!$A$3:$CP$489,54,),CHAR(32)) -> 1 | EC21: =IF($B21>0,VLOOKUP($B21,VSP_Fodermiddeldatabase!$A$3:$CP$489,55,),CHAR(32)) -> 1 | ED21: =IF($B21>0,VLOOKUP($B21,VSP_Fodermiddeldatabase!$A$3:$CP$489,56,),CHAR(32)) -> 1 | EE21: =IF($B21>0,VLOOKUP($B21,VSP_Fodermiddeldatabase!$A$3:$CP$489,57,),CHAR(32)) -> 1 | EF21: =IF($B21>0,VLOOKUP($B21,VSP_Fodermiddeldatabase!$A$3:$CP$489,58,),CHAR(32)) -> 1 | EG21: =IF($B21>0,VLOOKUP($B21,VSP_Fodermiddeldatabase!$A$3:$CP$489,59,),CHAR(32)) -> 1 | EH21: =IF($B21>0,VLOOKUP($B21,VSP_Fodermiddeldatabase!$A$3:$CP$489,60,),CHAR(32)) -> 1 | EI21: =IF($B21>0,VLOOKUP($B21,VSP_Fodermiddeldatabase!$A$3:$CP$489,61,),CHAR(32)) -> 1 | EJ21: =IF($B21>0,VLOOKUP($B21,VSP_Fodermiddeldatabase!$A$3:$CP$489,2,),CHAR(32)) -> 886 | EK21: =IF($B21>0,VLOOKUP($B21,VSP_Fodermiddeldatabase!$A$3:$CP$489,3,),CHAR(32)) -> 0 | EL21: =IF($B21>0,VLOOKUP($B21,VSP_Fodermiddeldatabase!$A$3:$CP$489,63,),CHAR(32)) -> 0.000101010101 | EM21: =IF($B21>0,VLOOKUP($B21,VSP_Fodermiddeldatabase!$A$3:$CP$489,64,),CHAR(32)) -> 100 | EN21: =IF($B21>0,VLOOKUP($B21,VSP_Fodermiddeldatabase!$A$3:$CP$489,65,),CHAR(32)) -> 0 | EO21: =IF($B21>0,VLOOKUP($B21,VSP_Fodermiddeldatabase!$A$3:$CP$489,66,),CHAR(32)) -> 0 | EP21: =IF($B21>0,VLOOKUP($B21,VSP_Fodermiddeldatabase!$A$3:$CP$489,68,),CHAR(32)) -> 55 | EQ21: =IF($B21>0,VLOOKUP($B21,VSP_Fodermiddeldatabase!$A$3:$CP$489,69,),CHAR(32)) -> 550 | ER21: =IF($B21>0,VLOOKUP($B21,VSP_Fodermiddeldatabase!$A$3:$CP$489,70,),CHAR(32)) -> 3.827913055 | ES21: =IF($B21>0,VLOOKUP($B21,VSP_Fodermiddeldatabase!$A$3:$CP$489,71,),CHAR(32)) -> 3.675142642 | ET21: =IF($B21>0,VLOOKUP($B21,VSP_Fodermiddeldatabase!$A$3:$CP$489,19,),CHAR(32)) -> 0 | EU21: =IF($B21>0,VLOOKUP($B21,VSP_Fodermiddeldatabase!$A$3:$CP$489,20,),CHAR(32)) -> 0 | EV21: =IF($B21>0,VLOOKUP($B21,VSP_Fodermiddeldatabase!$A$3:$CP$489,21,),CHAR(32)) -> 0 | EW21: =IF($B21>0,VLOOKUP($B21,VSP_Fodermiddeldatabase!$A$3:$CP$489,22,),CHAR(32)) -> 0 | EX21: =IF($B21>0,VLOOKUP($B21,VSP_Fodermiddeldatabase!$A$3:$CP$489,23,),CHAR(32)) -> 0 | EY21: =IF($B21>0,VLOOKUP($B21,VSP_Fodermiddeldatabase!$A$3:$CP$489,25,),CHAR(32)) -> 0 | EZ21: =IF($B21>0,VLOOKUP($B21,VSP_Fodermiddeldatabase!$A$3:$CP$489,26,),CHAR(32)) -> 0 | FA21: =IF($B21>0,VLOOKUP($B21,VSP_Fodermiddeldatabase!$A$3:$CP$489,27,),CHAR(32)) -> 0 | FB21: =IF($B21>0,VLOOKUP($B21,VSP_Fodermiddeldatabase!$A$3:$CP$489,28,),CHAR(32)) -> 0 | FC21: =IF($B21>0,VLOOKUP($B21,VSP_Fodermiddeldatabase!$A$3:$CP$489,29,),CHAR(32)) -> 0 | FD21: =IF($B21>0,VLOOKUP($B21,VSP_Fodermiddeldatabase!$A$3:$CP$489,30,),CHAR(32)) -> 0 | FE21: =IF($B21>0,VLOOKUP($B21,VSP_Fodermiddeldatabase!$A$3:$CP$489,31,),CHAR(32)) -> 0 | FF21: =IF($B21>0,VLOOKUP($B21,VSP_Fodermiddeldatabase!$A$3:$CP$489,32,),CHAR(32)) -> 0 | FG21: =IF($B21>0,VLOOKUP($B21,VSP_Fodermiddeldatabase!$A$3:$CP$489,33,),CHAR(32)) -> 0 | FH21: =IF($B21>0,VLOOKUP($B21,VSP_Fodermiddeldatabase!$A$3:$CP$489,34,),CHAR(32)) -> 0 | FI21: =IF($B21>0,VLOOKUP($B21,VSP_Fodermiddeldatabase!$A$3:$CP$489,35,),CHAR(32)) -> 0 | FJ21: =IF($B21>0,VLOOKUP($B21,VSP_Fodermiddeldatabase!$A$3:$CP$489,36,),CHAR(32)) -> 0 | FK21: =IF($B21>0,VLOOKUP($B21,VSP_Fodermiddeldatabase!$A$3:$CP$489,37,),CHAR(32)) -> 0 | FM21: =IF($B21>0,VLOOKUP($B21,VSP_Fodermiddeldatabase!$A$3:$CP$489,74,),CHAR(32)) -> -0.0009191919191 | FN21: =IF($B21>0,VLOOKUP($B21,VSP_Fodermiddeldatabase!$A$3:$CP$489,75,),CHAR(32)) -> 0 | FO21: =IF($B21>0,VLOOKUP($B21,VSP_Fodermiddeldatabase!$A$3:$CP$489,76,),CHAR(32)) -> 0 | FP21: =IF($B21>0,VLOOKUP($B21,VSP_Fodermiddeldatabase!$A$3:$CP$489,77,),CHAR(32)) -> 0 | FQ21: =IF($B21>0,VLOOKUP($B21,VSP_Fodermiddeldatabase!$A$3:$CP$489,78,),CHAR(32)) -> 0 | FR21: =IF($B21>0,VLOOKUP($B21,VSP_Fodermiddeldatabase!$A$3:$CP$489,79,),CHAR(32)) -> 0 | FS21: =IF($B21>0,VLOOKUP($B21,VSP_Fodermiddeldatabase!$A$3:$CP$489,1,),CHAR(32)) -> 88600 | FT21: =IF($B21>0,VLOOKUP($B21,VSP_Fodermiddeldatabase!$A$3:$CP$489,5,),CHAR(32)) -> 2010-05-12 | FU21: VEGETABILSK OLIE OG FEDTSTOF, Palme | FV21: =IF($A21<>"",100-VLOOKUP($B21,VSP_Fodermiddeldatabase!$A$3:$CP$489,12,)) -> 0.5 | FW21: =IF($A21<>"",VLOOKUP($B21,VSP_Fodermiddeldatabase!$A$3:$CP$489,13,)) -> 0.0001005050505 | FX21: =IF($A21<>"",VLOOKUP($B21,VSP_Fodermiddeldatabase!$A$3:$CP$489,14,)) -> 99.5 | FY21: =IF($A21<>"",VLOOKUP($B21,VSP_Fodermiddeldatabase!$A$3:$CP$489,15,)) -> 0 | FZ21: 0 | GA21: 0.000101010101 | GB21: 100 | GC21: =IF($A21<>"",VLOOKUP($B21,VSP_Fodermiddeldatabase!$A$3:$CP$489,8,)) -> 97 | GF21: =IF($A21<>"",VLOOKUP($B21,VSP_Fodermiddeldatabase!$A$3:$CP$489,9,)) -> 97 | GG21: 97 | GH21: 380.877349 | GI21: 365.6766929 | GJ21: =IF($A21<>"",VLOOKUP($B21,VSP_Fodermiddeldatabase!$A$3:$CP$489,11,)) -> 1 | GK21: 380.877349 | GL21: 365.6766929 | GN21: 382.7913055 | GO21: 367.5142642 | GP21: 10 | GQ21: 100 | GR21: -9.191919192e-05 | GS21: 0 | GT21: 0.54 | GU21: 382.7913055 | GV21: 367.5142642
A22: LYSIN,L(HCl)98,5% | B22: 99500 | C22: 0.2183479541 | D22: 1028 | G22: 1028 | H22: 1.017323577 | I22: 1.017323577 | J22: 0.9750451948 | K22: =IF(A22<>"",IF(A22<>"Delblanding",IF($D22<>"",+BZ22*10,""),""),"") -> 985 | L22: =IF(A22<>"",IF(A22<>"Delblanding",IF($D22<>"",+CB22*10,""),""),"") -> 944 | M22: 0 | N22: 197 | O22: 0 | P22: =IF(A22<>"",IF($B22>0,VLOOKUP($B22,VSP_Fodermiddeldatabase!$A$3:$CP$489,10,),CHAR(32)),"") -> 100 | Q22: =IF(A22<>"",IF($B22>0,VLOOKUP($B22,VSP_Fodermiddeldatabase!$A$3:$CP$489,11,),CHAR(32)),"") -> 1 | R22: 90 | S22: 944 | T22: 788 | U22: 0 | V22: 0 | W22: 0 | X22: 0 | Y22: 0 | Z22: 0 | AA22: 0 | AB22: 0 | AC22: 0 | AD22: 0 | AE22: 0 | AF22: 0 | AG22: 0 | AH22: 0 | AI22: 0 | AJ22: 0 | AK22: 0 | AL22: 0 | AM22: 0 | AN22: 0 | BX22: 1.017323577 | BY22: 0.9750451948 | BZ22: =IF($B22>0,VLOOKUP($B22,VSP_Fodermiddeldatabase!$A$3:$CP$489,12,),CHAR(32)) -> 98.5 | CA22: 1.5 | CB22: =IF($B22>0,VLOOKUP($B22,VSP_Fodermiddeldatabase!$A$3:$CP$489,13,),CHAR(32)) -> 94.4 | CC22: =IF($B22>0,VLOOKUP($B22,VSP_Fodermiddeldatabase!$A$3:$CP$489,14,),CHAR(32)) -> 0 | CD22: =IF($B22>0,VLOOKUP($B22,VSP_Fodermiddeldatabase!$A$3:$CP$489,15,),CHAR(32)) -> 19.7 | CE22: =IF($B22>0,VLOOKUP($B22,VSP_Fodermiddeldatabase!$A$3:$CP$489,16,),CHAR(32)) -> 0 | CF22: 788 | CG22: =IF($B22>0,VLOOKUP($B22,VSP_Fodermiddeldatabase!$A$3:$CP$489,8,),CHAR(32)) -> 100 | CH22: =IF($B22>0,VLOOKUP($B22,VSP_Fodermiddeldatabase!$A$3:$CP$489,9,),CHAR(32)) -> 100 | CJ22: 101.7323577 | CK22: 97.50451948 | CM22: 0 | CN22: 20 | CO22: 95.83756345 | CP22: 0 | CQ22: 100 | CR22: 100 | CS22: 6 | CT22: 80 | CU22: -7.212182741 | CV22: 0 | CW22: 0 | CX22: 103.2815814 | CY22: 0 | CZ22: 98.98935988 | DA22: 0 | DB22: 0 | DC22: 100 | DD22: 788 | DE22: 788 | DG22: 1.720581879 | DH22: 1.720581879 | DI22: 1.720581879 | DM22: =IF($B22>0,VLOOKUP($B22,VSP_Fodermiddeldatabase!$A$3:$CP$489,18,),CHAR(32)) -> 100 | DN22: =IF($B22>0,VLOOKUP($B22,VSP_Fodermiddeldatabase!$A$3:$CP$489,39,),CHAR(32)) -> 83.47457627 | DO22: =IF($B22>0,VLOOKUP($B22,VSP_Fodermiddeldatabase!$A$3:$CP$489,40,),CHAR(32)) -> 0 | DP22: =IF($B22>0,VLOOKUP($B22,VSP_Fodermiddeldatabase!$A$3:$CP$489,41,),CHAR(32)) -> 0 | DQ22: =IF($B22>0,VLOOKUP($B22,VSP_Fodermiddeldatabase!$A$3:$CP$489,42,),CHAR(32)) -> 0 | DR22: =IF($B22>0,VLOOKUP($B22,VSP_Fodermiddeldatabase!$A$3:$CP$489,43,),CHAR(32)) -> 0 | DS22: =IF($B22>0,VLOOKUP($B22,VSP_Fodermiddeldatabase!$A$3:$CP$489,44,),CHAR(32)) -> 0 | DT22: =IF($B22>0,VLOOKUP($B22,VSP_Fodermiddeldatabase!$A$3:$CP$489,45,),CHAR(32)) -> 0 | DU22: =IF($B22>0,VLOOKUP($B22,VSP_Fodermiddeldatabase!$A$3:$CP$489,46,),CHAR(32)) -> 0 | DV22: =IF($B22>0,VLOOKUP($B22,VSP_Fodermiddeldatabase!$A$3:$CP$489,47,),CHAR(32)) -> 0 | DW22: =IF($B22>0,VLOOKUP($B22,VSP_Fodermiddeldatabase!$A$3:$CP$489,48,),CHAR(32)) -> 0 | DX22: =IF($B22>0,VLOOKUP($B22,VSP_Fodermiddeldatabase!$A$3:$CP$489,49,),CHAR(32)) -> 0 | DY22: =IF($B22>0,VLOOKUP($B22,VSP_Fodermiddeldatabase!$A$3:$CP$489,51,),CHAR(32)) -> 1 | DZ22: =IF($B22>0,VLOOKUP($B22,VSP_Fodermiddeldatabase!$A$3:$CP$489,52,),CHAR(32)) -> 1 | EA22: =IF($B22>0,VLOOKUP($B22,VSP_Fodermiddeldatabase!$A$3:$CP$489,53,),CHAR(32)) -> 1 | EB22: =IF($B22>0,VLOOKUP($B22,VSP_Fodermiddeldatabase!$A$3:$CP$489,54,),CHAR(32)) -> 1 | EC22: =IF($B22>0,VLOOKUP($B22,VSP_Fodermiddeldatabase!$A$3:$CP$489,55,),CHAR(32)) -> 1 | ED22: =IF($B22>0,VLOOKUP($B22,VSP_Fodermiddeldatabase!$A$3:$CP$489,56,),CHAR(32)) -> 1 | EE22: =IF($B22>0,VLOOKUP($B22,VSP_Fodermiddeldatabase!$A$3:$CP$489,57,),CHAR(32)) -> 1 | EF22: =IF($B22>0,VLOOKUP($B22,VSP_Fodermiddeldatabase!$A$3:$CP$489,58,),CHAR(32)) -> 1 | EG22: =IF($B22>0,VLOOKUP($B22,VSP_Fodermiddeldatabase!$A$3:$CP$489,59,),CHAR(32)) -> 1 | EH22: =IF($B22>0,VLOOKUP($B22,VSP_Fodermiddeldatabase!$A$3:$CP$489,60,),CHAR(32)) -> 1 | EI22: =IF($B22>0,VLOOKUP($B22,VSP_Fodermiddeldatabase!$A$3:$CP$489,61,),CHAR(32)) -> 1 | EJ22: =IF($B22>0,VLOOKUP($B22,VSP_Fodermiddeldatabase!$A$3:$CP$489,2,),CHAR(32)) -> 995 | EK22: =IF($B22>0,VLOOKUP($B22,VSP_Fodermiddeldatabase!$A$3:$CP$489,3,),CHAR(32)) -> 0 | EL22: =IF($B22>0,VLOOKUP($B22,VSP_Fodermiddeldatabase!$A$3:$CP$489,63,),CHAR(32)) -> 95.83756345 | EM22: =IF($B22>0,VLOOKUP($B22,VSP_Fodermiddeldatabase!$A$3:$CP$489,64,),CHAR(32)) -> 0 | EN22: =IF($B22>0,VLOOKUP($B22,VSP_Fodermiddeldatabase!$A$3:$CP$489,65,),CHAR(32)) -> 20 | EO22: =IF($B22>0,VLOOKUP($B22,VSP_Fodermiddeldatabase!$A$3:$CP$489,66,),CHAR(32)) -> 0 | EP22: =IF($B22>0,VLOOKUP($B22,VSP_Fodermiddeldatabase!$A$3:$CP$489,68,),CHAR(32)) -> 0 | EQ22: =IF($B22>0,VLOOKUP($B22,VSP_Fodermiddeldatabase!$A$3:$CP$489,69,),CHAR(32)) -> 0 | ER22: =IF($B22>0,VLOOKUP($B22,VSP_Fodermiddeldatabase!$A$3:$CP$489,70,),CHAR(32)) -> 1.032945676 | ES22: =IF($B22>0,VLOOKUP($B22,VSP_Fodermiddeldatabase!$A$3:$CP$489,71,),CHAR(32)) -> 0.9900180632 | ET22: =IF($B22>0,VLOOKUP($B22,VSP_Fodermiddeldatabase!$A$3:$CP$489,19,),CHAR(32)) -> 0 | EU22: =IF($B22>0,VLOOKUP($B22,VSP_Fodermiddeldatabase!$A$3:$CP$489,20,),CHAR(32)) -> 0 | EV22: =IF($B22>0,VLOOKUP($B22,VSP_Fodermiddeldatabase!$A$3:$CP$489,21,),CHAR(32)) -> 0 | EW22: =IF($B22>0,VLOOKUP($B22,VSP_Fodermiddeldatabase!$A$3:$CP$489,22,),CHAR(32)) -> 0 | EX22: =IF($B22>0,VLOOKUP($B22,VSP_Fodermiddeldatabase!$A$3:$CP$489,23,),CHAR(32)) -> 0 | EY22: =IF($B22>0,VLOOKUP($B22,VSP_Fodermiddeldatabase!$A$3:$CP$489,25,),CHAR(32)) -> 0 | EZ22: =IF($B22>0,VLOOKUP($B22,VSP_Fodermiddeldatabase!$A$3:$CP$489,26,),CHAR(32)) -> 0 | FA22: =IF($B22>0,VLOOKUP($B22,VSP_Fodermiddeldatabase!$A$3:$CP$489,27,),CHAR(32)) -> 0 | FB22: =IF($B22>0,VLOOKUP($B22,VSP_Fodermiddeldatabase!$A$3:$CP$489,28,),CHAR(32)) -> 192 | FC22: =IF($B22>0,VLOOKUP($B22,VSP_Fodermiddeldatabase!$A$3:$CP$489,29,),CHAR(32)) -> 0 | FD22: =IF($B22>0,VLOOKUP($B22,VSP_Fodermiddeldatabase!$A$3:$CP$489,30,),CHAR(32)) -> 0 | FE22: =IF($B22>0,VLOOKUP($B22,VSP_Fodermiddeldatabase!$A$3:$CP$489,31,),CHAR(32)) -> 0 | FF22: =IF($B22>0,VLOOKUP($B22,VSP_Fodermiddeldatabase!$A$3:$CP$489,32,),CHAR(32)) -> 0 | FG22: =IF($B22>0,VLOOKUP($B22,VSP_Fodermiddeldatabase!$A$3:$CP$489,33,),CHAR(32)) -> 0 | FH22: =IF($B22>0,VLOOKUP($B22,VSP_Fodermiddeldatabase!$A$3:$CP$489,34,),CHAR(32)) -> 0 | FI22: =IF($B22>0,VLOOKUP($B22,VSP_Fodermiddeldatabase!$A$3:$CP$489,35,),CHAR(32)) -> 0 | FJ22: =IF($B22>0,VLOOKUP($B22,VSP_Fodermiddeldatabase!$A$3:$CP$489,36,),CHAR(32)) -> 0 | FK22: =IF($B22>0,VLOOKUP($B22,VSP_Fodermiddeldatabase!$A$3:$CP$489,37,),CHAR(32)) -> 0 | FM22: =IF($B22>0,VLOOKUP($B22,VSP_Fodermiddeldatabase!$A$3:$CP$489,74,),CHAR(32)) -> -72.12182741 | FN22: =IF($B22>0,VLOOKUP($B22,VSP_Fodermiddeldatabase!$A$3:$CP$489,75,),CHAR(32)) -> 0 | FO22: =IF($B22>0,VLOOKUP($B22,VSP_Fodermiddeldatabase!$A$3:$CP$489,76,),CHAR(32)) ->  | FP22: =IF($B22>0,VLOOKUP($B22,VSP_Fodermiddeldatabase!$A$3:$CP$489,77,),CHAR(32)) ->  | FQ22: =IF($B22>0,VLOOKUP($B22,VSP_Fodermiddeldatabase!$A$3:$CP$489,78,),CHAR(32)) ->  | FR22: =IF($B22>0,VLOOKUP($B22,VSP_Fodermiddeldatabase!$A$3:$CP$489,79,),CHAR(32)) ->  | FS22: =IF($B22>0,VLOOKUP($B22,VSP_Fodermiddeldatabase!$A$3:$CP$489,1,),CHAR(32)) -> 99500 | FT22: =IF($B22>0,VLOOKUP($B22,VSP_Fodermiddeldatabase!$A$3:$CP$489,5,),CHAR(32)) -> 2013-08-20 | FU22: LYSIN,L(HCl)98,5% | FV22: =IF($A22<>"",100-VLOOKUP($B22,VSP_Fodermiddeldatabase!$A$3:$CP$489,12,)) -> 1.5 | FW22: =IF($A22<>"",VLOOKUP($B22,VSP_Fodermiddeldatabase!$A$3:$CP$489,13,)) -> 94.4 | FX22: =IF($A22<>"",VLOOKUP($B22,VSP_Fodermiddeldatabase!$A$3:$CP$489,14,)) -> 0 | FY22: =IF($A22<>"",VLOOKUP($B22,VSP_Fodermiddeldatabase!$A$3:$CP$489,15,)) -> 19.7 | FZ22: 20 | GA22: 95.83756345 | GB22: 0 | GC22: =IF($A22<>"",VLOOKUP($B22,VSP_Fodermiddeldatabase!$A$3:$CP$489,8,)) -> 100 | GF22: =IF($A22<>"",VLOOKUP($B22,VSP_Fodermiddeldatabase!$A$3:$CP$489,9,)) -> 100 | GG22: 100 | GH22: 101.7323577 | GI22: 97.50451948 | GJ22: =IF($A22<>"",VLOOKUP($B22,VSP_Fodermiddeldatabase!$A$3:$CP$489,11,)) -> 1 | GK22: 101.7323577 | GL22: 97.50451948 | GN22: 103.2815814 | GO22: 98.98935988 | GP22: 6 | GQ22: 80 | GR22: -7.212182741 | GS22: 0 | GT22: 0 | GU22: 103.2815814 | GV22: 98.98935988
A23: METHIONIN,DL 99 | B23: 99400 | C23: 0.0009393854868 | D23: 2641 | G23: 2641 | H23: 1.450272676 | I23: 1.450272676 | J23: 1.390001603 | K23: 997 | L23: 587.233 | M23: 0 | N23: 0 | O23: 0 | P23: =IF(A23<>"",IF($B23>0,VLOOKUP($B23,VSP_Fodermiddeldatabase!$A$3:$CP$489,10,),CHAR(32)),"") -> 100 | Q23: =IF(A23<>"",IF($B23>0,VLOOKUP($B23,VSP_Fodermiddeldatabase!$A$3:$CP$489,11,),CHAR(32)),"") -> 1 | R23: 90 | S23: 587.233 | T23: 0 | U23: 990.074838 | V23: 0 | W23: 990.074838 | X23: 0 | Y23: 0 | Z23: 0 | AA23: 0 | AB23: 0 | AC23: 0 | AD23: 0 | AE23: 0 | AF23: 0 | AG23: 0 | AH23: 0 | AI23: 0 | AJ23: 0 | AK23: 0 | AL23: 0 | AM23: 0 | AN23: 0 | BX23: 1.450272676 | BY23: 1.390001603 | BZ23: =IF($B23>0,VLOOKUP($B23,VSP_Fodermiddeldatabase!$A$3:$CP$489,12,),CHAR(32)) -> 99.7 | CA23: 0.3 | CB23: =IF($B23>0,VLOOKUP($B23,VSP_Fodermiddeldatabase!$A$3:$CP$489,13,),CHAR(32)) -> 58.7233 | CC23: =IF($B23>0,VLOOKUP($B23,VSP_Fodermiddeldatabase!$A$3:$CP$489,14,),CHAR(32)) -> 0 | CD23: =IF($B23>0,VLOOKUP($B23,VSP_Fodermiddeldatabase!$A$3:$CP$489,15,),CHAR(32)) -> 0 | CE23: =IF($B23>0,VLOOKUP($B23,VSP_Fodermiddeldatabase!$A$3:$CP$489,16,),CHAR(32)) -> 0 | CF23: 997 | CG23: =IF($B23>0,VLOOKUP($B23,VSP_Fodermiddeldatabase!$A$3:$CP$489,8,),CHAR(32)) -> 100 | CH23: =IF($B23>0,VLOOKUP($B23,VSP_Fodermiddeldatabase!$A$3:$CP$489,9,),CHAR(32)) -> 100 | CJ23: 145.0272676 | CK23: 139.0001603 | CM23: 0 | CN23: 0 | CO23: 58.9 | CP23: 0 | CQ23: 100 | CR23: 100 | CS23: 0 | CT23: 100 | CU23: 46.401 | CV23: 0 | CW23: 0 | CX23: 145.4636585 | CY23: 0 | CZ23: 139.4184156 | DA23: 0 | DB23: 0 | DC23: 100 | DD23: 997 | DE23: 997 | DG23: 0.009365673303 | DH23: 0.009365673303 | DI23: 0.009365673303 | DM23: =IF($B23>0,VLOOKUP($B23,VSP_Fodermiddeldatabase!$A$3:$CP$489,18,),CHAR(32)) -> 100 | DN23: =IF($B23>0,VLOOKUP($B23,VSP_Fodermiddeldatabase!$A$3:$CP$489,39,),CHAR(32)) -> 0 | DO23: =IF($B23>0,VLOOKUP($B23,VSP_Fodermiddeldatabase!$A$3:$CP$489,40,),CHAR(32)) -> 168.6 | DP23: =IF($B23>0,VLOOKUP($B23,VSP_Fodermiddeldatabase!$A$3:$CP$489,41,),CHAR(32)) -> 0 | DQ23: =IF($B23>0,VLOOKUP($B23,VSP_Fodermiddeldatabase!$A$3:$CP$489,42,),CHAR(32)) -> 0 | DR23: =IF($B23>0,VLOOKUP($B23,VSP_Fodermiddeldatabase!$A$3:$CP$489,43,),CHAR(32)) -> 0 | DS23: =IF($B23>0,VLOOKUP($B23,VSP_Fodermiddeldatabase!$A$3:$CP$489,44,),CHAR(32)) -> 0 | DT23: =IF($B23>0,VLOOKUP($B23,VSP_Fodermiddeldatabase!$A$3:$CP$489,45,),CHAR(32)) -> 0 | DU23: =IF($B23>0,VLOOKUP($B23,VSP_Fodermiddeldatabase!$A$3:$CP$489,46,),CHAR(32)) -> 0 | DV23: =IF($B23>0,VLOOKUP($B23,VSP_Fodermiddeldatabase!$A$3:$CP$489,47,),CHAR(32)) -> 0 | DW23: =IF($B23>0,VLOOKUP($B23,VSP_Fodermiddeldatabase!$A$3:$CP$489,48,),CHAR(32)) -> 0 | DX23: =IF($B23>0,VLOOKUP($B23,VSP_Fodermiddeldatabase!$A$3:$CP$489,49,),CHAR(32)) -> 0 | DY23: =IF($B23>0,VLOOKUP($B23,VSP_Fodermiddeldatabase!$A$3:$CP$489,51,),CHAR(32)) -> 1 | DZ23: =IF($B23>0,VLOOKUP($B23,VSP_Fodermiddeldatabase!$A$3:$CP$489,52,),CHAR(32)) -> 1 | EA23: =IF($B23>0,VLOOKUP($B23,VSP_Fodermiddeldatabase!$A$3:$CP$489,53,),CHAR(32)) -> 1 | EB23: =IF($B23>0,VLOOKUP($B23,VSP_Fodermiddeldatabase!$A$3:$CP$489,54,),CHAR(32)) -> 1 | EC23: =IF($B23>0,VLOOKUP($B23,VSP_Fodermiddeldatabase!$A$3:$CP$489,55,),CHAR(32)) -> 1 | ED23: =IF($B23>0,VLOOKUP($B23,VSP_Fodermiddeldatabase!$A$3:$CP$489,56,),CHAR(32)) -> 1 | EE23: =IF($B23>0,VLOOKUP($B23,VSP_Fodermiddeldatabase!$A$3:$CP$489,57,),CHAR(32)) -> 1 | EF23: =IF($B23>0,VLOOKUP($B23,VSP_Fodermiddeldatabase!$A$3:$CP$489,58,),CHAR(32)) -> 1 | EG23: =IF($B23>0,VLOOKUP($B23,VSP_Fodermiddeldatabase!$A$3:$CP$489,59,),CHAR(32)) -> 1 | EH23: =IF($B23>0,VLOOKUP($B23,VSP_Fodermiddeldatabase!$A$3:$CP$489,60,),CHAR(32)) -> 1 | EI23: =IF($B23>0,VLOOKUP($B23,VSP_Fodermiddeldatabase!$A$3:$CP$489,61,),CHAR(32)) -> 1 | EJ23: =IF($B23>0,VLOOKUP($B23,VSP_Fodermiddeldatabase!$A$3:$CP$489,2,),CHAR(32)) -> 994 | EK23: =IF($B23>0,VLOOKUP($B23,VSP_Fodermiddeldatabase!$A$3:$CP$489,3,),CHAR(32)) -> 0 | EL23: =IF($B23>0,VLOOKUP($B23,VSP_Fodermiddeldatabase!$A$3:$CP$489,63,),CHAR(32)) -> 58.9 | EM23: =IF($B23>0,VLOOKUP($B23,VSP_Fodermiddeldatabase!$A$3:$CP$489,64,),CHAR(32)) -> 0 | EN23: =IF($B23>0,VLOOKUP($B23,VSP_Fodermiddeldatabase!$A$3:$CP$489,65,),CHAR(32)) -> 0 | EO23: =IF($B23>0,VLOOKUP($B23,VSP_Fodermiddeldatabase!$A$3:$CP$489,66,),CHAR(32)) -> 0 | EP23: =IF($B23>0,VLOOKUP($B23,VSP_Fodermiddeldatabase!$A$3:$CP$489,68,),CHAR(32)) -> 0 | EQ23: =IF($B23>0,VLOOKUP($B23,VSP_Fodermiddeldatabase!$A$3:$CP$489,69,),CHAR(32)) -> 0 | ER23: =IF($B23>0,VLOOKUP($B23,VSP_Fodermiddeldatabase!$A$3:$CP$489,70,),CHAR(32)) -> 1.454716396 | ES23: =IF($B23>0,VLOOKUP($B23,VSP_Fodermiddeldatabase!$A$3:$CP$489,71,),CHAR(32)) -> 1.394260649 | ET23: =IF($B23>0,VLOOKUP($B23,VSP_Fodermiddeldatabase!$A$3:$CP$489,19,),CHAR(32)) -> 0 | EU23: =IF($B23>0,VLOOKUP($B23,VSP_Fodermiddeldatabase!$A$3:$CP$489,20,),CHAR(32)) -> 0 | EV23: =IF($B23>0,VLOOKUP($B23,VSP_Fodermiddeldatabase!$A$3:$CP$489,21,),CHAR(32)) -> 0 | EW23: =IF($B23>0,VLOOKUP($B23,VSP_Fodermiddeldatabase!$A$3:$CP$489,22,),CHAR(32)) -> 0 | EX23: =IF($B23>0,VLOOKUP($B23,VSP_Fodermiddeldatabase!$A$3:$CP$489,23,),CHAR(32)) -> 0 | EY23: =IF($B23>0,VLOOKUP($B23,VSP_Fodermiddeldatabase!$A$3:$CP$489,25,),CHAR(32)) -> 0 | EZ23: =IF($B23>0,VLOOKUP($B23,VSP_Fodermiddeldatabase!$A$3:$CP$489,26,),CHAR(32)) -> 0 | FA23: =IF($B23>0,VLOOKUP($B23,VSP_Fodermiddeldatabase!$A$3:$CP$489,27,),CHAR(32)) -> 0 | FB23: =IF($B23>0,VLOOKUP($B23,VSP_Fodermiddeldatabase!$A$3:$CP$489,28,),CHAR(32)) -> 0 | FC23: =IF($B23>0,VLOOKUP($B23,VSP_Fodermiddeldatabase!$A$3:$CP$489,29,),CHAR(32)) -> 0 | FD23: =IF($B23>0,VLOOKUP($B23,VSP_Fodermiddeldatabase!$A$3:$CP$489,30,),CHAR(32)) -> 0 | FE23: =IF($B23>0,VLOOKUP($B23,VSP_Fodermiddeldatabase!$A$3:$CP$489,31,),CHAR(32)) -> 0 | FF23: =IF($B23>0,VLOOKUP($B23,VSP_Fodermiddeldatabase!$A$3:$CP$489,32,),CHAR(32)) -> 0 | FG23: =IF($B23>0,VLOOKUP($B23,VSP_Fodermiddeldatabase!$A$3:$CP$489,33,),CHAR(32)) -> 0 | FH23: =IF($B23>0,VLOOKUP($B23,VSP_Fodermiddeldatabase!$A$3:$CP$489,34,),CHAR(32)) -> 0 | FI23: =IF($B23>0,VLOOKUP($B23,VSP_Fodermiddeldatabase!$A$3:$CP$489,35,),CHAR(32)) -> 0 | FJ23: =IF($B23>0,VLOOKUP($B23,VSP_Fodermiddeldatabase!$A$3:$CP$489,36,),CHAR(32)) -> 0 | FK23: =IF($B23>0,VLOOKUP($B23,VSP_Fodermiddeldatabase!$A$3:$CP$489,37,),CHAR(32)) -> 0 | FM23: =IF($B23>0,VLOOKUP($B23,VSP_Fodermiddeldatabase!$A$3:$CP$489,74,),CHAR(32)) -> 464.01 | FN23: =IF($B23>0,VLOOKUP($B23,VSP_Fodermiddeldatabase!$A$3:$CP$489,75,),CHAR(32)) -> 0 | FO23: =IF($B23>0,VLOOKUP($B23,VSP_Fodermiddeldatabase!$A$3:$CP$489,76,),CHAR(32)) ->  | FP23: =IF($B23>0,VLOOKUP($B23,VSP_Fodermiddeldatabase!$A$3:$CP$489,77,),CHAR(32)) ->  | FQ23: =IF($B23>0,VLOOKUP($B23,VSP_Fodermiddeldatabase!$A$3:$CP$489,78,),CHAR(32)) ->  | FR23: =IF($B23>0,VLOOKUP($B23,VSP_Fodermiddeldatabase!$A$3:$CP$489,79,),CHAR(32)) ->  | FS23: =IF($B23>0,VLOOKUP($B23,VSP_Fodermiddeldatabase!$A$3:$CP$489,1,),CHAR(32)) -> 99400 | FT23: =IF($B23>0,VLOOKUP($B23,VSP_Fodermiddeldatabase!$A$3:$CP$489,5,),CHAR(32)) -> 2010-05-12 | FU23: METHIONIN,DL 99 | FV23: =IF($A23<>"",100-VLOOKUP($B23,VSP_Fodermiddeldatabase!$A$3:$CP$489,12,)) -> 0.3 | FW23: =IF($A23<>"",VLOOKUP($B23,VSP_Fodermiddeldatabase!$A$3:$CP$489,13,)) -> 58.7233 | FX23: =IF($A23<>"",VLOOKUP($B23,VSP_Fodermiddeldatabase!$A$3:$CP$489,14,)) -> 0 | FY23: =IF($A23<>"",VLOOKUP($B23,VSP_Fodermiddeldatabase!$A$3:$CP$489,15,)) -> 0 | FZ23: 0 | GA23: 58.9 | GB23: 0 | GC23: =IF($A23<>"",VLOOKUP($B23,VSP_Fodermiddeldatabase!$A$3:$CP$489,8,)) -> 100 | GF23: =IF($A23<>"",VLOOKUP($B23,VSP_Fodermiddeldatabase!$A$3:$CP$489,9,)) -> 100 | GG23: 100 | GH23: 145.0272676 | GI23: 139.0001603 | GJ23: =IF($A23<>"",VLOOKUP($B23,VSP_Fodermiddeldatabase!$A$3:$CP$489,11,)) -> 1 | GK23: 145.0272676 | GL23: 139.0001603 | GN23: 145.4636585 | GO23: 139.4184156 | GP23: 0 | GQ23: 100 | GR23: 46.401 | GS23: 0 | GT23: 0 | GU23: 145.4636585 | GV23: 139.4184156
A24: TREONIN,L 98,5% | B24: 99600 | C24: 0.04125017948 | D24: 1528 | G24: 1528 | H24: 1.417549805 | I24: 1.417549805 | J24: 1.358638644 | K24: 995 | L24: 720.38 | M24: 0 | N24: 0 | O24: 0 | P24: =IF(A24<>"",IF($B24>0,VLOOKUP($B24,VSP_Fodermiddeldatabase!$A$3:$CP$489,10,),CHAR(32)),"") -> 100 | Q24: =IF(A24<>"",IF($B24>0,VLOOKUP($B24,VSP_Fodermiddeldatabase!$A$3:$CP$489,11,),CHAR(32)),"") -> 1 | R24: 90 | S24: 720.38 | T24: 0 | U24: 0 | V24: 0 | W24: 0 | X24: 979.7168 | Y24: 0 | Z24: 0 | AA24: 0 | AB24: 0 | AC24: 0 | AD24: 0 | AE24: 0 | AF24: 0 | AG24: 0 | AH24: 0 | AI24: 0 | AJ24: 0 | AK24: 0 | AL24: 0 | AM24: 0 | AN24: 0 | BX24: 1.417549805 | BY24: 1.358638644 | BZ24: =IF($B24>0,VLOOKUP($B24,VSP_Fodermiddeldatabase!$A$3:$CP$489,12,),CHAR(32)) -> 99.5 | CA24: 0.5 | CB24: =IF($B24>0,VLOOKUP($B24,VSP_Fodermiddeldatabase!$A$3:$CP$489,13,),CHAR(32)) -> 72.038 | CC24: =IF($B24>0,VLOOKUP($B24,VSP_Fodermiddeldatabase!$A$3:$CP$489,14,),CHAR(32)) -> 0 | CD24: =IF($B24>0,VLOOKUP($B24,VSP_Fodermiddeldatabase!$A$3:$CP$489,15,),CHAR(32)) -> 0 | CE24: =IF($B24>0,VLOOKUP($B24,VSP_Fodermiddeldatabase!$A$3:$CP$489,16,),CHAR(32)) -> 0 | CF24: 995 | CG24: =IF($B24>0,VLOOKUP($B24,VSP_Fodermiddeldatabase!$A$3:$CP$489,8,),CHAR(32)) -> 100 | CH24: =IF($B24>0,VLOOKUP($B24,VSP_Fodermiddeldatabase!$A$3:$CP$489,9,),CHAR(32)) -> 100 | CJ24: 141.7549805 | CK24: 135.8638644 | CM24: 0 | CN24: 0 | CO24: 72.4 | CP24: 0 | CQ24: 100 | CR24: 100 | CS24: 0 | CT24: 100 | CU24: 34.116 | CV24: 0 | CW24: 0 | CX24: 142.4673171 | CY24: 0 | CZ24: 136.5465974 | DA24: 0 | DB24: 0 | DC24: 100 | DD24: 995 | DE24: 995 | DG24: 0.4104392858 | DH24: 0.4104392858 | DI24: 0.4104392858 | DM24: =IF($B24>0,VLOOKUP($B24,VSP_Fodermiddeldatabase!$A$3:$CP$489,18,),CHAR(32)) -> 100 | DN24: =IF($B24>0,VLOOKUP($B24,VSP_Fodermiddeldatabase!$A$3:$CP$489,39,),CHAR(32)) -> 0 | DO24: =IF($B24>0,VLOOKUP($B24,VSP_Fodermiddeldatabase!$A$3:$CP$489,40,),CHAR(32)) -> 0 | DP24: =IF($B24>0,VLOOKUP($B24,VSP_Fodermiddeldatabase!$A$3:$CP$489,41,),CHAR(32)) -> 0 | DQ24: =IF($B24>0,VLOOKUP($B24,VSP_Fodermiddeldatabase!$A$3:$CP$489,42,),CHAR(32)) -> 136 | DR24: =IF($B24>0,VLOOKUP($B24,VSP_Fodermiddeldatabase!$A$3:$CP$489,43,),CHAR(32)) -> 0 | DS24: =IF($B24>0,VLOOKUP($B24,VSP_Fodermiddeldatabase!$A$3:$CP$489,44,),CHAR(32)) -> 0 | DT24: =IF($B24>0,VLOOKUP($B24,VSP_Fodermiddeldatabase!$A$3:$CP$489,45,),CHAR(32)) -> 0 | DU24: =IF($B24>0,VLOOKUP($B24,VSP_Fodermiddeldatabase!$A$3:$CP$489,46,),CHAR(32)) -> 0 | DV24: =IF($B24>0,VLOOKUP($B24,VSP_Fodermiddeldatabase!$A$3:$CP$489,47,),CHAR(32)) -> 0 | DW24: =IF($B24>0,VLOOKUP($B24,VSP_Fodermiddeldatabase!$A$3:$CP$489,48,),CHAR(32)) -> 0 | DX24: =IF($B24>0,VLOOKUP($B24,VSP_Fodermiddeldatabase!$A$3:$CP$489,49,),CHAR(32)) -> 0 | DY24: =IF($B24>0,VLOOKUP($B24,VSP_Fodermiddeldatabase!$A$3:$CP$489,51,),CHAR(32)) -> 1 | DZ24: =IF($B24>0,VLOOKUP($B24,VSP_Fodermiddeldatabase!$A$3:$CP$489,52,),CHAR(32)) -> 1 | EA24: =IF($B24>0,VLOOKUP($B24,VSP_Fodermiddeldatabase!$A$3:$CP$489,53,),CHAR(32)) -> 1 | EB24: =IF($B24>0,VLOOKUP($B24,VSP_Fodermiddeldatabase!$A$3:$CP$489,54,),CHAR(32)) -> 1 | EC24: =IF($B24>0,VLOOKUP($B24,VSP_Fodermiddeldatabase!$A$3:$CP$489,55,),CHAR(32)) -> 1 | ED24: =IF($B24>0,VLOOKUP($B24,VSP_Fodermiddeldatabase!$A$3:$CP$489,56,),CHAR(32)) -> 1 | EE24: =IF($B24>0,VLOOKUP($B24,VSP_Fodermiddeldatabase!$A$3:$CP$489,57,),CHAR(32)) -> 1 | EF24: =IF($B24>0,VLOOKUP($B24,VSP_Fodermiddeldatabase!$A$3:$CP$489,58,),CHAR(32)) -> 1 | EG24: =IF($B24>0,VLOOKUP($B24,VSP_Fodermiddeldatabase!$A$3:$CP$489,59,),CHAR(32)) -> 1 | EH24: =IF($B24>0,VLOOKUP($B24,VSP_Fodermiddeldatabase!$A$3:$CP$489,60,),CHAR(32)) -> 1 | EI24: =IF($B24>0,VLOOKUP($B24,VSP_Fodermiddeldatabase!$A$3:$CP$489,61,),CHAR(32)) -> 1 | EJ24: =IF($B24>0,VLOOKUP($B24,VSP_Fodermiddeldatabase!$A$3:$CP$489,2,),CHAR(32)) -> 996 | EK24: =IF($B24>0,VLOOKUP($B24,VSP_Fodermiddeldatabase!$A$3:$CP$489,3,),CHAR(32)) -> 0 | EL24: =IF($B24>0,VLOOKUP($B24,VSP_Fodermiddeldatabase!$A$3:$CP$489,63,),CHAR(32)) -> 72.4 | EM24: =IF($B24>0,VLOOKUP($B24,VSP_Fodermiddeldatabase!$A$3:$CP$489,64,),CHAR(32)) -> 0 | EN24: =IF($B24>0,VLOOKUP($B24,VSP_Fodermiddeldatabase!$A$3:$CP$489,65,),CHAR(32)) -> 0 | EO24: =IF($B24>0,VLOOKUP($B24,VSP_Fodermiddeldatabase!$A$3:$CP$489,66,),CHAR(32)) -> 0 | EP24: =IF($B24>0,VLOOKUP($B24,VSP_Fodermiddeldatabase!$A$3:$CP$489,68,),CHAR(32)) -> 0 | EQ24: =IF($B24>0,VLOOKUP($B24,VSP_Fodermiddeldatabase!$A$3:$CP$489,69,),CHAR(32)) -> 0 | ER24: =IF($B24>0,VLOOKUP($B24,VSP_Fodermiddeldatabase!$A$3:$CP$489,70,),CHAR(32)) -> 1.424771274 | ES24: =IF($B24>0,VLOOKUP($B24,VSP_Fodermiddeldatabase!$A$3:$CP$489,71,),CHAR(32)) -> 1.36556 | ET24: =IF($B24>0,VLOOKUP($B24,VSP_Fodermiddeldatabase!$A$3:$CP$489,19,),CHAR(32)) -> 0 | EU24: =IF($B24>0,VLOOKUP($B24,VSP_Fodermiddeldatabase!$A$3:$CP$489,20,),CHAR(32)) -> 0 | EV24: =IF($B24>0,VLOOKUP($B24,VSP_Fodermiddeldatabase!$A$3:$CP$489,21,),CHAR(32)) -> 0 | EW24: =IF($B24>0,VLOOKUP($B24,VSP_Fodermiddeldatabase!$A$3:$CP$489,22,),CHAR(32)) -> 0 | EX24: =IF($B24>0,VLOOKUP($B24,VSP_Fodermiddeldatabase!$A$3:$CP$489,23,),CHAR(32)) -> 0 | EY24: =IF($B24>0,VLOOKUP($B24,VSP_Fodermiddeldatabase!$A$3:$CP$489,25,),CHAR(32)) -> 0 | EZ24: =IF($B24>0,VLOOKUP($B24,VSP_Fodermiddeldatabase!$A$3:$CP$489,26,),CHAR(32)) -> 0 | FA24: =IF($B24>0,VLOOKUP($B24,VSP_Fodermiddeldatabase!$A$3:$CP$489,27,),CHAR(32)) -> 0 | FB24: =IF($B24>0,VLOOKUP($B24,VSP_Fodermiddeldatabase!$A$3:$CP$489,28,),CHAR(32)) -> 0 | FC24: =IF($B24>0,VLOOKUP($B24,VSP_Fodermiddeldatabase!$A$3:$CP$489,29,),CHAR(32)) -> 0 | FD24: =IF($B24>0,VLOOKUP($B24,VSP_Fodermiddeldatabase!$A$3:$CP$489,30,),CHAR(32)) -> 0 | FE24: =IF($B24>0,VLOOKUP($B24,VSP_Fodermiddeldatabase!$A$3:$CP$489,31,),CHAR(32)) -> 0 | FF24: =IF($B24>0,VLOOKUP($B24,VSP_Fodermiddeldatabase!$A$3:$CP$489,32,),CHAR(32)) -> 0 | FG24: =IF($B24>0,VLOOKUP($B24,VSP_Fodermiddeldatabase!$A$3:$CP$489,33,),CHAR(32)) -> 0 | FH24: =IF($B24>0,VLOOKUP($B24,VSP_Fodermiddeldatabase!$A$3:$CP$489,34,),CHAR(32)) -> 0 | FI24: =IF($B24>0,VLOOKUP($B24,VSP_Fodermiddeldatabase!$A$3:$CP$489,35,),CHAR(32)) -> 0 | FJ24: =IF($B24>0,VLOOKUP($B24,VSP_Fodermiddeldatabase!$A$3:$CP$489,36,),CHAR(32)) -> 0 | FK24: =IF($B24>0,VLOOKUP($B24,VSP_Fodermiddeldatabase!$A$3:$CP$489,37,),CHAR(32)) -> 0 | FM24: =IF($B24>0,VLOOKUP($B24,VSP_Fodermiddeldatabase!$A$3:$CP$489,74,),CHAR(32)) -> 341.16 | FN24: =IF($B24>0,VLOOKUP($B24,VSP_Fodermiddeldatabase!$A$3:$CP$489,75,),CHAR(32)) -> 0 | FO24: =IF($B24>0,VLOOKUP($B24,VSP_Fodermiddeldatabase!$A$3:$CP$489,76,),CHAR(32)) ->  | FP24: =IF($B24>0,VLOOKUP($B24,VSP_Fodermiddeldatabase!$A$3:$CP$489,77,),CHAR(32)) ->  | FQ24: =IF($B24>0,VLOOKUP($B24,VSP_Fodermiddeldatabase!$A$3:$CP$489,78,),CHAR(32)) ->  | FR24: =IF($B24>0,VLOOKUP($B24,VSP_Fodermiddeldatabase!$A$3:$CP$489,79,),CHAR(32)) ->  | FS24: =IF($B24>0,VLOOKUP($B24,VSP_Fodermiddeldatabase!$A$3:$CP$489,1,),CHAR(32)) -> 99600 | FT24: =IF($B24>0,VLOOKUP($B24,VSP_Fodermiddeldatabase!$A$3:$CP$489,5,),CHAR(32)) -> 2010-05-12 | FU24: TREONIN,L 98,5% | FV24: =IF($A24<>"",100-VLOOKUP($B24,VSP_Fodermiddeldatabase!$A$3:$CP$489,12,)) -> 0.5 | FW24: =IF($A24<>"",VLOOKUP($B24,VSP_Fodermiddeldatabase!$A$3:$CP$489,13,)) -> 72.038 | FX24: =IF($A24<>"",VLOOKUP($B24,VSP_Fodermiddeldatabase!$A$3:$CP$489,14,)) -> 0 | FY24: =IF($A24<>"",VLOOKUP($B24,VSP_Fodermiddeldatabase!$A$3:$CP$489,15,)) -> 0 | FZ24: 0 | GA24: 72.4 | GB24: 0 | GC24: =IF($A24<>"",VLOOKUP($B24,VSP_Fodermiddeldatabase!$A$3:$CP$489,8,)) -> 100 | GF24: =IF($A24<>"",VLOOKUP($B24,VSP_Fodermiddeldatabase!$A$3:$CP$489,9,)) -> 100 | GG24: 100 | GH24: 141.7549805 | GI24: 135.8638644 | GJ24: =IF($A24<>"",VLOOKUP($B24,VSP_Fodermiddeldatabase!$A$3:$CP$489,11,)) -> 1 | GK24: 141.7549805 | GL24: 135.8638644 | GN24: 142.4673171 | GO24: 136.5465974 | GP24: 0 | GQ24: 100 | GR24: 34.116 | GS24: 0 | GT24: 0 | GU24: 142.4673171 | GV24: 136.5465974
A25: TRYPTOFAN,L 98% | B25: 99700 | C25: 0 | D25: 10172 | G25: 10172 | H25: 1.383179707 | I25: 1.383179707 | J25: 1.325696914 | K25: 990 | L25: 839.52 | M25: 0 | N25: 0 | O25: 0 | P25: =IF(A25<>"",IF($B25>0,VLOOKUP($B25,VSP_Fodermiddeldatabase!$A$3:$CP$489,10,),CHAR(32)),"") -> 100 | Q25: =IF(A25<>"",IF($B25>0,VLOOKUP($B25,VSP_Fodermiddeldatabase!$A$3:$CP$489,11,),CHAR(32)),"") -> 1 | R25: 90 | S25: 839.52 | T25: 0 | U25: 0 | V25: 0 | W25: 0 | X25: 0 | Y25: 979.71984 | Z25: 0 | AA25: 0 | AB25: 0 | AC25: 0 | AD25: 0 | AE25: 0 | AF25: 0 | AG25: 0 | AH25: 0 | AI25: 0 | AJ25: 0 | AK25: 0 | AL25: 0 | AM25: 0 | AN25: 0 | BX25: 1.383179707 | BY25: 1.325696914 | BZ25: =IF($B25>0,VLOOKUP($B25,VSP_Fodermiddeldatabase!$A$3:$CP$489,12,),CHAR(32)) -> 99 | CA25: 1 | CB25: =IF($B25>0,VLOOKUP($B25,VSP_Fodermiddeldatabase!$A$3:$CP$489,13,),CHAR(32)) -> 83.952 | CC25: =IF($B25>0,VLOOKUP($B25,VSP_Fodermiddeldatabase!$A$3:$CP$489,14,),CHAR(32)) -> 0 | CD25: =IF($B25>0,VLOOKUP($B25,VSP_Fodermiddeldatabase!$A$3:$CP$489,15,),CHAR(32)) -> 0 | CE25: =IF($B25>0,VLOOKUP($B25,VSP_Fodermiddeldatabase!$A$3:$CP$489,16,),CHAR(32)) -> 0 | CF25: 990 | CG25: =IF($B25>0,VLOOKUP($B25,VSP_Fodermiddeldatabase!$A$3:$CP$489,8,),CHAR(32)) -> 100 | CH25: =IF($B25>0,VLOOKUP($B25,VSP_Fodermiddeldatabase!$A$3:$CP$489,9,),CHAR(32)) -> 100 | CJ25: 138.3179707 | CK25: 132.5696914 | CM25: 0 | CN25: 0 | CO25: 84.8 | CP25: 0 | CQ25: 100 | CR25: 100 | CS25: 0 | CT25: 100 | CU25: 22.832 | CV25: 0 | CW25: 0 | CX25: 139.715122 | CY25: 0 | CZ25: 133.9087792 | DA25: 0 | DB25: 0 | DC25: 100 | DD25: 990 | DE25: 990 | DM25: =IF($B25>0,VLOOKUP($B25,VSP_Fodermiddeldatabase!$A$3:$CP$489,18,),CHAR(32)) -> 100 | DN25: =IF($B25>0,VLOOKUP($B25,VSP_Fodermiddeldatabase!$A$3:$CP$489,39,),CHAR(32)) -> 0 | DO25: =IF($B25>0,VLOOKUP($B25,VSP_Fodermiddeldatabase!$A$3:$CP$489,40,),CHAR(32)) -> 0 | DP25: =IF($B25>0,VLOOKUP($B25,VSP_Fodermiddeldatabase!$A$3:$CP$489,41,),CHAR(32)) -> 0 | DQ25: =IF($B25>0,VLOOKUP($B25,VSP_Fodermiddeldatabase!$A$3:$CP$489,42,),CHAR(32)) -> 0 | DR25: =IF($B25>0,VLOOKUP($B25,VSP_Fodermiddeldatabase!$A$3:$CP$489,43,),CHAR(32)) -> 116.7 | DS25: =IF($B25>0,VLOOKUP($B25,VSP_Fodermiddeldatabase!$A$3:$CP$489,44,),CHAR(32)) -> 0 | DT25: =IF($B25>0,VLOOKUP($B25,VSP_Fodermiddeldatabase!$A$3:$CP$489,45,),CHAR(32)) -> 0 | DU25: =IF($B25>0,VLOOKUP($B25,VSP_Fodermiddeldatabase!$A$3:$CP$489,46,),CHAR(32)) -> 0 | DV25: =IF($B25>0,VLOOKUP($B25,VSP_Fodermiddeldatabase!$A$3:$CP$489,47,),CHAR(32)) -> 0 | DW25: =IF($B25>0,VLOOKUP($B25,VSP_Fodermiddeldatabase!$A$3:$CP$489,48,),CHAR(32)) -> 0 | DX25: =IF($B25>0,VLOOKUP($B25,VSP_Fodermiddeldatabase!$A$3:$CP$489,49,),CHAR(32)) -> 0 | DY25: =IF($B25>0,VLOOKUP($B25,VSP_Fodermiddeldatabase!$A$3:$CP$489,51,),CHAR(32)) -> 1 | DZ25: =IF($B25>0,VLOOKUP($B25,VSP_Fodermiddeldatabase!$A$3:$CP$489,52,),CHAR(32)) -> 1 | EA25: =IF($B25>0,VLOOKUP($B25,VSP_Fodermiddeldatabase!$A$3:$CP$489,53,),CHAR(32)) -> 1 | EB25: =IF($B25>0,VLOOKUP($B25,VSP_Fodermiddeldatabase!$A$3:$CP$489,54,),CHAR(32)) -> 1 | EC25: =IF($B25>0,VLOOKUP($B25,VSP_Fodermiddeldatabase!$A$3:$CP$489,55,),CHAR(32)) -> 1 | ED25: =IF($B25>0,VLOOKUP($B25,VSP_Fodermiddeldatabase!$A$3:$CP$489,56,),CHAR(32)) -> 1 | EE25: =IF($B25>0,VLOOKUP($B25,VSP_Fodermiddeldatabase!$A$3:$CP$489,57,),CHAR(32)) -> 1 | EF25: =IF($B25>0,VLOOKUP($B25,VSP_Fodermiddeldatabase!$A$3:$CP$489,58,),CHAR(32)) -> 1 | EG25: =IF($B25>0,VLOOKUP($B25,VSP_Fodermiddeldatabase!$A$3:$CP$489,59,),CHAR(32)) -> 1 | EH25: =IF($B25>0,VLOOKUP($B25,VSP_Fodermiddeldatabase!$A$3:$CP$489,60,),CHAR(32)) -> 1 | EI25: =IF($B25>0,VLOOKUP($B25,VSP_Fodermiddeldatabase!$A$3:$CP$489,61,),CHAR(32)) -> 1 | EJ25: =IF($B25>0,VLOOKUP($B25,VSP_Fodermiddeldatabase!$A$3:$CP$489,2,),CHAR(32)) -> 997 | EK25: =IF($B25>0,VLOOKUP($B25,VSP_Fodermiddeldatabase!$A$3:$CP$489,3,),CHAR(32)) -> 0 | EL25: =IF($B25>0,VLOOKUP($B25,VSP_Fodermiddeldatabase!$A$3:$CP$489,63,),CHAR(32)) -> 84.8 | EM25: =IF($B25>0,VLOOKUP($B25,VSP_Fodermiddeldatabase!$A$3:$CP$489,64,),CHAR(32)) -> 0 | EN25: =IF($B25>0,VLOOKUP($B25,VSP_Fodermiddeldatabase!$A$3:$CP$489,65,),CHAR(32)) -> 0 | EO25: =IF($B25>0,VLOOKUP($B25,VSP_Fodermiddeldatabase!$A$3:$CP$489,66,),CHAR(32)) -> 0 | EP25: =IF($B25>0,VLOOKUP($B25,VSP_Fodermiddeldatabase!$A$3:$CP$489,68,),CHAR(32)) -> 0 | EQ25: =IF($B25>0,VLOOKUP($B25,VSP_Fodermiddeldatabase!$A$3:$CP$489,69,),CHAR(32)) -> 0 | ER25: =IF($B25>0,VLOOKUP($B25,VSP_Fodermiddeldatabase!$A$3:$CP$489,70,),CHAR(32)) -> 1.397266125 | ES25: =IF($B25>0,VLOOKUP($B25,VSP_Fodermiddeldatabase!$A$3:$CP$489,71,),CHAR(32)) -> 1.339197922 | ET25: =IF($B25>0,VLOOKUP($B25,VSP_Fodermiddeldatabase!$A$3:$CP$489,19,),CHAR(32)) -> 0 | EU25: =IF($B25>0,VLOOKUP($B25,VSP_Fodermiddeldatabase!$A$3:$CP$489,20,),CHAR(32)) -> 0 | EV25: =IF($B25>0,VLOOKUP($B25,VSP_Fodermiddeldatabase!$A$3:$CP$489,21,),CHAR(32)) -> 0 | EW25: =IF($B25>0,VLOOKUP($B25,VSP_Fodermiddeldatabase!$A$3:$CP$489,22,),CHAR(32)) -> 0 | EX25: =IF($B25>0,VLOOKUP($B25,VSP_Fodermiddeldatabase!$A$3:$CP$489,23,),CHAR(32)) -> 0 | EY25: =IF($B25>0,VLOOKUP($B25,VSP_Fodermiddeldatabase!$A$3:$CP$489,25,),CHAR(32)) -> 0 | EZ25: =IF($B25>0,VLOOKUP($B25,VSP_Fodermiddeldatabase!$A$3:$CP$489,26,),CHAR(32)) -> 0 | FA25: =IF($B25>0,VLOOKUP($B25,VSP_Fodermiddeldatabase!$A$3:$CP$489,27,),CHAR(32)) -> 0 | FB25: =IF($B25>0,VLOOKUP($B25,VSP_Fodermiddeldatabase!$A$3:$CP$489,28,),CHAR(32)) -> 0 | FC25: =IF($B25>0,VLOOKUP($B25,VSP_Fodermiddeldatabase!$A$3:$CP$489,29,),CHAR(32)) -> 0 | FD25: =IF($B25>0,VLOOKUP($B25,VSP_Fodermiddeldatabase!$A$3:$CP$489,30,),CHAR(32)) -> 0 | FE25: =IF($B25>0,VLOOKUP($B25,VSP_Fodermiddeldatabase!$A$3:$CP$489,31,),CHAR(32)) -> 0 | FF25: =IF($B25>0,VLOOKUP($B25,VSP_Fodermiddeldatabase!$A$3:$CP$489,32,),CHAR(32)) -> 0 | FG25: =IF($B25>0,VLOOKUP($B25,VSP_Fodermiddeldatabase!$A$3:$CP$489,33,),CHAR(32)) -> 0 | FH25: =IF($B25>0,VLOOKUP($B25,VSP_Fodermiddeldatabase!$A$3:$CP$489,34,),CHAR(32)) -> 0 | FI25: =IF($B25>0,VLOOKUP($B25,VSP_Fodermiddeldatabase!$A$3:$CP$489,35,),CHAR(32)) -> 0 | FJ25: =IF($B25>0,VLOOKUP($B25,VSP_Fodermiddeldatabase!$A$3:$CP$489,36,),CHAR(32)) -> 0 | FK25: =IF($B25>0,VLOOKUP($B25,VSP_Fodermiddeldatabase!$A$3:$CP$489,37,),CHAR(32)) -> 0 | FM25: =IF($B25>0,VLOOKUP($B25,VSP_Fodermiddeldatabase!$A$3:$CP$489,74,),CHAR(32)) -> 228.32 | FN25: =IF($B25>0,VLOOKUP($B25,VSP_Fodermiddeldatabase!$A$3:$CP$489,75,),CHAR(32)) -> 0 | FO25: =IF($B25>0,VLOOKUP($B25,VSP_Fodermiddeldatabase!$A$3:$CP$489,76,),CHAR(32)) -> 0 | FP25: =IF($B25>0,VLOOKUP($B25,VSP_Fodermiddeldatabase!$A$3:$CP$489,77,),CHAR(32)) -> 0 | FQ25: =IF($B25>0,VLOOKUP($B25,VSP_Fodermiddeldatabase!$A$3:$CP$489,78,),CHAR(32)) ->  | FR25: =IF($B25>0,VLOOKUP($B25,VSP_Fodermiddeldatabase!$A$3:$CP$489,79,),CHAR(32)) ->  | FS25: =IF($B25>0,VLOOKUP($B25,VSP_Fodermiddeldatabase!$A$3:$CP$489,1,),CHAR(32)) -> 99700 | FT25: =IF($B25>0,VLOOKUP($B25,VSP_Fodermiddeldatabase!$A$3:$CP$489,5,),CHAR(32)) -> 2010-05-12 | FU25: TRYPTOFAN,L 98% | FV25: =IF($A25<>"",100-VLOOKUP($B25,VSP_Fodermiddeldatabase!$A$3:$CP$489,12,)) -> 1 | FW25: =IF($A25<>"",VLOOKUP($B25,VSP_Fodermiddeldatabase!$A$3:$CP$489,13,)) -> 83.952 | FX25: =IF($A25<>"",VLOOKUP($B25,VSP_Fodermiddeldatabase!$A$3:$CP$489,14,)) -> 0 | FY25: =IF($A25<>"",VLOOKUP($B25,VSP_Fodermiddeldatabase!$A$3:$CP$489,15,)) -> 0 | FZ25: 0 | GA25: 84.8 | GB25: 0 | GC25: =IF($A25<>"",VLOOKUP($B25,VSP_Fodermiddeldatabase!$A$3:$CP$489,8,)) -> 100 | GF25: =IF($A25<>"",VLOOKUP($B25,VSP_Fodermiddeldatabase!$A$3:$CP$489,9,)) -> 100 | GG25: 100 | GH25: 138.3179707 | GI25: 132.5696914 | GJ25: =IF($A25<>"",VLOOKUP($B25,VSP_Fodermiddeldatabase!$A$3:$CP$489,11,)) -> 1 | GK25: 138.3179707 | GL25: 132.5696914 | GN25: 139.715122 | GO25: 133.9087792 | GP25: 0 | GQ25: 100 | GR25: 22.832 | GS25: 0 | GT25: 0 | GU25: 139.715122 | GV25: 133.9087792
A26: VALIN, L 96,5 % | B26: 99930 | C26: 0 | D26: 8699 | G26: 8699 | H26: 1.393062602 | I26: 1.393062602 | J26: 1.335169091 | K26: 985 | L26: 721 | M26: 0 | N26: 5 | O26: 0 | P26: =IF(A26<>"",IF($B26>0,VLOOKUP($B26,VSP_Fodermiddeldatabase!$A$3:$CP$489,10,),CHAR(32)),"") -> 100 | Q26: =IF(A26<>"",IF($B26>0,VLOOKUP($B26,VSP_Fodermiddeldatabase!$A$3:$CP$489,11,),CHAR(32)),"") -> 1 | R26: 90 | S26: 721 | T26: 0 | U26: 0 | V26: 0 | W26: 0 | X26: 0 | Y26: 0 | Z26: 0 | AA26: 0 | AB26: 0 | AC26: 0 | AD26: 0 | AE26: 0 | AF26: 964.5484934 | AG26: 0 | AH26: 0 | AI26: 0 | AJ26: 0 | AK26: 0 | AL26: 0 | AM26: 0 | AN26: 0 | BX26: 1.393062602 | BY26: 1.335169091 | BZ26: =IF($B26>0,VLOOKUP($B26,VSP_Fodermiddeldatabase!$A$3:$CP$489,12,),CHAR(32)) -> 98.5 | CA26: 1.5 | CB26: =IF($B26>0,VLOOKUP($B26,VSP_Fodermiddeldatabase!$A$3:$CP$489,13,),CHAR(32)) -> 72.1 | CC26: =IF($B26>0,VLOOKUP($B26,VSP_Fodermiddeldatabase!$A$3:$CP$489,14,),CHAR(32)) -> 0 | CD26: =IF($B26>0,VLOOKUP($B26,VSP_Fodermiddeldatabase!$A$3:$CP$489,15,),CHAR(32)) -> 0.5 | CE26: =IF($B26>0,VLOOKUP($B26,VSP_Fodermiddeldatabase!$A$3:$CP$489,16,),CHAR(32)) -> 0 | CF26: 980 | CG26: =IF($B26>0,VLOOKUP($B26,VSP_Fodermiddeldatabase!$A$3:$CP$489,8,),CHAR(32)) -> 100 | CH26: =IF($B26>0,VLOOKUP($B26,VSP_Fodermiddeldatabase!$A$3:$CP$489,9,),CHAR(32)) -> 100 | CJ26: 139.3062602 | CK26: 133.5169091 | CM26: 0 | CN26: 0.5076142132 | CO26: 73.19796954 | CP26: 0 | CQ26: 100 | CR26: 100 | CS26: 0.152284264 | CT26: 99.49238579 | CU26: 32.8822335 | CV26: 0 | CW26: 0 | CX26: 141.4276753 | CY26: 0 | CZ26: 135.5501615 | DA26: 0 | DB26: 0 | DC26: 100 | DD26: 980 | DE26: 980 | DM26: =IF($B26>0,VLOOKUP($B26,VSP_Fodermiddeldatabase!$A$3:$CP$489,18,),CHAR(32)) -> 100 | DN26: =IF($B26>0,VLOOKUP($B26,VSP_Fodermiddeldatabase!$A$3:$CP$489,39,),CHAR(32)) -> 0 | DO26: =IF($B26>0,VLOOKUP($B26,VSP_Fodermiddeldatabase!$A$3:$CP$489,40,),CHAR(32)) -> 0 | DP26: =IF($B26>0,VLOOKUP($B26,VSP_Fodermiddeldatabase!$A$3:$CP$489,41,),CHAR(32)) -> 0 | DQ26: =IF($B26>0,VLOOKUP($B26,VSP_Fodermiddeldatabase!$A$3:$CP$489,42,),CHAR(32)) -> 0 | DR26: =IF($B26>0,VLOOKUP($B26,VSP_Fodermiddeldatabase!$A$3:$CP$489,43,),CHAR(32)) -> 0 | DS26: =IF($B26>0,VLOOKUP($B26,VSP_Fodermiddeldatabase!$A$3:$CP$489,44,),CHAR(32)) -> 0 | DT26: =IF($B26>0,VLOOKUP($B26,VSP_Fodermiddeldatabase!$A$3:$CP$489,45,),CHAR(32)) -> 0 | DU26: =IF($B26>0,VLOOKUP($B26,VSP_Fodermiddeldatabase!$A$3:$CP$489,46,),CHAR(32)) -> 0 | DV26: =IF($B26>0,VLOOKUP($B26,VSP_Fodermiddeldatabase!$A$3:$CP$489,47,),CHAR(32)) -> 0 | DW26: =IF($B26>0,VLOOKUP($B26,VSP_Fodermiddeldatabase!$A$3:$CP$489,48,),CHAR(32)) -> 0 | DX26: =IF($B26>0,VLOOKUP($B26,VSP_Fodermiddeldatabase!$A$3:$CP$489,49,),CHAR(32)) -> 133.779264 | DY26: =IF($B26>0,VLOOKUP($B26,VSP_Fodermiddeldatabase!$A$3:$CP$489,51,),CHAR(32)) -> 1 | DZ26: =IF($B26>0,VLOOKUP($B26,VSP_Fodermiddeldatabase!$A$3:$CP$489,52,),CHAR(32)) -> 1 | EA26: =IF($B26>0,VLOOKUP($B26,VSP_Fodermiddeldatabase!$A$3:$CP$489,53,),CHAR(32)) -> 1 | EB26: =IF($B26>0,VLOOKUP($B26,VSP_Fodermiddeldatabase!$A$3:$CP$489,54,),CHAR(32)) -> 1 | EC26: =IF($B26>0,VLOOKUP($B26,VSP_Fodermiddeldatabase!$A$3:$CP$489,55,),CHAR(32)) -> 1 | ED26: =IF($B26>0,VLOOKUP($B26,VSP_Fodermiddeldatabase!$A$3:$CP$489,56,),CHAR(32)) -> 1 | EE26: =IF($B26>0,VLOOKUP($B26,VSP_Fodermiddeldatabase!$A$3:$CP$489,57,),CHAR(32)) -> 1 | EF26: =IF($B26>0,VLOOKUP($B26,VSP_Fodermiddeldatabase!$A$3:$CP$489,58,),CHAR(32)) -> 1 | EG26: =IF($B26>0,VLOOKUP($B26,VSP_Fodermiddeldatabase!$A$3:$CP$489,59,),CHAR(32)) -> 1 | EH26: =IF($B26>0,VLOOKUP($B26,VSP_Fodermiddeldatabase!$A$3:$CP$489,60,),CHAR(32)) -> 1 | EI26: =IF($B26>0,VLOOKUP($B26,VSP_Fodermiddeldatabase!$A$3:$CP$489,61,),CHAR(32)) -> 1 | EJ26: =IF($B26>0,VLOOKUP($B26,VSP_Fodermiddeldatabase!$A$3:$CP$489,2,),CHAR(32)) -> 999 | EK26: =IF($B26>0,VLOOKUP($B26,VSP_Fodermiddeldatabase!$A$3:$CP$489,3,),CHAR(32)) -> 30 | EL26: =IF($B26>0,VLOOKUP($B26,VSP_Fodermiddeldatabase!$A$3:$CP$489,63,),CHAR(32)) -> 73.19796954 | EM26: =IF($B26>0,VLOOKUP($B26,VSP_Fodermiddeldatabase!$A$3:$CP$489,64,),CHAR(32)) -> 0 | EN26: =IF($B26>0,VLOOKUP($B26,VSP_Fodermiddeldatabase!$A$3:$CP$489,65,),CHAR(32)) -> 0.5076142132 | EO26: =IF($B26>0,VLOOKUP($B26,VSP_Fodermiddeldatabase!$A$3:$CP$489,66,),CHAR(32)) -> 0 | EP26: =IF($B26>0,VLOOKUP($B26,VSP_Fodermiddeldatabase!$A$3:$CP$489,68,),CHAR(32)) -> 0 | EQ26: =IF($B26>0,VLOOKUP($B26,VSP_Fodermiddeldatabase!$A$3:$CP$489,69,),CHAR(32)) -> 0 | ER26: =IF($B26>0,VLOOKUP($B26,VSP_Fodermiddeldatabase!$A$3:$CP$489,70,),CHAR(32)) -> 1.414375937 | ES26: =IF($B26>0,VLOOKUP($B26,VSP_Fodermiddeldatabase!$A$3:$CP$489,71,),CHAR(32)) -> 1.355596677 | ET26: =IF($B26>0,VLOOKUP($B26,VSP_Fodermiddeldatabase!$A$3:$CP$489,19,),CHAR(32)) -> 0 | EU26: =IF($B26>0,VLOOKUP($B26,VSP_Fodermiddeldatabase!$A$3:$CP$489,20,),CHAR(32)) -> 0 | EV26: =IF($B26>0,VLOOKUP($B26,VSP_Fodermiddeldatabase!$A$3:$CP$489,21,),CHAR(32)) -> 0 | EW26: =IF($B26>0,VLOOKUP($B26,VSP_Fodermiddeldatabase!$A$3:$CP$489,22,),CHAR(32)) -> 0 | EX26: =IF($B26>0,VLOOKUP($B26,VSP_Fodermiddeldatabase!$A$3:$CP$489,23,),CHAR(32)) -> 0 | EY26: =IF($B26>0,VLOOKUP($B26,VSP_Fodermiddeldatabase!$A$3:$CP$489,25,),CHAR(32)) -> 0 | EZ26: =IF($B26>0,VLOOKUP($B26,VSP_Fodermiddeldatabase!$A$3:$CP$489,26,),CHAR(32)) -> 0 | FA26: =IF($B26>0,VLOOKUP($B26,VSP_Fodermiddeldatabase!$A$3:$CP$489,27,),CHAR(32)) -> 0 | FB26: =IF($B26>0,VLOOKUP($B26,VSP_Fodermiddeldatabase!$A$3:$CP$489,28,),CHAR(32)) -> 0 | FC26: =IF($B26>0,VLOOKUP($B26,VSP_Fodermiddeldatabase!$A$3:$CP$489,29,),CHAR(32)) -> 0 | FD26: =IF($B26>0,VLOOKUP($B26,VSP_Fodermiddeldatabase!$A$3:$CP$489,30,),CHAR(32)) -> 0 | FE26: =IF($B26>0,VLOOKUP($B26,VSP_Fodermiddeldatabase!$A$3:$CP$489,31,),CHAR(32)) -> 0 | FF26: =IF($B26>0,VLOOKUP($B26,VSP_Fodermiddeldatabase!$A$3:$CP$489,32,),CHAR(32)) -> 0 | FG26: =IF($B26>0,VLOOKUP($B26,VSP_Fodermiddeldatabase!$A$3:$CP$489,33,),CHAR(32)) -> 0 | FH26: =IF($B26>0,VLOOKUP($B26,VSP_Fodermiddeldatabase!$A$3:$CP$489,34,),CHAR(32)) -> 0 | FI26: =IF($B26>0,VLOOKUP($B26,VSP_Fodermiddeldatabase!$A$3:$CP$489,35,),CHAR(32)) -> 0 | FJ26: =IF($B26>0,VLOOKUP($B26,VSP_Fodermiddeldatabase!$A$3:$CP$489,36,),CHAR(32)) -> 0 | FK26: =IF($B26>0,VLOOKUP($B26,VSP_Fodermiddeldatabase!$A$3:$CP$489,37,),CHAR(32)) -> 0 | FM26: =IF($B26>0,VLOOKUP($B26,VSP_Fodermiddeldatabase!$A$3:$CP$489,74,),CHAR(32)) -> 328.822335 | FN26: =IF($B26>0,VLOOKUP($B26,VSP_Fodermiddeldatabase!$A$3:$CP$489,75,),CHAR(32)) -> 0 | FO26: =IF($B26>0,VLOOKUP($B26,VSP_Fodermiddeldatabase!$A$3:$CP$489,76,),CHAR(32)) -> 0 | FP26: =IF($B26>0,VLOOKUP($B26,VSP_Fodermiddeldatabase!$A$3:$CP$489,77,),CHAR(32)) -> 0 | FQ26: =IF($B26>0,VLOOKUP($B26,VSP_Fodermiddeldatabase!$A$3:$CP$489,78,),CHAR(32)) ->  | FR26: =IF($B26>0,VLOOKUP($B26,VSP_Fodermiddeldatabase!$A$3:$CP$489,79,),CHAR(32)) ->  | FS26: =IF($B26>0,VLOOKUP($B26,VSP_Fodermiddeldatabase!$A$3:$CP$489,1,),CHAR(32)) -> 99930 | FT26: =IF($B26>0,VLOOKUP($B26,VSP_Fodermiddeldatabase!$A$3:$CP$489,5,),CHAR(32)) -> 2010-05-12 | FU26: VALIN, L 96,5 % | FV26: =IF($A26<>"",100-VLOOKUP($B26,VSP_Fodermiddeldatabase!$A$3:$CP$489,12,)) -> 1.5 | FW26: =IF($A26<>"",VLOOKUP($B26,VSP_Fodermiddeldatabase!$A$3:$CP$489,13,)) -> 72.1 | FX26: =IF($A26<>"",VLOOKUP($B26,VSP_Fodermiddeldatabase!$A$3:$CP$489,14,)) -> 0 | FY26: =IF($A26<>"",VLOOKUP($B26,VSP_Fodermiddeldatabase!$A$3:$CP$489,15,)) -> 0.5 | FZ26: 0.5076142132 | GA26: 73.19796954 | GB26: 0 | GC26: =IF($A26<>"",VLOOKUP($B26,VSP_Fodermiddeldatabase!$A$3:$CP$489,8,)) -> 100 | GF26: =IF($A26<>"",VLOOKUP($B26,VSP_Fodermiddeldatabase!$A$3:$CP$489,9,)) -> 100 | GG26: 100 | GH26: 139.3062602 | GI26: 133.5169091 | GJ26: =IF($A26<>"",VLOOKUP($B26,VSP_Fodermiddeldatabase!$A$3:$CP$489,11,)) -> 1 | GK26: 139.3062602 | GL26: 133.5169091 | GN26: 141.4276753 | GO26: 135.5501615 | GP26: 0.152284264 | GQ26: 99.49238579 | GR26: 32.8822335 | GS26: 0 | GT26: 0 | GU26: 141.4276753 | GV26: 135.5501615
A27: FODERKRIDT, 36 % calcium | B27: 46000 | C27: 1.821737795 | D27: 100 | G27: =IF(A27<>"",IF(D27<>"",D27,""),"") -> 100 | H27: =IF(A27<>"",IF(A27<>"Delblanding",IF($D27<>"",+I27/Q27,""),""),"") -> -0.1126829268 | I27: =IF(A27<>"",IF(A27<>"Delblanding",IF($D27<>"",+BX27,""),""),"") -> -0.1126829268 | J27: =IF(A27<>"",IF(A27<>"Delblanding",IF($D27<>"",+BY27,""),""),"") -> -0.108 | K27: =IF(A27<>"",IF(A27<>"Delblanding",IF($D27<>"",+BZ27*10,""),""),"") -> 990 | L27: =IF(A27<>"",IF(A27<>"Delblanding",IF($D27<>"",+CB27*10,""),""),"") -> 0 | M27: =IF(A27<>"",IF(A27<>"Delblanding",IF($D27<>"",+CC27*10,""),""),"") -> 0 | N27: =IF(A27<>"",IF(A27<>"Delblanding",IF($D27<>"",+CD27*10,""),""),"") -> 990 | O27: =IF(A27<>"",IF(A27<>"Delblanding",IF($D27<>"",+CE27*10,""),""),"") -> 0 | P27: =IF(A27<>"",IF($B27>0,VLOOKUP($B27,VSP_Fodermiddeldatabase!$A$3:$CP$489,10,),CHAR(32)),"") -> 0 | Q27: =IF(A27<>"",IF($B27>0,VLOOKUP($B27,VSP_Fodermiddeldatabase!$A$3:$CP$489,11,),CHAR(32)),"") -> 1 | R27: 90 | S27: =IF(A27<>"",IF(A27<>"Delblanding",IF($D27<>"",+$L27*$DM27/100,""),""),"") -> 0 | T27: =IF(A27<>"",IF(A27<>"Delblanding",IF($D27<>"",+$S27*DN27/100*DY27,CHAR(32)),""),"") -> 0 | U27: =IF(A27<>"",IF(A27<>"Delblanding",IF($D27<>"",+$S27*DO27/100*DZ27,CHAR(32)),""),"") -> 0 | V27: =IF(A27<>"",IF(A27<>"Delblanding",IF($D27<>"",+$S27*DP27/100*EA27,CHAR(32)),""),"") -> 0 | W27: =IF(A27<>"",IF(A27<>"Delblanding",IF($D27<>"",+U27+V27,CHAR(32)),""),"") -> 0 | X27: =IF(A27<>"",IF(A27<>"Delblanding",IF($D27<>"",+$S27*DQ27/100*EB27,CHAR(32)),""),"") -> 0 | Y27: =IF(A27<>"",IF(A27<>"Delblanding",IF($D27<>"",+$S27*DR27/100*EC27,CHAR(32)),""),"") -> 0 | Z27: =IF(A27<>"",IF(A27<>"Delblanding",IF($D27<>"",+$S27*DS27/100*ED27,CHAR(32)),""),"") -> 0 | AA27: =IF(A27<>"",IF(A27<>"Delblanding",IF($D27<>"",+$S27*DT27/100*EE27,CHAR(32)),""),"") -> 0 | AB27: =IF(A27<>"",IF(A27<>"Delblanding",IF($D27<>"",+$S27*DU27/100*EF27,CHAR(32)),""),"") -> 0 | AC27: =IF(A27<>"",IF(A27<>"Delblanding",IF($D27<>"",+$S27*DV27/100*EG27,CHAR(32)),""),"") -> 0 | AD27: =IF(A27<>"",IF(A27<>"Delblanding",IF($D27<>"",+$S27*DW27/100*EH27,CHAR(32)),""),"") -> 0 | AE27: =IF(A27<>"",IF(A27<>"Delblanding",IF($D27<>"",+AC27+AD27,CHAR(32)),""),"") -> 0 | AF27: =IF(A27<>"",IF(A27<>"Delblanding",IF($D27<>"",+$S27*DX27/100*EI27,CHAR(32)),""),"") -> 0 | AG27: =IF(A27<>"",IF(A27<>"Delblanding",IF($D27<>"",+($EZ27*$BZ27/100)*ET27/100,CHAR(32)),""),"") -> 0 | AH27: =IF(A27<>"",IF(A27<>"Delblanding",IF($D27<>"",+($EZ27*$BZ27/100)*EU27/100,CHAR(32)),""),"") -> 0 | AI27: =IF(A27<>"",IF(A27<>"Delblanding",IF($D27<>"",+($EZ27*$BZ27/100)*EV27/100,CHAR(32)),""),"") -> 0 | AJ27: =IF(A27<>"",IF(A27<>"Delblanding",IF($D27<>"",+($EZ27*$BZ27/100)*EW27/100,CHAR(32)),""),"") -> 0 | AK27: =IF(A27<>"",IF(A27<>"Delblanding",IF($D27<>"",+($EZ27*$BZ27/100)*EX27/100,CHAR(32)),""),"") -> 0 | AL27: =IF(A27<>"",IF(A27<>"Delblanding",IF($D27<>"",+(EY27*$BZ27/100),CHAR(32)),""),"") -> 360 | AM27: =IF(A27<>"",IF(A27<>"Delblanding",IF($D27<>"",+(EZ27*$BZ27/100),CHAR(32)),""),"") -> 0 | AN27: =IF(A27<>"",IF(A27<>"Delblanding",IF($D27<>"",+(FA27*$BZ27/100),CHAR(32)),""),"") -> 0 | BX27: -0.1126829268 | BY27: -0.108 | BZ27: =IF($B27>0,VLOOKUP($B27,VSP_Fodermiddeldatabase!$A$3:$CP$489,12,),CHAR(32)) -> 99 | CA27: 1 | CB27: =IF($B27>0,VLOOKUP($B27,VSP_Fodermiddeldatabase!$A$3:$CP$489,13,),CHAR(32)) -> 0 | CC27: =IF($B27>0,VLOOKUP($B27,VSP_Fodermiddeldatabase!$A$3:$CP$489,14,),CHAR(32)) -> 0 | CD27: =IF($B27>0,VLOOKUP($B27,VSP_Fodermiddeldatabase!$A$3:$CP$489,15,),CHAR(32)) -> 99 | CE27: =IF($B27>0,VLOOKUP($B27,VSP_Fodermiddeldatabase!$A$3:$CP$489,16,),CHAR(32)) -> 0 | CF27: 0 | CG27: =IF($B27>0,VLOOKUP($B27,VSP_Fodermiddeldatabase!$A$3:$CP$489,8,),CHAR(32)) -> 70 | CH27: =IF($B27>0,VLOOKUP($B27,VSP_Fodermiddeldatabase!$A$3:$CP$489,9,),CHAR(32)) -> 70 | CJ27: -11.26829268 | CK27: -10.8 | CM27: 0 | CN27: 100 | CO27: 0 | CP27: 0 | CQ27: 70 | CR27: 70 | CS27: 30 | CT27: 0 | CU27: 0 | CV27: 0 | CW27: 0 | CX27: -11.38211382 | CY27: 0 | CZ27: -10.90909091 | DA27: 0 | DB27: 0 | DC27: 100 | DD27: 0 | DE27: 0 | DG27: 0 | DH27: 0 | DI27: 0 | DM27: =IF($B27>0,VLOOKUP($B27,VSP_Fodermiddeldatabase!$A$3:$CP$489,18,),CHAR(32)) -> 0 | DN27: =IF($B27>0,VLOOKUP($B27,VSP_Fodermiddeldatabase!$A$3:$CP$489,39,),CHAR(32)) -> 0 | DO27: =IF($B27>0,VLOOKUP($B27,VSP_Fodermiddeldatabase!$A$3:$CP$489,40,),CHAR(32)) -> 0 | DP27: =IF($B27>0,VLOOKUP($B27,VSP_Fodermiddeldatabase!$A$3:$CP$489,41,),CHAR(32)) -> 0 | DQ27: =IF($B27>0,VLOOKUP($B27,VSP_Fodermiddeldatabase!$A$3:$CP$489,42,),CHAR(32)) -> 0 | DR27: =IF($B27>0,VLOOKUP($B27,VSP_Fodermiddeldatabase!$A$3:$CP$489,43,),CHAR(32)) -> 0 | DS27: =IF($B27>0,VLOOKUP($B27,VSP_Fodermiddeldatabase!$A$3:$CP$489,44,),CHAR(32)) -> 0 | DT27: =IF($B27>0,VLOOKUP($B27,VSP_Fodermiddeldatabase!$A$3:$CP$489,45,),CHAR(32)) -> 0 | DU27: =IF($B27>0,VLOOKUP($B27,VSP_Fodermiddeldatabase!$A$3:$CP$489,46,),CHAR(32)) -> 0 | DV27: =IF($B27>0,VLOOKUP($B27,VSP_Fodermiddeldatabase!$A$3:$CP$489,47,),CHAR(32)) -> 0 | DW27: =IF($B27>0,VLOOKUP($B27,VSP_Fodermiddeldatabase!$A$3:$CP$489,48,),CHAR(32)) -> 0 | DX27: =IF($B27>0,VLOOKUP($B27,VSP_Fodermiddeldatabase!$A$3:$CP$489,49,),CHAR(32)) -> 0 | DY27: =IF($B27>0,VLOOKUP($B27,VSP_Fodermiddeldatabase!$A$3:$CP$489,51,),CHAR(32)) -> 1 | DZ27: =IF($B27>0,VLOOKUP($B27,VSP_Fodermiddeldatabase!$A$3:$CP$489,52,),CHAR(32)) -> 1 | EA27: =IF($B27>0,VLOOKUP($B27,VSP_Fodermiddeldatabase!$A$3:$CP$489,53,),CHAR(32)) -> 1 | EB27: =IF($B27>0,VLOOKUP($B27,VSP_Fodermiddeldatabase!$A$3:$CP$489,54,),CHAR(32)) -> 1 | EC27: =IF($B27>0,VLOOKUP($B27,VSP_Fodermiddeldatabase!$A$3:$CP$489,55,),CHAR(32)) -> 1 | ED27: =IF($B27>0,VLOOKUP($B27,VSP_Fodermiddeldatabase!$A$3:$CP$489,56,),CHAR(32)) -> 1 | EE27: =IF($B27>0,VLOOKUP($B27,VSP_Fodermiddeldatabase!$A$3:$CP$489,57,),CHAR(32)) -> 1 | EF27: =IF($B27>0,VLOOKUP($B27,VSP_Fodermiddeldatabase!$A$3:$CP$489,58,),CHAR(32)) -> 1 | EG27: =IF($B27>0,VLOOKUP($B27,VSP_Fodermiddeldatabase!$A$3:$CP$489,59,),CHAR(32)) -> 1 | EH27: =IF($B27>0,VLOOKUP($B27,VSP_Fodermiddeldatabase!$A$3:$CP$489,60,),CHAR(32)) -> 1 | EI27: =IF($B27>0,VLOOKUP($B27,VSP_Fodermiddeldatabase!$A$3:$CP$489,61,),CHAR(32)) -> 1 | EJ27: =IF($B27>0,VLOOKUP($B27,VSP_Fodermiddeldatabase!$A$3:$CP$489,2,),CHAR(32)) -> 460 | EK27: =IF($B27>0,VLOOKUP($B27,VSP_Fodermiddeldatabase!$A$3:$CP$489,3,),CHAR(32)) -> 0 | EL27: =IF($B27>0,VLOOKUP($B27,VSP_Fodermiddeldatabase!$A$3:$CP$489,63,),CHAR(32)) -> 0 | EM27: =IF($B27>0,VLOOKUP($B27,VSP_Fodermiddeldatabase!$A$3:$CP$489,64,),CHAR(32)) -> 0 | EN27: =IF($B27>0,VLOOKUP($B27,VSP_Fodermiddeldatabase!$A$3:$CP$489,65,),CHAR(32)) -> 100 | EO27: =IF($B27>0,VLOOKUP($B27,VSP_Fodermiddeldatabase!$A$3:$CP$489,66,),CHAR(32)) -> 0 | EP27: =IF($B27>0,VLOOKUP($B27,VSP_Fodermiddeldatabase!$A$3:$CP$489,68,),CHAR(32)) -> 0 | EQ27: =IF($B27>0,VLOOKUP($B27,VSP_Fodermiddeldatabase!$A$3:$CP$489,69,),CHAR(32)) -> 0 | ER27: =IF($B27>0,VLOOKUP($B27,VSP_Fodermiddeldatabase!$A$3:$CP$489,70,),CHAR(32)) -> -0.1138211382 | ES27: =IF($B27>0,VLOOKUP($B27,VSP_Fodermiddeldatabase!$A$3:$CP$489,71,),CHAR(32)) -> -0.1090909091 | ET27: =IF($B27>0,VLOOKUP($B27,VSP_Fodermiddeldatabase!$A$3:$CP$489,19,),CHAR(32)) -> 0 | EU27: =IF($B27>0,VLOOKUP($B27,VSP_Fodermiddeldatabase!$A$3:$CP$489,20,),CHAR(32)) -> 0 | EV27: =IF($B27>0,VLOOKUP($B27,VSP_Fodermiddeldatabase!$A$3:$CP$489,21,),CHAR(32)) -> 0 | EW27: =IF($B27>0,VLOOKUP($B27,VSP_Fodermiddeldatabase!$A$3:$CP$489,22,),CHAR(32)) -> 0 | EX27: =IF($B27>0,VLOOKUP($B27,VSP_Fodermiddeldatabase!$A$3:$CP$489,23,),CHAR(32)) -> 0 | EY27: =IF($B27>0,VLOOKUP($B27,VSP_Fodermiddeldatabase!$A$3:$CP$489,25,),CHAR(32)) -> 363.6363636 | EZ27: =IF($B27>0,VLOOKUP($B27,VSP_Fodermiddeldatabase!$A$3:$CP$489,26,),CHAR(32)) -> 0 | FA27: =IF($B27>0,VLOOKUP($B27,VSP_Fodermiddeldatabase!$A$3:$CP$489,27,),CHAR(32)) -> 0 | FB27: =IF($B27>0,VLOOKUP($B27,VSP_Fodermiddeldatabase!$A$3:$CP$489,28,),CHAR(32)) -> 0 | FC27: =IF($B27>0,VLOOKUP($B27,VSP_Fodermiddeldatabase!$A$3:$CP$489,29,),CHAR(32)) -> 0 | FD27: =IF($B27>0,VLOOKUP($B27,VSP_Fodermiddeldatabase!$A$3:$CP$489,30,),CHAR(32)) -> 0 | FE27: =IF($B27>0,VLOOKUP($B27,VSP_Fodermiddeldatabase!$A$3:$CP$489,31,),CHAR(32)) -> 0 | FF27: =IF($B27>0,VLOOKUP($B27,VSP_Fodermiddeldatabase!$A$3:$CP$489,32,),CHAR(32)) -> 0 | FG27: =IF($B27>0,VLOOKUP($B27,VSP_Fodermiddeldatabase!$A$3:$CP$489,33,),CHAR(32)) -> 0 | FH27: =IF($B27>0,VLOOKUP($B27,VSP_Fodermiddeldatabase!$A$3:$CP$489,34,),CHAR(32)) -> 0 | FI27: =IF($B27>0,VLOOKUP($B27,VSP_Fodermiddeldatabase!$A$3:$CP$489,35,),CHAR(32)) -> 0 | FJ27: =IF($B27>0,VLOOKUP($B27,VSP_Fodermiddeldatabase!$A$3:$CP$489,36,),CHAR(32)) -> 0 | FK27: =IF($B27>0,VLOOKUP($B27,VSP_Fodermiddeldatabase!$A$3:$CP$489,37,),CHAR(32)) -> 0 | FM27: =IF($B27>0,VLOOKUP($B27,VSP_Fodermiddeldatabase!$A$3:$CP$489,74,),CHAR(32)) -> 0 | FN27: =IF($B27>0,VLOOKUP($B27,VSP_Fodermiddeldatabase!$A$3:$CP$489,75,),CHAR(32)) -> 0 | FO27: =IF($B27>0,VLOOKUP($B27,VSP_Fodermiddeldatabase!$A$3:$CP$489,76,),CHAR(32)) ->  | FP27: =IF($B27>0,VLOOKUP($B27,VSP_Fodermiddeldatabase!$A$3:$CP$489,77,),CHAR(32)) ->  | FQ27: =IF($B27>0,VLOOKUP($B27,VSP_Fodermiddeldatabase!$A$3:$CP$489,78,),CHAR(32)) ->  | FR27: =IF($B27>0,VLOOKUP($B27,VSP_Fodermiddeldatabase!$A$3:$CP$489,79,),CHAR(32)) ->  | FS27: =IF($B27>0,VLOOKUP($B27,VSP_Fodermiddeldatabase!$A$3:$CP$489,1,),CHAR(32)) -> 46000 | FT27: =IF($B27>0,VLOOKUP($B27,VSP_Fodermiddeldatabase!$A$3:$CP$489,5,),CHAR(32)) -> 2013-11-04 | FU27: FODERKRIDT, 36 % calcium | FV27: =IF($A27<>"",100-VLOOKUP($B27,VSP_Fodermiddeldatabase!$A$3:$CP$489,12,)) -> 1 | FW27: =IF($A27<>"",VLOOKUP($B27,VSP_Fodermiddeldatabase!$A$3:$CP$489,13,)) -> 0 | FX27: =IF($A27<>"",VLOOKUP($B27,VSP_Fodermiddeldatabase!$A$3:$CP$489,14,)) -> 0 | FY27: =IF($A27<>"",VLOOKUP($B27,VSP_Fodermiddeldatabase!$A$3:$CP$489,15,)) -> 99 | FZ27: 100 | GA27: 0 | GB27: 0 | GC27: =IF($A27<>"",VLOOKUP($B27,VSP_Fodermiddeldatabase!$A$3:$CP$489,8,)) -> 70 | GF27: =IF($A27<>"",VLOOKUP($B27,VSP_Fodermiddeldatabase!$A$3:$CP$489,9,)) -> 70 | GG27: 70 | GH27: -11.26829268 | GI27: -10.8 | GJ27: =IF($A27<>"",VLOOKUP($B27,VSP_Fodermiddeldatabase!$A$3:$CP$489,11,)) -> 1 | GK27: -11.26829268 | GL27: -10.8 | GN27: -11.38211382 | GO27: -10.90909091 | GP27: 30 | GQ27: 0 | GR27: 0 | GS27: 0 | GT27: 0 | GU27: -11.38211382 | GV27: -10.90909091
A28: MONOCALCIUMFOS (16/22,7) | B28: 46200 | C28: 0.3648575734 | D28: 492 | G28: =IF(A28<>"",IF(D28<>"",D28,""),"") -> 492 | H28: =IF(A28<>"",IF(A28<>"Delblanding",IF($D28<>"",+I28/Q28,""),""),"") -> -0.1126829268 | I28: =IF(A28<>"",IF(A28<>"Delblanding",IF($D28<>"",+BX28,""),""),"") -> -0.1126829268 | J28: =IF(A28<>"",IF(A28<>"Delblanding",IF($D28<>"",+BY28,""),""),"") -> -0.108 | K28: =IF(A28<>"",IF(A28<>"Delblanding",IF($D28<>"",+BZ28*10,""),""),"") -> 990 | L28: =IF(A28<>"",IF(A28<>"Delblanding",IF($D28<>"",+CB28*10,""),""),"") -> 0 | M28: =IF(A28<>"",IF(A28<>"Delblanding",IF($D28<>"",+CC28*10,""),""),"") -> 0 | N28: =IF(A28<>"",IF(A28<>"Delblanding",IF($D28<>"",+CD28*10,""),""),"") -> 990 | O28: =IF(A28<>"",IF(A28<>"Delblanding",IF($D28<>"",+CE28*10,""),""),"") -> 0 | P28: =IF(A28<>"",IF($B28>0,VLOOKUP($B28,VSP_Fodermiddeldatabase!$A$3:$CP$489,10,),CHAR(32)),"") -> 0 | Q28: =IF(A28<>"",IF($B28>0,VLOOKUP($B28,VSP_Fodermiddeldatabase!$A$3:$CP$489,11,),CHAR(32)),"") -> 1 | R28: 90 | S28: =IF(A28<>"",IF(A28<>"Delblanding",IF($D28<>"",+$L28*$DM28/100,""),""),"") -> 0 | T28: =IF(A28<>"",IF(A28<>"Delblanding",IF($D28<>"",+$S28*DN28/100*DY28,CHAR(32)),""),"") -> 0 | U28: =IF(A28<>"",IF(A28<>"Delblanding",IF($D28<>"",+$S28*DO28/100*DZ28,CHAR(32)),""),"") -> 0 | V28: =IF(A28<>"",IF(A28<>"Delblanding",IF($D28<>"",+$S28*DP28/100*EA28,CHAR(32)),""),"") -> 0 | W28: =IF(A28<>"",IF(A28<>"Delblanding",IF($D28<>"",+U28+V28,CHAR(32)),""),"") -> 0 | X28: =IF(A28<>"",IF(A28<>"Delblanding",IF($D28<>"",+$S28*DQ28/100*EB28,CHAR(32)),""),"") -> 0 | Y28: =IF(A28<>"",IF(A28<>"Delblanding",IF($D28<>"",+$S28*DR28/100*EC28,CHAR(32)),""),"") -> 0 | Z28: =IF(A28<>"",IF(A28<>"Delblanding",IF($D28<>"",+$S28*DS28/100*ED28,CHAR(32)),""),"") -> 0 | AA28: =IF(A28<>"",IF(A28<>"Delblanding",IF($D28<>"",+$S28*DT28/100*EE28,CHAR(32)),""),"") -> 0 | AB28: =IF(A28<>"",IF(A28<>"Delblanding",IF($D28<>"",+$S28*DU28/100*EF28,CHAR(32)),""),"") -> 0 | AC28: =IF(A28<>"",IF(A28<>"Delblanding",IF($D28<>"",+$S28*DV28/100*EG28,CHAR(32)),""),"") -> 0 | AD28: =IF(A28<>"",IF(A28<>"Delblanding",IF($D28<>"",+$S28*DW28/100*EH28,CHAR(32)),""),"") -> 0 | AE28: =IF(A28<>"",IF(A28<>"Delblanding",IF($D28<>"",+AC28+AD28,CHAR(32)),""),"") -> 0 | AF28: =IF(A28<>"",IF(A28<>"Delblanding",IF($D28<>"",+$S28*DX28/100*EI28,CHAR(32)),""),"") -> 0 | AG28: =IF(A28<>"",IF(A28<>"Delblanding",IF($D28<>"",+($EZ28*$BZ28/100)*ET28/100,CHAR(32)),""),"") -> 152.09 | AH28: =IF(A28<>"",IF(A28<>"Delblanding",IF($D28<>"",+($EZ28*$BZ28/100)*EU28/100,CHAR(32)),""),"") -> 152.09 | AI28: =IF(A28<>"",IF(A28<>"Delblanding",IF($D28<>"",+($EZ28*$BZ28/100)*EV28/100,CHAR(32)),""),"") -> 152.09 | AJ28: =IF(A28<>"",IF(A28<>"Delblanding",IF($D28<>"",+($EZ28*$BZ28/100)*EW28/100,CHAR(32)),""),"") -> 152.09 | AK28: =IF(A28<>"",IF(A28<>"Delblanding",IF($D28<>"",+($EZ28*$BZ28/100)*EX28/100,CHAR(32)),""),"") -> 152.09 | AL28: =IF(A28<>"",IF(A28<>"Delblanding",IF($D28<>"",+(EY28*$BZ28/100),CHAR(32)),""),"") -> 160 | AM28: =IF(A28<>"",IF(A28<>"Delblanding",IF($D28<>"",+(EZ28*$BZ28/100),CHAR(32)),""),"") -> 227 | AN28: =IF(A28<>"",IF(A28<>"Delblanding",IF($D28<>"",+(FA28*$BZ28/100),CHAR(32)),""),"") -> 0 | BX28: -0.1126829268 | BY28: -0.108 | BZ28: =IF($B28>0,VLOOKUP($B28,VSP_Fodermiddeldatabase!$A$3:$CP$489,12,),CHAR(32)) -> 99 | CA28: 1 | CB28: =IF($B28>0,VLOOKUP($B28,VSP_Fodermiddeldatabase!$A$3:$CP$489,13,),CHAR(32)) -> 0 | CC28: =IF($B28>0,VLOOKUP($B28,VSP_Fodermiddeldatabase!$A$3:$CP$489,14,),CHAR(32)) -> 0 | CD28: =IF($B28>0,VLOOKUP($B28,VSP_Fodermiddeldatabase!$A$3:$CP$489,15,),CHAR(32)) -> 99 | CE28: =IF($B28>0,VLOOKUP($B28,VSP_Fodermiddeldatabase!$A$3:$CP$489,16,),CHAR(32)) -> 0 | CF28: 0 | CG28: =IF($B28>0,VLOOKUP($B28,VSP_Fodermiddeldatabase!$A$3:$CP$489,8,),CHAR(32)) -> 70 | CH28: =IF($B28>0,VLOOKUP($B28,VSP_Fodermiddeldatabase!$A$3:$CP$489,9,),CHAR(32)) -> 70 | CJ28: -11.26829268 | CK28: -10.8 | CM28: 0 | CN28: 100 | CO28: 0 | CP28: 0 | CQ28: 70 | CR28: 70 | CS28: 30 | CT28: 0 | CU28: 0 | CV28: 0 | CW28: 0 | CX28: -11.38211382 | CY28: 0 | CZ28: -10.90909091 | DA28: 0 | DB28: 0 | DC28: 100 | DD28: 0 | DE28: 0 | DG28: 0 | DH28: 0 | DI28: 0 | DM28: =IF($B28>0,VLOOKUP($B28,VSP_Fodermiddeldatabase!$A$3:$CP$489,18,),CHAR(32)) -> 0 | DN28: =IF($B28>0,VLOOKUP($B28,VSP_Fodermiddeldatabase!$A$3:$CP$489,39,),CHAR(32)) -> 0 | DO28: =IF($B28>0,VLOOKUP($B28,VSP_Fodermiddeldatabase!$A$3:$CP$489,40,),CHAR(32)) -> 0 | DP28: =IF($B28>0,VLOOKUP($B28,VSP_Fodermiddeldatabase!$A$3:$CP$489,41,),CHAR(32)) -> 0 | DQ28: =IF($B28>0,VLOOKUP($B28,VSP_Fodermiddeldatabase!$A$3:$CP$489,42,),CHAR(32)) -> 0 | DR28: =IF($B28>0,VLOOKUP($B28,VSP_Fodermiddeldatabase!$A$3:$CP$489,43,),CHAR(32)) -> 0 | DS28: =IF($B28>0,VLOOKUP($B28,VSP_Fodermiddeldatabase!$A$3:$CP$489,44,),CHAR(32)) -> 0 | DT28: =IF($B28>0,VLOOKUP($B28,VSP_Fodermiddeldatabase!$A$3:$CP$489,45,),CHAR(32)) -> 0 | DU28: =IF($B28>0,VLOOKUP($B28,VSP_Fodermiddeldatabase!$A$3:$CP$489,46,),CHAR(32)) -> 0 | DV28: =IF($B28>0,VLOOKUP($B28,VSP_Fodermiddeldatabase!$A$3:$CP$489,47,),CHAR(32)) -> 0 | DW28: =IF($B28>0,VLOOKUP($B28,VSP_Fodermiddeldatabase!$A$3:$CP$489,48,),CHAR(32)) -> 0 | DX28: =IF($B28>0,VLOOKUP($B28,VSP_Fodermiddeldatabase!$A$3:$CP$489,49,),CHAR(32)) -> 0 | DY28: =IF($B28>0,VLOOKUP($B28,VSP_Fodermiddeldatabase!$A$3:$CP$489,51,),CHAR(32)) -> 1 | DZ28: =IF($B28>0,VLOOKUP($B28,VSP_Fodermiddeldatabase!$A$3:$CP$489,52,),CHAR(32)) -> 1 | EA28: =IF($B28>0,VLOOKUP($B28,VSP_Fodermiddeldatabase!$A$3:$CP$489,53,),CHAR(32)) -> 1 | EB28: =IF($B28>0,VLOOKUP($B28,VSP_Fodermiddeldatabase!$A$3:$CP$489,54,),CHAR(32)) -> 1 | EC28: =IF($B28>0,VLOOKUP($B28,VSP_Fodermiddeldatabase!$A$3:$CP$489,55,),CHAR(32)) -> 1 | ED28: =IF($B28>0,VLOOKUP($B28,VSP_Fodermiddeldatabase!$A$3:$CP$489,56,),CHAR(32)) -> 1 | EE28: =IF($B28>0,VLOOKUP($B28,VSP_Fodermiddeldatabase!$A$3:$CP$489,57,),CHAR(32)) -> 1 | EF28: =IF($B28>0,VLOOKUP($B28,VSP_Fodermiddeldatabase!$A$3:$CP$489,58,),CHAR(32)) -> 1 | EG28: =IF($B28>0,VLOOKUP($B28,VSP_Fodermiddeldatabase!$A$3:$CP$489,59,),CHAR(32)) -> 1 | EH28: =IF($B28>0,VLOOKUP($B28,VSP_Fodermiddeldatabase!$A$3:$CP$489,60,),CHAR(32)) -> 1 | EI28: =IF($B28>0,VLOOKUP($B28,VSP_Fodermiddeldatabase!$A$3:$CP$489,61,),CHAR(32)) -> 1 | EJ28: =IF($B28>0,VLOOKUP($B28,VSP_Fodermiddeldatabase!$A$3:$CP$489,2,),CHAR(32)) -> 462 | EK28: =IF($B28>0,VLOOKUP($B28,VSP_Fodermiddeldatabase!$A$3:$CP$489,3,),CHAR(32)) -> 0 | EL28: =IF($B28>0,VLOOKUP($B28,VSP_Fodermiddeldatabase!$A$3:$CP$489,63,),CHAR(32)) -> 0 | EM28: =IF($B28>0,VLOOKUP($B28,VSP_Fodermiddeldatabase!$A$3:$CP$489,64,),CHAR(32)) -> 0 | EN28: =IF($B28>0,VLOOKUP($B28,VSP_Fodermiddeldatabase!$A$3:$CP$489,65,),CHAR(32)) -> 100 | EO28: =IF($B28>0,VLOOKUP($B28,VSP_Fodermiddeldatabase!$A$3:$CP$489,66,),CHAR(32)) -> 0 | EP28: =IF($B28>0,VLOOKUP($B28,VSP_Fodermiddeldatabase!$A$3:$CP$489,68,),CHAR(32)) -> 0 | EQ28: =IF($B28>0,VLOOKUP($B28,VSP_Fodermiddeldatabase!$A$3:$CP$489,69,),CHAR(32)) -> 0 | ER28: =IF($B28>0,VLOOKUP($B28,VSP_Fodermiddeldatabase!$A$3:$CP$489,70,),CHAR(32)) -> -0.1138211382 | ES28: =IF($B28>0,VLOOKUP($B28,VSP_Fodermiddeldatabase!$A$3:$CP$489,71,),CHAR(32)) -> -0.1090909091 | ET28: =IF($B28>0,VLOOKUP($B28,VSP_Fodermiddeldatabase!$A$3:$CP$489,19,),CHAR(32)) -> 67 | EU28: =IF($B28>0,VLOOKUP($B28,VSP_Fodermiddeldatabase!$A$3:$CP$489,20,),CHAR(32)) -> 67 | EV28: =IF($B28>0,VLOOKUP($B28,VSP_Fodermiddeldatabase!$A$3:$CP$489,21,),CHAR(32)) -> 67 | EW28: =IF($B28>0,VLOOKUP($B28,VSP_Fodermiddeldatabase!$A$3:$CP$489,22,),CHAR(32)) -> 67 | EX28: =IF($B28>0,VLOOKUP($B28,VSP_Fodermiddeldatabase!$A$3:$CP$489,23,),CHAR(32)) -> 67 | EY28: =IF($B28>0,VLOOKUP($B28,VSP_Fodermiddeldatabase!$A$3:$CP$489,25,),CHAR(32)) -> 161.6161616 | EZ28: =IF($B28>0,VLOOKUP($B28,VSP_Fodermiddeldatabase!$A$3:$CP$489,26,),CHAR(32)) -> 229.2929293 | FA28: =IF($B28>0,VLOOKUP($B28,VSP_Fodermiddeldatabase!$A$3:$CP$489,27,),CHAR(32)) -> 0 | FB28: =IF($B28>0,VLOOKUP($B28,VSP_Fodermiddeldatabase!$A$3:$CP$489,28,),CHAR(32)) -> 0 | FC28: =IF($B28>0,VLOOKUP($B28,VSP_Fodermiddeldatabase!$A$3:$CP$489,29,),CHAR(32)) -> 0 | FD28: =IF($B28>0,VLOOKUP($B28,VSP_Fodermiddeldatabase!$A$3:$CP$489,30,),CHAR(32)) -> 0 | FE28: =IF($B28>0,VLOOKUP($B28,VSP_Fodermiddeldatabase!$A$3:$CP$489,31,),CHAR(32)) -> 0 | FF28: =IF($B28>0,VLOOKUP($B28,VSP_Fodermiddeldatabase!$A$3:$CP$489,32,),CHAR(32)) -> 0 | FG28: =IF($B28>0,VLOOKUP($B28,VSP_Fodermiddeldatabase!$A$3:$CP$489,33,),CHAR(32)) -> 0 | FH28: =IF($B28>0,VLOOKUP($B28,VSP_Fodermiddeldatabase!$A$3:$CP$489,34,),CHAR(32)) -> 0 | FI28: =IF($B28>0,VLOOKUP($B28,VSP_Fodermiddeldatabase!$A$3:$CP$489,35,),CHAR(32)) -> 0 | FJ28: =IF($B28>0,VLOOKUP($B28,VSP_Fodermiddeldatabase!$A$3:$CP$489,36,),CHAR(32)) -> 0 | FK28: =IF($B28>0,VLOOKUP($B28,VSP_Fodermiddeldatabase!$A$3:$CP$489,37,),CHAR(32)) -> 0 | FM28: =IF($B28>0,VLOOKUP($B28,VSP_Fodermiddeldatabase!$A$3:$CP$489,74,),CHAR(32)) -> 0 | FN28: =IF($B28>0,VLOOKUP($B28,VSP_Fodermiddeldatabase!$A$3:$CP$489,75,),CHAR(32)) -> 0 | FO28: =IF($B28>0,VLOOKUP($B28,VSP_Fodermiddeldatabase!$A$3:$CP$489,76,),CHAR(32)) ->  | FP28: =IF($B28>0,VLOOKUP($B28,VSP_Fodermiddeldatabase!$A$3:$CP$489,77,),CHAR(32)) ->  | FQ28: =IF($B28>0,VLOOKUP($B28,VSP_Fodermiddeldatabase!$A$3:$CP$489,78,),CHAR(32)) ->  | FR28: =IF($B28>0,VLOOKUP($B28,VSP_Fodermiddeldatabase!$A$3:$CP$489,79,),CHAR(32)) ->  | FS28: =IF($B28>0,VLOOKUP($B28,VSP_Fodermiddeldatabase!$A$3:$CP$489,1,),CHAR(32)) -> 46200 | FT28: =IF($B28>0,VLOOKUP($B28,VSP_Fodermiddeldatabase!$A$3:$CP$489,5,),CHAR(32)) -> 2010-05-12 | FU28: MONOCALCIUMFOS (16/22,7) | FV28: =IF($A28<>"",100-VLOOKUP($B28,VSP_Fodermiddeldatabase!$A$3:$CP$489,12,)) -> 1 | FW28: =IF($A28<>"",VLOOKUP($B28,VSP_Fodermiddeldatabase!$A$3:$CP$489,13,)) -> 0 | FX28: =IF($A28<>"",VLOOKUP($B28,VSP_Fodermiddeldatabase!$A$3:$CP$489,14,)) -> 0 | FY28: =IF($A28<>"",VLOOKUP($B28,VSP_Fodermiddeldatabase!$A$3:$CP$489,15,)) -> 99 | FZ28: 100 | GA28: 0 | GB28: 0 | GC28: =IF($A28<>"",VLOOKUP($B28,VSP_Fodermiddeldatabase!$A$3:$CP$489,8,)) -> 70 | GF28: =IF($A28<>"",VLOOKUP($B28,VSP_Fodermiddeldatabase!$A$3:$CP$489,9,)) -> 70 | GG28: 70 | GH28: -11.26829268 | GI28: -10.8 | GJ28: =IF($A28<>"",VLOOKUP($B28,VSP_Fodermiddeldatabase!$A$3:$CP$489,11,)) -> 1 | GK28: -11.26829268 | GL28: -10.8 | GN28: -11.38211382 | GO28: -10.90909091 | GP28: 30 | GQ28: 0 | GR28: 0 | GS28: 0 | GT28: 0 | GU28: -11.38211382 | GV28: -10.90909091
A29: NATRIUMCLORID | B29: 46500 | C29: 0.5220118664 | D29: 100 | G29: 100 | H29: -0.1126829268 | I29: -0.1126829268 | J29: -0.108 | K29: 990 | L29: 0 | M29: 0 | N29: 990 | O29: 0 | P29: =IF(A29<>"",IF($B29>0,VLOOKUP($B29,VSP_Fodermiddeldatabase!$A$3:$CP$489,10,),CHAR(32)),"") -> 0 | Q29: =IF(A29<>"",IF($B29>0,VLOOKUP($B29,VSP_Fodermiddeldatabase!$A$3:$CP$489,11,),CHAR(32)),"") -> 1 | R29: 90 | S29: 0 | T29: 0 | U29: 0 | V29: 0 | W29: 0 | X29: 0 | Y29: 0 | Z29: 0 | AA29: 0 | AB29: 0 | AC29: 0 | AD29: 0 | AE29: 0 | AF29: 0 | AG29: 0 | AH29: 0 | AI29: 0 | AJ29: 0 | AK29: 0 | AL29: 0 | AM29: 0 | AN29: 379.9999962 | BX29: -0.1126829268 | BY29: -0.108 | BZ29: =IF($B29>0,VLOOKUP($B29,VSP_Fodermiddeldatabase!$A$3:$CP$489,12,),CHAR(32)) -> 99 | CA29: 1 | CB29: =IF($B29>0,VLOOKUP($B29,VSP_Fodermiddeldatabase!$A$3:$CP$489,13,),CHAR(32)) -> 0 | CC29: =IF($B29>0,VLOOKUP($B29,VSP_Fodermiddeldatabase!$A$3:$CP$489,14,),CHAR(32)) -> 0 | CD29: =IF($B29>0,VLOOKUP($B29,VSP_Fodermiddeldatabase!$A$3:$CP$489,15,),CHAR(32)) -> 99 | CE29: =IF($B29>0,VLOOKUP($B29,VSP_Fodermiddeldatabase!$A$3:$CP$489,16,),CHAR(32)) -> 0 | CF29: 0 | CG29: =IF($B29>0,VLOOKUP($B29,VSP_Fodermiddeldatabase!$A$3:$CP$489,8,),CHAR(32)) -> 70 | CH29: =IF($B29>0,VLOOKUP($B29,VSP_Fodermiddeldatabase!$A$3:$CP$489,9,),CHAR(32)) -> 70 | CJ29: -11.26829268 | CK29: -10.8 | CM29: 0 | CN29: 100 | CO29: 0 | CP29: 0 | CQ29: 70 | CR29: 70 | CS29: 30 | CT29: 0 | CU29: 0 | CV29: 0 | CW29: 0 | CX29: -11.38211382 | CY29: 0 | CZ29: -10.90909091 | DA29: 0 | DB29: 0 | DC29: 100 | DD29: 0 | DE29: 0 | DG29: 0 | DH29: 0 | DI29: 0 | DM29: =IF($B29>0,VLOOKUP($B29,VSP_Fodermiddeldatabase!$A$3:$CP$489,18,),CHAR(32)) -> 0 | DN29: =IF($B29>0,VLOOKUP($B29,VSP_Fodermiddeldatabase!$A$3:$CP$489,39,),CHAR(32)) -> 0 | DO29: =IF($B29>0,VLOOKUP($B29,VSP_Fodermiddeldatabase!$A$3:$CP$489,40,),CHAR(32)) -> 0 | DP29: =IF($B29>0,VLOOKUP($B29,VSP_Fodermiddeldatabase!$A$3:$CP$489,41,),CHAR(32)) -> 0 | DQ29: =IF($B29>0,VLOOKUP($B29,VSP_Fodermiddeldatabase!$A$3:$CP$489,42,),CHAR(32)) -> 0 | DR29: =IF($B29>0,VLOOKUP($B29,VSP_Fodermiddeldatabase!$A$3:$CP$489,43,),CHAR(32)) -> 0 | DS29: =IF($B29>0,VLOOKUP($B29,VSP_Fodermiddeldatabase!$A$3:$CP$489,44,),CHAR(32)) -> 0 | DT29: =IF($B29>0,VLOOKUP($B29,VSP_Fodermiddeldatabase!$A$3:$CP$489,45,),CHAR(32)) -> 0 | DU29: =IF($B29>0,VLOOKUP($B29,VSP_Fodermiddeldatabase!$A$3:$CP$489,46,),CHAR(32)) -> 0 | DV29: =IF($B29>0,VLOOKUP($B29,VSP_Fodermiddeldatabase!$A$3:$CP$489,47,),CHAR(32)) -> 0 | DW29: =IF($B29>0,VLOOKUP($B29,VSP_Fodermiddeldatabase!$A$3:$CP$489,48,),CHAR(32)) -> 0 | DX29: =IF($B29>0,VLOOKUP($B29,VSP_Fodermiddeldatabase!$A$3:$CP$489,49,),CHAR(32)) -> 0 | DY29: =IF($B29>0,VLOOKUP($B29,VSP_Fodermiddeldatabase!$A$3:$CP$489,51,),CHAR(32)) -> 1 | DZ29: =IF($B29>0,VLOOKUP($B29,VSP_Fodermiddeldatabase!$A$3:$CP$489,52,),CHAR(32)) -> 1 | EA29: =IF($B29>0,VLOOKUP($B29,VSP_Fodermiddeldatabase!$A$3:$CP$489,53,),CHAR(32)) -> 1 | EB29: =IF($B29>0,VLOOKUP($B29,VSP_Fodermiddeldatabase!$A$3:$CP$489,54,),CHAR(32)) -> 1 | EC29: =IF($B29>0,VLOOKUP($B29,VSP_Fodermiddeldatabase!$A$3:$CP$489,55,),CHAR(32)) -> 1 | ED29: =IF($B29>0,VLOOKUP($B29,VSP_Fodermiddeldatabase!$A$3:$CP$489,56,),CHAR(32)) -> 1 | EE29: =IF($B29>0,VLOOKUP($B29,VSP_Fodermiddeldatabase!$A$3:$CP$489,57,),CHAR(32)) -> 1 | EF29: =IF($B29>0,VLOOKUP($B29,VSP_Fodermiddeldatabase!$A$3:$CP$489,58,),CHAR(32)) -> 1 | EG29: =IF($B29>0,VLOOKUP($B29,VSP_Fodermiddeldatabase!$A$3:$CP$489,59,),CHAR(32)) -> 1 | EH29: =IF($B29>0,VLOOKUP($B29,VSP_Fodermiddeldatabase!$A$3:$CP$489,60,),CHAR(32)) -> 1 | EI29: =IF($B29>0,VLOOKUP($B29,VSP_Fodermiddeldatabase!$A$3:$CP$489,61,),CHAR(32)) -> 1 | EJ29: =IF($B29>0,VLOOKUP($B29,VSP_Fodermiddeldatabase!$A$3:$CP$489,2,),CHAR(32)) -> 465 | EK29: =IF($B29>0,VLOOKUP($B29,VSP_Fodermiddeldatabase!$A$3:$CP$489,3,),CHAR(32)) -> 0 | EL29: =IF($B29>0,VLOOKUP($B29,VSP_Fodermiddeldatabase!$A$3:$CP$489,63,),CHAR(32)) -> 0 | EM29: =IF($B29>0,VLOOKUP($B29,VSP_Fodermiddeldatabase!$A$3:$CP$489,64,),CHAR(32)) -> 0 | EN29: =IF($B29>0,VLOOKUP($B29,VSP_Fodermiddeldatabase!$A$3:$CP$489,65,),CHAR(32)) -> 100 | EO29: =IF($B29>0,VLOOKUP($B29,VSP_Fodermiddeldatabase!$A$3:$CP$489,66,),CHAR(32)) -> 0 | EP29: =IF($B29>0,VLOOKUP($B29,VSP_Fodermiddeldatabase!$A$3:$CP$489,68,),CHAR(32)) -> 0 | EQ29: =IF($B29>0,VLOOKUP($B29,VSP_Fodermiddeldatabase!$A$3:$CP$489,69,),CHAR(32)) -> 0 | ER29: =IF($B29>0,VLOOKUP($B29,VSP_Fodermiddeldatabase!$A$3:$CP$489,70,),CHAR(32)) -> -0.1138211382 | ES29: =IF($B29>0,VLOOKUP($B29,VSP_Fodermiddeldatabase!$A$3:$CP$489,71,),CHAR(32)) -> -0.1090909091 | ET29: =IF($B29>0,VLOOKUP($B29,VSP_Fodermiddeldatabase!$A$3:$CP$489,19,),CHAR(32)) -> 0 | EU29: =IF($B29>0,VLOOKUP($B29,VSP_Fodermiddeldatabase!$A$3:$CP$489,20,),CHAR(32)) -> 0 | EV29: =IF($B29>0,VLOOKUP($B29,VSP_Fodermiddeldatabase!$A$3:$CP$489,21,),CHAR(32)) -> 0 | EW29: =IF($B29>0,VLOOKUP($B29,VSP_Fodermiddeldatabase!$A$3:$CP$489,22,),CHAR(32)) -> 0 | EX29: =IF($B29>0,VLOOKUP($B29,VSP_Fodermiddeldatabase!$A$3:$CP$489,23,),CHAR(32)) -> 0 | EY29: =IF($B29>0,VLOOKUP($B29,VSP_Fodermiddeldatabase!$A$3:$CP$489,25,),CHAR(32)) -> 0 | EZ29: =IF($B29>0,VLOOKUP($B29,VSP_Fodermiddeldatabase!$A$3:$CP$489,26,),CHAR(32)) -> 0 | FA29: =IF($B29>0,VLOOKUP($B29,VSP_Fodermiddeldatabase!$A$3:$CP$489,27,),CHAR(32)) -> 383.83838 | FB29: =IF($B29>0,VLOOKUP($B29,VSP_Fodermiddeldatabase!$A$3:$CP$489,28,),CHAR(32)) -> 626.26263 | FC29: =IF($B29>0,VLOOKUP($B29,VSP_Fodermiddeldatabase!$A$3:$CP$489,29,),CHAR(32)) -> 0 | FD29: =IF($B29>0,VLOOKUP($B29,VSP_Fodermiddeldatabase!$A$3:$CP$489,30,),CHAR(32)) -> 0 | FE29: =IF($B29>0,VLOOKUP($B29,VSP_Fodermiddeldatabase!$A$3:$CP$489,31,),CHAR(32)) -> 0 | FF29: =IF($B29>0,VLOOKUP($B29,VSP_Fodermiddeldatabase!$A$3:$CP$489,32,),CHAR(32)) -> 0 | FG29: =IF($B29>0,VLOOKUP($B29,VSP_Fodermiddeldatabase!$A$3:$CP$489,33,),CHAR(32)) -> 0 | FH29: =IF($B29>0,VLOOKUP($B29,VSP_Fodermiddeldatabase!$A$3:$CP$489,34,),CHAR(32)) -> 0 | FI29: =IF($B29>0,VLOOKUP($B29,VSP_Fodermiddeldatabase!$A$3:$CP$489,35,),CHAR(32)) -> 0 | FJ29: =IF($B29>0,VLOOKUP($B29,VSP_Fodermiddeldatabase!$A$3:$CP$489,36,),CHAR(32)) -> 0 | FK29: =IF($B29>0,VLOOKUP($B29,VSP_Fodermiddeldatabase!$A$3:$CP$489,37,),CHAR(32)) -> 0 | FM29: =IF($B29>0,VLOOKUP($B29,VSP_Fodermiddeldatabase!$A$3:$CP$489,74,),CHAR(32)) -> 0 | FN29: =IF($B29>0,VLOOKUP($B29,VSP_Fodermiddeldatabase!$A$3:$CP$489,75,),CHAR(32)) -> 0 | FO29: =IF($B29>0,VLOOKUP($B29,VSP_Fodermiddeldatabase!$A$3:$CP$489,76,),CHAR(32)) ->  | FP29: =IF($B29>0,VLOOKUP($B29,VSP_Fodermiddeldatabase!$A$3:$CP$489,77,),CHAR(32)) ->  | FQ29: =IF($B29>0,VLOOKUP($B29,VSP_Fodermiddeldatabase!$A$3:$CP$489,78,),CHAR(32)) ->  | FR29: =IF($B29>0,VLOOKUP($B29,VSP_Fodermiddeldatabase!$A$3:$CP$489,79,),CHAR(32)) ->  | FS29: =IF($B29>0,VLOOKUP($B29,VSP_Fodermiddeldatabase!$A$3:$CP$489,1,),CHAR(32)) -> 46500 | FT29: =IF($B29>0,VLOOKUP($B29,VSP_Fodermiddeldatabase!$A$3:$CP$489,5,),CHAR(32)) -> 2010-05-12 | FU29: NATRIUMCLORID | FV29: =IF($A29<>"",100-VLOOKUP($B29,VSP_Fodermiddeldatabase!$A$3:$CP$489,12,)) -> 1 | FW29: =IF($A29<>"",VLOOKUP($B29,VSP_Fodermiddeldatabase!$A$3:$CP$489,13,)) -> 0 | FX29: =IF($A29<>"",VLOOKUP($B29,VSP_Fodermiddeldatabase!$A$3:$CP$489,14,)) -> 0 | FY29: =IF($A29<>"",VLOOKUP($B29,VSP_Fodermiddeldatabase!$A$3:$CP$489,15,)) -> 99 | FZ29: 100 | GA29: 0 | GB29: 0 | GC29: =IF($A29<>"",VLOOKUP($B29,VSP_Fodermiddeldatabase!$A$3:$CP$489,8,)) -> 70 | GF29: =IF($A29<>"",VLOOKUP($B29,VSP_Fodermiddeldatabase!$A$3:$CP$489,9,)) -> 70 | GG29: 70 | GH29: -11.26829268 | GI29: -10.8 | GJ29: =IF($A29<>"",VLOOKUP($B29,VSP_Fodermiddeldatabase!$A$3:$CP$489,11,)) -> 1 | GK29: -11.26829268 | GL29: -10.8 | GN29: -11.38211382 | GO29: -10.90909091 | GP29: 30 | GQ29: 0 | GR29: 0 | GS29: 0 | GT29: 0 | GU29: -11.38211382 | GV29: -10.90909091
A30: Std. 0,2 % Vitamin- og mineralforblanding, SL.SVIN | B30: 45500 | C30: 0.19 | D30: 1500 | E30: 0.19 | F30: 0.19 | G30: 1500 | H30: -0.08841813782 | I30: -0.08841813782 | J30: -0.08243849722 | K30: 990 | L30: 1 | M30: 1 | N30: 967 | O30: 0.4 | P30: =IF(A30<>"",IF($B30>0,VLOOKUP($B30,VSP_Fodermiddeldatabase!$A$3:$CP$489,10,),CHAR(32)),"") -> 90 | Q30: =IF(A30<>"",IF($B30>0,VLOOKUP($B30,VSP_Fodermiddeldatabase!$A$3:$CP$489,11,),CHAR(32)),"") -> 1 | R30: 90 | S30: 0.7 | T30: 0 | U30: 0 | V30: 0 | W30: 0 | X30: 0 | Y30: 0 | Z30: 0 | AA30: 0 | AB30: 0 | AC30: 0 | AD30: 0 | AE30: 0 | AF30: 0 | AG30: 0 | AH30: 0 | AI30: 0 | AJ30: 0 | AK30: 0 | AL30: 0 | AM30: 0 | AN30: 0 | BX30: -0.08841813782 | BY30: -0.08243849722 | BZ30: =IF($B30>0,VLOOKUP($B30,VSP_Fodermiddeldatabase!$A$3:$CP$489,12,),CHAR(32)) -> 99 | CA30: 1 | CB30: =IF($B30>0,VLOOKUP($B30,VSP_Fodermiddeldatabase!$A$3:$CP$489,13,),CHAR(32)) -> 0.1 | CC30: =IF($B30>0,VLOOKUP($B30,VSP_Fodermiddeldatabase!$A$3:$CP$489,14,),CHAR(32)) -> 0.1 | CD30: =IF($B30>0,VLOOKUP($B30,VSP_Fodermiddeldatabase!$A$3:$CP$489,15,),CHAR(32)) -> 96.7 | CE30: =IF($B30>0,VLOOKUP($B30,VSP_Fodermiddeldatabase!$A$3:$CP$489,16,),CHAR(32)) -> 0.04 | CF30: 23 | CG30: =IF($B30>0,VLOOKUP($B30,VSP_Fodermiddeldatabase!$A$3:$CP$489,8,),CHAR(32)) -> 70 | CH30: =IF($B30>0,VLOOKUP($B30,VSP_Fodermiddeldatabase!$A$3:$CP$489,9,),CHAR(32)) -> 60 | CJ30: -8.841813782 | CK30: -8.243849722 | CM30: 0 | CN30: 97.67676768 | CO30: 0.101010101 | CP30: 0.101010101 | CQ30: 70 | CR30: 60 | CS30: 30.33896104 | CT30: 2.323232323 | CU30: 1.104473304 | CV30: 0.3318903319 | CW30: 0.4573448773 | CX30: -8.931125033 | CY30: 0 | CZ30: -8.327120931 | DA30: 0 | DB30: 10 | DC30: 85.71428571 | DD30: 16.1 | DE30: 13.8 | DG30: 0.0437 | DH30: 0.03059 | DI30: 0.02622 | DM30: =IF($B30>0,VLOOKUP($B30,VSP_Fodermiddeldatabase!$A$3:$CP$489,18,),CHAR(32)) -> 70 | DN30: =IF($B30>0,VLOOKUP($B30,VSP_Fodermiddeldatabase!$A$3:$CP$489,39,),CHAR(32)) -> 0 | DO30: =IF($B30>0,VLOOKUP($B30,VSP_Fodermiddeldatabase!$A$3:$CP$489,40,),CHAR(32)) -> 0 | DP30: =IF($B30>0,VLOOKUP($B30,VSP_Fodermiddeldatabase!$A$3:$CP$489,41,),CHAR(32)) -> 0 | DQ30: =IF($B30>0,VLOOKUP($B30,VSP_Fodermiddeldatabase!$A$3:$CP$489,42,),CHAR(32)) -> 0 | DR30: =IF($B30>0,VLOOKUP($B30,VSP_Fodermiddeldatabase!$A$3:$CP$489,43,),CHAR(32)) -> 0 | DS30: =IF($B30>0,VLOOKUP($B30,VSP_Fodermiddeldatabase!$A$3:$CP$489,44,),CHAR(32)) -> 0 | DT30: =IF($B30>0,VLOOKUP($B30,VSP_Fodermiddeldatabase!$A$3:$CP$489,45,),CHAR(32)) -> 0 | DU30: =IF($B30>0,VLOOKUP($B30,VSP_Fodermiddeldatabase!$A$3:$CP$489,46,),CHAR(32)) -> 0 | DV30: =IF($B30>0,VLOOKUP($B30,VSP_Fodermiddeldatabase!$A$3:$CP$489,47,),CHAR(32)) -> 0 | DW30: =IF($B30>0,VLOOKUP($B30,VSP_Fodermiddeldatabase!$A$3:$CP$489,48,),CHAR(32)) -> 0 | DX30: =IF($B30>0,VLOOKUP($B30,VSP_Fodermiddeldatabase!$A$3:$CP$489,49,),CHAR(32)) -> 0 | DY30: =IF($B30>0,VLOOKUP($B30,VSP_Fodermiddeldatabase!$A$3:$CP$489,51,),CHAR(32)) -> 1 | DZ30: =IF($B30>0,VLOOKUP($B30,VSP_Fodermiddeldatabase!$A$3:$CP$489,52,),CHAR(32)) -> 1 | EA30: =IF($B30>0,VLOOKUP($B30,VSP_Fodermiddeldatabase!$A$3:$CP$489,53,),CHAR(32)) -> 0 | EB30: =IF($B30>0,VLOOKUP($B30,VSP_Fodermiddeldatabase!$A$3:$CP$489,54,),CHAR(32)) -> 0 | EC30: =IF($B30>0,VLOOKUP($B30,VSP_Fodermiddeldatabase!$A$3:$CP$489,55,),CHAR(32)) -> 0 | ED30: =IF($B30>0,VLOOKUP($B30,VSP_Fodermiddeldatabase!$A$3:$CP$489,56,),CHAR(32)) -> 0 | EE30: =IF($B30>0,VLOOKUP($B30,VSP_Fodermiddeldatabase!$A$3:$CP$489,57,),CHAR(32)) -> 0 | EF30: =IF($B30>0,VLOOKUP($B30,VSP_Fodermiddeldatabase!$A$3:$CP$489,58,),CHAR(32)) -> 0 | EG30: =IF($B30>0,VLOOKUP($B30,VSP_Fodermiddeldatabase!$A$3:$CP$489,59,),CHAR(32)) -> 0 | EH30: =IF($B30>0,VLOOKUP($B30,VSP_Fodermiddeldatabase!$A$3:$CP$489,60,),CHAR(32)) -> 0 | EI30: =IF($B30>0,VLOOKUP($B30,VSP_Fodermiddeldatabase!$A$3:$CP$489,61,),CHAR(32)) -> 0 | EJ30: =IF($B30>0,VLOOKUP($B30,VSP_Fodermiddeldatabase!$A$3:$CP$489,2,),CHAR(32)) -> 455 | EK30: =IF($B30>0,VLOOKUP($B30,VSP_Fodermiddeldatabase!$A$3:$CP$489,3,),CHAR(32)) -> 0 | EL30: =IF($B30>0,VLOOKUP($B30,VSP_Fodermiddeldatabase!$A$3:$CP$489,63,),CHAR(32)) -> 0.101010101 | EM30: =IF($B30>0,VLOOKUP($B30,VSP_Fodermiddeldatabase!$A$3:$CP$489,64,),CHAR(32)) -> 0.101010101 | EN30: =IF($B30>0,VLOOKUP($B30,VSP_Fodermiddeldatabase!$A$3:$CP$489,65,),CHAR(32)) -> 97.67676768 | EO30: =IF($B30>0,VLOOKUP($B30,VSP_Fodermiddeldatabase!$A$3:$CP$489,66,),CHAR(32)) -> 0.0404040404 | EP30: =IF($B30>0,VLOOKUP($B30,VSP_Fodermiddeldatabase!$A$3:$CP$489,68,),CHAR(32)) -> 0 | EQ30: =IF($B30>0,VLOOKUP($B30,VSP_Fodermiddeldatabase!$A$3:$CP$489,69,),CHAR(32)) -> 0 | ER30: =IF($B30>0,VLOOKUP($B30,VSP_Fodermiddeldatabase!$A$3:$CP$489,70,),CHAR(32)) -> -0.08931111346 | ES30: =IF($B30>0,VLOOKUP($B30,VSP_Fodermiddeldatabase!$A$3:$CP$489,71,),CHAR(32)) -> -0.08327107813 | ET30: =IF($B30>0,VLOOKUP($B30,VSP_Fodermiddeldatabase!$A$3:$CP$489,19,),CHAR(32)) -> 63 | EU30: =IF($B30>0,VLOOKUP($B30,VSP_Fodermiddeldatabase!$A$3:$CP$489,20,),CHAR(32)) -> 63 | EV30: =IF($B30>0,VLOOKUP($B30,VSP_Fodermiddeldatabase!$A$3:$CP$489,21,),CHAR(32)) -> 63 | EW30: =IF($B30>0,VLOOKUP($B30,VSP_Fodermiddeldatabase!$A$3:$CP$489,22,),CHAR(32)) -> 63 | EX30: =IF($B30>0,VLOOKUP($B30,VSP_Fodermiddeldatabase!$A$3:$CP$489,23,),CHAR(32)) -> 63 | EY30: =IF($B30>0,VLOOKUP($B30,VSP_Fodermiddeldatabase!$A$3:$CP$489,25,),CHAR(32)) -> 0 | EZ30: =IF($B30>0,VLOOKUP($B30,VSP_Fodermiddeldatabase!$A$3:$CP$489,26,),CHAR(32)) -> 0 | FA30: =IF($B30>0,VLOOKUP($B30,VSP_Fodermiddeldatabase!$A$3:$CP$489,27,),CHAR(32)) -> 0 | FB30: =IF($B30>0,VLOOKUP($B30,VSP_Fodermiddeldatabase!$A$3:$CP$489,28,),CHAR(32)) -> 0 | FC30: =IF($B30>0,VLOOKUP($B30,VSP_Fodermiddeldatabase!$A$3:$CP$489,29,),CHAR(32)) -> 0 | FD30: =IF($B30>0,VLOOKUP($B30,VSP_Fodermiddeldatabase!$A$3:$CP$489,30,),CHAR(32)) -> 0 | FE30: =IF($B30>0,VLOOKUP($B30,VSP_Fodermiddeldatabase!$A$3:$CP$489,31,),CHAR(32)) -> 0 | FF30: =IF($B30>0,VLOOKUP($B30,VSP_Fodermiddeldatabase!$A$3:$CP$489,32,),CHAR(32)) -> 16666.66667 | FG30: =IF($B30>0,VLOOKUP($B30,VSP_Fodermiddeldatabase!$A$3:$CP$489,33,),CHAR(32)) -> 11111.11111 | FH30: =IF($B30>0,VLOOKUP($B30,VSP_Fodermiddeldatabase!$A$3:$CP$489,34,),CHAR(32)) -> 22222.22222 | FI30: =IF($B30>0,VLOOKUP($B30,VSP_Fodermiddeldatabase!$A$3:$CP$489,35,),CHAR(32)) -> 55555.55556 | FJ30: =IF($B30>0,VLOOKUP($B30,VSP_Fodermiddeldatabase!$A$3:$CP$489,36,),CHAR(32)) -> 111.1111111 | FK30: =IF($B30>0,VLOOKUP($B30,VSP_Fodermiddeldatabase!$A$3:$CP$489,37,),CHAR(32)) -> 111.1111111 | FM30: =IF($B30>0,VLOOKUP($B30,VSP_Fodermiddeldatabase!$A$3:$CP$489,74,),CHAR(32)) -> 11.04473304 | FN30: =IF($B30>0,VLOOKUP($B30,VSP_Fodermiddeldatabase!$A$3:$CP$489,75,),CHAR(32)) -> 3.318903319 | FO30: =IF($B30>0,VLOOKUP($B30,VSP_Fodermiddeldatabase!$A$3:$CP$489,76,),CHAR(32)) ->  | FP30: =IF($B30>0,VLOOKUP($B30,VSP_Fodermiddeldatabase!$A$3:$CP$489,77,),CHAR(32)) ->  | FQ30: =IF($B30>0,VLOOKUP($B30,VSP_Fodermiddeldatabase!$A$3:$CP$489,78,),CHAR(32)) -> 0 | FR30: =IF($B30>0,VLOOKUP($B30,VSP_Fodermiddeldatabase!$A$3:$CP$489,79,),CHAR(32)) -> 0 | FS30: =IF($B30>0,VLOOKUP($B30,VSP_Fodermiddeldatabase!$A$3:$CP$489,1,),CHAR(32)) -> 45500 | FT30: =IF($B30>0,VLOOKUP($B30,VSP_Fodermiddeldatabase!$A$3:$CP$489,5,),CHAR(32)) -> 2014-06-24 | FU30: Std. 0,2 % Vitamin- og mineralforblanding, SL.SVIN | FV30: =IF($A30<>"",100-VLOOKUP($B30,VSP_Fodermiddeldatabase!$A$3:$CP$489,12,)) -> 1 | FW30: =IF($A30<>"",VLOOKUP($B30,VSP_Fodermiddeldatabase!$A$3:$CP$489,13,)) -> 0.1 | FX30: =IF($A30<>"",VLOOKUP($B30,VSP_Fodermiddeldatabase!$A$3:$CP$489,14,)) -> 0.1 | FY30: =IF($A30<>"",VLOOKUP($B30,VSP_Fodermiddeldatabase!$A$3:$CP$489,15,)) -> 96.7 | FZ30: 97.67676768 | GA30: 0.101010101 | GB30: 0.101010101 | GC30: =IF($A30<>"",VLOOKUP($B30,VSP_Fodermiddeldatabase!$A$3:$CP$489,8,)) -> 70 | GF30: =IF($A30<>"",VLOOKUP($B30,VSP_Fodermiddeldatabase!$A$3:$CP$489,9,)) -> 60 | GG30: 60 | GH30: -8.841813782 | GI30: -8.243849722 | GJ30: =IF($A30<>"",VLOOKUP($B30,VSP_Fodermiddeldatabase!$A$3:$CP$489,11,)) -> 1 | GK30: -8.841813782 | GL30: -8.243849722 | GN30: -8.931125033 | GO30: -8.327120931 | GP30: 30.33896104 | GQ30: 2.323232323 | GR30: 1.104473304 | GS30: 0.3318903319 | GT30: 0.4573448773 | GU30: -8.931125033 | GV30: -8.327120931
A31: Ronozyme HiPhos GT tør, Std. dosis: 500 FYT, dog min. 1000 FYT til søer | B31: 95400 | C31: 0.06 | D31: 4000 | E31: 0.06 | F31: 0.06 | G31: 4000 | H31: 0.4345688347 | I31: 0.4345688347 | J31: 0.4165088312 | K31: 995 | L31: 14 | M31: 74 | N31: 771 | O31: 0 | P31: =IF(A31<>"",IF($B31>0,VLOOKUP($B31,VSP_Fodermiddeldatabase!$A$3:$CP$489,10,),CHAR(32)),"") -> 100 | Q31: =IF(A31<>"",IF($B31>0,VLOOKUP($B31,VSP_Fodermiddeldatabase!$A$3:$CP$489,11,),CHAR(32)),"") -> 1 | R31: 90 | S31: 0 | T31: 0 | U31: 0 | V31: 0 | W31: 0 | X31: 0 | Y31: 0 | Z31: 0 | AA31: 0 | AB31: 0 | AC31: 0 | AD31: 0 | AE31: 0 | AF31: 0 | AG31: 0 | AH31: 0 | AI31: 0 | AJ31: 0 | AK31: 0 | AL31: 0 | AM31: 0 | AN31: 0 | BX31: 0.4345688347 | BY31: 0.4165088312 | BZ31: =IF($B31>0,VLOOKUP($B31,VSP_Fodermiddeldatabase!$A$3:$CP$489,12,),CHAR(32)) -> 99.5 | CA31: 0.5 | CB31: =IF($B31>0,VLOOKUP($B31,VSP_Fodermiddeldatabase!$A$3:$CP$489,13,),CHAR(32)) -> 1.4 | CC31: =IF($B31>0,VLOOKUP($B31,VSP_Fodermiddeldatabase!$A$3:$CP$489,14,),CHAR(32)) -> 7.4 | CD31: =IF($B31>0,VLOOKUP($B31,VSP_Fodermiddeldatabase!$A$3:$CP$489,15,),CHAR(32)) -> 77.1 | CE31: =IF($B31>0,VLOOKUP($B31,VSP_Fodermiddeldatabase!$A$3:$CP$489,16,),CHAR(32)) -> 0 | CF31: 224 | CG31: =IF($B31>0,VLOOKUP($B31,VSP_Fodermiddeldatabase!$A$3:$CP$489,8,),CHAR(32)) -> 100 | CH31: =IF($B31>0,VLOOKUP($B31,VSP_Fodermiddeldatabase!$A$3:$CP$489,9,),CHAR(32)) -> 100 | CJ31: 43.45688347 | CK31: 41.65088312 | CM31: 0 | CN31: =+CD31*100/(100-$CA31) -> 77.48743719 | CO31: =+CB31*100/(100-$CA31) -> 1.407035176 | CP31: =+CC31*100/(100-$CA31) -> 7.43718593 | CQ31: 100 | CR31: 100 | CS31: 23.76683417 | CT31: 22.51256281 | CU31: 14.01809045 | CV31: 0 | CW31: 0 | CX31: 43.67525977 | CY31: 0 | CZ31: 41.86018404 | DA31: 0 | DB31: 0 | DC31: 100 | DD31: 224 | DE31: 224 | DG31: =IF($C31>0,+CF31*$C31/100,CHAR(32)) -> 0.1344 | DH31: =IF($C31>0,+DD31*$C31/100,CHAR(32)) -> 0.1344 | DI31: =IF($C31>0,+DE31*$C31/100,CHAR(32)) -> 0.1344 | DM31: =IF($B31>0,VLOOKUP($B31,VSP_Fodermiddeldatabase!$A$3:$CP$489,18,),CHAR(32)) -> 0 | DN31: =IF($B31>0,VLOOKUP($B31,VSP_Fodermiddeldatabase!$A$3:$CP$489,39,),CHAR(32)) -> 0 | DO31: =IF($B31>0,VLOOKUP($B31,VSP_Fodermiddeldatabase!$A$3:$CP$489,40,),CHAR(32)) -> 0 | DP31: =IF($B31>0,VLOOKUP($B31,VSP_Fodermiddeldatabase!$A$3:$CP$489,41,),CHAR(32)) -> 0 | DQ31: =IF($B31>0,VLOOKUP($B31,VSP_Fodermiddeldatabase!$A$3:$CP$489,42,),CHAR(32)) -> 0 | DR31: =IF($B31>0,VLOOKUP($B31,VSP_Fodermiddeldatabase!$A$3:$CP$489,43,),CHAR(32)) -> 0 | DS31: =IF($B31>0,VLOOKUP($B31,VSP_Fodermiddeldatabase!$A$3:$CP$489,44,),CHAR(32)) -> 0 | DT31: =IF($B31>0,VLOOKUP($B31,VSP_Fodermiddeldatabase!$A$3:$CP$489,45,),CHAR(32)) -> 0 | DU31: =IF($B31>0,VLOOKUP($B31,VSP_Fodermiddeldatabase!$A$3:$CP$489,46,),CHAR(32)) -> 0 | DV31: =IF($B31>0,VLOOKUP($B31,VSP_Fodermiddeldatabase!$A$3:$CP$489,47,),CHAR(32)) -> 0 | DW31: =IF($B31>0,VLOOKUP($B31,VSP_Fodermiddeldatabase!$A$3:$CP$489,48,),CHAR(32)) -> 0 | DX31: =IF($B31>0,VLOOKUP($B31,VSP_Fodermiddeldatabase!$A$3:$CP$489,49,),CHAR(32)) -> 0 | DY31: =IF($B31>0,VLOOKUP($B31,VSP_Fodermiddeldatabase!$A$3:$CP$489,51,),CHAR(32)) -> 1 | DZ31: =IF($B31>0,VLOOKUP($B31,VSP_Fodermiddeldatabase!$A$3:$CP$489,52,),CHAR(32)) -> 1 | EA31: =IF($B31>0,VLOOKUP($B31,VSP_Fodermiddeldatabase!$A$3:$CP$489,53,),CHAR(32)) -> 1 | EB31: =IF($B31>0,VLOOKUP($B31,VSP_Fodermiddeldatabase!$A$3:$CP$489,54,),CHAR(32)) -> 1 | EC31: =IF($B31>0,VLOOKUP($B31,VSP_Fodermiddeldatabase!$A$3:$CP$489,55,),CHAR(32)) -> 1 | ED31: =IF($B31>0,VLOOKUP($B31,VSP_Fodermiddeldatabase!$A$3:$CP$489,56,),CHAR(32)) -> 1 | EE31: =IF($B31>0,VLOOKUP($B31,VSP_Fodermiddeldatabase!$A$3:$CP$489,57,),CHAR(32)) -> 1 | EF31: =IF($B31>0,VLOOKUP($B31,VSP_Fodermiddeldatabase!$A$3:$CP$489,58,),CHAR(32)) -> 1 | EG31: =IF($B31>0,VLOOKUP($B31,VSP_Fodermiddeldatabase!$A$3:$CP$489,59,),CHAR(32)) -> 1 | EH31: =IF($B31>0,VLOOKUP($B31,VSP_Fodermiddeldatabase!$A$3:$CP$489,60,),CHAR(32)) -> 1 | EI31: =IF($B31>0,VLOOKUP($B31,VSP_Fodermiddeldatabase!$A$3:$CP$489,61,),CHAR(32)) -> 1 | EJ31: =IF($B31>0,VLOOKUP($B31,VSP_Fodermiddeldatabase!$A$3:$CP$489,2,),CHAR(32)) -> 954 | EK31: =IF($B31>0,VLOOKUP($B31,VSP_Fodermiddeldatabase!$A$3:$CP$489,3,),CHAR(32)) -> 0 | EL31: =IF($B31>0,VLOOKUP($B31,VSP_Fodermiddeldatabase!$A$3:$CP$489,63,),CHAR(32)) -> 1.407035176 | EM31: =IF($B31>0,VLOOKUP($B31,VSP_Fodermiddeldatabase!$A$3:$CP$489,64,),CHAR(32)) -> 7.43718593 | EN31: =IF($B31>0,VLOOKUP($B31,VSP_Fodermiddeldatabase!$A$3:$CP$489,65,),CHAR(32)) -> 77.48743719 | EO31: =IF($B31>0,VLOOKUP($B31,VSP_Fodermiddeldatabase!$A$3:$CP$489,66,),CHAR(32)) -> 0 | EP31: =IF($B31>0,VLOOKUP($B31,VSP_Fodermiddeldatabase!$A$3:$CP$489,68,),CHAR(32)) -> 0 | EQ31: =IF($B31>0,VLOOKUP($B31,VSP_Fodermiddeldatabase!$A$3:$CP$489,69,),CHAR(32)) -> 0 | ER31: =IF($B31>0,VLOOKUP($B31,VSP_Fodermiddeldatabase!$A$3:$CP$489,70,),CHAR(32)) -> 0.4367545042 | ES31: =IF($B31>0,VLOOKUP($B31,VSP_Fodermiddeldatabase!$A$3:$CP$489,71,),CHAR(32)) -> 0.4186036677 | ET31: =IF($B31>0,VLOOKUP($B31,VSP_Fodermiddeldatabase!$A$3:$CP$489,19,),CHAR(32)) -> 0 | EU31: =IF($B31>0,VLOOKUP($B31,VSP_Fodermiddeldatabase!$A$3:$CP$489,20,),CHAR(32)) -> 0 | EV31: =IF($B31>0,VLOOKUP($B31,VSP_Fodermiddeldatabase!$A$3:$CP$489,21,),CHAR(32)) -> 0 | EW31: =IF($B31>0,VLOOKUP($B31,VSP_Fodermiddeldatabase!$A$3:$CP$489,22,),CHAR(32)) -> 0 | EX31: =IF($B31>0,VLOOKUP($B31,VSP_Fodermiddeldatabase!$A$3:$CP$489,23,),CHAR(32)) -> 0 | EY31: =IF($B31>0,VLOOKUP($B31,VSP_Fodermiddeldatabase!$A$3:$CP$489,25,),CHAR(32)) -> 0 | EZ31: =IF($B31>0,VLOOKUP($B31,VSP_Fodermiddeldatabase!$A$3:$CP$489,26,),CHAR(32)) -> 0 | FA31: =IF($B31>0,VLOOKUP($B31,VSP_Fodermiddeldatabase!$A$3:$CP$489,27,),CHAR(32)) -> 0 | FB31: =IF($B31>0,VLOOKUP($B31,VSP_Fodermiddeldatabase!$A$3:$CP$489,28,),CHAR(32)) -> 0 | FC31: =IF($B31>0,VLOOKUP($B31,VSP_Fodermiddeldatabase!$A$3:$CP$489,29,),CHAR(32)) -> 0 | FD31: =IF($B31>0,VLOOKUP($B31,VSP_Fodermiddeldatabase!$A$3:$CP$489,30,),CHAR(32)) -> 0 | FE31: =IF($B31>0,VLOOKUP($B31,VSP_Fodermiddeldatabase!$A$3:$CP$489,31,),CHAR(32)) -> 0 | FF31: =IF($B31>0,VLOOKUP($B31,VSP_Fodermiddeldatabase!$A$3:$CP$489,32,),CHAR(32)) -> 0 | FG31: =IF($B31>0,VLOOKUP($B31,VSP_Fodermiddeldatabase!$A$3:$CP$489,33,),CHAR(32)) -> 0 | FH31: =IF($B31>0,VLOOKUP($B31,VSP_Fodermiddeldatabase!$A$3:$CP$489,34,),CHAR(32)) -> 0 | FI31: =IF($B31>0,VLOOKUP($B31,VSP_Fodermiddeldatabase!$A$3:$CP$489,35,),CHAR(32)) -> 0 | FJ31: =IF($B31>0,VLOOKUP($B31,VSP_Fodermiddeldatabase!$A$3:$CP$489,36,),CHAR(32)) -> 0 | FK31: =IF($B31>0,VLOOKUP($B31,VSP_Fodermiddeldatabase!$A$3:$CP$489,37,),CHAR(32)) -> 0 | FM31: =IF($B31>0,VLOOKUP($B31,VSP_Fodermiddeldatabase!$A$3:$CP$489,74,),CHAR(32)) -> 140.1809045 | FN31: =IF($B31>0,VLOOKUP($B31,VSP_Fodermiddeldatabase!$A$3:$CP$489,75,),CHAR(32)) -> 0 | FO31: =IF($B31>0,VLOOKUP($B31,VSP_Fodermiddeldatabase!$A$3:$CP$489,76,),CHAR(32)) ->  | FP31: =IF($B31>0,VLOOKUP($B31,VSP_Fodermiddeldatabase!$A$3:$CP$489,77,),CHAR(32)) ->  | FQ31: =IF($B31>0,VLOOKUP($B31,VSP_Fodermiddeldatabase!$A$3:$CP$489,78,),CHAR(32)) ->  | FR31: =IF($B31>0,VLOOKUP($B31,VSP_Fodermiddeldatabase!$A$3:$CP$489,79,),CHAR(32)) ->  | FS31: =IF($B31>0,VLOOKUP($B31,VSP_Fodermiddeldatabase!$A$3:$CP$489,1,),CHAR(32)) -> 95400 | FT31: =IF($B31>0,VLOOKUP($B31,VSP_Fodermiddeldatabase!$A$3:$CP$489,5,),CHAR(32)) -> 2014-04-24 | FU31: Ronozyme HiPhos GT tør, Std. dosis: 500 FYT, dog min. 1000 FYT til søer | FV31: =IF($A31<>"",100-VLOOKUP($B31,VSP_Fodermiddeldatabase!$A$3:$CP$489,12,)) -> 0.5 | FW31: =IF($A31<>"",VLOOKUP($B31,VSP_Fodermiddeldatabase!$A$3:$CP$489,13,)) -> 1.4 | FX31: =IF($A31<>"",VLOOKUP($B31,VSP_Fodermiddeldatabase!$A$3:$CP$489,14,)) -> 7.4 | FY31: =IF($A31<>"",VLOOKUP($B31,VSP_Fodermiddeldatabase!$A$3:$CP$489,15,)) -> 77.1 | FZ31: 77.48743719 | GA31: 1.407035176 | GB31: 7.43718593 | GC31: =IF($A31<>"",VLOOKUP($B31,VSP_Fodermiddeldatabase!$A$3:$CP$489,8,)) -> 100 | GF31: =IF($A31<>"",VLOOKUP($B31,VSP_Fodermiddeldatabase!$A$3:$CP$489,9,)) -> 100 | GG31: 100 | GH31: 43.45688347 | GI31: 41.65088312 | GJ31: =IF($A31<>"",VLOOKUP($B31,VSP_Fodermiddeldatabase!$A$3:$CP$489,11,)) -> 1 | GK31: 43.45688347 | GL31: 41.65088312 | GN31: 43.67525977 | GO31: 41.86018404 | GP31: 23.76683417 | GQ31: 22.51256281 | GR31: 14.01809045 | GS31: 0 | GT31: 0 | GU31: 43.67525977 | GV31: 41.86018404
A32: SUKKERROEMELASSE | B32: 67400 | C32: 0 | D32: 100 | F32: 2.5 | G32: 100 | H32: 0.9697224572 | I32: 0.7757779658 | J32: 0.7481659825 | K32: 740 | L32: 96.2 | M32: 0.74 | N32: 93.98 | O32: 0 | P32: =IF(A32<>"",IF($B32>0,VLOOKUP($B32,VSP_Fodermiddeldatabase!$A$3:$CP$489,10,),CHAR(32)),"") -> 90 | Q32: =IF(A32<>"",IF($B32>0,VLOOKUP($B32,VSP_Fodermiddeldatabase!$A$3:$CP$489,11,),CHAR(32)),"") -> 0.8 | R32: 90 | S32: 48.1 | T32: 0.13949 | U32: 0.07696 | V32: 0.05772 | W32: 0.13468 | X32: 0.31265 | Y32: 0.13949 | Z32: 0.79846 | AA32: 0.75998 | AB32: 0.12025 | AC32: 0.18759 | AD32: 0.8177 | AE32: 1.00529 | AF32: 0.50986 | AG32: 0.148 | AH32: 0.148 | AI32: 0.148 | AJ32: 0.148 | AK32: 0.148 | AL32: 3.996 | AM32: 0.296 | AN32: 3.034 | BX32: 0.7757779658 | BY32: 0.7481659825 | BZ32: =IF($B32>0,VLOOKUP($B32,VSP_Fodermiddeldatabase!$A$3:$CP$489,12,),CHAR(32)) -> 74 | CA32: 26 | CB32: =IF($B32>0,VLOOKUP($B32,VSP_Fodermiddeldatabase!$A$3:$CP$489,13,),CHAR(32)) -> 9.62 | CC32: =IF($B32>0,VLOOKUP($B32,VSP_Fodermiddeldatabase!$A$3:$CP$489,14,),CHAR(32)) -> 0.074 | CD32: =IF($B32>0,VLOOKUP($B32,VSP_Fodermiddeldatabase!$A$3:$CP$489,15,),CHAR(32)) -> 9.398 | CE32: =IF($B32>0,VLOOKUP($B32,VSP_Fodermiddeldatabase!$A$3:$CP$489,16,),CHAR(32)) -> 0 | CF32: 646.02 | CG32: =IF($B32>0,VLOOKUP($B32,VSP_Fodermiddeldatabase!$A$3:$CP$489,8,),CHAR(32)) -> 99.8 | CH32: =IF($B32>0,VLOOKUP($B32,VSP_Fodermiddeldatabase!$A$3:$CP$489,9,),CHAR(32)) -> 97.5 | CJ32: 96.97224572 | CK32: 93.52074782 | CM32: 0 | CN32: 12.7 | CO32: 13 | CP32: 0.1 | CQ32: 99.8 | CR32: 97.5 | CS32: 6.860028571 | CT32: 87.3 | CU32: 72.32997143 | CV32: 2.868428571 | CW32: 2.899856571 | CX32: 131.0435753 | CY32: 0 | CZ32: 126.3793889 | DA32: 0 | DB32: 2.3 | DC32: 97.69539078 | DD32: 644.72796 | DE32: 629.8695 | DM32: =IF($B32>0,VLOOKUP($B32,VSP_Fodermiddeldatabase!$A$3:$CP$489,18,),CHAR(32)) -> 50 | DN32: =IF($B32>0,VLOOKUP($B32,VSP_Fodermiddeldatabase!$A$3:$CP$489,39,),CHAR(32)) -> 0.29 | DO32: =IF($B32>0,VLOOKUP($B32,VSP_Fodermiddeldatabase!$A$3:$CP$489,40,),CHAR(32)) -> 0.16 | DP32: =IF($B32>0,VLOOKUP($B32,VSP_Fodermiddeldatabase!$A$3:$CP$489,41,),CHAR(32)) -> 0.12 | DQ32: =IF($B32>0,VLOOKUP($B32,VSP_Fodermiddeldatabase!$A$3:$CP$489,42,),CHAR(32)) -> 0.65 | DR32: =IF($B32>0,VLOOKUP($B32,VSP_Fodermiddeldatabase!$A$3:$CP$489,43,),CHAR(32)) -> 0.29 | DS32: =IF($B32>0,VLOOKUP($B32,VSP_Fodermiddeldatabase!$A$3:$CP$489,44,),CHAR(32)) -> 1.66 | DT32: =IF($B32>0,VLOOKUP($B32,VSP_Fodermiddeldatabase!$A$3:$CP$489,45,),CHAR(32)) -> 1.58 | DU32: =IF($B32>0,VLOOKUP($B32,VSP_Fodermiddeldatabase!$A$3:$CP$489,46,),CHAR(32)) -> 0.25 | DV32: =IF($B32>0,VLOOKUP($B32,VSP_Fodermiddeldatabase!$A$3:$CP$489,47,),CHAR(32)) -> 0.39 | DW32: =IF($B32>0,VLOOKUP($B32,VSP_Fodermiddeldatabase!$A$3:$CP$489,48,),CHAR(32)) -> 1.7 | DX32: =IF($B32>0,VLOOKUP($B32,VSP_Fodermiddeldatabase!$A$3:$CP$489,49,),CHAR(32)) -> 1.06 | DY32: =IF($B32>0,VLOOKUP($B32,VSP_Fodermiddeldatabase!$A$3:$CP$489,51,),CHAR(32)) -> 1 | DZ32: =IF($B32>0,VLOOKUP($B32,VSP_Fodermiddeldatabase!$A$3:$CP$489,52,),CHAR(32)) -> 1 | EA32: =IF($B32>0,VLOOKUP($B32,VSP_Fodermiddeldatabase!$A$3:$CP$489,53,),CHAR(32)) -> 1 | EB32: =IF($B32>0,VLOOKUP($B32,VSP_Fodermiddeldatabase!$A$3:$CP$489,54,),CHAR(32)) -> 1 | EC32: =IF($B32>0,VLOOKUP($B32,VSP_Fodermiddeldatabase!$A$3:$CP$489,55,),CHAR(32)) -> 1 | ED32: =IF($B32>0,VLOOKUP($B32,VSP_Fodermiddeldatabase!$A$3:$CP$489,56,),CHAR(32)) -> 1 | EE32: =IF($B32>0,VLOOKUP($B32,VSP_Fodermiddeldatabase!$A$3:$CP$489,57,),CHAR(32)) -> 1 | EF32: =IF($B32>0,VLOOKUP($B32,VSP_Fodermiddeldatabase!$A$3:$CP$489,58,),CHAR(32)) -> 1 | EG32: =IF($B32>0,VLOOKUP($B32,VSP_Fodermiddeldatabase!$A$3:$CP$489,59,),CHAR(32)) -> 1 | EH32: =IF($B32>0,VLOOKUP($B32,VSP_Fodermiddeldatabase!$A$3:$CP$489,60,),CHAR(32)) -> 1 | EI32: =IF($B32>0,VLOOKUP($B32,VSP_Fodermiddeldatabase!$A$3:$CP$489,61,),CHAR(32)) -> 1 | EJ32: =IF($B32>0,VLOOKUP($B32,VSP_Fodermiddeldatabase!$A$3:$CP$489,2,),CHAR(32)) -> 674 | EK32: =IF($B32>0,VLOOKUP($B32,VSP_Fodermiddeldatabase!$A$3:$CP$489,3,),CHAR(32)) -> 0 | EL32: =IF($B32>0,VLOOKUP($B32,VSP_Fodermiddeldatabase!$A$3:$CP$489,63,),CHAR(32)) -> 13 | EM32: =IF($B32>0,VLOOKUP($B32,VSP_Fodermiddeldatabase!$A$3:$CP$489,64,),CHAR(32)) -> 0.1 | EN32: =IF($B32>0,VLOOKUP($B32,VSP_Fodermiddeldatabase!$A$3:$CP$489,65,),CHAR(32)) -> 12.7 | EO32: =IF($B32>0,VLOOKUP($B32,VSP_Fodermiddeldatabase!$A$3:$CP$489,66,),CHAR(32)) -> 0 | EP32: =IF($B32>0,VLOOKUP($B32,VSP_Fodermiddeldatabase!$A$3:$CP$489,68,),CHAR(32)) -> 0 | EQ32: =IF($B32>0,VLOOKUP($B32,VSP_Fodermiddeldatabase!$A$3:$CP$489,69,),CHAR(32)) -> 0 | ER32: =IF($B32>0,VLOOKUP($B32,VSP_Fodermiddeldatabase!$A$3:$CP$489,70,),CHAR(32)) -> 1.048362695 | ES32: =IF($B32>0,VLOOKUP($B32,VSP_Fodermiddeldatabase!$A$3:$CP$489,71,),CHAR(32)) -> 1.011048618 | ET32: =IF($B32>0,VLOOKUP($B32,VSP_Fodermiddeldatabase!$A$3:$CP$489,19,),CHAR(32)) -> 50 | EU32: =IF($B32>0,VLOOKUP($B32,VSP_Fodermiddeldatabase!$A$3:$CP$489,20,),CHAR(32)) -> 50 | EV32: =IF($B32>0,VLOOKUP($B32,VSP_Fodermiddeldatabase!$A$3:$CP$489,21,),CHAR(32)) -> 50 | EW32: =IF($B32>0,VLOOKUP($B32,VSP_Fodermiddeldatabase!$A$3:$CP$489,22,),CHAR(32)) -> 50 | EX32: =IF($B32>0,VLOOKUP($B32,VSP_Fodermiddeldatabase!$A$3:$CP$489,23,),CHAR(32)) -> 50 | EY32: =IF($B32>0,VLOOKUP($B32,VSP_Fodermiddeldatabase!$A$3:$CP$489,25,),CHAR(32)) -> 5.4 | EZ32: =IF($B32>0,VLOOKUP($B32,VSP_Fodermiddeldatabase!$A$3:$CP$489,26,),CHAR(32)) -> 0.4 | FA32: =IF($B32>0,VLOOKUP($B32,VSP_Fodermiddeldatabase!$A$3:$CP$489,27,),CHAR(32)) -> 4.1 | FB32: =IF($B32>0,VLOOKUP($B32,VSP_Fodermiddeldatabase!$A$3:$CP$489,28,),CHAR(32)) -> 4.3 | FC32: =IF($B32>0,VLOOKUP($B32,VSP_Fodermiddeldatabase!$A$3:$CP$489,29,),CHAR(32)) -> 28 | FD32: =IF($B32>0,VLOOKUP($B32,VSP_Fodermiddeldatabase!$A$3:$CP$489,30,),CHAR(32)) -> 0.3 | FE32: =IF($B32>0,VLOOKUP($B32,VSP_Fodermiddeldatabase!$A$3:$CP$489,31,),CHAR(32)) -> 0 | FF32: =IF($B32>0,VLOOKUP($B32,VSP_Fodermiddeldatabase!$A$3:$CP$489,32,),CHAR(32)) -> 74 | FG32: =IF($B32>0,VLOOKUP($B32,VSP_Fodermiddeldatabase!$A$3:$CP$489,33,),CHAR(32)) -> 4.1 | FH32: =IF($B32>0,VLOOKUP($B32,VSP_Fodermiddeldatabase!$A$3:$CP$489,34,),CHAR(32)) -> 17 | FI32: =IF($B32>0,VLOOKUP($B32,VSP_Fodermiddeldatabase!$A$3:$CP$489,35,),CHAR(32)) -> 16 | FJ32: =IF($B32>0,VLOOKUP($B32,VSP_Fodermiddeldatabase!$A$3:$CP$489,36,),CHAR(32)) -> 0 | FK32: =IF($B32>0,VLOOKUP($B32,VSP_Fodermiddeldatabase!$A$3:$CP$489,37,),CHAR(32)) -> 0.1 | FM32: =IF($B32>0,VLOOKUP($B32,VSP_Fodermiddeldatabase!$A$3:$CP$489,74,),CHAR(32)) -> 723.2997143 | FN32: =IF($B32>0,VLOOKUP($B32,VSP_Fodermiddeldatabase!$A$3:$CP$489,75,),CHAR(32)) -> 28.68428571 | FO32: =IF($B32>0,VLOOKUP($B32,VSP_Fodermiddeldatabase!$A$3:$CP$489,76,),CHAR(32)) ->  | FP32: =IF($B32>0,VLOOKUP($B32,VSP_Fodermiddeldatabase!$A$3:$CP$489,77,),CHAR(32)) -> 601 | FQ32: =IF($B32>0,VLOOKUP($B32,VSP_Fodermiddeldatabase!$A$3:$CP$489,78,),CHAR(32)) -> 0 | FR32: =IF($B32>0,VLOOKUP($B32,VSP_Fodermiddeldatabase!$A$3:$CP$489,79,),CHAR(32)) -> 0 | FS32: =IF($B32>0,VLOOKUP($B32,VSP_Fodermiddeldatabase!$A$3:$CP$489,1,),CHAR(32)) -> 67400 | FT32: =IF($B32>0,VLOOKUP($B32,VSP_Fodermiddeldatabase!$A$3:$CP$489,5,),CHAR(32)) -> 2010-05-12 | FU32: SUKKERROEMELASSE | FV32: =IF($A32<>"",100-VLOOKUP($B32,VSP_Fodermiddeldatabase!$A$3:$CP$489,12,)) -> 26 | FW32: =IF($A32<>"",VLOOKUP($B32,VSP_Fodermiddeldatabase!$A$3:$CP$489,13,)) -> 9.62 | FX32: =IF($A32<>"",VLOOKUP($B32,VSP_Fodermiddeldatabase!$A$3:$CP$489,14,)) -> 0.074 | FY32: =IF($A32<>"",VLOOKUP($B32,VSP_Fodermiddeldatabase!$A$3:$CP$489,15,)) -> 9.398 | FZ32: 12.7 | GA32: 13 | GB32: 0.1 | GC32: =IF($A32<>"",VLOOKUP($B32,VSP_Fodermiddeldatabase!$A$3:$CP$489,8,)) -> 99.8 | GF32: =IF($A32<>"",VLOOKUP($B32,VSP_Fodermiddeldatabase!$A$3:$CP$489,9,)) -> 97.5 | GG32: 97.5 | GH32: 96.97224572 | GI32: 93.52074782 | GJ32: =IF($A32<>"",VLOOKUP($B32,VSP_Fodermiddeldatabase!$A$3:$CP$489,11,)) -> 0.8 | GK32: 77.57779658 | GL32: 74.81659825 | GN32: 131.0435753 | GO32: 126.3793889 | GP32: 6.860028571 | GQ32: 87.3 | GR32: 72.32997143 | GS32: 2.868428571 | GT32: 2.899856571 | GU32: 104.8348602 | GV32: 101.1035112
P33: =IF(A33<>"",IF($B33>0,VLOOKUP($B33,VSP_Fodermiddeldatabase!$A$3:$CP$489,10,),CHAR(32)),"") ->  | Q33: =IF(A33<>"",IF($B33>0,VLOOKUP($B33,VSP_Fodermiddeldatabase!$A$3:$CP$489,11,),CHAR(32)),"") ->  | R33: 90 | BZ33: =IF($B33>0,VLOOKUP($B33,VSP_Fodermiddeldatabase!$A$3:$CP$489,12,),CHAR(32)) ->  | CB33: =IF($B33>0,VLOOKUP($B33,VSP_Fodermiddeldatabase!$A$3:$CP$489,13,),CHAR(32)) ->  | CC33: =IF($B33>0,VLOOKUP($B33,VSP_Fodermiddeldatabase!$A$3:$CP$489,14,),CHAR(32)) ->  | CD33: =IF($B33>0,VLOOKUP($B33,VSP_Fodermiddeldatabase!$A$3:$CP$489,15,),CHAR(32)) ->  | CE33: =IF($B33>0,VLOOKUP($B33,VSP_Fodermiddeldatabase!$A$3:$CP$489,16,),CHAR(32)) ->  | CG33: =IF($B33>0,VLOOKUP($B33,VSP_Fodermiddeldatabase!$A$3:$CP$489,8,),CHAR(32)) ->  | CH33: =IF($B33>0,VLOOKUP($B33,VSP_Fodermiddeldatabase!$A$3:$CP$489,9,),CHAR(32)) ->  | DM33: =IF($B33>0,VLOOKUP($B33,VSP_Fodermiddeldatabase!$A$3:$CP$489,18,),CHAR(32)) ->  | DN33: =IF($B33>0,VLOOKUP($B33,VSP_Fodermiddeldatabase!$A$3:$CP$489,39,),CHAR(32)) ->  | DO33: =IF($B33>0,VLOOKUP($B33,VSP_Fodermiddeldatabase!$A$3:$CP$489,40,),CHAR(32)) ->  | DP33: =IF($B33>0,VLOOKUP($B33,VSP_Fodermiddeldatabase!$A$3:$CP$489,41,),CHAR(32)) ->  | DQ33: =IF($B33>0,VLOOKUP($B33,VSP_Fodermiddeldatabase!$A$3:$CP$489,42,),CHAR(32)) ->  | DR33: =IF($B33>0,VLOOKUP($B33,VSP_Fodermiddeldatabase!$A$3:$CP$489,43,),CHAR(32)) ->  | DS33: =IF($B33>0,VLOOKUP($B33,VSP_Fodermiddeldatabase!$A$3:$CP$489,44,),CHAR(32)) ->  | DT33: =IF($B33>0,VLOOKUP($B33,VSP_Fodermiddeldatabase!$A$3:$CP$489,45,),CHAR(32)) ->  | DU33: =IF($B33>0,VLOOKUP($B33,VSP_Fodermiddeldatabase!$A$3:$CP$489,46,),CHAR(32)) ->  | DV33: =IF($B33>0,VLOOKUP($B33,VSP_Fodermiddeldatabase!$A$3:$CP$489,47,),CHAR(32)) ->  | DW33: =IF($B33>0,VLOOKUP($B33,VSP_Fodermiddeldatabase!$A$3:$CP$489,48,),CHAR(32)) ->  | DX33: =IF($B33>0,VLOOKUP($B33,VSP_Fodermiddeldatabase!$A$3:$CP$489,49,),CHAR(32)) ->  | DY33: =IF($B33>0,VLOOKUP($B33,VSP_Fodermiddeldatabase!$A$3:$CP$489,51,),CHAR(32)) ->  | DZ33: =IF($B33>0,VLOOKUP($B33,VSP_Fodermiddeldatabase!$A$3:$CP$489,52,),CHAR(32)) ->  | EA33: =IF($B33>0,VLOOKUP($B33,VSP_Fodermiddeldatabase!$A$3:$CP$489,53,),CHAR(32)) ->  | EB33: =IF($B33>0,VLOOKUP($B33,VSP_Fodermiddeldatabase!$A$3:$CP$489,54,),CHAR(32)) ->  | EC33: =IF($B33>0,VLOOKUP($B33,VSP_Fodermiddeldatabase!$A$3:$CP$489,55,),CHAR(32)) ->  | ED33: =IF($B33>0,VLOOKUP($B33,VSP_Fodermiddeldatabase!$A$3:$CP$489,56,),CHAR(32)) ->  | EE33: =IF($B33>0,VLOOKUP($B33,VSP_Fodermiddeldatabase!$A$3:$CP$489,57,),CHAR(32)) ->  | EF33: =IF($B33>0,VLOOKUP($B33,VSP_Fodermiddeldatabase!$A$3:$CP$489,58,),CHAR(32)) ->  | EG33: =IF($B33>0,VLOOKUP($B33,VSP_Fodermiddeldatabase!$A$3:$CP$489,59,),CHAR(32)) ->  | EH33: =IF($B33>0,VLOOKUP($B33,VSP_Fodermiddeldatabase!$A$3:$CP$489,60,),CHAR(32)) ->  | EI33: =IF($B33>0,VLOOKUP($B33,VSP_Fodermiddeldatabase!$A$3:$CP$489,61,),CHAR(32)) ->  | EJ33: =IF($B33>0,VLOOKUP($B33,VSP_Fodermiddeldatabase!$A$3:$CP$489,2,),CHAR(32)) ->  | EK33: =IF($B33>0,VLOOKUP($B33,VSP_Fodermiddeldatabase!$A$3:$CP$489,3,),CHAR(32)) ->  | EL33: =IF($B33>0,VLOOKUP($B33,VSP_Fodermiddeldatabase!$A$3:$CP$489,63,),CHAR(32)) ->  | EM33: =IF($B33>0,VLOOKUP($B33,VSP_Fodermiddeldatabase!$A$3:$CP$489,64,),CHAR(32)) ->  | EN33: =IF($B33>0,VLOOKUP($B33,VSP_Fodermiddeldatabase!$A$3:$CP$489,65,),CHAR(32)) ->  | EO33: =IF($B33>0,VLOOKUP($B33,VSP_Fodermiddeldatabase!$A$3:$CP$489,66,),CHAR(32)) ->  | EP33: =IF($B33>0,VLOOKUP($B33,VSP_Fodermiddeldatabase!$A$3:$CP$489,68,),CHAR(32)) ->  | EQ33: =IF($B33>0,VLOOKUP($B33,VSP_Fodermiddeldatabase!$A$3:$CP$489,69,),CHAR(32)) ->  | ER33: =IF($B33>0,VLOOKUP($B33,VSP_Fodermiddeldatabase!$A$3:$CP$489,70,),CHAR(32)) ->  | ES33: =IF($B33>0,VLOOKUP($B33,VSP_Fodermiddeldatabase!$A$3:$CP$489,71,),CHAR(32)) ->  | ET33: =IF($B33>0,VLOOKUP($B33,VSP_Fodermiddeldatabase!$A$3:$CP$489,19,),CHAR(32)) ->  | EU33: =IF($B33>0,VLOOKUP($B33,VSP_Fodermiddeldatabase!$A$3:$CP$489,20,),CHAR(32)) ->  | EV33: =IF($B33>0,VLOOKUP($B33,VSP_Fodermiddeldatabase!$A$3:$CP$489,21,),CHAR(32)) ->  | EW33: =IF($B33>0,VLOOKUP($B33,VSP_Fodermiddeldatabase!$A$3:$CP$489,22,),CHAR(32)) ->  | EX33: =IF($B33>0,VLOOKUP($B33,VSP_Fodermiddeldatabase!$A$3:$CP$489,23,),CHAR(32)) ->  | EY33: =IF($B33>0,VLOOKUP($B33,VSP_Fodermiddeldatabase!$A$3:$CP$489,25,),CHAR(32)) ->  | EZ33: =IF($B33>0,VLOOKUP($B33,VSP_Fodermiddeldatabase!$A$3:$CP$489,26,),CHAR(32)) ->  | FA33: =IF($B33>0,VLOOKUP($B33,VSP_Fodermiddeldatabase!$A$3:$CP$489,27,),CHAR(32)) ->  | FB33: =IF($B33>0,VLOOKUP($B33,VSP_Fodermiddeldatabase!$A$3:$CP$489,28,),CHAR(32)) ->  | FC33: =IF($B33>0,VLOOKUP($B33,VSP_Fodermiddeldatabase!$A$3:$CP$489,29,),CHAR(32)) ->  | FD33: =IF($B33>0,VLOOKUP($B33,VSP_Fodermiddeldatabase!$A$3:$CP$489,30,),CHAR(32)) ->  | FE33: =IF($B33>0,VLOOKUP($B33,VSP_Fodermiddeldatabase!$A$3:$CP$489,31,),CHAR(32)) ->  | FF33: =IF($B33>0,VLOOKUP($B33,VSP_Fodermiddeldatabase!$A$3:$CP$489,32,),CHAR(32)) ->  | FG33: =IF($B33>0,VLOOKUP($B33,VSP_Fodermiddeldatabase!$A$3:$CP$489,33,),CHAR(32)) ->  | FH33: =IF($B33>0,VLOOKUP($B33,VSP_Fodermiddeldatabase!$A$3:$CP$489,34,),CHAR(32)) ->  | FI33: =IF($B33>0,VLOOKUP($B33,VSP_Fodermiddeldatabase!$A$3:$CP$489,35,),CHAR(32)) ->  | FJ33: =IF($B33>0,VLOOKUP($B33,VSP_Fodermiddeldatabase!$A$3:$CP$489,36,),CHAR(32)) ->  | FK33: =IF($B33>0,VLOOKUP($B33,VSP_Fodermiddeldatabase!$A$3:$CP$489,37,),CHAR(32)) ->  | FM33: =IF($B33>0,VLOOKUP($B33,VSP_Fodermiddeldatabase!$A$3:$CP$489,74,),CHAR(32)) ->  | FN33: =IF($B33>0,VLOOKUP($B33,VSP_Fodermiddeldatabase!$A$3:$CP$489,75,),CHAR(32)) ->  | FO33: =IF($B33>0,VLOOKUP($B33,VSP_Fodermiddeldatabase!$A$3:$CP$489,76,),CHAR(32)) ->  | FP33: =IF($B33>0,VLOOKUP($B33,VSP_Fodermiddeldatabase!$A$3:$CP$489,77,),CHAR(32)) ->  | FQ33: =IF($B33>0,VLOOKUP($B33,VSP_Fodermiddeldatabase!$A$3:$CP$489,78,),CHAR(32)) ->  | FR33: =IF($B33>0,VLOOKUP($B33,VSP_Fodermiddeldatabase!$A$3:$CP$489,79,),CHAR(32)) ->  | FS33: =IF($B33>0,VLOOKUP($B33,VSP_Fodermiddeldatabase!$A$3:$CP$489,1,),CHAR(32)) ->  | FT33: =IF($B33>0,VLOOKUP($B33,VSP_Fodermiddeldatabase!$A$3:$CP$489,5,),CHAR(32)) ->  | FV33: =IF($A33<>"",100-VLOOKUP($B33,VSP_Fodermiddeldatabase!$A$3:$CP$489,12,)) -> FALSE | FW33: =IF($A33<>"",VLOOKUP($B33,VSP_Fodermiddeldatabase!$A$3:$CP$489,13,)) -> FALSE | FX33: =IF($A33<>"",VLOOKUP($B33,VSP_Fodermiddeldatabase!$A$3:$CP$489,14,)) -> FALSE | FY33: =IF($A33<>"",VLOOKUP($B33,VSP_Fodermiddeldatabase!$A$3:$CP$489,15,)) -> FALSE | FZ33: 0 | GA33: 0 | GB33: 0 | GC33: =IF($A33<>"",VLOOKUP($B33,VSP_Fodermiddeldatabase!$A$3:$CP$489,8,)) -> FALSE | GF33: =IF($A33<>"",VLOOKUP($B33,VSP_Fodermiddeldatabase!$A$3:$CP$489,9,)) -> FALSE | GG33: FALSE | GH33: -37.9403794 | GI33: -15.32467532 | GJ33: =IF($A33<>"",VLOOKUP($B33,VSP_Fodermiddeldatabase!$A$3:$CP$489,11,)) -> FALSE | GK33: 0 | GL33: 0 | GN33: -37.9403794 | GO33: -15.32467532 | GP33: 100 | GQ33: 100 | GR33: 0 | GS33: 0 | GT33: 18 | GU33: 0 | GV33: 0
P34: =IF(A34<>"",IF($B34>0,VLOOKUP($B34,VSP_Fodermiddeldatabase!$A$3:$CP$489,10,),CHAR(32)),"") ->  | Q34: =IF(A34<>"",IF($B34>0,VLOOKUP($B34,VSP_Fodermiddeldatabase!$A$3:$CP$489,11,),CHAR(32)),"") ->  | R34: 90 | BZ34: =IF($B34>0,VLOOKUP($B34,VSP_Fodermiddeldatabase!$A$3:$CP$489,12,),CHAR(32)) ->  | CB34: =IF($B34>0,VLOOKUP($B34,VSP_Fodermiddeldatabase!$A$3:$CP$489,13,),CHAR(32)) ->  | CC34: =IF($B34>0,VLOOKUP($B34,VSP_Fodermiddeldatabase!$A$3:$CP$489,14,),CHAR(32)) ->  | CD34: =IF($B34>0,VLOOKUP($B34,VSP_Fodermiddeldatabase!$A$3:$CP$489,15,),CHAR(32)) ->  | CE34: =IF($B34>0,VLOOKUP($B34,VSP_Fodermiddeldatabase!$A$3:$CP$489,16,),CHAR(32)) ->  | CG34: =IF($B34>0,VLOOKUP($B34,VSP_Fodermiddeldatabase!$A$3:$CP$489,8,),CHAR(32)) ->  | CH34: =IF($B34>0,VLOOKUP($B34,VSP_Fodermiddeldatabase!$A$3:$CP$489,9,),CHAR(32)) ->  | DM34: =IF($B34>0,VLOOKUP($B34,VSP_Fodermiddeldatabase!$A$3:$CP$489,18,),CHAR(32)) ->  | DN34: =IF($B34>0,VLOOKUP($B34,VSP_Fodermiddeldatabase!$A$3:$CP$489,39,),CHAR(32)) ->  | DO34: =IF($B34>0,VLOOKUP($B34,VSP_Fodermiddeldatabase!$A$3:$CP$489,40,),CHAR(32)) ->  | DP34: =IF($B34>0,VLOOKUP($B34,VSP_Fodermiddeldatabase!$A$3:$CP$489,41,),CHAR(32)) ->  | DQ34: =IF($B34>0,VLOOKUP($B34,VSP_Fodermiddeldatabase!$A$3:$CP$489,42,),CHAR(32)) ->  | DR34: =IF($B34>0,VLOOKUP($B34,VSP_Fodermiddeldatabase!$A$3:$CP$489,43,),CHAR(32)) ->  | DS34: =IF($B34>0,VLOOKUP($B34,VSP_Fodermiddeldatabase!$A$3:$CP$489,44,),CHAR(32)) ->  | DT34: =IF($B34>0,VLOOKUP($B34,VSP_Fodermiddeldatabase!$A$3:$CP$489,45,),CHAR(32)) ->  | DU34: =IF($B34>0,VLOOKUP($B34,VSP_Fodermiddeldatabase!$A$3:$CP$489,46,),CHAR(32)) ->  | DV34: =IF($B34>0,VLOOKUP($B34,VSP_Fodermiddeldatabase!$A$3:$CP$489,47,),CHAR(32)) ->  | DW34: =IF($B34>0,VLOOKUP($B34,VSP_Fodermiddeldatabase!$A$3:$CP$489,48,),CHAR(32)) ->  | DX34: =IF($B34>0,VLOOKUP($B34,VSP_Fodermiddeldatabase!$A$3:$CP$489,49,),CHAR(32)) ->  | DY34: =IF($B34>0,VLOOKUP($B34,VSP_Fodermiddeldatabase!$A$3:$CP$489,51,),CHAR(32)) ->  | DZ34: =IF($B34>0,VLOOKUP($B34,VSP_Fodermiddeldatabase!$A$3:$CP$489,52,),CHAR(32)) ->  | EA34: =IF($B34>0,VLOOKUP($B34,VSP_Fodermiddeldatabase!$A$3:$CP$489,53,),CHAR(32)) ->  | EB34: =IF($B34>0,VLOOKUP($B34,VSP_Fodermiddeldatabase!$A$3:$CP$489,54,),CHAR(32)) ->  | EC34: =IF($B34>0,VLOOKUP($B34,VSP_Fodermiddeldatabase!$A$3:$CP$489,55,),CHAR(32)) ->  | ED34: =IF($B34>0,VLOOKUP($B34,VSP_Fodermiddeldatabase!$A$3:$CP$489,56,),CHAR(32)) ->  | EE34: =IF($B34>0,VLOOKUP($B34,VSP_Fodermiddeldatabase!$A$3:$CP$489,57,),CHAR(32)) ->  | EF34: =IF($B34>0,VLOOKUP($B34,VSP_Fodermiddeldatabase!$A$3:$CP$489,58,),CHAR(32)) ->  | EG34: =IF($B34>0,VLOOKUP($B34,VSP_Fodermiddeldatabase!$A$3:$CP$489,59,),CHAR(32)) ->  | EH34: =IF($B34>0,VLOOKUP($B34,VSP_Fodermiddeldatabase!$A$3:$CP$489,60,),CHAR(32)) ->  | EI34: =IF($B34>0,VLOOKUP($B34,VSP_Fodermiddeldatabase!$A$3:$CP$489,61,),CHAR(32)) ->  | EJ34: =IF($B34>0,VLOOKUP($B34,VSP_Fodermiddeldatabase!$A$3:$CP$489,2,),CHAR(32)) ->  | EK34: =IF($B34>0,VLOOKUP($B34,VSP_Fodermiddeldatabase!$A$3:$CP$489,3,),CHAR(32)) ->  | EL34: =IF($B34>0,VLOOKUP($B34,VSP_Fodermiddeldatabase!$A$3:$CP$489,63,),CHAR(32)) ->  | EM34: =IF($B34>0,VLOOKUP($B34,VSP_Fodermiddeldatabase!$A$3:$CP$489,64,),CHAR(32)) ->  | EN34: =IF($B34>0,VLOOKUP($B34,VSP_Fodermiddeldatabase!$A$3:$CP$489,65,),CHAR(32)) ->  | EO34: =IF($B34>0,VLOOKUP($B34,VSP_Fodermiddeldatabase!$A$3:$CP$489,66,),CHAR(32)) ->  | EP34: =IF($B34>0,VLOOKUP($B34,VSP_Fodermiddeldatabase!$A$3:$CP$489,68,),CHAR(32)) ->  | EQ34: =IF($B34>0,VLOOKUP($B34,VSP_Fodermiddeldatabase!$A$3:$CP$489,69,),CHAR(32)) ->  | ER34: =IF($B34>0,VLOOKUP($B34,VSP_Fodermiddeldatabase!$A$3:$CP$489,70,),CHAR(32)) ->  | ES34: =IF($B34>0,VLOOKUP($B34,VSP_Fodermiddeldatabase!$A$3:$CP$489,71,),CHAR(32)) ->  | ET34: =IF($B34>0,VLOOKUP($B34,VSP_Fodermiddeldatabase!$A$3:$CP$489,19,),CHAR(32)) ->  | EU34: =IF($B34>0,VLOOKUP($B34,VSP_Fodermiddeldatabase!$A$3:$CP$489,20,),CHAR(32)) ->  | EV34: =IF($B34>0,VLOOKUP($B34,VSP_Fodermiddeldatabase!$A$3:$CP$489,21,),CHAR(32)) ->  | EW34: =IF($B34>0,VLOOKUP($B34,VSP_Fodermiddeldatabase!$A$3:$CP$489,22,),CHAR(32)) ->  | EX34: =IF($B34>0,VLOOKUP($B34,VSP_Fodermiddeldatabase!$A$3:$CP$489,23,),CHAR(32)) ->  | EY34: =IF($B34>0,VLOOKUP($B34,VSP_Fodermiddeldatabase!$A$3:$CP$489,25,),CHAR(32)) ->  | EZ34: =IF($B34>0,VLOOKUP($B34,VSP_Fodermiddeldatabase!$A$3:$CP$489,26,),CHAR(32)) ->  | FA34: =IF($B34>0,VLOOKUP($B34,VSP_Fodermiddeldatabase!$A$3:$CP$489,27,),CHAR(32)) ->  | FB34: =IF($B34>0,VLOOKUP($B34,VSP_Fodermiddeldatabase!$A$3:$CP$489,28,),CHAR(32)) ->  | FC34: =IF($B34>0,VLOOKUP($B34,VSP_Fodermiddeldatabase!$A$3:$CP$489,29,),CHAR(32)) ->  | FD34: =IF($B34>0,VLOOKUP($B34,VSP_Fodermiddeldatabase!$A$3:$CP$489,30,),CHAR(32)) ->  | FE34: =IF($B34>0,VLOOKUP($B34,VSP_Fodermiddeldatabase!$A$3:$CP$489,31,),CHAR(32)) ->  | FF34: =IF($B34>0,VLOOKUP($B34,VSP_Fodermiddeldatabase!$A$3:$CP$489,32,),CHAR(32)) ->  | FG34: =IF($B34>0,VLOOKUP($B34,VSP_Fodermiddeldatabase!$A$3:$CP$489,33,),CHAR(32)) ->  | FH34: =IF($B34>0,VLOOKUP($B34,VSP_Fodermiddeldatabase!$A$3:$CP$489,34,),CHAR(32)) ->  | FI34: =IF($B34>0,VLOOKUP($B34,VSP_Fodermiddeldatabase!$A$3:$CP$489,35,),CHAR(32)) ->  | FJ34: =IF($B34>0,VLOOKUP($B34,VSP_Fodermiddeldatabase!$A$3:$CP$489,36,),CHAR(32)) ->  | FK34: =IF($B34>0,VLOOKUP($B34,VSP_Fodermiddeldatabase!$A$3:$CP$489,37,),CHAR(32)) ->  | FM34: =IF($B34>0,VLOOKUP($B34,VSP_Fodermiddeldatabase!$A$3:$CP$489,74,),CHAR(32)) ->  | FN34: =IF($B34>0,VLOOKUP($B34,VSP_Fodermiddeldatabase!$A$3:$CP$489,75,),CHAR(32)) ->  | FO34: =IF($B34>0,VLOOKUP($B34,VSP_Fodermiddeldatabase!$A$3:$CP$489,76,),CHAR(32)) ->  | FP34: =IF($B34>0,VLOOKUP($B34,VSP_Fodermiddeldatabase!$A$3:$CP$489,77,),CHAR(32)) ->  | FQ34: =IF($B34>0,VLOOKUP($B34,VSP_Fodermiddeldatabase!$A$3:$CP$489,78,),CHAR(32)) ->  | FR34: =IF($B34>0,VLOOKUP($B34,VSP_Fodermiddeldatabase!$A$3:$CP$489,79,),CHAR(32)) ->  | FS34: =IF($B34>0,VLOOKUP($B34,VSP_Fodermiddeldatabase!$A$3:$CP$489,1,),CHAR(32)) ->  | FT34: =IF($B34>0,VLOOKUP($B34,VSP_Fodermiddeldatabase!$A$3:$CP$489,5,),CHAR(32)) ->  | FV34: =IF($A34<>"",100-VLOOKUP($B34,VSP_Fodermiddeldatabase!$A$3:$CP$489,12,)) -> FALSE | FW34: =IF($A34<>"",VLOOKUP($B34,VSP_Fodermiddeldatabase!$A$3:$CP$489,13,)) -> FALSE | FX34: =IF($A34<>"",VLOOKUP($B34,VSP_Fodermiddeldatabase!$A$3:$CP$489,14,)) -> FALSE | FY34: =IF($A34<>"",VLOOKUP($B34,VSP_Fodermiddeldatabase!$A$3:$CP$489,15,)) -> FALSE | FZ34: 0 | GA34: 0 | GB34: 0 | GC34: =IF($A34<>"",VLOOKUP($B34,VSP_Fodermiddeldatabase!$A$3:$CP$489,8,)) -> FALSE | GF34: =IF($A34<>"",VLOOKUP($B34,VSP_Fodermiddeldatabase!$A$3:$CP$489,9,)) -> FALSE | GG34: FALSE | GH34: -37.9403794 | GI34: -15.32467532 | GJ34: =IF($A34<>"",VLOOKUP($B34,VSP_Fodermiddeldatabase!$A$3:$CP$489,11,)) -> FALSE | GK34: 0 | GL34: 0 | GN34: -37.9403794 | GO34: -15.32467532 | GP34: 100 | GQ34: 100 | GR34: 0 | GS34: 0 | GT34: 18 | GU34: 0 | GV34: 0
P35: =IF(A35<>"",IF($B35>0,VLOOKUP($B35,VSP_Fodermiddeldatabase!$A$3:$CP$489,10,),CHAR(32)),"") ->  | Q35: =IF(A35<>"",IF($B35>0,VLOOKUP($B35,VSP_Fodermiddeldatabase!$A$3:$CP$489,11,),CHAR(32)),"") ->  | R35: 90 | BZ35: =IF($B35>0,VLOOKUP($B35,VSP_Fodermiddeldatabase!$A$3:$CP$489,12,),CHAR(32)) ->  | CB35: =IF($B35>0,VLOOKUP($B35,VSP_Fodermiddeldatabase!$A$3:$CP$489,13,),CHAR(32)) ->  | CC35: =IF($B35>0,VLOOKUP($B35,VSP_Fodermiddeldatabase!$A$3:$CP$489,14,),CHAR(32)) ->  | CD35: =IF($B35>0,VLOOKUP($B35,VSP_Fodermiddeldatabase!$A$3:$CP$489,15,),CHAR(32)) ->  | CE35: =IF($B35>0,VLOOKUP($B35,VSP_Fodermiddeldatabase!$A$3:$CP$489,16,),CHAR(32)) ->  | CG35: =IF($B35>0,VLOOKUP($B35,VSP_Fodermiddeldatabase!$A$3:$CP$489,8,),CHAR(32)) ->  | CH35: =IF($B35>0,VLOOKUP($B35,VSP_Fodermiddeldatabase!$A$3:$CP$489,9,),CHAR(32)) ->  | DM35: =IF($B35>0,VLOOKUP($B35,VSP_Fodermiddeldatabase!$A$3:$CP$489,18,),CHAR(32)) ->  | DN35: =IF($B35>0,VLOOKUP($B35,VSP_Fodermiddeldatabase!$A$3:$CP$489,39,),CHAR(32)) ->  | DO35: =IF($B35>0,VLOOKUP($B35,VSP_Fodermiddeldatabase!$A$3:$CP$489,40,),CHAR(32)) ->  | DP35: =IF($B35>0,VLOOKUP($B35,VSP_Fodermiddeldatabase!$A$3:$CP$489,41,),CHAR(32)) ->  | DQ35: =IF($B35>0,VLOOKUP($B35,VSP_Fodermiddeldatabase!$A$3:$CP$489,42,),CHAR(32)) ->  | DR35: =IF($B35>0,VLOOKUP($B35,VSP_Fodermiddeldatabase!$A$3:$CP$489,43,),CHAR(32)) ->  | DS35: =IF($B35>0,VLOOKUP($B35,VSP_Fodermiddeldatabase!$A$3:$CP$489,44,),CHAR(32)) ->  | DT35: =IF($B35>0,VLOOKUP($B35,VSP_Fodermiddeldatabase!$A$3:$CP$489,45,),CHAR(32)) ->  | DU35: =IF($B35>0,VLOOKUP($B35,VSP_Fodermiddeldatabase!$A$3:$CP$489,46,),CHAR(32)) ->  | DV35: =IF($B35>0,VLOOKUP($B35,VSP_Fodermiddeldatabase!$A$3:$CP$489,47,),CHAR(32)) ->  | DW35: =IF($B35>0,VLOOKUP($B35,VSP_Fodermiddeldatabase!$A$3:$CP$489,48,),CHAR(32)) ->  | DX35: =IF($B35>0,VLOOKUP($B35,VSP_Fodermiddeldatabase!$A$3:$CP$489,49,),CHAR(32)) ->  | DY35: =IF($B35>0,VLOOKUP($B35,VSP_Fodermiddeldatabase!$A$3:$CP$489,51,),CHAR(32)) ->  | DZ35: =IF($B35>0,VLOOKUP($B35,VSP_Fodermiddeldatabase!$A$3:$CP$489,52,),CHAR(32)) ->  | EA35: =IF($B35>0,VLOOKUP($B35,VSP_Fodermiddeldatabase!$A$3:$CP$489,53,),CHAR(32)) ->  | EB35: =IF($B35>0,VLOOKUP($B35,VSP_Fodermiddeldatabase!$A$3:$CP$489,54,),CHAR(32)) ->  | EC35: =IF($B35>0,VLOOKUP($B35,VSP_Fodermiddeldatabase!$A$3:$CP$489,55,),CHAR(32)) ->  | ED35: =IF($B35>0,VLOOKUP($B35,VSP_Fodermiddeldatabase!$A$3:$CP$489,56,),CHAR(32)) ->  | EE35: =IF($B35>0,VLOOKUP($B35,VSP_Fodermiddeldatabase!$A$3:$CP$489,57,),CHAR(32)) ->  | EF35: =IF($B35>0,VLOOKUP($B35,VSP_Fodermiddeldatabase!$A$3:$CP$489,58,),CHAR(32)) ->  | EG35: =IF($B35>0,VLOOKUP($B35,VSP_Fodermiddeldatabase!$A$3:$CP$489,59,),CHAR(32)) ->  | EH35: =IF($B35>0,VLOOKUP($B35,VSP_Fodermiddeldatabase!$A$3:$CP$489,60,),CHAR(32)) ->  | EI35: =IF($B35>0,VLOOKUP($B35,VSP_Fodermiddeldatabase!$A$3:$CP$489,61,),CHAR(32)) ->  | EJ35: =IF($B35>0,VLOOKUP($B35,VSP_Fodermiddeldatabase!$A$3:$CP$489,2,),CHAR(32)) ->  | EK35: =IF($B35>0,VLOOKUP($B35,VSP_Fodermiddeldatabase!$A$3:$CP$489,3,),CHAR(32)) ->  | EL35: =IF($B35>0,VLOOKUP($B35,VSP_Fodermiddeldatabase!$A$3:$CP$489,63,),CHAR(32)) ->  | EM35: =IF($B35>0,VLOOKUP($B35,VSP_Fodermiddeldatabase!$A$3:$CP$489,64,),CHAR(32)) ->  | EN35: =IF($B35>0,VLOOKUP($B35,VSP_Fodermiddeldatabase!$A$3:$CP$489,65,),CHAR(32)) ->  | EO35: =IF($B35>0,VLOOKUP($B35,VSP_Fodermiddeldatabase!$A$3:$CP$489,66,),CHAR(32)) ->  | EP35: =IF($B35>0,VLOOKUP($B35,VSP_Fodermiddeldatabase!$A$3:$CP$489,68,),CHAR(32)) ->  | EQ35: =IF($B35>0,VLOOKUP($B35,VSP_Fodermiddeldatabase!$A$3:$CP$489,69,),CHAR(32)) ->  | ER35: =IF($B35>0,VLOOKUP($B35,VSP_Fodermiddeldatabase!$A$3:$CP$489,70,),CHAR(32)) ->  | ES35: =IF($B35>0,VLOOKUP($B35,VSP_Fodermiddeldatabase!$A$3:$CP$489,71,),CHAR(32)) ->  | ET35: =IF($B35>0,VLOOKUP($B35,VSP_Fodermiddeldatabase!$A$3:$CP$489,19,),CHAR(32)) ->  | EU35: =IF($B35>0,VLOOKUP($B35,VSP_Fodermiddeldatabase!$A$3:$CP$489,20,),CHAR(32)) ->  | EV35: =IF($B35>0,VLOOKUP($B35,VSP_Fodermiddeldatabase!$A$3:$CP$489,21,),CHAR(32)) ->  | EW35: =IF($B35>0,VLOOKUP($B35,VSP_Fodermiddeldatabase!$A$3:$CP$489,22,),CHAR(32)) ->  | EX35: =IF($B35>0,VLOOKUP($B35,VSP_Fodermiddeldatabase!$A$3:$CP$489,23,),CHAR(32)) ->  | EY35: =IF($B35>0,VLOOKUP($B35,VSP_Fodermiddeldatabase!$A$3:$CP$489,25,),CHAR(32)) ->  | EZ35: =IF($B35>0,VLOOKUP($B35,VSP_Fodermiddeldatabase!$A$3:$CP$489,26,),CHAR(32)) ->  | FA35: =IF($B35>0,VLOOKUP($B35,VSP_Fodermiddeldatabase!$A$3:$CP$489,27,),CHAR(32)) ->  | FB35: =IF($B35>0,VLOOKUP($B35,VSP_Fodermiddeldatabase!$A$3:$CP$489,28,),CHAR(32)) ->  | FC35: =IF($B35>0,VLOOKUP($B35,VSP_Fodermiddeldatabase!$A$3:$CP$489,29,),CHAR(32)) ->  | FD35: =IF($B35>0,VLOOKUP($B35,VSP_Fodermiddeldatabase!$A$3:$CP$489,30,),CHAR(32)) ->  | FE35: =IF($B35>0,VLOOKUP($B35,VSP_Fodermiddeldatabase!$A$3:$CP$489,31,),CHAR(32)) ->  | FF35: =IF($B35>0,VLOOKUP($B35,VSP_Fodermiddeldatabase!$A$3:$CP$489,32,),CHAR(32)) ->  | FG35: =IF($B35>0,VLOOKUP($B35,VSP_Fodermiddeldatabase!$A$3:$CP$489,33,),CHAR(32)) ->  | FH35: =IF($B35>0,VLOOKUP($B35,VSP_Fodermiddeldatabase!$A$3:$CP$489,34,),CHAR(32)) ->  | FI35: =IF($B35>0,VLOOKUP($B35,VSP_Fodermiddeldatabase!$A$3:$CP$489,35,),CHAR(32)) ->  | FJ35: =IF($B35>0,VLOOKUP($B35,VSP_Fodermiddeldatabase!$A$3:$CP$489,36,),CHAR(32)) ->  | FK35: =IF($B35>0,VLOOKUP($B35,VSP_Fodermiddeldatabase!$A$3:$CP$489,37,),CHAR(32)) ->  | FM35: =IF($B35>0,VLOOKUP($B35,VSP_Fodermiddeldatabase!$A$3:$CP$489,74,),CHAR(32)) ->  | FN35: =IF($B35>0,VLOOKUP($B35,VSP_Fodermiddeldatabase!$A$3:$CP$489,75,),CHAR(32)) ->  | FO35: =IF($B35>0,VLOOKUP($B35,VSP_Fodermiddeldatabase!$A$3:$CP$489,76,),CHAR(32)) ->  | FP35: =IF($B35>0,VLOOKUP($B35,VSP_Fodermiddeldatabase!$A$3:$CP$489,77,),CHAR(32)) ->  | FQ35: =IF($B35>0,VLOOKUP($B35,VSP_Fodermiddeldatabase!$A$3:$CP$489,78,),CHAR(32)) ->  | FR35: =IF($B35>0,VLOOKUP($B35,VSP_Fodermiddeldatabase!$A$3:$CP$489,79,),CHAR(32)) ->  | FS35: =IF($B35>0,VLOOKUP($B35,VSP_Fodermiddeldatabase!$A$3:$CP$489,1,),CHAR(32)) ->  | FT35: =IF($B35>0,VLOOKUP($B35,VSP_Fodermiddeldatabase!$A$3:$CP$489,5,),CHAR(32)) ->  | FV35: =IF($A35<>"",100-VLOOKUP($B35,VSP_Fodermiddeldatabase!$A$3:$CP$489,12,)) -> FALSE | FW35: =IF($A35<>"",VLOOKUP($B35,VSP_Fodermiddeldatabase!$A$3:$CP$489,13,)) -> FALSE | FX35: =IF($A35<>"",VLOOKUP($B35,VSP_Fodermiddeldatabase!$A$3:$CP$489,14,)) -> FALSE | FY35: =IF($A35<>"",VLOOKUP($B35,VSP_Fodermiddeldatabase!$A$3:$CP$489,15,)) -> FALSE | FZ35: 0 | GA35: 0 | GB35: 0 | GC35: =IF($A35<>"",VLOOKUP($B35,VSP_Fodermiddeldatabase!$A$3:$CP$489,8,)) -> FALSE | GF35: =IF($A35<>"",VLOOKUP($B35,VSP_Fodermiddeldatabase!$A$3:$CP$489,9,)) -> FALSE | GG35: FALSE | GH35: -37.9403794 | GI35: -15.32467532 | GJ35: =IF($A35<>"",VLOOKUP($B35,VSP_Fodermiddeldatabase!$A$3:$CP$489,11,)) -> FALSE | GK35: 0 | GL35: 0 | GN35: -37.9403794 | GO35: -15.32467532 | GP35: 100 | GQ35: 100 | GR35: 0 | GS35: 0 | GT35: 18 | GU35: 0 | GV35: 0
P36: =IF(A36<>"",IF($B36>0,VLOOKUP($B36,VSP_Fodermiddeldatabase!$A$3:$CP$489,10,),CHAR(32)),"") ->  | Q36: =IF(A36<>"",IF($B36>0,VLOOKUP($B36,VSP_Fodermiddeldatabase!$A$3:$CP$489,11,),CHAR(32)),"") ->  | R36: 90 | BZ36: =IF($B36>0,VLOOKUP($B36,VSP_Fodermiddeldatabase!$A$3:$CP$489,12,),CHAR(32)) ->  | CB36: =IF($B36>0,VLOOKUP($B36,VSP_Fodermiddeldatabase!$A$3:$CP$489,13,),CHAR(32)) ->  | CC36: =IF($B36>0,VLOOKUP($B36,VSP_Fodermiddeldatabase!$A$3:$CP$489,14,),CHAR(32)) ->  | CD36: =IF($B36>0,VLOOKUP($B36,VSP_Fodermiddeldatabase!$A$3:$CP$489,15,),CHAR(32)) ->  | CE36: =IF($B36>0,VLOOKUP($B36,VSP_Fodermiddeldatabase!$A$3:$CP$489,16,),CHAR(32)) ->  | CG36: =IF($B36>0,VLOOKUP($B36,VSP_Fodermiddeldatabase!$A$3:$CP$489,8,),CHAR(32)) ->  | CH36: =IF($B36>0,VLOOKUP($B36,VSP_Fodermiddeldatabase!$A$3:$CP$489,9,),CHAR(32)) ->  | DM36: =IF($B36>0,VLOOKUP($B36,VSP_Fodermiddeldatabase!$A$3:$CP$489,18,),CHAR(32)) ->  | DN36: =IF($B36>0,VLOOKUP($B36,VSP_Fodermiddeldatabase!$A$3:$CP$489,39,),CHAR(32)) ->  | DO36: =IF($B36>0,VLOOKUP($B36,VSP_Fodermiddeldatabase!$A$3:$CP$489,40,),CHAR(32)) ->  | DP36: =IF($B36>0,VLOOKUP($B36,VSP_Fodermiddeldatabase!$A$3:$CP$489,41,),CHAR(32)) ->  | DQ36: =IF($B36>0,VLOOKUP($B36,VSP_Fodermiddeldatabase!$A$3:$CP$489,42,),CHAR(32)) ->  | DR36: =IF($B36>0,VLOOKUP($B36,VSP_Fodermiddeldatabase!$A$3:$CP$489,43,),CHAR(32)) ->  | DS36: =IF($B36>0,VLOOKUP($B36,VSP_Fodermiddeldatabase!$A$3:$CP$489,44,),CHAR(32)) ->  | DT36: =IF($B36>0,VLOOKUP($B36,VSP_Fodermiddeldatabase!$A$3:$CP$489,45,),CHAR(32)) ->  | DU36: =IF($B36>0,VLOOKUP($B36,VSP_Fodermiddeldatabase!$A$3:$CP$489,46,),CHAR(32)) ->  | DV36: =IF($B36>0,VLOOKUP($B36,VSP_Fodermiddeldatabase!$A$3:$CP$489,47,),CHAR(32)) ->  | DW36: =IF($B36>0,VLOOKUP($B36,VSP_Fodermiddeldatabase!$A$3:$CP$489,48,),CHAR(32)) ->  | DX36: =IF($B36>0,VLOOKUP($B36,VSP_Fodermiddeldatabase!$A$3:$CP$489,49,),CHAR(32)) ->  | DY36: =IF($B36>0,VLOOKUP($B36,VSP_Fodermiddeldatabase!$A$3:$CP$489,51,),CHAR(32)) ->  | DZ36: =IF($B36>0,VLOOKUP($B36,VSP_Fodermiddeldatabase!$A$3:$CP$489,52,),CHAR(32)) ->  | EA36: =IF($B36>0,VLOOKUP($B36,VSP_Fodermiddeldatabase!$A$3:$CP$489,53,),CHAR(32)) ->  | EB36: =IF($B36>0,VLOOKUP($B36,VSP_Fodermiddeldatabase!$A$3:$CP$489,54,),CHAR(32)) ->  | EC36: =IF($B36>0,VLOOKUP($B36,VSP_Fodermiddeldatabase!$A$3:$CP$489,55,),CHAR(32)) ->  | ED36: =IF($B36>0,VLOOKUP($B36,VSP_Fodermiddeldatabase!$A$3:$CP$489,56,),CHAR(32)) ->  | EE36: =IF($B36>0,VLOOKUP($B36,VSP_Fodermiddeldatabase!$A$3:$CP$489,57,),CHAR(32)) ->  | EF36: =IF($B36>0,VLOOKUP($B36,VSP_Fodermiddeldatabase!$A$3:$CP$489,58,),CHAR(32)) ->  | EG36: =IF($B36>0,VLOOKUP($B36,VSP_Fodermiddeldatabase!$A$3:$CP$489,59,),CHAR(32)) ->  | EH36: =IF($B36>0,VLOOKUP($B36,VSP_Fodermiddeldatabase!$A$3:$CP$489,60,),CHAR(32)) ->  | EI36: =IF($B36>0,VLOOKUP($B36,VSP_Fodermiddeldatabase!$A$3:$CP$489,61,),CHAR(32)) ->  | EJ36: =IF($B36>0,VLOOKUP($B36,VSP_Fodermiddeldatabase!$A$3:$CP$489,2,),CHAR(32)) ->  | EK36: =IF($B36>0,VLOOKUP($B36,VSP_Fodermiddeldatabase!$A$3:$CP$489,3,),CHAR(32)) ->  | EL36: =IF($B36>0,VLOOKUP($B36,VSP_Fodermiddeldatabase!$A$3:$CP$489,63,),CHAR(32)) ->  | EM36: =IF($B36>0,VLOOKUP($B36,VSP_Fodermiddeldatabase!$A$3:$CP$489,64,),CHAR(32)) ->  | EN36: =IF($B36>0,VLOOKUP($B36,VSP_Fodermiddeldatabase!$A$3:$CP$489,65,),CHAR(32)) ->  | EO36: =IF($B36>0,VLOOKUP($B36,VSP_Fodermiddeldatabase!$A$3:$CP$489,66,),CHAR(32)) ->  | EP36: =IF($B36>0,VLOOKUP($B36,VSP_Fodermiddeldatabase!$A$3:$CP$489,68,),CHAR(32)) ->  | EQ36: =IF($B36>0,VLOOKUP($B36,VSP_Fodermiddeldatabase!$A$3:$CP$489,69,),CHAR(32)) ->  | ER36: =IF($B36>0,VLOOKUP($B36,VSP_Fodermiddeldatabase!$A$3:$CP$489,70,),CHAR(32)) ->  | ES36: =IF($B36>0,VLOOKUP($B36,VSP_Fodermiddeldatabase!$A$3:$CP$489,71,),CHAR(32)) ->  | ET36: =IF($B36>0,VLOOKUP($B36,VSP_Fodermiddeldatabase!$A$3:$CP$489,19,),CHAR(32)) ->  | EU36: =IF($B36>0,VLOOKUP($B36,VSP_Fodermiddeldatabase!$A$3:$CP$489,20,),CHAR(32)) ->  | EV36: =IF($B36>0,VLOOKUP($B36,VSP_Fodermiddeldatabase!$A$3:$CP$489,21,),CHAR(32)) ->  | EW36: =IF($B36>0,VLOOKUP($B36,VSP_Fodermiddeldatabase!$A$3:$CP$489,22,),CHAR(32)) ->  | EX36: =IF($B36>0,VLOOKUP($B36,VSP_Fodermiddeldatabase!$A$3:$CP$489,23,),CHAR(32)) ->  | EY36: =IF($B36>0,VLOOKUP($B36,VSP_Fodermiddeldatabase!$A$3:$CP$489,25,),CHAR(32)) ->  | EZ36: =IF($B36>0,VLOOKUP($B36,VSP_Fodermiddeldatabase!$A$3:$CP$489,26,),CHAR(32)) ->  | FA36: =IF($B36>0,VLOOKUP($B36,VSP_Fodermiddeldatabase!$A$3:$CP$489,27,),CHAR(32)) ->  | FB36: =IF($B36>0,VLOOKUP($B36,VSP_Fodermiddeldatabase!$A$3:$CP$489,28,),CHAR(32)) ->  | FC36: =IF($B36>0,VLOOKUP($B36,VSP_Fodermiddeldatabase!$A$3:$CP$489,29,),CHAR(32)) ->  | FD36: =IF($B36>0,VLOOKUP($B36,VSP_Fodermiddeldatabase!$A$3:$CP$489,30,),CHAR(32)) ->  | FE36: =IF($B36>0,VLOOKUP($B36,VSP_Fodermiddeldatabase!$A$3:$CP$489,31,),CHAR(32)) ->  | FF36: =IF($B36>0,VLOOKUP($B36,VSP_Fodermiddeldatabase!$A$3:$CP$489,32,),CHAR(32)) ->  | FG36: =IF($B36>0,VLOOKUP($B36,VSP_Fodermiddeldatabase!$A$3:$CP$489,33,),CHAR(32)) ->  | FH36: =IF($B36>0,VLOOKUP($B36,VSP_Fodermiddeldatabase!$A$3:$CP$489,34,),CHAR(32)) ->  | FI36: =IF($B36>0,VLOOKUP($B36,VSP_Fodermiddeldatabase!$A$3:$CP$489,35,),CHAR(32)) ->  | FJ36: =IF($B36>0,VLOOKUP($B36,VSP_Fodermiddeldatabase!$A$3:$CP$489,36,),CHAR(32)) ->  | FK36: =IF($B36>0,VLOOKUP($B36,VSP_Fodermiddeldatabase!$A$3:$CP$489,37,),CHAR(32)) ->  | FM36: =IF($B36>0,VLOOKUP($B36,VSP_Fodermiddeldatabase!$A$3:$CP$489,74,),CHAR(32)) ->  | FN36: =IF($B36>0,VLOOKUP($B36,VSP_Fodermiddeldatabase!$A$3:$CP$489,75,),CHAR(32)) ->  | FO36: =IF($B36>0,VLOOKUP($B36,VSP_Fodermiddeldatabase!$A$3:$CP$489,76,),CHAR(32)) ->  | FP36: =IF($B36>0,VLOOKUP($B36,VSP_Fodermiddeldatabase!$A$3:$CP$489,77,),CHAR(32)) ->  | FQ36: =IF($B36>0,VLOOKUP($B36,VSP_Fodermiddeldatabase!$A$3:$CP$489,78,),CHAR(32)) ->  | FR36: =IF($B36>0,VLOOKUP($B36,VSP_Fodermiddeldatabase!$A$3:$CP$489,79,),CHAR(32)) ->  | FS36: =IF($B36>0,VLOOKUP($B36,VSP_Fodermiddeldatabase!$A$3:$CP$489,1,),CHAR(32)) ->  | FT36: =IF($B36>0,VLOOKUP($B36,VSP_Fodermiddeldatabase!$A$3:$CP$489,5,),CHAR(32)) ->  | FV36: =IF($A36<>"",100-VLOOKUP($B36,VSP_Fodermiddeldatabase!$A$3:$CP$489,12,)) -> FALSE | FW36: =IF($A36<>"",VLOOKUP($B36,VSP_Fodermiddeldatabase!$A$3:$CP$489,13,)) -> FALSE | FX36: =IF($A36<>"",VLOOKUP($B36,VSP_Fodermiddeldatabase!$A$3:$CP$489,14,)) -> FALSE | FY36: =IF($A36<>"",VLOOKUP($B36,VSP_Fodermiddeldatabase!$A$3:$CP$489,15,)) -> FALSE | FZ36: 0 | GA36: 0 | GB36: 0 | GC36: =IF($A36<>"",VLOOKUP($B36,VSP_Fodermiddeldatabase!$A$3:$CP$489,8,)) -> FALSE | GF36: =IF($A36<>"",VLOOKUP($B36,VSP_Fodermiddeldatabase!$A$3:$CP$489,9,)) -> FALSE | GG36: FALSE | GH36: -37.9403794 | GI36: -15.32467532 | GJ36: =IF($A36<>"",VLOOKUP($B36,VSP_Fodermiddeldatabase!$A$3:$CP$489,11,)) -> FALSE | GK36: 0 | GL36: 0 | GN36: -37.9403794 | GO36: -15.32467532 | GP36: 100 | GQ36: 100 | GR36: 0 | GS36: 0 | GT36: 18 | GU36: 0 | GV36: 0
P37: =IF(A37<>"",IF($B37>0,VLOOKUP($B37,VSP_Fodermiddeldatabase!$A$3:$CP$489,10,),CHAR(32)),"") ->  | Q37: =IF(A37<>"",IF($B37>0,VLOOKUP($B37,VSP_Fodermiddeldatabase!$A$3:$CP$489,11,),CHAR(32)),"") ->  | R37: 90 | BZ37: =IF($B37>0,VLOOKUP($B37,VSP_Fodermiddeldatabase!$A$3:$CP$489,12,),CHAR(32)) ->  | CB37: =IF($B37>0,VLOOKUP($B37,VSP_Fodermiddeldatabase!$A$3:$CP$489,13,),CHAR(32)) ->  | CC37: =IF($B37>0,VLOOKUP($B37,VSP_Fodermiddeldatabase!$A$3:$CP$489,14,),CHAR(32)) ->  | CD37: =IF($B37>0,VLOOKUP($B37,VSP_Fodermiddeldatabase!$A$3:$CP$489,15,),CHAR(32)) ->  | CE37: =IF($B37>0,VLOOKUP($B37,VSP_Fodermiddeldatabase!$A$3:$CP$489,16,),CHAR(32)) ->  | CG37: =IF($B37>0,VLOOKUP($B37,VSP_Fodermiddeldatabase!$A$3:$CP$489,8,),CHAR(32)) ->  | CH37: =IF($B37>0,VLOOKUP($B37,VSP_Fodermiddeldatabase!$A$3:$CP$489,9,),CHAR(32)) ->  | DM37: =IF($B37>0,VLOOKUP($B37,VSP_Fodermiddeldatabase!$A$3:$CP$489,18,),CHAR(32)) ->  | DN37: =IF($B37>0,VLOOKUP($B37,VSP_Fodermiddeldatabase!$A$3:$CP$489,39,),CHAR(32)) ->  | DO37: =IF($B37>0,VLOOKUP($B37,VSP_Fodermiddeldatabase!$A$3:$CP$489,40,),CHAR(32)) ->  | DP37: =IF($B37>0,VLOOKUP($B37,VSP_Fodermiddeldatabase!$A$3:$CP$489,41,),CHAR(32)) ->  | DQ37: =IF($B37>0,VLOOKUP($B37,VSP_Fodermiddeldatabase!$A$3:$CP$489,42,),CHAR(32)) ->  | DR37: =IF($B37>0,VLOOKUP($B37,VSP_Fodermiddeldatabase!$A$3:$CP$489,43,),CHAR(32)) ->  | DS37: =IF($B37>0,VLOOKUP($B37,VSP_Fodermiddeldatabase!$A$3:$CP$489,44,),CHAR(32)) ->  | DT37: =IF($B37>0,VLOOKUP($B37,VSP_Fodermiddeldatabase!$A$3:$CP$489,45,),CHAR(32)) ->  | DU37: =IF($B37>0,VLOOKUP($B37,VSP_Fodermiddeldatabase!$A$3:$CP$489,46,),CHAR(32)) ->  | DV37: =IF($B37>0,VLOOKUP($B37,VSP_Fodermiddeldatabase!$A$3:$CP$489,47,),CHAR(32)) ->  | DW37: =IF($B37>0,VLOOKUP($B37,VSP_Fodermiddeldatabase!$A$3:$CP$489,48,),CHAR(32)) ->  | DX37: =IF($B37>0,VLOOKUP($B37,VSP_Fodermiddeldatabase!$A$3:$CP$489,49,),CHAR(32)) ->  | DY37: =IF($B37>0,VLOOKUP($B37,VSP_Fodermiddeldatabase!$A$3:$CP$489,51,),CHAR(32)) ->  | DZ37: =IF($B37>0,VLOOKUP($B37,VSP_Fodermiddeldatabase!$A$3:$CP$489,52,),CHAR(32)) ->  | EA37: =IF($B37>0,VLOOKUP($B37,VSP_Fodermiddeldatabase!$A$3:$CP$489,53,),CHAR(32)) ->  | EB37: =IF($B37>0,VLOOKUP($B37,VSP_Fodermiddeldatabase!$A$3:$CP$489,54,),CHAR(32)) ->  | EC37: =IF($B37>0,VLOOKUP($B37,VSP_Fodermiddeldatabase!$A$3:$CP$489,55,),CHAR(32)) ->  | ED37: =IF($B37>0,VLOOKUP($B37,VSP_Fodermiddeldatabase!$A$3:$CP$489,56,),CHAR(32)) ->  | EE37: =IF($B37>0,VLOOKUP($B37,VSP_Fodermiddeldatabase!$A$3:$CP$489,57,),CHAR(32)) ->  | EF37: =IF($B37>0,VLOOKUP($B37,VSP_Fodermiddeldatabase!$A$3:$CP$489,58,),CHAR(32)) ->  | EG37: =IF($B37>0,VLOOKUP($B37,VSP_Fodermiddeldatabase!$A$3:$CP$489,59,),CHAR(32)) ->  | EH37: =IF($B37>0,VLOOKUP($B37,VSP_Fodermiddeldatabase!$A$3:$CP$489,60,),CHAR(32)) ->  | EI37: =IF($B37>0,VLOOKUP($B37,VSP_Fodermiddeldatabase!$A$3:$CP$489,61,),CHAR(32)) ->  | EJ37: =IF($B37>0,VLOOKUP($B37,VSP_Fodermiddeldatabase!$A$3:$CP$489,2,),CHAR(32)) ->  | EK37: =IF($B37>0,VLOOKUP($B37,VSP_Fodermiddeldatabase!$A$3:$CP$489,3,),CHAR(32)) ->  | EL37: =IF($B37>0,VLOOKUP($B37,VSP_Fodermiddeldatabase!$A$3:$CP$489,63,),CHAR(32)) ->  | EM37: =IF($B37>0,VLOOKUP($B37,VSP_Fodermiddeldatabase!$A$3:$CP$489,64,),CHAR(32)) ->  | EN37: =IF($B37>0,VLOOKUP($B37,VSP_Fodermiddeldatabase!$A$3:$CP$489,65,),CHAR(32)) ->  | EO37: =IF($B37>0,VLOOKUP($B37,VSP_Fodermiddeldatabase!$A$3:$CP$489,66,),CHAR(32)) ->  | EP37: =IF($B37>0,VLOOKUP($B37,VSP_Fodermiddeldatabase!$A$3:$CP$489,68,),CHAR(32)) ->  | EQ37: =IF($B37>0,VLOOKUP($B37,VSP_Fodermiddeldatabase!$A$3:$CP$489,69,),CHAR(32)) ->  | ER37: =IF($B37>0,VLOOKUP($B37,VSP_Fodermiddeldatabase!$A$3:$CP$489,70,),CHAR(32)) ->  | ES37: =IF($B37>0,VLOOKUP($B37,VSP_Fodermiddeldatabase!$A$3:$CP$489,71,),CHAR(32)) ->  | ET37: =IF($B37>0,VLOOKUP($B37,VSP_Fodermiddeldatabase!$A$3:$CP$489,19,),CHAR(32)) ->  | EU37: =IF($B37>0,VLOOKUP($B37,VSP_Fodermiddeldatabase!$A$3:$CP$489,20,),CHAR(32)) ->  | EV37: =IF($B37>0,VLOOKUP($B37,VSP_Fodermiddeldatabase!$A$3:$CP$489,21,),CHAR(32)) ->  | EW37: =IF($B37>0,VLOOKUP($B37,VSP_Fodermiddeldatabase!$A$3:$CP$489,22,),CHAR(32)) ->  | EX37: =IF($B37>0,VLOOKUP($B37,VSP_Fodermiddeldatabase!$A$3:$CP$489,23,),CHAR(32)) ->  | EY37: =IF($B37>0,VLOOKUP($B37,VSP_Fodermiddeldatabase!$A$3:$CP$489,25,),CHAR(32)) ->  | EZ37: =IF($B37>0,VLOOKUP($B37,VSP_Fodermiddeldatabase!$A$3:$CP$489,26,),CHAR(32)) ->  | FA37: =IF($B37>0,VLOOKUP($B37,VSP_Fodermiddeldatabase!$A$3:$CP$489,27,),CHAR(32)) ->  | FB37: =IF($B37>0,VLOOKUP($B37,VSP_Fodermiddeldatabase!$A$3:$CP$489,28,),CHAR(32)) ->  | FC37: =IF($B37>0,VLOOKUP($B37,VSP_Fodermiddeldatabase!$A$3:$CP$489,29,),CHAR(32)) ->  | FD37: =IF($B37>0,VLOOKUP($B37,VSP_Fodermiddeldatabase!$A$3:$CP$489,30,),CHAR(32)) ->  | FE37: =IF($B37>0,VLOOKUP($B37,VSP_Fodermiddeldatabase!$A$3:$CP$489,31,),CHAR(32)) ->  | FF37: =IF($B37>0,VLOOKUP($B37,VSP_Fodermiddeldatabase!$A$3:$CP$489,32,),CHAR(32)) ->  | FG37: =IF($B37>0,VLOOKUP($B37,VSP_Fodermiddeldatabase!$A$3:$CP$489,33,),CHAR(32)) ->  | FH37: =IF($B37>0,VLOOKUP($B37,VSP_Fodermiddeldatabase!$A$3:$CP$489,34,),CHAR(32)) ->  | FI37: =IF($B37>0,VLOOKUP($B37,VSP_Fodermiddeldatabase!$A$3:$CP$489,35,),CHAR(32)) ->  | FJ37: =IF($B37>0,VLOOKUP($B37,VSP_Fodermiddeldatabase!$A$3:$CP$489,36,),CHAR(32)) ->  | FK37: =IF($B37>0,VLOOKUP($B37,VSP_Fodermiddeldatabase!$A$3:$CP$489,37,),CHAR(32)) ->  | FM37: =IF($B37>0,VLOOKUP($B37,VSP_Fodermiddeldatabase!$A$3:$CP$489,74,),CHAR(32)) ->  | FN37: =IF($B37>0,VLOOKUP($B37,VSP_Fodermiddeldatabase!$A$3:$CP$489,75,),CHAR(32)) ->  | FO37: =IF($B37>0,VLOOKUP($B37,VSP_Fodermiddeldatabase!$A$3:$CP$489,76,),CHAR(32)) ->  | FP37: =IF($B37>0,VLOOKUP($B37,VSP_Fodermiddeldatabase!$A$3:$CP$489,77,),CHAR(32)) ->  | FQ37: =IF($B37>0,VLOOKUP($B37,VSP_Fodermiddeldatabase!$A$3:$CP$489,78,),CHAR(32)) ->  | FR37: =IF($B37>0,VLOOKUP($B37,VSP_Fodermiddeldatabase!$A$3:$CP$489,79,),CHAR(32)) ->  | FS37: =IF($B37>0,VLOOKUP($B37,VSP_Fodermiddeldatabase!$A$3:$CP$489,1,),CHAR(32)) ->  | FT37: =IF($B37>0,VLOOKUP($B37,VSP_Fodermiddeldatabase!$A$3:$CP$489,5,),CHAR(32)) ->  | FV37: =IF($A37<>"",100-VLOOKUP($B37,VSP_Fodermiddeldatabase!$A$3:$CP$489,12,)) -> FALSE | FW37: =IF($A37<>"",VLOOKUP($B37,VSP_Fodermiddeldatabase!$A$3:$CP$489,13,)) -> FALSE | FX37: =IF($A37<>"",VLOOKUP($B37,VSP_Fodermiddeldatabase!$A$3:$CP$489,14,)) -> FALSE | FY37: =IF($A37<>"",VLOOKUP($B37,VSP_Fodermiddeldatabase!$A$3:$CP$489,15,)) -> FALSE | FZ37: 0 | GA37: 0 | GB37: 0 | GC37: =IF($A37<>"",VLOOKUP($B37,VSP_Fodermiddeldatabase!$A$3:$CP$489,8,)) -> FALSE | GF37: =IF($A37<>"",VLOOKUP($B37,VSP_Fodermiddeldatabase!$A$3:$CP$489,9,)) -> FALSE | GG37: FALSE | GH37: -37.9403794 | GI37: -15.32467532 | GJ37: =IF($A37<>"",VLOOKUP($B37,VSP_Fodermiddeldatabase!$A$3:$CP$489,11,)) -> FALSE | GK37: 0 | GL37: 0 | GN37: -37.9403794 | GO37: -15.32467532 | GP37: 100 | GQ37: 100 | GR37: 0 | GS37: 0 | GT37: 18 | GU37: 0 | GV37: 0
P38: =IF(A38<>"",IF($B38>0,VLOOKUP($B38,VSP_Fodermiddeldatabase!$A$3:$CP$489,10,),CHAR(32)),"") ->  | Q38: =IF(A38<>"",IF($B38>0,VLOOKUP($B38,VSP_Fodermiddeldatabase!$A$3:$CP$489,11,),CHAR(32)),"") ->  | R38: 90 | BZ38: =IF($B38>0,VLOOKUP($B38,VSP_Fodermiddeldatabase!$A$3:$CP$489,12,),CHAR(32)) ->  | CB38: =IF($B38>0,VLOOKUP($B38,VSP_Fodermiddeldatabase!$A$3:$CP$489,13,),CHAR(32)) ->  | CC38: =IF($B38>0,VLOOKUP($B38,VSP_Fodermiddeldatabase!$A$3:$CP$489,14,),CHAR(32)) ->  | CD38: =IF($B38>0,VLOOKUP($B38,VSP_Fodermiddeldatabase!$A$3:$CP$489,15,),CHAR(32)) ->  | CE38: =IF($B38>0,VLOOKUP($B38,VSP_Fodermiddeldatabase!$A$3:$CP$489,16,),CHAR(32)) ->  | CG38: =IF($B38>0,VLOOKUP($B38,VSP_Fodermiddeldatabase!$A$3:$CP$489,8,),CHAR(32)) ->  | CH38: =IF($B38>0,VLOOKUP($B38,VSP_Fodermiddeldatabase!$A$3:$CP$489,9,),CHAR(32)) ->  | DM38: =IF($B38>0,VLOOKUP($B38,VSP_Fodermiddeldatabase!$A$3:$CP$489,18,),CHAR(32)) ->  | DN38: =IF($B38>0,VLOOKUP($B38,VSP_Fodermiddeldatabase!$A$3:$CP$489,39,),CHAR(32)) ->  | DO38: =IF($B38>0,VLOOKUP($B38,VSP_Fodermiddeldatabase!$A$3:$CP$489,40,),CHAR(32)) ->  | DP38: =IF($B38>0,VLOOKUP($B38,VSP_Fodermiddeldatabase!$A$3:$CP$489,41,),CHAR(32)) ->  | DQ38: =IF($B38>0,VLOOKUP($B38,VSP_Fodermiddeldatabase!$A$3:$CP$489,42,),CHAR(32)) ->  | DR38: =IF($B38>0,VLOOKUP($B38,VSP_Fodermiddeldatabase!$A$3:$CP$489,43,),CHAR(32)) ->  | DS38: =IF($B38>0,VLOOKUP($B38,VSP_Fodermiddeldatabase!$A$3:$CP$489,44,),CHAR(32)) ->  | DT38: =IF($B38>0,VLOOKUP($B38,VSP_Fodermiddeldatabase!$A$3:$CP$489,45,),CHAR(32)) ->  | DU38: =IF($B38>0,VLOOKUP($B38,VSP_Fodermiddeldatabase!$A$3:$CP$489,46,),CHAR(32)) ->  | DV38: =IF($B38>0,VLOOKUP($B38,VSP_Fodermiddeldatabase!$A$3:$CP$489,47,),CHAR(32)) ->  | DW38: =IF($B38>0,VLOOKUP($B38,VSP_Fodermiddeldatabase!$A$3:$CP$489,48,),CHAR(32)) ->  | DX38: =IF($B38>0,VLOOKUP($B38,VSP_Fodermiddeldatabase!$A$3:$CP$489,49,),CHAR(32)) ->  | DY38: =IF($B38>0,VLOOKUP($B38,VSP_Fodermiddeldatabase!$A$3:$CP$489,51,),CHAR(32)) ->  | DZ38: =IF($B38>0,VLOOKUP($B38,VSP_Fodermiddeldatabase!$A$3:$CP$489,52,),CHAR(32)) ->  | EA38: =IF($B38>0,VLOOKUP($B38,VSP_Fodermiddeldatabase!$A$3:$CP$489,53,),CHAR(32)) ->  | EB38: =IF($B38>0,VLOOKUP($B38,VSP_Fodermiddeldatabase!$A$3:$CP$489,54,),CHAR(32)) ->  | EC38: =IF($B38>0,VLOOKUP($B38,VSP_Fodermiddeldatabase!$A$3:$CP$489,55,),CHAR(32)) ->  | ED38: =IF($B38>0,VLOOKUP($B38,VSP_Fodermiddeldatabase!$A$3:$CP$489,56,),CHAR(32)) ->  | EE38: =IF($B38>0,VLOOKUP($B38,VSP_Fodermiddeldatabase!$A$3:$CP$489,57,),CHAR(32)) ->  | EF38: =IF($B38>0,VLOOKUP($B38,VSP_Fodermiddeldatabase!$A$3:$CP$489,58,),CHAR(32)) ->  | EG38: =IF($B38>0,VLOOKUP($B38,VSP_Fodermiddeldatabase!$A$3:$CP$489,59,),CHAR(32)) ->  | EH38: =IF($B38>0,VLOOKUP($B38,VSP_Fodermiddeldatabase!$A$3:$CP$489,60,),CHAR(32)) ->  | EI38: =IF($B38>0,VLOOKUP($B38,VSP_Fodermiddeldatabase!$A$3:$CP$489,61,),CHAR(32)) ->  | EJ38: =IF($B38>0,VLOOKUP($B38,VSP_Fodermiddeldatabase!$A$3:$CP$489,2,),CHAR(32)) ->  | EK38: =IF($B38>0,VLOOKUP($B38,VSP_Fodermiddeldatabase!$A$3:$CP$489,3,),CHAR(32)) ->  | EL38: =IF($B38>0,VLOOKUP($B38,VSP_Fodermiddeldatabase!$A$3:$CP$489,63,),CHAR(32)) ->  | EM38: =IF($B38>0,VLOOKUP($B38,VSP_Fodermiddeldatabase!$A$3:$CP$489,64,),CHAR(32)) ->  | EN38: =IF($B38>0,VLOOKUP($B38,VSP_Fodermiddeldatabase!$A$3:$CP$489,65,),CHAR(32)) ->  | EO38: =IF($B38>0,VLOOKUP($B38,VSP_Fodermiddeldatabase!$A$3:$CP$489,66,),CHAR(32)) ->  | EP38: =IF($B38>0,VLOOKUP($B38,VSP_Fodermiddeldatabase!$A$3:$CP$489,68,),CHAR(32)) ->  | EQ38: =IF($B38>0,VLOOKUP($B38,VSP_Fodermiddeldatabase!$A$3:$CP$489,69,),CHAR(32)) ->  | ER38: =IF($B38>0,VLOOKUP($B38,VSP_Fodermiddeldatabase!$A$3:$CP$489,70,),CHAR(32)) ->  | ES38: =IF($B38>0,VLOOKUP($B38,VSP_Fodermiddeldatabase!$A$3:$CP$489,71,),CHAR(32)) ->  | ET38: =IF($B38>0,VLOOKUP($B38,VSP_Fodermiddeldatabase!$A$3:$CP$489,19,),CHAR(32)) ->  | EU38: =IF($B38>0,VLOOKUP($B38,VSP_Fodermiddeldatabase!$A$3:$CP$489,20,),CHAR(32)) ->  | EV38: =IF($B38>0,VLOOKUP($B38,VSP_Fodermiddeldatabase!$A$3:$CP$489,21,),CHAR(32)) ->  | EW38: =IF($B38>0,VLOOKUP($B38,VSP_Fodermiddeldatabase!$A$3:$CP$489,22,),CHAR(32)) ->  | EX38: =IF($B38>0,VLOOKUP($B38,VSP_Fodermiddeldatabase!$A$3:$CP$489,23,),CHAR(32)) ->  | EY38: =IF($B38>0,VLOOKUP($B38,VSP_Fodermiddeldatabase!$A$3:$CP$489,25,),CHAR(32)) ->  | EZ38: =IF($B38>0,VLOOKUP($B38,VSP_Fodermiddeldatabase!$A$3:$CP$489,26,),CHAR(32)) ->  | FA38: =IF($B38>0,VLOOKUP($B38,VSP_Fodermiddeldatabase!$A$3:$CP$489,27,),CHAR(32)) ->  | FB38: =IF($B38>0,VLOOKUP($B38,VSP_Fodermiddeldatabase!$A$3:$CP$489,28,),CHAR(32)) ->  | FC38: =IF($B38>0,VLOOKUP($B38,VSP_Fodermiddeldatabase!$A$3:$CP$489,29,),CHAR(32)) ->  | FD38: =IF($B38>0,VLOOKUP($B38,VSP_Fodermiddeldatabase!$A$3:$CP$489,30,),CHAR(32)) ->  | FE38: =IF($B38>0,VLOOKUP($B38,VSP_Fodermiddeldatabase!$A$3:$CP$489,31,),CHAR(32)) ->  | FF38: =IF($B38>0,VLOOKUP($B38,VSP_Fodermiddeldatabase!$A$3:$CP$489,32,),CHAR(32)) ->  | FG38: =IF($B38>0,VLOOKUP($B38,VSP_Fodermiddeldatabase!$A$3:$CP$489,33,),CHAR(32)) ->  | FH38: =IF($B38>0,VLOOKUP($B38,VSP_Fodermiddeldatabase!$A$3:$CP$489,34,),CHAR(32)) ->  | FI38: =IF($B38>0,VLOOKUP($B38,VSP_Fodermiddeldatabase!$A$3:$CP$489,35,),CHAR(32)) ->  | FJ38: =IF($B38>0,VLOOKUP($B38,VSP_Fodermiddeldatabase!$A$3:$CP$489,36,),CHAR(32)) ->  | FK38: =IF($B38>0,VLOOKUP($B38,VSP_Fodermiddeldatabase!$A$3:$CP$489,37,),CHAR(32)) ->  | FM38: =IF($B38>0,VLOOKUP($B38,VSP_Fodermiddeldatabase!$A$3:$CP$489,74,),CHAR(32)) ->  | FN38: =IF($B38>0,VLOOKUP($B38,VSP_Fodermiddeldatabase!$A$3:$CP$489,75,),CHAR(32)) ->  | FO38: =IF($B38>0,VLOOKUP($B38,VSP_Fodermiddeldatabase!$A$3:$CP$489,76,),CHAR(32)) ->  | FP38: =IF($B38>0,VLOOKUP($B38,VSP_Fodermiddeldatabase!$A$3:$CP$489,77,),CHAR(32)) ->  | FQ38: =IF($B38>0,VLOOKUP($B38,VSP_Fodermiddeldatabase!$A$3:$CP$489,78,),CHAR(32)) ->  | FR38: =IF($B38>0,VLOOKUP($B38,VSP_Fodermiddeldatabase!$A$3:$CP$489,79,),CHAR(32)) ->  | FS38: =IF($B38>0,VLOOKUP($B38,VSP_Fodermiddeldatabase!$A$3:$CP$489,1,),CHAR(32)) ->  | FT38: =IF($B38>0,VLOOKUP($B38,VSP_Fodermiddeldatabase!$A$3:$CP$489,5,),CHAR(32)) ->  | FV38: =IF($A38<>"",100-VLOOKUP($B38,VSP_Fodermiddeldatabase!$A$3:$CP$489,12,)) -> FALSE | FW38: =IF($A38<>"",VLOOKUP($B38,VSP_Fodermiddeldatabase!$A$3:$CP$489,13,)) -> FALSE | FX38: =IF($A38<>"",VLOOKUP($B38,VSP_Fodermiddeldatabase!$A$3:$CP$489,14,)) -> FALSE | FY38: =IF($A38<>"",VLOOKUP($B38,VSP_Fodermiddeldatabase!$A$3:$CP$489,15,)) -> FALSE | FZ38: 0 | GA38: 0 | GB38: 0 | GC38: =IF($A38<>"",VLOOKUP($B38,VSP_Fodermiddeldatabase!$A$3:$CP$489,8,)) -> FALSE | GF38: =IF($A38<>"",VLOOKUP($B38,VSP_Fodermiddeldatabase!$A$3:$CP$489,9,)) -> FALSE | GG38: FALSE | GH38: -37.9403794 | GI38: -15.32467532 | GJ38: =IF($A38<>"",VLOOKUP($B38,VSP_Fodermiddeldatabase!$A$3:$CP$489,11,)) -> FALSE | GK38: 0 | GL38: 0 | GN38: -37.9403794 | GO38: -15.32467532 | GP38: 100 | GQ38: 100 | GR38: 0 | GS38: 0 | GT38: 18 | GU38: 0 | GV38: 0
P39: =IF(A39<>"",IF($B39>0,VLOOKUP($B39,VSP_Fodermiddeldatabase!$A$3:$CP$489,10,),CHAR(32)),"") ->  | Q39: =IF(A39<>"",IF($B39>0,VLOOKUP($B39,VSP_Fodermiddeldatabase!$A$3:$CP$489,11,),CHAR(32)),"") ->  | R39: 90 | BZ39: =IF($B39>0,VLOOKUP($B39,VSP_Fodermiddeldatabase!$A$3:$CP$489,12,),CHAR(32)) ->  | CB39: =IF($B39>0,VLOOKUP($B39,VSP_Fodermiddeldatabase!$A$3:$CP$489,13,),CHAR(32)) ->  | CC39: =IF($B39>0,VLOOKUP($B39,VSP_Fodermiddeldatabase!$A$3:$CP$489,14,),CHAR(32)) ->  | CD39: =IF($B39>0,VLOOKUP($B39,VSP_Fodermiddeldatabase!$A$3:$CP$489,15,),CHAR(32)) ->  | CE39: =IF($B39>0,VLOOKUP($B39,VSP_Fodermiddeldatabase!$A$3:$CP$489,16,),CHAR(32)) ->  | CG39: =IF($B39>0,VLOOKUP($B39,VSP_Fodermiddeldatabase!$A$3:$CP$489,8,),CHAR(32)) ->  | CH39: =IF($B39>0,VLOOKUP($B39,VSP_Fodermiddeldatabase!$A$3:$CP$489,9,),CHAR(32)) ->  | DM39: =IF($B39>0,VLOOKUP($B39,VSP_Fodermiddeldatabase!$A$3:$CP$489,18,),CHAR(32)) ->  | DN39: =IF($B39>0,VLOOKUP($B39,VSP_Fodermiddeldatabase!$A$3:$CP$489,39,),CHAR(32)) ->  | DO39: =IF($B39>0,VLOOKUP($B39,VSP_Fodermiddeldatabase!$A$3:$CP$489,40,),CHAR(32)) ->  | DP39: =IF($B39>0,VLOOKUP($B39,VSP_Fodermiddeldatabase!$A$3:$CP$489,41,),CHAR(32)) ->  | DQ39: =IF($B39>0,VLOOKUP($B39,VSP_Fodermiddeldatabase!$A$3:$CP$489,42,),CHAR(32)) ->  | DR39: =IF($B39>0,VLOOKUP($B39,VSP_Fodermiddeldatabase!$A$3:$CP$489,43,),CHAR(32)) ->  | DS39: =IF($B39>0,VLOOKUP($B39,VSP_Fodermiddeldatabase!$A$3:$CP$489,44,),CHAR(32)) ->  | DT39: =IF($B39>0,VLOOKUP($B39,VSP_Fodermiddeldatabase!$A$3:$CP$489,45,),CHAR(32)) ->  | DU39: =IF($B39>0,VLOOKUP($B39,VSP_Fodermiddeldatabase!$A$3:$CP$489,46,),CHAR(32)) ->  | DV39: =IF($B39>0,VLOOKUP($B39,VSP_Fodermiddeldatabase!$A$3:$CP$489,47,),CHAR(32)) ->  | DW39: =IF($B39>0,VLOOKUP($B39,VSP_Fodermiddeldatabase!$A$3:$CP$489,48,),CHAR(32)) ->  | DX39: =IF($B39>0,VLOOKUP($B39,VSP_Fodermiddeldatabase!$A$3:$CP$489,49,),CHAR(32)) ->  | DY39: =IF($B39>0,VLOOKUP($B39,VSP_Fodermiddeldatabase!$A$3:$CP$489,51,),CHAR(32)) ->  | DZ39: =IF($B39>0,VLOOKUP($B39,VSP_Fodermiddeldatabase!$A$3:$CP$489,52,),CHAR(32)) ->  | EA39: =IF($B39>0,VLOOKUP($B39,VSP_Fodermiddeldatabase!$A$3:$CP$489,53,),CHAR(32)) ->  | EB39: =IF($B39>0,VLOOKUP($B39,VSP_Fodermiddeldatabase!$A$3:$CP$489,54,),CHAR(32)) ->  | EC39: =IF($B39>0,VLOOKUP($B39,VSP_Fodermiddeldatabase!$A$3:$CP$489,55,),CHAR(32)) ->  | ED39: =IF($B39>0,VLOOKUP($B39,VSP_Fodermiddeldatabase!$A$3:$CP$489,56,),CHAR(32)) ->  | EE39: =IF($B39>0,VLOOKUP($B39,VSP_Fodermiddeldatabase!$A$3:$CP$489,57,),CHAR(32)) ->  | EF39: =IF($B39>0,VLOOKUP($B39,VSP_Fodermiddeldatabase!$A$3:$CP$489,58,),CHAR(32)) ->  | EG39: =IF($B39>0,VLOOKUP($B39,VSP_Fodermiddeldatabase!$A$3:$CP$489,59,),CHAR(32)) ->  | EH39: =IF($B39>0,VLOOKUP($B39,VSP_Fodermiddeldatabase!$A$3:$CP$489,60,),CHAR(32)) ->  | EI39: =IF($B39>0,VLOOKUP($B39,VSP_Fodermiddeldatabase!$A$3:$CP$489,61,),CHAR(32)) ->  | EJ39: =IF($B39>0,VLOOKUP($B39,VSP_Fodermiddeldatabase!$A$3:$CP$489,2,),CHAR(32)) ->  | EK39: =IF($B39>0,VLOOKUP($B39,VSP_Fodermiddeldatabase!$A$3:$CP$489,3,),CHAR(32)) ->  | EL39: =IF($B39>0,VLOOKUP($B39,VSP_Fodermiddeldatabase!$A$3:$CP$489,63,),CHAR(32)) ->  | EM39: =IF($B39>0,VLOOKUP($B39,VSP_Fodermiddeldatabase!$A$3:$CP$489,64,),CHAR(32)) ->  | EN39: =IF($B39>0,VLOOKUP($B39,VSP_Fodermiddeldatabase!$A$3:$CP$489,65,),CHAR(32)) ->  | EO39: =IF($B39>0,VLOOKUP($B39,VSP_Fodermiddeldatabase!$A$3:$CP$489,66,),CHAR(32)) ->  | EP39: =IF($B39>0,VLOOKUP($B39,VSP_Fodermiddeldatabase!$A$3:$CP$489,68,),CHAR(32)) ->  | EQ39: =IF($B39>0,VLOOKUP($B39,VSP_Fodermiddeldatabase!$A$3:$CP$489,69,),CHAR(32)) ->  | ER39: =IF($B39>0,VLOOKUP($B39,VSP_Fodermiddeldatabase!$A$3:$CP$489,70,),CHAR(32)) ->  | ES39: =IF($B39>0,VLOOKUP($B39,VSP_Fodermiddeldatabase!$A$3:$CP$489,71,),CHAR(32)) ->  | ET39: =IF($B39>0,VLOOKUP($B39,VSP_Fodermiddeldatabase!$A$3:$CP$489,19,),CHAR(32)) ->  | EU39: =IF($B39>0,VLOOKUP($B39,VSP_Fodermiddeldatabase!$A$3:$CP$489,20,),CHAR(32)) ->  | EV39: =IF($B39>0,VLOOKUP($B39,VSP_Fodermiddeldatabase!$A$3:$CP$489,21,),CHAR(32)) ->  | EW39: =IF($B39>0,VLOOKUP($B39,VSP_Fodermiddeldatabase!$A$3:$CP$489,22,),CHAR(32)) ->  | EX39: =IF($B39>0,VLOOKUP($B39,VSP_Fodermiddeldatabase!$A$3:$CP$489,23,),CHAR(32)) ->  | EY39: =IF($B39>0,VLOOKUP($B39,VSP_Fodermiddeldatabase!$A$3:$CP$489,25,),CHAR(32)) ->  | EZ39: =IF($B39>0,VLOOKUP($B39,VSP_Fodermiddeldatabase!$A$3:$CP$489,26,),CHAR(32)) ->  | FA39: =IF($B39>0,VLOOKUP($B39,VSP_Fodermiddeldatabase!$A$3:$CP$489,27,),CHAR(32)) ->  | FB39: =IF($B39>0,VLOOKUP($B39,VSP_Fodermiddeldatabase!$A$3:$CP$489,28,),CHAR(32)) ->  | FC39: =IF($B39>0,VLOOKUP($B39,VSP_Fodermiddeldatabase!$A$3:$CP$489,29,),CHAR(32)) ->  | FD39: =IF($B39>0,VLOOKUP($B39,VSP_Fodermiddeldatabase!$A$3:$CP$489,30,),CHAR(32)) ->  | FE39: =IF($B39>0,VLOOKUP($B39,VSP_Fodermiddeldatabase!$A$3:$CP$489,31,),CHAR(32)) ->  | FF39: =IF($B39>0,VLOOKUP($B39,VSP_Fodermiddeldatabase!$A$3:$CP$489,32,),CHAR(32)) ->  | FG39: =IF($B39>0,VLOOKUP($B39,VSP_Fodermiddeldatabase!$A$3:$CP$489,33,),CHAR(32)) ->  | FH39: =IF($B39>0,VLOOKUP($B39,VSP_Fodermiddeldatabase!$A$3:$CP$489,34,),CHAR(32)) ->  | FI39: =IF($B39>0,VLOOKUP($B39,VSP_Fodermiddeldatabase!$A$3:$CP$489,35,),CHAR(32)) ->  | FJ39: =IF($B39>0,VLOOKUP($B39,VSP_Fodermiddeldatabase!$A$3:$CP$489,36,),CHAR(32)) ->  | FK39: =IF($B39>0,VLOOKUP($B39,VSP_Fodermiddeldatabase!$A$3:$CP$489,37,),CHAR(32)) ->  | FM39: =IF($B39>0,VLOOKUP($B39,VSP_Fodermiddeldatabase!$A$3:$CP$489,74,),CHAR(32)) ->  | FN39: =IF($B39>0,VLOOKUP($B39,VSP_Fodermiddeldatabase!$A$3:$CP$489,75,),CHAR(32)) ->  | FO39: =IF($B39>0,VLOOKUP($B39,VSP_Fodermiddeldatabase!$A$3:$CP$489,76,),CHAR(32)) ->  | FP39: =IF($B39>0,VLOOKUP($B39,VSP_Fodermiddeldatabase!$A$3:$CP$489,77,),CHAR(32)) ->  | FQ39: =IF($B39>0,VLOOKUP($B39,VSP_Fodermiddeldatabase!$A$3:$CP$489,78,),CHAR(32)) ->  | FR39: =IF($B39>0,VLOOKUP($B39,VSP_Fodermiddeldatabase!$A$3:$CP$489,79,),CHAR(32)) ->  | FS39: =IF($B39>0,VLOOKUP($B39,VSP_Fodermiddeldatabase!$A$3:$CP$489,1,),CHAR(32)) ->  | FT39: =IF($B39>0,VLOOKUP($B39,VSP_Fodermiddeldatabase!$A$3:$CP$489,5,),CHAR(32)) ->  | FV39: =IF($A39<>"",100-VLOOKUP($B39,VSP_Fodermiddeldatabase!$A$3:$CP$489,12,)) -> FALSE | FW39: =IF($A39<>"",VLOOKUP($B39,VSP_Fodermiddeldatabase!$A$3:$CP$489,13,)) -> FALSE | FX39: =IF($A39<>"",VLOOKUP($B39,VSP_Fodermiddeldatabase!$A$3:$CP$489,14,)) -> FALSE | FY39: =IF($A39<>"",VLOOKUP($B39,VSP_Fodermiddeldatabase!$A$3:$CP$489,15,)) -> FALSE | FZ39: 0 | GA39: 0 | GB39: 0 | GC39: =IF($A39<>"",VLOOKUP($B39,VSP_Fodermiddeldatabase!$A$3:$CP$489,8,)) -> FALSE | GF39: =IF($A39<>"",VLOOKUP($B39,VSP_Fodermiddeldatabase!$A$3:$CP$489,9,)) -> FALSE | GG39: FALSE | GH39: -37.9403794 | GI39: -15.32467532 | GJ39: =IF($A39<>"",VLOOKUP($B39,VSP_Fodermiddeldatabase!$A$3:$CP$489,11,)) -> FALSE | GK39: 0 | GL39: 0 | GN39: -37.9403794 | GO39: -15.32467532 | GP39: 100 | GQ39: 100 | GR39: 0 | GS39: 0 | GT39: 18 | GU39: 0 | GV39: 0
P40: =IF(A40<>"",IF($B40>0,VLOOKUP($B40,VSP_Fodermiddeldatabase!$A$3:$CP$489,10,),CHAR(32)),"") ->  | Q40: =IF(A40<>"",IF($B40>0,VLOOKUP($B40,VSP_Fodermiddeldatabase!$A$3:$CP$489,11,),CHAR(32)),"") ->  | R40: 90 | BZ40: =IF($B40>0,VLOOKUP($B40,VSP_Fodermiddeldatabase!$A$3:$CP$489,12,),CHAR(32)) ->  | CB40: =IF($B40>0,VLOOKUP($B40,VSP_Fodermiddeldatabase!$A$3:$CP$489,13,),CHAR(32)) ->  | CC40: =IF($B40>0,VLOOKUP($B40,VSP_Fodermiddeldatabase!$A$3:$CP$489,14,),CHAR(32)) ->  | CD40: =IF($B40>0,VLOOKUP($B40,VSP_Fodermiddeldatabase!$A$3:$CP$489,15,),CHAR(32)) ->  | CE40: =IF($B40>0,VLOOKUP($B40,VSP_Fodermiddeldatabase!$A$3:$CP$489,16,),CHAR(32)) ->  | CG40: =IF($B40>0,VLOOKUP($B40,VSP_Fodermiddeldatabase!$A$3:$CP$489,8,),CHAR(32)) ->  | CH40: =IF($B40>0,VLOOKUP($B40,VSP_Fodermiddeldatabase!$A$3:$CP$489,9,),CHAR(32)) ->  | DM40: =IF($B40>0,VLOOKUP($B40,VSP_Fodermiddeldatabase!$A$3:$CP$489,18,),CHAR(32)) ->  | DN40: =IF($B40>0,VLOOKUP($B40,VSP_Fodermiddeldatabase!$A$3:$CP$489,39,),CHAR(32)) ->  | DO40: =IF($B40>0,VLOOKUP($B40,VSP_Fodermiddeldatabase!$A$3:$CP$489,40,),CHAR(32)) ->  | DP40: =IF($B40>0,VLOOKUP($B40,VSP_Fodermiddeldatabase!$A$3:$CP$489,41,),CHAR(32)) ->  | DQ40: =IF($B40>0,VLOOKUP($B40,VSP_Fodermiddeldatabase!$A$3:$CP$489,42,),CHAR(32)) ->  | DR40: =IF($B40>0,VLOOKUP($B40,VSP_Fodermiddeldatabase!$A$3:$CP$489,43,),CHAR(32)) ->  | DS40: =IF($B40>0,VLOOKUP($B40,VSP_Fodermiddeldatabase!$A$3:$CP$489,44,),CHAR(32)) ->  | DT40: =IF($B40>0,VLOOKUP($B40,VSP_Fodermiddeldatabase!$A$3:$CP$489,45,),CHAR(32)) ->  | DU40: =IF($B40>0,VLOOKUP($B40,VSP_Fodermiddeldatabase!$A$3:$CP$489,46,),CHAR(32)) ->  | DV40: =IF($B40>0,VLOOKUP($B40,VSP_Fodermiddeldatabase!$A$3:$CP$489,47,),CHAR(32)) ->  | DW40: =IF($B40>0,VLOOKUP($B40,VSP_Fodermiddeldatabase!$A$3:$CP$489,48,),CHAR(32)) ->  | DX40: =IF($B40>0,VLOOKUP($B40,VSP_Fodermiddeldatabase!$A$3:$CP$489,49,),CHAR(32)) ->  | DY40: =IF($B40>0,VLOOKUP($B40,VSP_Fodermiddeldatabase!$A$3:$CP$489,51,),CHAR(32)) ->  | DZ40: =IF($B40>0,VLOOKUP($B40,VSP_Fodermiddeldatabase!$A$3:$CP$489,52,),CHAR(32)) ->  | EA40: =IF($B40>0,VLOOKUP($B40,VSP_Fodermiddeldatabase!$A$3:$CP$489,53,),CHAR(32)) ->  | EB40: =IF($B40>0,VLOOKUP($B40,VSP_Fodermiddeldatabase!$A$3:$CP$489,54,),CHAR(32)) ->  | EC40: =IF($B40>0,VLOOKUP($B40,VSP_Fodermiddeldatabase!$A$3:$CP$489,55,),CHAR(32)) ->  | ED40: =IF($B40>0,VLOOKUP($B40,VSP_Fodermiddeldatabase!$A$3:$CP$489,56,),CHAR(32)) ->  | EE40: =IF($B40>0,VLOOKUP($B40,VSP_Fodermiddeldatabase!$A$3:$CP$489,57,),CHAR(32)) ->  | EF40: =IF($B40>0,VLOOKUP($B40,VSP_Fodermiddeldatabase!$A$3:$CP$489,58,),CHAR(32)) ->  | EG40: =IF($B40>0,VLOOKUP($B40,VSP_Fodermiddeldatabase!$A$3:$CP$489,59,),CHAR(32)) ->  | EH40: =IF($B40>0,VLOOKUP($B40,VSP_Fodermiddeldatabase!$A$3:$CP$489,60,),CHAR(32)) ->  | EI40: =IF($B40>0,VLOOKUP($B40,VSP_Fodermiddeldatabase!$A$3:$CP$489,61,),CHAR(32)) ->  | EJ40: =IF($B40>0,VLOOKUP($B40,VSP_Fodermiddeldatabase!$A$3:$CP$489,2,),CHAR(32)) ->  | EK40: =IF($B40>0,VLOOKUP($B40,VSP_Fodermiddeldatabase!$A$3:$CP$489,3,),CHAR(32)) ->  | EL40: =IF($B40>0,VLOOKUP($B40,VSP_Fodermiddeldatabase!$A$3:$CP$489,63,),CHAR(32)) ->  | EM40: =IF($B40>0,VLOOKUP($B40,VSP_Fodermiddeldatabase!$A$3:$CP$489,64,),CHAR(32)) ->  | EN40: =IF($B40>0,VLOOKUP($B40,VSP_Fodermiddeldatabase!$A$3:$CP$489,65,),CHAR(32)) ->  | EO40: =IF($B40>0,VLOOKUP($B40,VSP_Fodermiddeldatabase!$A$3:$CP$489,66,),CHAR(32)) ->  | EP40: =IF($B40>0,VLOOKUP($B40,VSP_Fodermiddeldatabase!$A$3:$CP$489,68,),CHAR(32)) ->  | EQ40: =IF($B40>0,VLOOKUP($B40,VSP_Fodermiddeldatabase!$A$3:$CP$489,69,),CHAR(32)) ->  | ER40: =IF($B40>0,VLOOKUP($B40,VSP_Fodermiddeldatabase!$A$3:$CP$489,70,),CHAR(32)) ->  | ES40: =IF($B40>0,VLOOKUP($B40,VSP_Fodermiddeldatabase!$A$3:$CP$489,71,),CHAR(32)) ->  | ET40: =IF($B40>0,VLOOKUP($B40,VSP_Fodermiddeldatabase!$A$3:$CP$489,19,),CHAR(32)) ->  | EU40: =IF($B40>0,VLOOKUP($B40,VSP_Fodermiddeldatabase!$A$3:$CP$489,20,),CHAR(32)) ->  | EV40: =IF($B40>0,VLOOKUP($B40,VSP_Fodermiddeldatabase!$A$3:$CP$489,21,),CHAR(32)) ->  | EW40: =IF($B40>0,VLOOKUP($B40,VSP_Fodermiddeldatabase!$A$3:$CP$489,22,),CHAR(32)) ->  | EX40: =IF($B40>0,VLOOKUP($B40,VSP_Fodermiddeldatabase!$A$3:$CP$489,23,),CHAR(32)) ->  | EY40: =IF($B40>0,VLOOKUP($B40,VSP_Fodermiddeldatabase!$A$3:$CP$489,25,),CHAR(32)) ->  | EZ40: =IF($B40>0,VLOOKUP($B40,VSP_Fodermiddeldatabase!$A$3:$CP$489,26,),CHAR(32)) ->  | FA40: =IF($B40>0,VLOOKUP($B40,VSP_Fodermiddeldatabase!$A$3:$CP$489,27,),CHAR(32)) ->  | FB40: =IF($B40>0,VLOOKUP($B40,VSP_Fodermiddeldatabase!$A$3:$CP$489,28,),CHAR(32)) ->  | FC40: =IF($B40>0,VLOOKUP($B40,VSP_Fodermiddeldatabase!$A$3:$CP$489,29,),CHAR(32)) ->  | FD40: =IF($B40>0,VLOOKUP($B40,VSP_Fodermiddeldatabase!$A$3:$CP$489,30,),CHAR(32)) ->  | FE40: =IF($B40>0,VLOOKUP($B40,VSP_Fodermiddeldatabase!$A$3:$CP$489,31,),CHAR(32)) ->  | FF40: =IF($B40>0,VLOOKUP($B40,VSP_Fodermiddeldatabase!$A$3:$CP$489,32,),CHAR(32)) ->  | FG40: =IF($B40>0,VLOOKUP($B40,VSP_Fodermiddeldatabase!$A$3:$CP$489,33,),CHAR(32)) ->  | FH40: =IF($B40>0,VLOOKUP($B40,VSP_Fodermiddeldatabase!$A$3:$CP$489,34,),CHAR(32)) ->  | FI40: =IF($B40>0,VLOOKUP($B40,VSP_Fodermiddeldatabase!$A$3:$CP$489,35,),CHAR(32)) ->  | FJ40: =IF($B40>0,VLOOKUP($B40,VSP_Fodermiddeldatabase!$A$3:$CP$489,36,),CHAR(32)) ->  | FK40: =IF($B40>0,VLOOKUP($B40,VSP_Fodermiddeldatabase!$A$3:$CP$489,37,),CHAR(32)) ->  | FM40: =IF($B40>0,VLOOKUP($B40,VSP_Fodermiddeldatabase!$A$3:$CP$489,74,),CHAR(32)) ->  | FN40: =IF($B40>0,VLOOKUP($B40,VSP_Fodermiddeldatabase!$A$3:$CP$489,75,),CHAR(32)) ->  | FO40: =IF($B40>0,VLOOKUP($B40,VSP_Fodermiddeldatabase!$A$3:$CP$489,76,),CHAR(32)) ->  | FP40: =IF($B40>0,VLOOKUP($B40,VSP_Fodermiddeldatabase!$A$3:$CP$489,77,),CHAR(32)) ->  | FQ40: =IF($B40>0,VLOOKUP($B40,VSP_Fodermiddeldatabase!$A$3:$CP$489,78,),CHAR(32)) ->  | FR40: =IF($B40>0,VLOOKUP($B40,VSP_Fodermiddeldatabase!$A$3:$CP$489,79,),CHAR(32)) ->  | FS40: =IF($B40>0,VLOOKUP($B40,VSP_Fodermiddeldatabase!$A$3:$CP$489,1,),CHAR(32)) ->  | FT40: =IF($B40>0,VLOOKUP($B40,VSP_Fodermiddeldatabase!$A$3:$CP$489,5,),CHAR(32)) ->  | FV40: =IF($A40<>"",100-VLOOKUP($B40,VSP_Fodermiddeldatabase!$A$3:$CP$489,12,)) -> FALSE | FW40: =IF($A40<>"",VLOOKUP($B40,VSP_Fodermiddeldatabase!$A$3:$CP$489,13,)) -> FALSE | FX40: =IF($A40<>"",VLOOKUP($B40,VSP_Fodermiddeldatabase!$A$3:$CP$489,14,)) -> FALSE | FY40: =IF($A40<>"",VLOOKUP($B40,VSP_Fodermiddeldatabase!$A$3:$CP$489,15,)) -> FALSE | FZ40: 0 | GA40: 0 | GB40: 0 | GC40: =IF($A40<>"",VLOOKUP($B40,VSP_Fodermiddeldatabase!$A$3:$CP$489,8,)) -> FALSE | GF40: =IF($A40<>"",VLOOKUP($B40,VSP_Fodermiddeldatabase!$A$3:$CP$489,9,)) -> FALSE | GG40: FALSE | GH40: -37.9403794 | GI40: -15.32467532 | GJ40: =IF($A40<>"",VLOOKUP($B40,VSP_Fodermiddeldatabase!$A$3:$CP$489,11,)) -> FALSE | GK40: 0 | GL40: 0 | GN40: -37.9403794 | GO40: -15.32467532 | GP40: 100 | GQ40: 100 | GR40: 0 | GS40: 0 | GT40: 18 | GU40: 0 | GV40: 0
P41: =IF(A41<>"",IF($B41>0,VLOOKUP($B41,VSP_Fodermiddeldatabase!$A$3:$CP$489,10,),CHAR(32)),"") ->  | Q41: =IF(A41<>"",IF($B41>0,VLOOKUP($B41,VSP_Fodermiddeldatabase!$A$3:$CP$489,11,),CHAR(32)),"") ->  | R41: 90 | BZ41: =IF($B41>0,VLOOKUP($B41,VSP_Fodermiddeldatabase!$A$3:$CP$489,12,),CHAR(32)) ->  | CB41: =IF($B41>0,VLOOKUP($B41,VSP_Fodermiddeldatabase!$A$3:$CP$489,13,),CHAR(32)) ->  | CC41: =IF($B41>0,VLOOKUP($B41,VSP_Fodermiddeldatabase!$A$3:$CP$489,14,),CHAR(32)) ->  | CD41: =IF($B41>0,VLOOKUP($B41,VSP_Fodermiddeldatabase!$A$3:$CP$489,15,),CHAR(32)) ->  | CE41: =IF($B41>0,VLOOKUP($B41,VSP_Fodermiddeldatabase!$A$3:$CP$489,16,),CHAR(32)) ->  | CG41: =IF($B41>0,VLOOKUP($B41,VSP_Fodermiddeldatabase!$A$3:$CP$489,8,),CHAR(32)) ->  | CH41: =IF($B41>0,VLOOKUP($B41,VSP_Fodermiddeldatabase!$A$3:$CP$489,9,),CHAR(32)) ->  | DM41: =IF($B41>0,VLOOKUP($B41,VSP_Fodermiddeldatabase!$A$3:$CP$489,18,),CHAR(32)) ->  | DN41: =IF($B41>0,VLOOKUP($B41,VSP_Fodermiddeldatabase!$A$3:$CP$489,39,),CHAR(32)) ->  | DO41: =IF($B41>0,VLOOKUP($B41,VSP_Fodermiddeldatabase!$A$3:$CP$489,40,),CHAR(32)) ->  | DP41: =IF($B41>0,VLOOKUP($B41,VSP_Fodermiddeldatabase!$A$3:$CP$489,41,),CHAR(32)) ->  | DQ41: =IF($B41>0,VLOOKUP($B41,VSP_Fodermiddeldatabase!$A$3:$CP$489,42,),CHAR(32)) ->  | DR41: =IF($B41>0,VLOOKUP($B41,VSP_Fodermiddeldatabase!$A$3:$CP$489,43,),CHAR(32)) ->  | DS41: =IF($B41>0,VLOOKUP($B41,VSP_Fodermiddeldatabase!$A$3:$CP$489,44,),CHAR(32)) ->  | DT41: =IF($B41>0,VLOOKUP($B41,VSP_Fodermiddeldatabase!$A$3:$CP$489,45,),CHAR(32)) ->  | DU41: =IF($B41>0,VLOOKUP($B41,VSP_Fodermiddeldatabase!$A$3:$CP$489,46,),CHAR(32)) ->  | DV41: =IF($B41>0,VLOOKUP($B41,VSP_Fodermiddeldatabase!$A$3:$CP$489,47,),CHAR(32)) ->  | DW41: =IF($B41>0,VLOOKUP($B41,VSP_Fodermiddeldatabase!$A$3:$CP$489,48,),CHAR(32)) ->  | DX41: =IF($B41>0,VLOOKUP($B41,VSP_Fodermiddeldatabase!$A$3:$CP$489,49,),CHAR(32)) ->  | DY41: =IF($B41>0,VLOOKUP($B41,VSP_Fodermiddeldatabase!$A$3:$CP$489,51,),CHAR(32)) ->  | DZ41: =IF($B41>0,VLOOKUP($B41,VSP_Fodermiddeldatabase!$A$3:$CP$489,52,),CHAR(32)) ->  | EA41: =IF($B41>0,VLOOKUP($B41,VSP_Fodermiddeldatabase!$A$3:$CP$489,53,),CHAR(32)) ->  | EB41: =IF($B41>0,VLOOKUP($B41,VSP_Fodermiddeldatabase!$A$3:$CP$489,54,),CHAR(32)) ->  | EC41: =IF($B41>0,VLOOKUP($B41,VSP_Fodermiddeldatabase!$A$3:$CP$489,55,),CHAR(32)) ->  | ED41: =IF($B41>0,VLOOKUP($B41,VSP_Fodermiddeldatabase!$A$3:$CP$489,56,),CHAR(32)) ->  | EE41: =IF($B41>0,VLOOKUP($B41,VSP_Fodermiddeldatabase!$A$3:$CP$489,57,),CHAR(32)) ->  | EF41: =IF($B41>0,VLOOKUP($B41,VSP_Fodermiddeldatabase!$A$3:$CP$489,58,),CHAR(32)) ->  | EG41: =IF($B41>0,VLOOKUP($B41,VSP_Fodermiddeldatabase!$A$3:$CP$489,59,),CHAR(32)) ->  | EH41: =IF($B41>0,VLOOKUP($B41,VSP_Fodermiddeldatabase!$A$3:$CP$489,60,),CHAR(32)) ->  | EI41: =IF($B41>0,VLOOKUP($B41,VSP_Fodermiddeldatabase!$A$3:$CP$489,61,),CHAR(32)) ->  | EJ41: =IF($B41>0,VLOOKUP($B41,VSP_Fodermiddeldatabase!$A$3:$CP$489,2,),CHAR(32)) ->  | EK41: =IF($B41>0,VLOOKUP($B41,VSP_Fodermiddeldatabase!$A$3:$CP$489,3,),CHAR(32)) ->  | EL41: =IF($B41>0,VLOOKUP($B41,VSP_Fodermiddeldatabase!$A$3:$CP$489,63,),CHAR(32)) ->  | EM41: =IF($B41>0,VLOOKUP($B41,VSP_Fodermiddeldatabase!$A$3:$CP$489,64,),CHAR(32)) ->  | EN41: =IF($B41>0,VLOOKUP($B41,VSP_Fodermiddeldatabase!$A$3:$CP$489,65,),CHAR(32)) ->  | EO41: =IF($B41>0,VLOOKUP($B41,VSP_Fodermiddeldatabase!$A$3:$CP$489,66,),CHAR(32)) ->  | EP41: =IF($B41>0,VLOOKUP($B41,VSP_Fodermiddeldatabase!$A$3:$CP$489,68,),CHAR(32)) ->  | EQ41: =IF($B41>0,VLOOKUP($B41,VSP_Fodermiddeldatabase!$A$3:$CP$489,69,),CHAR(32)) ->  | ER41: =IF($B41>0,VLOOKUP($B41,VSP_Fodermiddeldatabase!$A$3:$CP$489,70,),CHAR(32)) ->  | ES41: =IF($B41>0,VLOOKUP($B41,VSP_Fodermiddeldatabase!$A$3:$CP$489,71,),CHAR(32)) ->  | ET41: =IF($B41>0,VLOOKUP($B41,VSP_Fodermiddeldatabase!$A$3:$CP$489,19,),CHAR(32)) ->  | EU41: =IF($B41>0,VLOOKUP($B41,VSP_Fodermiddeldatabase!$A$3:$CP$489,20,),CHAR(32)) ->  | EV41: =IF($B41>0,VLOOKUP($B41,VSP_Fodermiddeldatabase!$A$3:$CP$489,21,),CHAR(32)) ->  | EW41: =IF($B41>0,VLOOKUP($B41,VSP_Fodermiddeldatabase!$A$3:$CP$489,22,),CHAR(32)) ->  | EX41: =IF($B41>0,VLOOKUP($B41,VSP_Fodermiddeldatabase!$A$3:$CP$489,23,),CHAR(32)) ->  | EY41: =IF($B41>0,VLOOKUP($B41,VSP_Fodermiddeldatabase!$A$3:$CP$489,25,),CHAR(32)) ->  | EZ41: =IF($B41>0,VLOOKUP($B41,VSP_Fodermiddeldatabase!$A$3:$CP$489,26,),CHAR(32)) ->  | FA41: =IF($B41>0,VLOOKUP($B41,VSP_Fodermiddeldatabase!$A$3:$CP$489,27,),CHAR(32)) ->  | FB41: =IF($B41>0,VLOOKUP($B41,VSP_Fodermiddeldatabase!$A$3:$CP$489,28,),CHAR(32)) ->  | FC41: =IF($B41>0,VLOOKUP($B41,VSP_Fodermiddeldatabase!$A$3:$CP$489,29,),CHAR(32)) ->  | FD41: =IF($B41>0,VLOOKUP($B41,VSP_Fodermiddeldatabase!$A$3:$CP$489,30,),CHAR(32)) ->  | FE41: =IF($B41>0,VLOOKUP($B41,VSP_Fodermiddeldatabase!$A$3:$CP$489,31,),CHAR(32)) ->  | FF41: =IF($B41>0,VLOOKUP($B41,VSP_Fodermiddeldatabase!$A$3:$CP$489,32,),CHAR(32)) ->  | FG41: =IF($B41>0,VLOOKUP($B41,VSP_Fodermiddeldatabase!$A$3:$CP$489,33,),CHAR(32)) ->  | FH41: =IF($B41>0,VLOOKUP($B41,VSP_Fodermiddeldatabase!$A$3:$CP$489,34,),CHAR(32)) ->  | FI41: =IF($B41>0,VLOOKUP($B41,VSP_Fodermiddeldatabase!$A$3:$CP$489,35,),CHAR(32)) ->  | FJ41: =IF($B41>0,VLOOKUP($B41,VSP_Fodermiddeldatabase!$A$3:$CP$489,36,),CHAR(32)) ->  | FK41: =IF($B41>0,VLOOKUP($B41,VSP_Fodermiddeldatabase!$A$3:$CP$489,37,),CHAR(32)) ->  | FM41: =IF($B41>0,VLOOKUP($B41,VSP_Fodermiddeldatabase!$A$3:$CP$489,74,),CHAR(32)) ->  | FN41: =IF($B41>0,VLOOKUP($B41,VSP_Fodermiddeldatabase!$A$3:$CP$489,75,),CHAR(32)) ->  | FO41: =IF($B41>0,VLOOKUP($B41,VSP_Fodermiddeldatabase!$A$3:$CP$489,76,),CHAR(32)) ->  | FP41: =IF($B41>0,VLOOKUP($B41,VSP_Fodermiddeldatabase!$A$3:$CP$489,77,),CHAR(32)) ->  | FQ41: =IF($B41>0,VLOOKUP($B41,VSP_Fodermiddeldatabase!$A$3:$CP$489,78,),CHAR(32)) ->  | FR41: =IF($B41>0,VLOOKUP($B41,VSP_Fodermiddeldatabase!$A$3:$CP$489,79,),CHAR(32)) ->  | FS41: =IF($B41>0,VLOOKUP($B41,VSP_Fodermiddeldatabase!$A$3:$CP$489,1,),CHAR(32)) ->  | FT41: =IF($B41>0,VLOOKUP($B41,VSP_Fodermiddeldatabase!$A$3:$CP$489,5,),CHAR(32)) ->  | FV41: =IF($A41<>"",100-VLOOKUP($B41,VSP_Fodermiddeldatabase!$A$3:$CP$489,12,),"") ->  | FW41: =IF($A41<>"",VLOOKUP($B41,VSP_Fodermiddeldatabase!$A$3:$CP$489,13,),"") ->  | FX41: =IF($A41<>"",VLOOKUP($B41,VSP_Fodermiddeldatabase!$A$3:$CP$489,14,),"") ->  | FY41: =IF($A41<>"",VLOOKUP($B41,VSP_Fodermiddeldatabase!$A$3:$CP$489,15,),"") ->  | FZ41: =IF(+FV41>-1,+FY41*100/(100-FV41),CHAR(32)) ->  | GA41: =IF(+FV41>-1,+FW41*100/(100-FV41),CHAR(32)) ->  | GB41: =IF(+FV41>-1,+FX41*100/(100-FV41),CHAR(32)) ->  | GC41: =IF($A41<>"",VLOOKUP($B41,VSP_Fodermiddeldatabase!$A$3:$CP$489,8,)) -> FALSE | GE41: =IF(GD41>0,+GC41*GD41/100,CHAR(32)) ->  | GF41: =IF($A41<>"",VLOOKUP($B41,VSP_Fodermiddeldatabase!$A$3:$CP$489,9,)) -> FALSE | GG41: =IF(GD41>0,+GE41,+GF41) -> FALSE | GH41: =+GN41/100*(100-$FV41) ->  | GI41: =+GO41/100*(100-$FV41) ->  | GJ41: =IF($A41<>"",VLOOKUP($B41,VSP_Fodermiddeldatabase!$A$3:$CP$489,11,)) -> FALSE | GK41: =+GH41*$GJ41 ->  | GL41: =+GI41*$GJ41 ->  | GN41: =(GA41*0.91*9.9+GB41*0.9*31.7+GR41*11.7+GS41*7-GP41*2.8)/7.38 ->  | GO41: =(GA41*0.91*9.9+GB41*0.9*31.7+GR41*11.7+GT41*9-GP41*2.8)/7.7 ->  | GP41: =GQ41*(100-GC41)/100+GS41+FZ41*0.3+0.07*GB41 ->  | GQ41: =100 - FZ41 ->  | GR41: =GQ41*GC41/100-GA41*0.91-GB41*0.97-GS41 ->  | GS41: =GQ41*(GC41-GG41)/70 ->  | GT41: =GS41+0.18*GQ41*(100-GC41)/100 ->  | GU41: =GN41*GJ41 ->  | GV41: =GO41*GJ41 -> 
P42: =IF(A42<>"",IF($B42>0,VLOOKUP($B42,VSP_Fodermiddeldatabase!$A$3:$CP$489,10,),CHAR(32)),"") ->  | Q42: =IF(A42<>"",IF($B42>0,VLOOKUP($B42,VSP_Fodermiddeldatabase!$A$3:$CP$489,11,),CHAR(32)),"") ->  | R42: 90 | BZ42: =IF($B42>0,VLOOKUP($B42,VSP_Fodermiddeldatabase!$A$3:$CP$489,12,),CHAR(32)) ->  | CB42: =IF($B42>0,VLOOKUP($B42,VSP_Fodermiddeldatabase!$A$3:$CP$489,13,),CHAR(32)) ->  | CC42: =IF($B42>0,VLOOKUP($B42,VSP_Fodermiddeldatabase!$A$3:$CP$489,14,),CHAR(32)) ->  | CD42: =IF($B42>0,VLOOKUP($B42,VSP_Fodermiddeldatabase!$A$3:$CP$489,15,),CHAR(32)) ->  | CE42: =IF($B42>0,VLOOKUP($B42,VSP_Fodermiddeldatabase!$A$3:$CP$489,16,),CHAR(32)) ->  | CG42: =IF($B42>0,VLOOKUP($B42,VSP_Fodermiddeldatabase!$A$3:$CP$489,8,),CHAR(32)) ->  | CH42: =IF($B42>0,VLOOKUP($B42,VSP_Fodermiddeldatabase!$A$3:$CP$489,9,),CHAR(32)) ->  | DM42: =IF($B42>0,VLOOKUP($B42,VSP_Fodermiddeldatabase!$A$3:$CP$489,18,),CHAR(32)) ->  | DN42: =IF($B42>0,VLOOKUP($B42,VSP_Fodermiddeldatabase!$A$3:$CP$489,39,),CHAR(32)) ->  | DO42: =IF($B42>0,VLOOKUP($B42,VSP_Fodermiddeldatabase!$A$3:$CP$489,40,),CHAR(32)) ->  | DP42: =IF($B42>0,VLOOKUP($B42,VSP_Fodermiddeldatabase!$A$3:$CP$489,41,),CHAR(32)) ->  | DQ42: =IF($B42>0,VLOOKUP($B42,VSP_Fodermiddeldatabase!$A$3:$CP$489,42,),CHAR(32)) ->  | DR42: =IF($B42>0,VLOOKUP($B42,VSP_Fodermiddeldatabase!$A$3:$CP$489,43,),CHAR(32)) ->  | DS42: =IF($B42>0,VLOOKUP($B42,VSP_Fodermiddeldatabase!$A$3:$CP$489,44,),CHAR(32)) ->  | DT42: =IF($B42>0,VLOOKUP($B42,VSP_Fodermiddeldatabase!$A$3:$CP$489,45,),CHAR(32)) ->  | DU42: =IF($B42>0,VLOOKUP($B42,VSP_Fodermiddeldatabase!$A$3:$CP$489,46,),CHAR(32)) ->  | DV42: =IF($B42>0,VLOOKUP($B42,VSP_Fodermiddeldatabase!$A$3:$CP$489,47,),CHAR(32)) ->  | DW42: =IF($B42>0,VLOOKUP($B42,VSP_Fodermiddeldatabase!$A$3:$CP$489,48,),CHAR(32)) ->  | DX42: =IF($B42>0,VLOOKUP($B42,VSP_Fodermiddeldatabase!$A$3:$CP$489,49,),CHAR(32)) ->  | DY42: =IF($B42>0,VLOOKUP($B42,VSP_Fodermiddeldatabase!$A$3:$CP$489,51,),CHAR(32)) ->  | DZ42: =IF($B42>0,VLOOKUP($B42,VSP_Fodermiddeldatabase!$A$3:$CP$489,52,),CHAR(32)) ->  | EA42: =IF($B42>0,VLOOKUP($B42,VSP_Fodermiddeldatabase!$A$3:$CP$489,53,),CHAR(32)) ->  | EB42: =IF($B42>0,VLOOKUP($B42,VSP_Fodermiddeldatabase!$A$3:$CP$489,54,),CHAR(32)) ->  | EC42: =IF($B42>0,VLOOKUP($B42,VSP_Fodermiddeldatabase!$A$3:$CP$489,55,),CHAR(32)) ->  | ED42: =IF($B42>0,VLOOKUP($B42,VSP_Fodermiddeldatabase!$A$3:$CP$489,56,),CHAR(32)) ->  | EE42: =IF($B42>0,VLOOKUP($B42,VSP_Fodermiddeldatabase!$A$3:$CP$489,57,),CHAR(32)) ->  | EF42: =IF($B42>0,VLOOKUP($B42,VSP_Fodermiddeldatabase!$A$3:$CP$489,58,),CHAR(32)) ->  | EG42: =IF($B42>0,VLOOKUP($B42,VSP_Fodermiddeldatabase!$A$3:$CP$489,59,),CHAR(32)) ->  | EH42: =IF($B42>0,VLOOKUP($B42,VSP_Fodermiddeldatabase!$A$3:$CP$489,60,),CHAR(32)) ->  | EI42: =IF($B42>0,VLOOKUP($B42,VSP_Fodermiddeldatabase!$A$3:$CP$489,61,),CHAR(32)) ->  | EJ42: =IF($B42>0,VLOOKUP($B42,VSP_Fodermiddeldatabase!$A$3:$CP$489,2,),CHAR(32)) ->  | EK42: =IF($B42>0,VLOOKUP($B42,VSP_Fodermiddeldatabase!$A$3:$CP$489,3,),CHAR(32)) ->  | EL42: =IF($B42>0,VLOOKUP($B42,VSP_Fodermiddeldatabase!$A$3:$CP$489,63,),CHAR(32)) ->  | EM42: =IF($B42>0,VLOOKUP($B42,VSP_Fodermiddeldatabase!$A$3:$CP$489,64,),CHAR(32)) ->  | EN42: =IF($B42>0,VLOOKUP($B42,VSP_Fodermiddeldatabase!$A$3:$CP$489,65,),CHAR(32)) ->  | EO42: =IF($B42>0,VLOOKUP($B42,VSP_Fodermiddeldatabase!$A$3:$CP$489,66,),CHAR(32)) ->  | EP42: =IF($B42>0,VLOOKUP($B42,VSP_Fodermiddeldatabase!$A$3:$CP$489,68,),CHAR(32)) ->  | EQ42: =IF($B42>0,VLOOKUP($B42,VSP_Fodermiddeldatabase!$A$3:$CP$489,69,),CHAR(32)) ->  | ER42: =IF($B42>0,VLOOKUP($B42,VSP_Fodermiddeldatabase!$A$3:$CP$489,70,),CHAR(32)) ->  | ES42: =IF($B42>0,VLOOKUP($B42,VSP_Fodermiddeldatabase!$A$3:$CP$489,71,),CHAR(32)) ->  | ET42: =IF($B42>0,VLOOKUP($B42,VSP_Fodermiddeldatabase!$A$3:$CP$489,19,),CHAR(32)) ->  | EU42: =IF($B42>0,VLOOKUP($B42,VSP_Fodermiddeldatabase!$A$3:$CP$489,20,),CHAR(32)) ->  | EV42: =IF($B42>0,VLOOKUP($B42,VSP_Fodermiddeldatabase!$A$3:$CP$489,21,),CHAR(32)) ->  | EW42: =IF($B42>0,VLOOKUP($B42,VSP_Fodermiddeldatabase!$A$3:$CP$489,22,),CHAR(32)) ->  | EX42: =IF($B42>0,VLOOKUP($B42,VSP_Fodermiddeldatabase!$A$3:$CP$489,23,),CHAR(32)) ->  | EY42: =IF($B42>0,VLOOKUP($B42,VSP_Fodermiddeldatabase!$A$3:$CP$489,25,),CHAR(32)) ->  | EZ42: =IF($B42>0,VLOOKUP($B42,VSP_Fodermiddeldatabase!$A$3:$CP$489,26,),CHAR(32)) ->  | FA42: =IF($B42>0,VLOOKUP($B42,VSP_Fodermiddeldatabase!$A$3:$CP$489,27,),CHAR(32)) ->  | FB42: =IF($B42>0,VLOOKUP($B42,VSP_Fodermiddeldatabase!$A$3:$CP$489,28,),CHAR(32)) ->  | FC42: =IF($B42>0,VLOOKUP($B42,VSP_Fodermiddeldatabase!$A$3:$CP$489,29,),CHAR(32)) ->  | FD42: =IF($B42>0,VLOOKUP($B42,VSP_Fodermiddeldatabase!$A$3:$CP$489,30,),CHAR(32)) ->  | FE42: =IF($B42>0,VLOOKUP($B42,VSP_Fodermiddeldatabase!$A$3:$CP$489,31,),CHAR(32)) ->  | FF42: =IF($B42>0,VLOOKUP($B42,VSP_Fodermiddeldatabase!$A$3:$CP$489,32,),CHAR(32)) ->  | FG42: =IF($B42>0,VLOOKUP($B42,VSP_Fodermiddeldatabase!$A$3:$CP$489,33,),CHAR(32)) ->  | FH42: =IF($B42>0,VLOOKUP($B42,VSP_Fodermiddeldatabase!$A$3:$CP$489,34,),CHAR(32)) ->  | FI42: =IF($B42>0,VLOOKUP($B42,VSP_Fodermiddeldatabase!$A$3:$CP$489,35,),CHAR(32)) ->  | FJ42: =IF($B42>0,VLOOKUP($B42,VSP_Fodermiddeldatabase!$A$3:$CP$489,36,),CHAR(32)) ->  | FK42: =IF($B42>0,VLOOKUP($B42,VSP_Fodermiddeldatabase!$A$3:$CP$489,37,),CHAR(32)) ->  | FM42: =IF($B42>0,VLOOKUP($B42,VSP_Fodermiddeldatabase!$A$3:$CP$489,74,),CHAR(32)) ->  | FN42: =IF($B42>0,VLOOKUP($B42,VSP_Fodermiddeldatabase!$A$3:$CP$489,75,),CHAR(32)) ->  | FO42: =IF($B42>0,VLOOKUP($B42,VSP_Fodermiddeldatabase!$A$3:$CP$489,76,),CHAR(32)) ->  | FP42: =IF($B42>0,VLOOKUP($B42,VSP_Fodermiddeldatabase!$A$3:$CP$489,77,),CHAR(32)) ->  | FQ42: =IF($B42>0,VLOOKUP($B42,VSP_Fodermiddeldatabase!$A$3:$CP$489,78,),CHAR(32)) ->  | FR42: =IF($B42>0,VLOOKUP($B42,VSP_Fodermiddeldatabase!$A$3:$CP$489,79,),CHAR(32)) ->  | FS42: =IF($B42>0,VLOOKUP($B42,VSP_Fodermiddeldatabase!$A$3:$CP$489,1,),CHAR(32)) ->  | FT42: =IF($B42>0,VLOOKUP($B42,VSP_Fodermiddeldatabase!$A$3:$CP$489,5,),CHAR(32)) ->  | FV42: =IF($A42<>"",100-VLOOKUP($B42,VSP_Fodermiddeldatabase!$A$3:$CP$489,12,),"") ->  | FW42: =IF($A42<>"",VLOOKUP($B42,VSP_Fodermiddeldatabase!$A$3:$CP$489,13,),"") ->  | FX42: =IF($A42<>"",VLOOKUP($B42,VSP_Fodermiddeldatabase!$A$3:$CP$489,14,),"") ->  | FY42: =IF($A42<>"",VLOOKUP($B42,VSP_Fodermiddeldatabase!$A$3:$CP$489,15,),"") ->  | GC42: =IF($A42<>"",VLOOKUP($B42,VSP_Fodermiddeldatabase!$A$3:$CP$489,8,)) -> FALSE | GF42: =IF($A42<>"",VLOOKUP($B42,VSP_Fodermiddeldatabase!$A$3:$CP$489,9,)) -> FALSE | GG42: FALSE | GJ42: =IF($A42<>"",VLOOKUP($B42,VSP_Fodermiddeldatabase!$A$3:$CP$489,11,)) -> FALSE
P43: =IF(A43<>"",IF($B43>0,VLOOKUP($B43,VSP_Fodermiddeldatabase!$A$3:$CP$489,10,),CHAR(32)),"") ->  | Q43: =IF(A43<>"",IF($B43>0,VLOOKUP($B43,VSP_Fodermiddeldatabase!$A$3:$CP$489,11,),CHAR(32)),"") ->  | R43: 90 | BZ43: =IF($B43>0,VLOOKUP($B43,VSP_Fodermiddeldatabase!$A$3:$CP$489,12,),CHAR(32)) ->  | CB43: =IF($B43>0,VLOOKUP($B43,VSP_Fodermiddeldatabase!$A$3:$CP$489,13,),CHAR(32)) ->  | CC43: =IF($B43>0,VLOOKUP($B43,VSP_Fodermiddeldatabase!$A$3:$CP$489,14,),CHAR(32)) ->  | CD43: =IF($B43>0,VLOOKUP($B43,VSP_Fodermiddeldatabase!$A$3:$CP$489,15,),CHAR(32)) ->  | CE43: =IF($B43>0,VLOOKUP($B43,VSP_Fodermiddeldatabase!$A$3:$CP$489,16,),CHAR(32)) ->  | CG43: =IF($B43>0,VLOOKUP($B43,VSP_Fodermiddeldatabase!$A$3:$CP$489,8,),CHAR(32)) ->  | CH43: =IF($B43>0,VLOOKUP($B43,VSP_Fodermiddeldatabase!$A$3:$CP$489,9,),CHAR(32)) ->  | DM43: =IF($B43>0,VLOOKUP($B43,VSP_Fodermiddeldatabase!$A$3:$CP$489,18,),CHAR(32)) ->  | DN43: =IF($B43>0,VLOOKUP($B43,VSP_Fodermiddeldatabase!$A$3:$CP$489,39,),CHAR(32)) ->  | DO43: =IF($B43>0,VLOOKUP($B43,VSP_Fodermiddeldatabase!$A$3:$CP$489,40,),CHAR(32)) ->  | DP43: =IF($B43>0,VLOOKUP($B43,VSP_Fodermiddeldatabase!$A$3:$CP$489,41,),CHAR(32)) ->  | DQ43: =IF($B43>0,VLOOKUP($B43,VSP_Fodermiddeldatabase!$A$3:$CP$489,42,),CHAR(32)) ->  | DR43: =IF($B43>0,VLOOKUP($B43,VSP_Fodermiddeldatabase!$A$3:$CP$489,43,),CHAR(32)) ->  | DS43: =IF($B43>0,VLOOKUP($B43,VSP_Fodermiddeldatabase!$A$3:$CP$489,44,),CHAR(32)) ->  | DT43: =IF($B43>0,VLOOKUP($B43,VSP_Fodermiddeldatabase!$A$3:$CP$489,45,),CHAR(32)) ->  | DU43: =IF($B43>0,VLOOKUP($B43,VSP_Fodermiddeldatabase!$A$3:$CP$489,46,),CHAR(32)) ->  | DV43: =IF($B43>0,VLOOKUP($B43,VSP_Fodermiddeldatabase!$A$3:$CP$489,47,),CHAR(32)) ->  | DW43: =IF($B43>0,VLOOKUP($B43,VSP_Fodermiddeldatabase!$A$3:$CP$489,48,),CHAR(32)) ->  | DX43: =IF($B43>0,VLOOKUP($B43,VSP_Fodermiddeldatabase!$A$3:$CP$489,49,),CHAR(32)) ->  | DY43: =IF($B43>0,VLOOKUP($B43,VSP_Fodermiddeldatabase!$A$3:$CP$489,51,),CHAR(32)) ->  | DZ43: =IF($B43>0,VLOOKUP($B43,VSP_Fodermiddeldatabase!$A$3:$CP$489,52,),CHAR(32)) ->  | EA43: =IF($B43>0,VLOOKUP($B43,VSP_Fodermiddeldatabase!$A$3:$CP$489,53,),CHAR(32)) ->  | EB43: =IF($B43>0,VLOOKUP($B43,VSP_Fodermiddeldatabase!$A$3:$CP$489,54,),CHAR(32)) ->  | EC43: =IF($B43>0,VLOOKUP($B43,VSP_Fodermiddeldatabase!$A$3:$CP$489,55,),CHAR(32)) ->  | ED43: =IF($B43>0,VLOOKUP($B43,VSP_Fodermiddeldatabase!$A$3:$CP$489,56,),CHAR(32)) ->  | EE43: =IF($B43>0,VLOOKUP($B43,VSP_Fodermiddeldatabase!$A$3:$CP$489,57,),CHAR(32)) ->  | EF43: =IF($B43>0,VLOOKUP($B43,VSP_Fodermiddeldatabase!$A$3:$CP$489,58,),CHAR(32)) ->  | EG43: =IF($B43>0,VLOOKUP($B43,VSP_Fodermiddeldatabase!$A$3:$CP$489,59,),CHAR(32)) ->  | EH43: =IF($B43>0,VLOOKUP($B43,VSP_Fodermiddeldatabase!$A$3:$CP$489,60,),CHAR(32)) ->  | EI43: =IF($B43>0,VLOOKUP($B43,VSP_Fodermiddeldatabase!$A$3:$CP$489,61,),CHAR(32)) ->  | EJ43: =IF($B43>0,VLOOKUP($B43,VSP_Fodermiddeldatabase!$A$3:$CP$489,2,),CHAR(32)) ->  | EK43: =IF($B43>0,VLOOKUP($B43,VSP_Fodermiddeldatabase!$A$3:$CP$489,3,),CHAR(32)) ->  | EL43: =IF($B43>0,VLOOKUP($B43,VSP_Fodermiddeldatabase!$A$3:$CP$489,63,),CHAR(32)) ->  | EM43: =IF($B43>0,VLOOKUP($B43,VSP_Fodermiddeldatabase!$A$3:$CP$489,64,),CHAR(32)) ->  | EN43: =IF($B43>0,VLOOKUP($B43,VSP_Fodermiddeldatabase!$A$3:$CP$489,65,),CHAR(32)) ->  | EO43: =IF($B43>0,VLOOKUP($B43,VSP_Fodermiddeldatabase!$A$3:$CP$489,66,),CHAR(32)) ->  | EP43: =IF($B43>0,VLOOKUP($B43,VSP_Fodermiddeldatabase!$A$3:$CP$489,68,),CHAR(32)) ->  | EQ43: =IF($B43>0,VLOOKUP($B43,VSP_Fodermiddeldatabase!$A$3:$CP$489,69,),CHAR(32)) ->  | ER43: =IF($B43>0,VLOOKUP($B43,VSP_Fodermiddeldatabase!$A$3:$CP$489,70,),CHAR(32)) ->  | ES43: =IF($B43>0,VLOOKUP($B43,VSP_Fodermiddeldatabase!$A$3:$CP$489,71,),CHAR(32)) ->  | ET43: =IF($B43>0,VLOOKUP($B43,VSP_Fodermiddeldatabase!$A$3:$CP$489,19,),CHAR(32)) ->  | EU43: =IF($B43>0,VLOOKUP($B43,VSP_Fodermiddeldatabase!$A$3:$CP$489,20,),CHAR(32)) ->  | EV43: =IF($B43>0,VLOOKUP($B43,VSP_Fodermiddeldatabase!$A$3:$CP$489,21,),CHAR(32)) ->  | EW43: =IF($B43>0,VLOOKUP($B43,VSP_Fodermiddeldatabase!$A$3:$CP$489,22,),CHAR(32)) ->  | EX43: =IF($B43>0,VLOOKUP($B43,VSP_Fodermiddeldatabase!$A$3:$CP$489,23,),CHAR(32)) ->  | EY43: =IF($B43>0,VLOOKUP($B43,VSP_Fodermiddeldatabase!$A$3:$CP$489,25,),CHAR(32)) ->  | EZ43: =IF($B43>0,VLOOKUP($B43,VSP_Fodermiddeldatabase!$A$3:$CP$489,26,),CHAR(32)) ->  | FA43: =IF($B43>0,VLOOKUP($B43,VSP_Fodermiddeldatabase!$A$3:$CP$489,27,),CHAR(32)) ->  | FB43: =IF($B43>0,VLOOKUP($B43,VSP_Fodermiddeldatabase!$A$3:$CP$489,28,),CHAR(32)) ->  | FC43: =IF($B43>0,VLOOKUP($B43,VSP_Fodermiddeldatabase!$A$3:$CP$489,29,),CHAR(32)) ->  | FD43: =IF($B43>0,VLOOKUP($B43,VSP_Fodermiddeldatabase!$A$3:$CP$489,30,),CHAR(32)) ->  | FE43: =IF($B43>0,VLOOKUP($B43,VSP_Fodermiddeldatabase!$A$3:$CP$489,31,),CHAR(32)) ->  | FF43: =IF($B43>0,VLOOKUP($B43,VSP_Fodermiddeldatabase!$A$3:$CP$489,32,),CHAR(32)) ->  | FG43: =IF($B43>0,VLOOKUP($B43,VSP_Fodermiddeldatabase!$A$3:$CP$489,33,),CHAR(32)) ->  | FH43: =IF($B43>0,VLOOKUP($B43,VSP_Fodermiddeldatabase!$A$3:$CP$489,34,),CHAR(32)) ->  | FI43: =IF($B43>0,VLOOKUP($B43,VSP_Fodermiddeldatabase!$A$3:$CP$489,35,),CHAR(32)) ->  | FJ43: =IF($B43>0,VLOOKUP($B43,VSP_Fodermiddeldatabase!$A$3:$CP$489,36,),CHAR(32)) ->  | FK43: =IF($B43>0,VLOOKUP($B43,VSP_Fodermiddeldatabase!$A$3:$CP$489,37,),CHAR(32)) ->  | FM43: =IF($B43>0,VLOOKUP($B43,VSP_Fodermiddeldatabase!$A$3:$CP$489,74,),CHAR(32)) ->  | FN43: =IF($B43>0,VLOOKUP($B43,VSP_Fodermiddeldatabase!$A$3:$CP$489,75,),CHAR(32)) ->  | FO43: =IF($B43>0,VLOOKUP($B43,VSP_Fodermiddeldatabase!$A$3:$CP$489,76,),CHAR(32)) ->  | FP43: =IF($B43>0,VLOOKUP($B43,VSP_Fodermiddeldatabase!$A$3:$CP$489,77,),CHAR(32)) ->  | FQ43: =IF($B43>0,VLOOKUP($B43,VSP_Fodermiddeldatabase!$A$3:$CP$489,78,),CHAR(32)) ->  | FR43: =IF($B43>0,VLOOKUP($B43,VSP_Fodermiddeldatabase!$A$3:$CP$489,79,),CHAR(32)) ->  | FS43: =IF($B43>0,VLOOKUP($B43,VSP_Fodermiddeldatabase!$A$3:$CP$489,1,),CHAR(32)) ->  | FT43: =IF($B43>0,VLOOKUP($B43,VSP_Fodermiddeldatabase!$A$3:$CP$489,5,),CHAR(32)) ->  | FV43: =IF($A43<>"",100-VLOOKUP($B43,VSP_Fodermiddeldatabase!$A$3:$CP$489,12,),"") ->  | FW43: =IF($A43<>"",VLOOKUP($B43,VSP_Fodermiddeldatabase!$A$3:$CP$489,13,),"") ->  | FX43: =IF($A43<>"",VLOOKUP($B43,VSP_Fodermiddeldatabase!$A$3:$CP$489,14,),"") ->  | FY43: =IF($A43<>"",VLOOKUP($B43,VSP_Fodermiddeldatabase!$A$3:$CP$489,15,),"") ->  | GC43: =IF($A43<>"",VLOOKUP($B43,VSP_Fodermiddeldatabase!$A$3:$CP$489,8,)) -> FALSE | GF43: =IF($A43<>"",VLOOKUP($B43,VSP_Fodermiddeldatabase!$A$3:$CP$489,9,)) -> FALSE | GG43: FALSE | GJ43: =IF($A43<>"",VLOOKUP($B43,VSP_Fodermiddeldatabase!$A$3:$CP$489,11,)) -> FALSE
P44: =IF(A44<>"",IF($B44>0,VLOOKUP($B44,VSP_Fodermiddeldatabase!$A$3:$CP$489,10,),CHAR(32)),"") ->  | Q44: =IF(A44<>"",IF($B44>0,VLOOKUP($B44,VSP_Fodermiddeldatabase!$A$3:$CP$489,11,),CHAR(32)),"") ->  | R44: 90 | BZ44: =IF($B44>0,VLOOKUP($B44,VSP_Fodermiddeldatabase!$A$3:$CP$489,12,),CHAR(32)) ->  | CB44: =IF($B44>0,VLOOKUP($B44,VSP_Fodermiddeldatabase!$A$3:$CP$489,13,),CHAR(32)) ->  | CC44: =IF($B44>0,VLOOKUP($B44,VSP_Fodermiddeldatabase!$A$3:$CP$489,14,),CHAR(32)) ->  | CD44: =IF($B44>0,VLOOKUP($B44,VSP_Fodermiddeldatabase!$A$3:$CP$489,15,),CHAR(32)) ->  | CE44: =IF($B44>0,VLOOKUP($B44,VSP_Fodermiddeldatabase!$A$3:$CP$489,16,),CHAR(32)) ->  | CG44: =IF($B44>0,VLOOKUP($B44,VSP_Fodermiddeldatabase!$A$3:$CP$489,8,),CHAR(32)) ->  | CH44: =IF($B44>0,VLOOKUP($B44,VSP_Fodermiddeldatabase!$A$3:$CP$489,9,),CHAR(32)) ->  | DM44: =IF($B44>0,VLOOKUP($B44,VSP_Fodermiddeldatabase!$A$3:$CP$489,18,),CHAR(32)) ->  | DN44: =IF($B44>0,VLOOKUP($B44,VSP_Fodermiddeldatabase!$A$3:$CP$489,39,),CHAR(32)) ->  | DO44: =IF($B44>0,VLOOKUP($B44,VSP_Fodermiddeldatabase!$A$3:$CP$489,40,),CHAR(32)) ->  | DP44: =IF($B44>0,VLOOKUP($B44,VSP_Fodermiddeldatabase!$A$3:$CP$489,41,),CHAR(32)) ->  | DQ44: =IF($B44>0,VLOOKUP($B44,VSP_Fodermiddeldatabase!$A$3:$CP$489,42,),CHAR(32)) ->  | DR44: =IF($B44>0,VLOOKUP($B44,VSP_Fodermiddeldatabase!$A$3:$CP$489,43,),CHAR(32)) ->  | DS44: =IF($B44>0,VLOOKUP($B44,VSP_Fodermiddeldatabase!$A$3:$CP$489,44,),CHAR(32)) ->  | DT44: =IF($B44>0,VLOOKUP($B44,VSP_Fodermiddeldatabase!$A$3:$CP$489,45,),CHAR(32)) ->  | DU44: =IF($B44>0,VLOOKUP($B44,VSP_Fodermiddeldatabase!$A$3:$CP$489,46,),CHAR(32)) ->  | DV44: =IF($B44>0,VLOOKUP($B44,VSP_Fodermiddeldatabase!$A$3:$CP$489,47,),CHAR(32)) ->  | DW44: =IF($B44>0,VLOOKUP($B44,VSP_Fodermiddeldatabase!$A$3:$CP$489,48,),CHAR(32)) ->  | DX44: =IF($B44>0,VLOOKUP($B44,VSP_Fodermiddeldatabase!$A$3:$CP$489,49,),CHAR(32)) ->  | DY44: =IF($B44>0,VLOOKUP($B44,VSP_Fodermiddeldatabase!$A$3:$CP$489,51,),CHAR(32)) ->  | DZ44: =IF($B44>0,VLOOKUP($B44,VSP_Fodermiddeldatabase!$A$3:$CP$489,52,),CHAR(32)) ->  | EA44: =IF($B44>0,VLOOKUP($B44,VSP_Fodermiddeldatabase!$A$3:$CP$489,53,),CHAR(32)) ->  | EB44: =IF($B44>0,VLOOKUP($B44,VSP_Fodermiddeldatabase!$A$3:$CP$489,54,),CHAR(32)) ->  | EC44: =IF($B44>0,VLOOKUP($B44,VSP_Fodermiddeldatabase!$A$3:$CP$489,55,),CHAR(32)) ->  | ED44: =IF($B44>0,VLOOKUP($B44,VSP_Fodermiddeldatabase!$A$3:$CP$489,56,),CHAR(32)) ->  | EE44: =IF($B44>0,VLOOKUP($B44,VSP_Fodermiddeldatabase!$A$3:$CP$489,57,),CHAR(32)) ->  | EF44: =IF($B44>0,VLOOKUP($B44,VSP_Fodermiddeldatabase!$A$3:$CP$489,58,),CHAR(32)) ->  | EG44: =IF($B44>0,VLOOKUP($B44,VSP_Fodermiddeldatabase!$A$3:$CP$489,59,),CHAR(32)) ->  | EH44: =IF($B44>0,VLOOKUP($B44,VSP_Fodermiddeldatabase!$A$3:$CP$489,60,),CHAR(32)) ->  | EI44: =IF($B44>0,VLOOKUP($B44,VSP_Fodermiddeldatabase!$A$3:$CP$489,61,),CHAR(32)) ->  | EJ44: =IF($B44>0,VLOOKUP($B44,VSP_Fodermiddeldatabase!$A$3:$CP$489,2,),CHAR(32)) ->  | EK44: =IF($B44>0,VLOOKUP($B44,VSP_Fodermiddeldatabase!$A$3:$CP$489,3,),CHAR(32)) ->  | EL44: =IF($B44>0,VLOOKUP($B44,VSP_Fodermiddeldatabase!$A$3:$CP$489,63,),CHAR(32)) ->  | EM44: =IF($B44>0,VLOOKUP($B44,VSP_Fodermiddeldatabase!$A$3:$CP$489,64,),CHAR(32)) ->  | EN44: =IF($B44>0,VLOOKUP($B44,VSP_Fodermiddeldatabase!$A$3:$CP$489,65,),CHAR(32)) ->  | EO44: =IF($B44>0,VLOOKUP($B44,VSP_Fodermiddeldatabase!$A$3:$CP$489,66,),CHAR(32)) ->  | EP44: =IF($B44>0,VLOOKUP($B44,VSP_Fodermiddeldatabase!$A$3:$CP$489,68,),CHAR(32)) ->  | EQ44: =IF($B44>0,VLOOKUP($B44,VSP_Fodermiddeldatabase!$A$3:$CP$489,69,),CHAR(32)) ->  | ER44: =IF($B44>0,VLOOKUP($B44,VSP_Fodermiddeldatabase!$A$3:$CP$489,70,),CHAR(32)) ->  | ES44: =IF($B44>0,VLOOKUP($B44,VSP_Fodermiddeldatabase!$A$3:$CP$489,71,),CHAR(32)) ->  | ET44: =IF($B44>0,VLOOKUP($B44,VSP_Fodermiddeldatabase!$A$3:$CP$489,19,),CHAR(32)) ->  | EU44: =IF($B44>0,VLOOKUP($B44,VSP_Fodermiddeldatabase!$A$3:$CP$489,20,),CHAR(32)) ->  | EV44: =IF($B44>0,VLOOKUP($B44,VSP_Fodermiddeldatabase!$A$3:$CP$489,21,),CHAR(32)) ->  | EW44: =IF($B44>0,VLOOKUP($B44,VSP_Fodermiddeldatabase!$A$3:$CP$489,22,),CHAR(32)) ->  | EX44: =IF($B44>0,VLOOKUP($B44,VSP_Fodermiddeldatabase!$A$3:$CP$489,23,),CHAR(32)) ->  | EY44: =IF($B44>0,VLOOKUP($B44,VSP_Fodermiddeldatabase!$A$3:$CP$489,25,),CHAR(32)) ->  | EZ44: =IF($B44>0,VLOOKUP($B44,VSP_Fodermiddeldatabase!$A$3:$CP$489,26,),CHAR(32)) ->  | FA44: =IF($B44>0,VLOOKUP($B44,VSP_Fodermiddeldatabase!$A$3:$CP$489,27,),CHAR(32)) ->  | FB44: =IF($B44>0,VLOOKUP($B44,VSP_Fodermiddeldatabase!$A$3:$CP$489,28,),CHAR(32)) ->  | FC44: =IF($B44>0,VLOOKUP($B44,VSP_Fodermiddeldatabase!$A$3:$CP$489,29,),CHAR(32)) ->  | FD44: =IF($B44>0,VLOOKUP($B44,VSP_Fodermiddeldatabase!$A$3:$CP$489,30,),CHAR(32)) ->  | FE44: =IF($B44>0,VLOOKUP($B44,VSP_Fodermiddeldatabase!$A$3:$CP$489,31,),CHAR(32)) ->  | FF44: =IF($B44>0,VLOOKUP($B44,VSP_Fodermiddeldatabase!$A$3:$CP$489,32,),CHAR(32)) ->  | FG44: =IF($B44>0,VLOOKUP($B44,VSP_Fodermiddeldatabase!$A$3:$CP$489,33,),CHAR(32)) ->  | FH44: =IF($B44>0,VLOOKUP($B44,VSP_Fodermiddeldatabase!$A$3:$CP$489,34,),CHAR(32)) ->  | FI44: =IF($B44>0,VLOOKUP($B44,VSP_Fodermiddeldatabase!$A$3:$CP$489,35,),CHAR(32)) ->  | FJ44: =IF($B44>0,VLOOKUP($B44,VSP_Fodermiddeldatabase!$A$3:$CP$489,36,),CHAR(32)) ->  | FK44: =IF($B44>0,VLOOKUP($B44,VSP_Fodermiddeldatabase!$A$3:$CP$489,37,),CHAR(32)) ->  | FM44: =IF($B44>0,VLOOKUP($B44,VSP_Fodermiddeldatabase!$A$3:$CP$489,74,),CHAR(32)) ->  | FN44: =IF($B44>0,VLOOKUP($B44,VSP_Fodermiddeldatabase!$A$3:$CP$489,75,),CHAR(32)) ->  | FO44: =IF($B44>0,VLOOKUP($B44,VSP_Fodermiddeldatabase!$A$3:$CP$489,76,),CHAR(32)) ->  | FP44: =IF($B44>0,VLOOKUP($B44,VSP_Fodermiddeldatabase!$A$3:$CP$489,77,),CHAR(32)) ->  | FQ44: =IF($B44>0,VLOOKUP($B44,VSP_Fodermiddeldatabase!$A$3:$CP$489,78,),CHAR(32)) ->  | FR44: =IF($B44>0,VLOOKUP($B44,VSP_Fodermiddeldatabase!$A$3:$CP$489,79,),CHAR(32)) ->  | FS44: =IF($B44>0,VLOOKUP($B44,VSP_Fodermiddeldatabase!$A$3:$CP$489,1,),CHAR(32)) ->  | FT44: =IF($B44>0,VLOOKUP($B44,VSP_Fodermiddeldatabase!$A$3:$CP$489,5,),CHAR(32)) ->  | FV44: =IF($A44<>"",100-VLOOKUP($B44,VSP_Fodermiddeldatabase!$A$3:$CP$489,12,),"") ->  | FW44: =IF($A44<>"",VLOOKUP($B44,VSP_Fodermiddeldatabase!$A$3:$CP$489,13,),"") ->  | FX44: =IF($A44<>"",VLOOKUP($B44,VSP_Fodermiddeldatabase!$A$3:$CP$489,14,),"") ->  | FY44: =IF($A44<>"",VLOOKUP($B44,VSP_Fodermiddeldatabase!$A$3:$CP$489,15,),"") ->  | GC44: =IF($A44<>"",VLOOKUP($B44,VSP_Fodermiddeldatabase!$A$3:$CP$489,8,)) -> FALSE | GF44: =IF($A44<>"",VLOOKUP($B44,VSP_Fodermiddeldatabase!$A$3:$CP$489,9,)) -> FALSE | GG44: FALSE | GJ44: =IF($A44<>"",VLOOKUP($B44,VSP_Fodermiddeldatabase!$A$3:$CP$489,11,)) -> FALSE
P45: =IF(A45<>"",IF($B45>0,VLOOKUP($B45,VSP_Fodermiddeldatabase!$A$3:$CP$489,10,),CHAR(32)),"") ->  | Q45: =IF(A45<>"",IF($B45>0,VLOOKUP($B45,VSP_Fodermiddeldatabase!$A$3:$CP$489,11,),CHAR(32)),"") ->  | R45: 90 | BZ45: =IF($B45>0,VLOOKUP($B45,VSP_Fodermiddeldatabase!$A$3:$CP$489,12,),CHAR(32)) ->  | CB45: =IF($B45>0,VLOOKUP($B45,VSP_Fodermiddeldatabase!$A$3:$CP$489,13,),CHAR(32)) ->  | CC45: =IF($B45>0,VLOOKUP($B45,VSP_Fodermiddeldatabase!$A$3:$CP$489,14,),CHAR(32)) ->  | CD45: =IF($B45>0,VLOOKUP($B45,VSP_Fodermiddeldatabase!$A$3:$CP$489,15,),CHAR(32)) ->  | CE45: =IF($B45>0,VLOOKUP($B45,VSP_Fodermiddeldatabase!$A$3:$CP$489,16,),CHAR(32)) ->  | CG45: =IF($B45>0,VLOOKUP($B45,VSP_Fodermiddeldatabase!$A$3:$CP$489,8,),CHAR(32)) ->  | CH45: =IF($B45>0,VLOOKUP($B45,VSP_Fodermiddeldatabase!$A$3:$CP$489,9,),CHAR(32)) ->  | DM45: =IF($B45>0,VLOOKUP($B45,VSP_Fodermiddeldatabase!$A$3:$CP$489,18,),CHAR(32)) ->  | DN45: =IF($B45>0,VLOOKUP($B45,VSP_Fodermiddeldatabase!$A$3:$CP$489,39,),CHAR(32)) ->  | DO45: =IF($B45>0,VLOOKUP($B45,VSP_Fodermiddeldatabase!$A$3:$CP$489,40,),CHAR(32)) ->  | DP45: =IF($B45>0,VLOOKUP($B45,VSP_Fodermiddeldatabase!$A$3:$CP$489,41,),CHAR(32)) ->  | DQ45: =IF($B45>0,VLOOKUP($B45,VSP_Fodermiddeldatabase!$A$3:$CP$489,42,),CHAR(32)) ->  | DR45: =IF($B45>0,VLOOKUP($B45,VSP_Fodermiddeldatabase!$A$3:$CP$489,43,),CHAR(32)) ->  | DS45: =IF($B45>0,VLOOKUP($B45,VSP_Fodermiddeldatabase!$A$3:$CP$489,44,),CHAR(32)) ->  | DT45: =IF($B45>0,VLOOKUP($B45,VSP_Fodermiddeldatabase!$A$3:$CP$489,45,),CHAR(32)) ->  | DU45: =IF($B45>0,VLOOKUP($B45,VSP_Fodermiddeldatabase!$A$3:$CP$489,46,),CHAR(32)) ->  | DV45: =IF($B45>0,VLOOKUP($B45,VSP_Fodermiddeldatabase!$A$3:$CP$489,47,),CHAR(32)) ->  | DW45: =IF($B45>0,VLOOKUP($B45,VSP_Fodermiddeldatabase!$A$3:$CP$489,48,),CHAR(32)) ->  | DX45: =IF($B45>0,VLOOKUP($B45,VSP_Fodermiddeldatabase!$A$3:$CP$489,49,),CHAR(32)) ->  | DY45: =IF($B45>0,VLOOKUP($B45,VSP_Fodermiddeldatabase!$A$3:$CP$489,51,),CHAR(32)) ->  | DZ45: =IF($B45>0,VLOOKUP($B45,VSP_Fodermiddeldatabase!$A$3:$CP$489,52,),CHAR(32)) ->  | EA45: =IF($B45>0,VLOOKUP($B45,VSP_Fodermiddeldatabase!$A$3:$CP$489,53,),CHAR(32)) ->  | EB45: =IF($B45>0,VLOOKUP($B45,VSP_Fodermiddeldatabase!$A$3:$CP$489,54,),CHAR(32)) ->  | EC45: =IF($B45>0,VLOOKUP($B45,VSP_Fodermiddeldatabase!$A$3:$CP$489,55,),CHAR(32)) ->  | ED45: =IF($B45>0,VLOOKUP($B45,VSP_Fodermiddeldatabase!$A$3:$CP$489,56,),CHAR(32)) ->  | EE45: =IF($B45>0,VLOOKUP($B45,VSP_Fodermiddeldatabase!$A$3:$CP$489,57,),CHAR(32)) ->  | EF45: =IF($B45>0,VLOOKUP($B45,VSP_Fodermiddeldatabase!$A$3:$CP$489,58,),CHAR(32)) ->  | EG45: =IF($B45>0,VLOOKUP($B45,VSP_Fodermiddeldatabase!$A$3:$CP$489,59,),CHAR(32)) ->  | EH45: =IF($B45>0,VLOOKUP($B45,VSP_Fodermiddeldatabase!$A$3:$CP$489,60,),CHAR(32)) ->  | EI45: =IF($B45>0,VLOOKUP($B45,VSP_Fodermiddeldatabase!$A$3:$CP$489,61,),CHAR(32)) ->  | EJ45: =IF($B45>0,VLOOKUP($B45,VSP_Fodermiddeldatabase!$A$3:$CP$489,2,),CHAR(32)) ->  | EK45: =IF($B45>0,VLOOKUP($B45,VSP_Fodermiddeldatabase!$A$3:$CP$489,3,),CHAR(32)) ->  | EL45: =IF($B45>0,VLOOKUP($B45,VSP_Fodermiddeldatabase!$A$3:$CP$489,63,),CHAR(32)) ->  | EM45: =IF($B45>0,VLOOKUP($B45,VSP_Fodermiddeldatabase!$A$3:$CP$489,64,),CHAR(32)) ->  | EN45: =IF($B45>0,VLOOKUP($B45,VSP_Fodermiddeldatabase!$A$3:$CP$489,65,),CHAR(32)) ->  | EO45: =IF($B45>0,VLOOKUP($B45,VSP_Fodermiddeldatabase!$A$3:$CP$489,66,),CHAR(32)) ->  | EP45: =IF($B45>0,VLOOKUP($B45,VSP_Fodermiddeldatabase!$A$3:$CP$489,68,),CHAR(32)) ->  | EQ45: =IF($B45>0,VLOOKUP($B45,VSP_Fodermiddeldatabase!$A$3:$CP$489,69,),CHAR(32)) ->  | ER45: =IF($B45>0,VLOOKUP($B45,VSP_Fodermiddeldatabase!$A$3:$CP$489,70,),CHAR(32)) ->  | ES45: =IF($B45>0,VLOOKUP($B45,VSP_Fodermiddeldatabase!$A$3:$CP$489,71,),CHAR(32)) ->  | ET45: =IF($B45>0,VLOOKUP($B45,VSP_Fodermiddeldatabase!$A$3:$CP$489,19,),CHAR(32)) ->  | EU45: =IF($B45>0,VLOOKUP($B45,VSP_Fodermiddeldatabase!$A$3:$CP$489,20,),CHAR(32)) ->  | EV45: =IF($B45>0,VLOOKUP($B45,VSP_Fodermiddeldatabase!$A$3:$CP$489,21,),CHAR(32)) ->  | EW45: =IF($B45>0,VLOOKUP($B45,VSP_Fodermiddeldatabase!$A$3:$CP$489,22,),CHAR(32)) ->  | EX45: =IF($B45>0,VLOOKUP($B45,VSP_Fodermiddeldatabase!$A$3:$CP$489,23,),CHAR(32)) ->  | EY45: =IF($B45>0,VLOOKUP($B45,VSP_Fodermiddeldatabase!$A$3:$CP$489,25,),CHAR(32)) ->  | EZ45: =IF($B45>0,VLOOKUP($B45,VSP_Fodermiddeldatabase!$A$3:$CP$489,26,),CHAR(32)) ->  | FA45: =IF($B45>0,VLOOKUP($B45,VSP_Fodermiddeldatabase!$A$3:$CP$489,27,),CHAR(32)) ->  | FB45: =IF($B45>0,VLOOKUP($B45,VSP_Fodermiddeldatabase!$A$3:$CP$489,28,),CHAR(32)) ->  | FC45: =IF($B45>0,VLOOKUP($B45,VSP_Fodermiddeldatabase!$A$3:$CP$489,29,),CHAR(32)) ->  | FD45: =IF($B45>0,VLOOKUP($B45,VSP_Fodermiddeldatabase!$A$3:$CP$489,30,),CHAR(32)) ->  | FE45: =IF($B45>0,VLOOKUP($B45,VSP_Fodermiddeldatabase!$A$3:$CP$489,31,),CHAR(32)) ->  | FF45: =IF($B45>0,VLOOKUP($B45,VSP_Fodermiddeldatabase!$A$3:$CP$489,32,),CHAR(32)) ->  | FG45: =IF($B45>0,VLOOKUP($B45,VSP_Fodermiddeldatabase!$A$3:$CP$489,33,),CHAR(32)) ->  | FH45: =IF($B45>0,VLOOKUP($B45,VSP_Fodermiddeldatabase!$A$3:$CP$489,34,),CHAR(32)) ->  | FI45: =IF($B45>0,VLOOKUP($B45,VSP_Fodermiddeldatabase!$A$3:$CP$489,35,),CHAR(32)) ->  | FJ45: =IF($B45>0,VLOOKUP($B45,VSP_Fodermiddeldatabase!$A$3:$CP$489,36,),CHAR(32)) ->  | FK45: =IF($B45>0,VLOOKUP($B45,VSP_Fodermiddeldatabase!$A$3:$CP$489,37,),CHAR(32)) ->  | FM45: =IF($B45>0,VLOOKUP($B45,VSP_Fodermiddeldatabase!$A$3:$CP$489,74,),CHAR(32)) ->  | FN45: =IF($B45>0,VLOOKUP($B45,VSP_Fodermiddeldatabase!$A$3:$CP$489,75,),CHAR(32)) ->  | FO45: =IF($B45>0,VLOOKUP($B45,VSP_Fodermiddeldatabase!$A$3:$CP$489,76,),CHAR(32)) ->  | FP45: =IF($B45>0,VLOOKUP($B45,VSP_Fodermiddeldatabase!$A$3:$CP$489,77,),CHAR(32)) ->  | FQ45: =IF($B45>0,VLOOKUP($B45,VSP_Fodermiddeldatabase!$A$3:$CP$489,78,),CHAR(32)) ->  | FR45: =IF($B45>0,VLOOKUP($B45,VSP_Fodermiddeldatabase!$A$3:$CP$489,79,),CHAR(32)) ->  | FS45: =IF($B45>0,VLOOKUP($B45,VSP_Fodermiddeldatabase!$A$3:$CP$489,1,),CHAR(32)) ->  | FT45: =IF($B45>0,VLOOKUP($B45,VSP_Fodermiddeldatabase!$A$3:$CP$489,5,),CHAR(32)) ->  | FV45: =IF($A45<>"",100-VLOOKUP($B45,VSP_Fodermiddeldatabase!$A$3:$CP$489,12,),"") ->  | FW45: =IF($A45<>"",VLOOKUP($B45,VSP_Fodermiddeldatabase!$A$3:$CP$489,13,),"") ->  | FX45: =IF($A45<>"",VLOOKUP($B45,VSP_Fodermiddeldatabase!$A$3:$CP$489,14,),"") ->  | FY45: =IF($A45<>"",VLOOKUP($B45,VSP_Fodermiddeldatabase!$A$3:$CP$489,15,),"") ->  | GC45: =IF($A45<>"",VLOOKUP($B45,VSP_Fodermiddeldatabase!$A$3:$CP$489,8,)) -> FALSE | GF45: =IF($A45<>"",VLOOKUP($B45,VSP_Fodermiddeldatabase!$A$3:$CP$489,9,)) -> FALSE | GG45: FALSE | GJ45: =IF($A45<>"",VLOOKUP($B45,VSP_Fodermiddeldatabase!$A$3:$CP$489,11,)) -> FALSE
P46: =IF(A46<>"",IF($B46>0,VLOOKUP($B46,VSP_Fodermiddeldatabase!$A$3:$CP$489,10,),CHAR(32)),"") ->  | Q46: =IF(A46<>"",IF($B46>0,VLOOKUP($B46,VSP_Fodermiddeldatabase!$A$3:$CP$489,11,),CHAR(32)),"") ->  | R46: 90 | BZ46: =IF($B46>0,VLOOKUP($B46,VSP_Fodermiddeldatabase!$A$3:$CP$489,12,),CHAR(32)) ->  | CB46: =IF($B46>0,VLOOKUP($B46,VSP_Fodermiddeldatabase!$A$3:$CP$489,13,),CHAR(32)) ->  | CC46: =IF($B46>0,VLOOKUP($B46,VSP_Fodermiddeldatabase!$A$3:$CP$489,14,),CHAR(32)) ->  | CD46: =IF($B46>0,VLOOKUP($B46,VSP_Fodermiddeldatabase!$A$3:$CP$489,15,),CHAR(32)) ->  | CE46: =IF($B46>0,VLOOKUP($B46,VSP_Fodermiddeldatabase!$A$3:$CP$489,16,),CHAR(32)) ->  | CG46: =IF($B46>0,VLOOKUP($B46,VSP_Fodermiddeldatabase!$A$3:$CP$489,8,),CHAR(32)) ->  | CH46: =IF($B46>0,VLOOKUP($B46,VSP_Fodermiddeldatabase!$A$3:$CP$489,9,),CHAR(32)) ->  | DM46: =IF($B46>0,VLOOKUP($B46,VSP_Fodermiddeldatabase!$A$3:$CP$489,18,),CHAR(32)) ->  | DN46: =IF($B46>0,VLOOKUP($B46,VSP_Fodermiddeldatabase!$A$3:$CP$489,39,),CHAR(32)) ->  | DO46: =IF($B46>0,VLOOKUP($B46,VSP_Fodermiddeldatabase!$A$3:$CP$489,40,),CHAR(32)) ->  | DP46: =IF($B46>0,VLOOKUP($B46,VSP_Fodermiddeldatabase!$A$3:$CP$489,41,),CHAR(32)) ->  | DQ46: =IF($B46>0,VLOOKUP($B46,VSP_Fodermiddeldatabase!$A$3:$CP$489,42,),CHAR(32)) ->  | DR46: =IF($B46>0,VLOOKUP($B46,VSP_Fodermiddeldatabase!$A$3:$CP$489,43,),CHAR(32)) ->  | DS46: =IF($B46>0,VLOOKUP($B46,VSP_Fodermiddeldatabase!$A$3:$CP$489,44,),CHAR(32)) ->  | DT46: =IF($B46>0,VLOOKUP($B46,VSP_Fodermiddeldatabase!$A$3:$CP$489,45,),CHAR(32)) ->  | DU46: =IF($B46>0,VLOOKUP($B46,VSP_Fodermiddeldatabase!$A$3:$CP$489,46,),CHAR(32)) ->  | DV46: =IF($B46>0,VLOOKUP($B46,VSP_Fodermiddeldatabase!$A$3:$CP$489,47,),CHAR(32)) ->  | DW46: =IF($B46>0,VLOOKUP($B46,VSP_Fodermiddeldatabase!$A$3:$CP$489,48,),CHAR(32)) ->  | DX46: =IF($B46>0,VLOOKUP($B46,VSP_Fodermiddeldatabase!$A$3:$CP$489,49,),CHAR(32)) ->  | DY46: =IF($B46>0,VLOOKUP($B46,VSP_Fodermiddeldatabase!$A$3:$CP$489,51,),CHAR(32)) ->  | DZ46: =IF($B46>0,VLOOKUP($B46,VSP_Fodermiddeldatabase!$A$3:$CP$489,52,),CHAR(32)) ->  | EA46: =IF($B46>0,VLOOKUP($B46,VSP_Fodermiddeldatabase!$A$3:$CP$489,53,),CHAR(32)) ->  | EB46: =IF($B46>0,VLOOKUP($B46,VSP_Fodermiddeldatabase!$A$3:$CP$489,54,),CHAR(32)) ->  | EC46: =IF($B46>0,VLOOKUP($B46,VSP_Fodermiddeldatabase!$A$3:$CP$489,55,),CHAR(32)) ->  | ED46: =IF($B46>0,VLOOKUP($B46,VSP_Fodermiddeldatabase!$A$3:$CP$489,56,),CHAR(32)) ->  | EE46: =IF($B46>0,VLOOKUP($B46,VSP_Fodermiddeldatabase!$A$3:$CP$489,57,),CHAR(32)) ->  | EF46: =IF($B46>0,VLOOKUP($B46,VSP_Fodermiddeldatabase!$A$3:$CP$489,58,),CHAR(32)) ->  | EG46: =IF($B46>0,VLOOKUP($B46,VSP_Fodermiddeldatabase!$A$3:$CP$489,59,),CHAR(32)) ->  | EH46: =IF($B46>0,VLOOKUP($B46,VSP_Fodermiddeldatabase!$A$3:$CP$489,60,),CHAR(32)) ->  | EI46: =IF($B46>0,VLOOKUP($B46,VSP_Fodermiddeldatabase!$A$3:$CP$489,61,),CHAR(32)) ->  | EJ46: =IF($B46>0,VLOOKUP($B46,VSP_Fodermiddeldatabase!$A$3:$CP$489,2,),CHAR(32)) ->  | EK46: =IF($B46>0,VLOOKUP($B46,VSP_Fodermiddeldatabase!$A$3:$CP$489,3,),CHAR(32)) ->  | EL46: =IF($B46>0,VLOOKUP($B46,VSP_Fodermiddeldatabase!$A$3:$CP$489,63,),CHAR(32)) ->  | EM46: =IF($B46>0,VLOOKUP($B46,VSP_Fodermiddeldatabase!$A$3:$CP$489,64,),CHAR(32)) ->  | EN46: =IF($B46>0,VLOOKUP($B46,VSP_Fodermiddeldatabase!$A$3:$CP$489,65,),CHAR(32)) ->  | EO46: =IF($B46>0,VLOOKUP($B46,VSP_Fodermiddeldatabase!$A$3:$CP$489,66,),CHAR(32)) ->  | EP46: =IF($B46>0,VLOOKUP($B46,VSP_Fodermiddeldatabase!$A$3:$CP$489,68,),CHAR(32)) ->  | EQ46: =IF($B46>0,VLOOKUP($B46,VSP_Fodermiddeldatabase!$A$3:$CP$489,69,),CHAR(32)) ->  | ER46: =IF($B46>0,VLOOKUP($B46,VSP_Fodermiddeldatabase!$A$3:$CP$489,70,),CHAR(32)) ->  | ES46: =IF($B46>0,VLOOKUP($B46,VSP_Fodermiddeldatabase!$A$3:$CP$489,71,),CHAR(32)) ->  | ET46: =IF($B46>0,VLOOKUP($B46,VSP_Fodermiddeldatabase!$A$3:$CP$489,19,),CHAR(32)) ->  | EU46: =IF($B46>0,VLOOKUP($B46,VSP_Fodermiddeldatabase!$A$3:$CP$489,20,),CHAR(32)) ->  | EV46: =IF($B46>0,VLOOKUP($B46,VSP_Fodermiddeldatabase!$A$3:$CP$489,21,),CHAR(32)) ->  | EW46: =IF($B46>0,VLOOKUP($B46,VSP_Fodermiddeldatabase!$A$3:$CP$489,22,),CHAR(32)) ->  | EX46: =IF($B46>0,VLOOKUP($B46,VSP_Fodermiddeldatabase!$A$3:$CP$489,23,),CHAR(32)) ->  | EY46: =IF($B46>0,VLOOKUP($B46,VSP_Fodermiddeldatabase!$A$3:$CP$489,25,),CHAR(32)) ->  | EZ46: =IF($B46>0,VLOOKUP($B46,VSP_Fodermiddeldatabase!$A$3:$CP$489,26,),CHAR(32)) ->  | FA46: =IF($B46>0,VLOOKUP($B46,VSP_Fodermiddeldatabase!$A$3:$CP$489,27,),CHAR(32)) ->  | FB46: =IF($B46>0,VLOOKUP($B46,VSP_Fodermiddeldatabase!$A$3:$CP$489,28,),CHAR(32)) ->  | FC46: =IF($B46>0,VLOOKUP($B46,VSP_Fodermiddeldatabase!$A$3:$CP$489,29,),CHAR(32)) ->  | FD46: =IF($B46>0,VLOOKUP($B46,VSP_Fodermiddeldatabase!$A$3:$CP$489,30,),CHAR(32)) ->  | FE46: =IF($B46>0,VLOOKUP($B46,VSP_Fodermiddeldatabase!$A$3:$CP$489,31,),CHAR(32)) ->  | FF46: =IF($B46>0,VLOOKUP($B46,VSP_Fodermiddeldatabase!$A$3:$CP$489,32,),CHAR(32)) ->  | FG46: =IF($B46>0,VLOOKUP($B46,VSP_Fodermiddeldatabase!$A$3:$CP$489,33,),CHAR(32)) ->  | FH46: =IF($B46>0,VLOOKUP($B46,VSP_Fodermiddeldatabase!$A$3:$CP$489,34,),CHAR(32)) ->  | FI46: =IF($B46>0,VLOOKUP($B46,VSP_Fodermiddeldatabase!$A$3:$CP$489,35,),CHAR(32)) ->  | FJ46: =IF($B46>0,VLOOKUP($B46,VSP_Fodermiddeldatabase!$A$3:$CP$489,36,),CHAR(32)) ->  | FK46: =IF($B46>0,VLOOKUP($B46,VSP_Fodermiddeldatabase!$A$3:$CP$489,37,),CHAR(32)) ->  | FM46: =IF($B46>0,VLOOKUP($B46,VSP_Fodermiddeldatabase!$A$3:$CP$489,74,),CHAR(32)) ->  | FN46: =IF($B46>0,VLOOKUP($B46,VSP_Fodermiddeldatabase!$A$3:$CP$489,75,),CHAR(32)) ->  | FO46: =IF($B46>0,VLOOKUP($B46,VSP_Fodermiddeldatabase!$A$3:$CP$489,76,),CHAR(32)) ->  | FP46: =IF($B46>0,VLOOKUP($B46,VSP_Fodermiddeldatabase!$A$3:$CP$489,77,),CHAR(32)) ->  | FQ46: =IF($B46>0,VLOOKUP($B46,VSP_Fodermiddeldatabase!$A$3:$CP$489,78,),CHAR(32)) ->  | FR46: =IF($B46>0,VLOOKUP($B46,VSP_Fodermiddeldatabase!$A$3:$CP$489,79,),CHAR(32)) ->  | FS46: =IF($B46>0,VLOOKUP($B46,VSP_Fodermiddeldatabase!$A$3:$CP$489,1,),CHAR(32)) ->  | FT46: =IF($B46>0,VLOOKUP($B46,VSP_Fodermiddeldatabase!$A$3:$CP$489,5,),CHAR(32)) ->  | FV46: =IF($A46<>"",100-VLOOKUP($B46,VSP_Fodermiddeldatabase!$A$3:$CP$489,12,),"") ->  | FW46: =IF($A46<>"",VLOOKUP($B46,VSP_Fodermiddeldatabase!$A$3:$CP$489,13,),"") ->  | FX46: =IF($A46<>"",VLOOKUP($B46,VSP_Fodermiddeldatabase!$A$3:$CP$489,14,),"") ->  | FY46: =IF($A46<>"",VLOOKUP($B46,VSP_Fodermiddeldatabase!$A$3:$CP$489,15,),"") ->  | GC46: =IF($A46<>"",VLOOKUP($B46,VSP_Fodermiddeldatabase!$A$3:$CP$489,8,)) -> FALSE | GF46: =IF($A46<>"",VLOOKUP($B46,VSP_Fodermiddeldatabase!$A$3:$CP$489,9,)) -> FALSE | GG46: FALSE | GJ46: =IF($A46<>"",VLOOKUP($B46,VSP_Fodermiddeldatabase!$A$3:$CP$489,11,)) -> FALSE
P47: =IF(A47<>"",IF($B47>0,VLOOKUP($B47,VSP_Fodermiddeldatabase!$A$3:$CP$489,10,),CHAR(32)),"") ->  | Q47: =IF(A47<>"",IF($B47>0,VLOOKUP($B47,VSP_Fodermiddeldatabase!$A$3:$CP$489,11,),CHAR(32)),"") ->  | R47: 90 | BZ47: =IF($B47>0,VLOOKUP($B47,VSP_Fodermiddeldatabase!$A$3:$CP$489,12,),CHAR(32)) ->  | CB47: =IF($B47>0,VLOOKUP($B47,VSP_Fodermiddeldatabase!$A$3:$CP$489,13,),CHAR(32)) ->  | CC47: =IF($B47>0,VLOOKUP($B47,VSP_Fodermiddeldatabase!$A$3:$CP$489,14,),CHAR(32)) ->  | CD47: =IF($B47>0,VLOOKUP($B47,VSP_Fodermiddeldatabase!$A$3:$CP$489,15,),CHAR(32)) ->  | CE47: =IF($B47>0,VLOOKUP($B47,VSP_Fodermiddeldatabase!$A$3:$CP$489,16,),CHAR(32)) ->  | CG47: =IF($B47>0,VLOOKUP($B47,VSP_Fodermiddeldatabase!$A$3:$CP$489,8,),CHAR(32)) ->  | CH47: =IF($B47>0,VLOOKUP($B47,VSP_Fodermiddeldatabase!$A$3:$CP$489,9,),CHAR(32)) ->  | DM47: =IF($B47>0,VLOOKUP($B47,VSP_Fodermiddeldatabase!$A$3:$CP$489,18,),CHAR(32)) ->  | DN47: =IF($B47>0,VLOOKUP($B47,VSP_Fodermiddeldatabase!$A$3:$CP$489,39,),CHAR(32)) ->  | DO47: =IF($B47>0,VLOOKUP($B47,VSP_Fodermiddeldatabase!$A$3:$CP$489,40,),CHAR(32)) ->  | DP47: =IF($B47>0,VLOOKUP($B47,VSP_Fodermiddeldatabase!$A$3:$CP$489,41,),CHAR(32)) ->  | DQ47: =IF($B47>0,VLOOKUP($B47,VSP_Fodermiddeldatabase!$A$3:$CP$489,42,),CHAR(32)) ->  | DR47: =IF($B47>0,VLOOKUP($B47,VSP_Fodermiddeldatabase!$A$3:$CP$489,43,),CHAR(32)) ->  | DS47: =IF($B47>0,VLOOKUP($B47,VSP_Fodermiddeldatabase!$A$3:$CP$489,44,),CHAR(32)) ->  | DT47: =IF($B47>0,VLOOKUP($B47,VSP_Fodermiddeldatabase!$A$3:$CP$489,45,),CHAR(32)) ->  | DU47: =IF($B47>0,VLOOKUP($B47,VSP_Fodermiddeldatabase!$A$3:$CP$489,46,),CHAR(32)) ->  | DV47: =IF($B47>0,VLOOKUP($B47,VSP_Fodermiddeldatabase!$A$3:$CP$489,47,),CHAR(32)) ->  | DW47: =IF($B47>0,VLOOKUP($B47,VSP_Fodermiddeldatabase!$A$3:$CP$489,48,),CHAR(32)) ->  | DX47: =IF($B47>0,VLOOKUP($B47,VSP_Fodermiddeldatabase!$A$3:$CP$489,49,),CHAR(32)) ->  | DY47: =IF($B47>0,VLOOKUP($B47,VSP_Fodermiddeldatabase!$A$3:$CP$489,51,),CHAR(32)) ->  | DZ47: =IF($B47>0,VLOOKUP($B47,VSP_Fodermiddeldatabase!$A$3:$CP$489,52,),CHAR(32)) ->  | EA47: =IF($B47>0,VLOOKUP($B47,VSP_Fodermiddeldatabase!$A$3:$CP$489,53,),CHAR(32)) ->  | EB47: =IF($B47>0,VLOOKUP($B47,VSP_Fodermiddeldatabase!$A$3:$CP$489,54,),CHAR(32)) ->  | EC47: =IF($B47>0,VLOOKUP($B47,VSP_Fodermiddeldatabase!$A$3:$CP$489,55,),CHAR(32)) ->  | ED47: =IF($B47>0,VLOOKUP($B47,VSP_Fodermiddeldatabase!$A$3:$CP$489,56,),CHAR(32)) ->  | EE47: =IF($B47>0,VLOOKUP($B47,VSP_Fodermiddeldatabase!$A$3:$CP$489,57,),CHAR(32)) ->  | EF47: =IF($B47>0,VLOOKUP($B47,VSP_Fodermiddeldatabase!$A$3:$CP$489,58,),CHAR(32)) ->  | EG47: =IF($B47>0,VLOOKUP($B47,VSP_Fodermiddeldatabase!$A$3:$CP$489,59,),CHAR(32)) ->  | EH47: =IF($B47>0,VLOOKUP($B47,VSP_Fodermiddeldatabase!$A$3:$CP$489,60,),CHAR(32)) ->  | EI47: =IF($B47>0,VLOOKUP($B47,VSP_Fodermiddeldatabase!$A$3:$CP$489,61,),CHAR(32)) ->  | EJ47: =IF($B47>0,VLOOKUP($B47,VSP_Fodermiddeldatabase!$A$3:$CP$489,2,),CHAR(32)) ->  | EK47: =IF($B47>0,VLOOKUP($B47,VSP_Fodermiddeldatabase!$A$3:$CP$489,3,),CHAR(32)) ->  | EL47: =IF($B47>0,VLOOKUP($B47,VSP_Fodermiddeldatabase!$A$3:$CP$489,63,),CHAR(32)) ->  | EM47: =IF($B47>0,VLOOKUP($B47,VSP_Fodermiddeldatabase!$A$3:$CP$489,64,),CHAR(32)) ->  | EN47: =IF($B47>0,VLOOKUP($B47,VSP_Fodermiddeldatabase!$A$3:$CP$489,65,),CHAR(32)) ->  | EO47: =IF($B47>0,VLOOKUP($B47,VSP_Fodermiddeldatabase!$A$3:$CP$489,66,),CHAR(32)) ->  | EP47: =IF($B47>0,VLOOKUP($B47,VSP_Fodermiddeldatabase!$A$3:$CP$489,68,),CHAR(32)) ->  | EQ47: =IF($B47>0,VLOOKUP($B47,VSP_Fodermiddeldatabase!$A$3:$CP$489,69,),CHAR(32)) ->  | ER47: =IF($B47>0,VLOOKUP($B47,VSP_Fodermiddeldatabase!$A$3:$CP$489,70,),CHAR(32)) ->  | ES47: =IF($B47>0,VLOOKUP($B47,VSP_Fodermiddeldatabase!$A$3:$CP$489,71,),CHAR(32)) ->  | ET47: =IF($B47>0,VLOOKUP($B47,VSP_Fodermiddeldatabase!$A$3:$CP$489,19,),CHAR(32)) ->  | EU47: =IF($B47>0,VLOOKUP($B47,VSP_Fodermiddeldatabase!$A$3:$CP$489,20,),CHAR(32)) ->  | EV47: =IF($B47>0,VLOOKUP($B47,VSP_Fodermiddeldatabase!$A$3:$CP$489,21,),CHAR(32)) ->  | EW47: =IF($B47>0,VLOOKUP($B47,VSP_Fodermiddeldatabase!$A$3:$CP$489,22,),CHAR(32)) ->  | EX47: =IF($B47>0,VLOOKUP($B47,VSP_Fodermiddeldatabase!$A$3:$CP$489,23,),CHAR(32)) ->  | EY47: =IF($B47>0,VLOOKUP($B47,VSP_Fodermiddeldatabase!$A$3:$CP$489,25,),CHAR(32)) ->  | EZ47: =IF($B47>0,VLOOKUP($B47,VSP_Fodermiddeldatabase!$A$3:$CP$489,26,),CHAR(32)) ->  | FA47: =IF($B47>0,VLOOKUP($B47,VSP_Fodermiddeldatabase!$A$3:$CP$489,27,),CHAR(32)) ->  | FB47: =IF($B47>0,VLOOKUP($B47,VSP_Fodermiddeldatabase!$A$3:$CP$489,28,),CHAR(32)) ->  | FC47: =IF($B47>0,VLOOKUP($B47,VSP_Fodermiddeldatabase!$A$3:$CP$489,29,),CHAR(32)) ->  | FD47: =IF($B47>0,VLOOKUP($B47,VSP_Fodermiddeldatabase!$A$3:$CP$489,30,),CHAR(32)) ->  | FE47: =IF($B47>0,VLOOKUP($B47,VSP_Fodermiddeldatabase!$A$3:$CP$489,31,),CHAR(32)) ->  | FF47: =IF($B47>0,VLOOKUP($B47,VSP_Fodermiddeldatabase!$A$3:$CP$489,32,),CHAR(32)) ->  | FG47: =IF($B47>0,VLOOKUP($B47,VSP_Fodermiddeldatabase!$A$3:$CP$489,33,),CHAR(32)) ->  | FH47: =IF($B47>0,VLOOKUP($B47,VSP_Fodermiddeldatabase!$A$3:$CP$489,34,),CHAR(32)) ->  | FI47: =IF($B47>0,VLOOKUP($B47,VSP_Fodermiddeldatabase!$A$3:$CP$489,35,),CHAR(32)) ->  | FJ47: =IF($B47>0,VLOOKUP($B47,VSP_Fodermiddeldatabase!$A$3:$CP$489,36,),CHAR(32)) ->  | FK47: =IF($B47>0,VLOOKUP($B47,VSP_Fodermiddeldatabase!$A$3:$CP$489,37,),CHAR(32)) ->  | FM47: =IF($B47>0,VLOOKUP($B47,VSP_Fodermiddeldatabase!$A$3:$CP$489,74,),CHAR(32)) ->  | FN47: =IF($B47>0,VLOOKUP($B47,VSP_Fodermiddeldatabase!$A$3:$CP$489,75,),CHAR(32)) ->  | FO47: =IF($B47>0,VLOOKUP($B47,VSP_Fodermiddeldatabase!$A$3:$CP$489,76,),CHAR(32)) ->  | FP47: =IF($B47>0,VLOOKUP($B47,VSP_Fodermiddeldatabase!$A$3:$CP$489,77,),CHAR(32)) ->  | FQ47: =IF($B47>0,VLOOKUP($B47,VSP_Fodermiddeldatabase!$A$3:$CP$489,78,),CHAR(32)) ->  | FR47: =IF($B47>0,VLOOKUP($B47,VSP_Fodermiddeldatabase!$A$3:$CP$489,79,),CHAR(32)) ->  | FS47: =IF($B47>0,VLOOKUP($B47,VSP_Fodermiddeldatabase!$A$3:$CP$489,1,),CHAR(32)) ->  | FT47: =IF($B47>0,VLOOKUP($B47,VSP_Fodermiddeldatabase!$A$3:$CP$489,5,),CHAR(32)) ->  | FV47: =IF($A47<>"",100-VLOOKUP($B47,VSP_Fodermiddeldatabase!$A$3:$CP$489,12,),"") ->  | FW47: =IF($A47<>"",VLOOKUP($B47,VSP_Fodermiddeldatabase!$A$3:$CP$489,13,),"") ->  | FX47: =IF($A47<>"",VLOOKUP($B47,VSP_Fodermiddeldatabase!$A$3:$CP$489,14,),"") ->  | FY47: =IF($A47<>"",VLOOKUP($B47,VSP_Fodermiddeldatabase!$A$3:$CP$489,15,),"") ->  | GC47: =IF($A47<>"",VLOOKUP($B47,VSP_Fodermiddeldatabase!$A$3:$CP$489,8,)) -> FALSE | GF47: =IF($A47<>"",VLOOKUP($B47,VSP_Fodermiddeldatabase!$A$3:$CP$489,9,)) -> FALSE | GG47: FALSE | GJ47: =IF($A47<>"",VLOOKUP($B47,VSP_Fodermiddeldatabase!$A$3:$CP$489,11,)) -> FALSE
P48: =IF(A48<>"",IF($B48>0,VLOOKUP($B48,VSP_Fodermiddeldatabase!$A$3:$CP$489,10,),CHAR(32)),"") ->  | Q48: =IF(A48<>"",IF($B48>0,VLOOKUP($B48,VSP_Fodermiddeldatabase!$A$3:$CP$489,11,),CHAR(32)),"") ->  | R48: 90 | BZ48: =IF($B48>0,VLOOKUP($B48,VSP_Fodermiddeldatabase!$A$3:$CP$489,12,),CHAR(32)) ->  | CB48: =IF($B48>0,VLOOKUP($B48,VSP_Fodermiddeldatabase!$A$3:$CP$489,13,),CHAR(32)) ->  | CC48: =IF($B48>0,VLOOKUP($B48,VSP_Fodermiddeldatabase!$A$3:$CP$489,14,),CHAR(32)) ->  | CD48: =IF($B48>0,VLOOKUP($B48,VSP_Fodermiddeldatabase!$A$3:$CP$489,15,),CHAR(32)) ->  | CE48: =IF($B48>0,VLOOKUP($B48,VSP_Fodermiddeldatabase!$A$3:$CP$489,16,),CHAR(32)) ->  | CG48: =IF($B48>0,VLOOKUP($B48,VSP_Fodermiddeldatabase!$A$3:$CP$489,8,),CHAR(32)) ->  | CH48: =IF($B48>0,VLOOKUP($B48,VSP_Fodermiddeldatabase!$A$3:$CP$489,9,),CHAR(32)) ->  | DM48: =IF($B48>0,VLOOKUP($B48,VSP_Fodermiddeldatabase!$A$3:$CP$489,18,),CHAR(32)) ->  | DN48: =IF($B48>0,VLOOKUP($B48,VSP_Fodermiddeldatabase!$A$3:$CP$489,39,),CHAR(32)) ->  | DO48: =IF($B48>0,VLOOKUP($B48,VSP_Fodermiddeldatabase!$A$3:$CP$489,40,),CHAR(32)) ->  | DP48: =IF($B48>0,VLOOKUP($B48,VSP_Fodermiddeldatabase!$A$3:$CP$489,41,),CHAR(32)) ->  | DQ48: =IF($B48>0,VLOOKUP($B48,VSP_Fodermiddeldatabase!$A$3:$CP$489,42,),CHAR(32)) ->  | DR48: =IF($B48>0,VLOOKUP($B48,VSP_Fodermiddeldatabase!$A$3:$CP$489,43,),CHAR(32)) ->  | DS48: =IF($B48>0,VLOOKUP($B48,VSP_Fodermiddeldatabase!$A$3:$CP$489,44,),CHAR(32)) ->  | DT48: =IF($B48>0,VLOOKUP($B48,VSP_Fodermiddeldatabase!$A$3:$CP$489,45,),CHAR(32)) ->  | DU48: =IF($B48>0,VLOOKUP($B48,VSP_Fodermiddeldatabase!$A$3:$CP$489,46,),CHAR(32)) ->  | DV48: =IF($B48>0,VLOOKUP($B48,VSP_Fodermiddeldatabase!$A$3:$CP$489,47,),CHAR(32)) ->  | DW48: =IF($B48>0,VLOOKUP($B48,VSP_Fodermiddeldatabase!$A$3:$CP$489,48,),CHAR(32)) ->  | DX48: =IF($B48>0,VLOOKUP($B48,VSP_Fodermiddeldatabase!$A$3:$CP$489,49,),CHAR(32)) ->  | DY48: =IF($B48>0,VLOOKUP($B48,VSP_Fodermiddeldatabase!$A$3:$CP$489,51,),CHAR(32)) ->  | DZ48: =IF($B48>0,VLOOKUP($B48,VSP_Fodermiddeldatabase!$A$3:$CP$489,52,),CHAR(32)) ->  | EA48: =IF($B48>0,VLOOKUP($B48,VSP_Fodermiddeldatabase!$A$3:$CP$489,53,),CHAR(32)) ->  | EB48: =IF($B48>0,VLOOKUP($B48,VSP_Fodermiddeldatabase!$A$3:$CP$489,54,),CHAR(32)) ->  | EC48: =IF($B48>0,VLOOKUP($B48,VSP_Fodermiddeldatabase!$A$3:$CP$489,55,),CHAR(32)) ->  | ED48: =IF($B48>0,VLOOKUP($B48,VSP_Fodermiddeldatabase!$A$3:$CP$489,56,),CHAR(32)) ->  | EE48: =IF($B48>0,VLOOKUP($B48,VSP_Fodermiddeldatabase!$A$3:$CP$489,57,),CHAR(32)) ->  | EF48: =IF($B48>0,VLOOKUP($B48,VSP_Fodermiddeldatabase!$A$3:$CP$489,58,),CHAR(32)) ->  | EG48: =IF($B48>0,VLOOKUP($B48,VSP_Fodermiddeldatabase!$A$3:$CP$489,59,),CHAR(32)) ->  | EH48: =IF($B48>0,VLOOKUP($B48,VSP_Fodermiddeldatabase!$A$3:$CP$489,60,),CHAR(32)) ->  | EI48: =IF($B48>0,VLOOKUP($B48,VSP_Fodermiddeldatabase!$A$3:$CP$489,61,),CHAR(32)) ->  | EJ48: =IF($B48>0,VLOOKUP($B48,VSP_Fodermiddeldatabase!$A$3:$CP$489,2,),CHAR(32)) ->  | EK48: =IF($B48>0,VLOOKUP($B48,VSP_Fodermiddeldatabase!$A$3:$CP$489,3,),CHAR(32)) ->  | EL48: =IF($B48>0,VLOOKUP($B48,VSP_Fodermiddeldatabase!$A$3:$CP$489,63,),CHAR(32)) ->  | EM48: =IF($B48>0,VLOOKUP($B48,VSP_Fodermiddeldatabase!$A$3:$CP$489,64,),CHAR(32)) ->  | EN48: =IF($B48>0,VLOOKUP($B48,VSP_Fodermiddeldatabase!$A$3:$CP$489,65,),CHAR(32)) ->  | EO48: =IF($B48>0,VLOOKUP($B48,VSP_Fodermiddeldatabase!$A$3:$CP$489,66,),CHAR(32)) ->  | EP48: =IF($B48>0,VLOOKUP($B48,VSP_Fodermiddeldatabase!$A$3:$CP$489,68,),CHAR(32)) ->  | EQ48: =IF($B48>0,VLOOKUP($B48,VSP_Fodermiddeldatabase!$A$3:$CP$489,69,),CHAR(32)) ->  | ER48: =IF($B48>0,VLOOKUP($B48,VSP_Fodermiddeldatabase!$A$3:$CP$489,70,),CHAR(32)) ->  | ES48: =IF($B48>0,VLOOKUP($B48,VSP_Fodermiddeldatabase!$A$3:$CP$489,71,),CHAR(32)) ->  | ET48: =IF($B48>0,VLOOKUP($B48,VSP_Fodermiddeldatabase!$A$3:$CP$489,19,),CHAR(32)) ->  | EU48: =IF($B48>0,VLOOKUP($B48,VSP_Fodermiddeldatabase!$A$3:$CP$489,20,),CHAR(32)) ->  | EV48: =IF($B48>0,VLOOKUP($B48,VSP_Fodermiddeldatabase!$A$3:$CP$489,21,),CHAR(32)) ->  | EW48: =IF($B48>0,VLOOKUP($B48,VSP_Fodermiddeldatabase!$A$3:$CP$489,22,),CHAR(32)) ->  | EX48: =IF($B48>0,VLOOKUP($B48,VSP_Fodermiddeldatabase!$A$3:$CP$489,23,),CHAR(32)) ->  | EY48: =IF($B48>0,VLOOKUP($B48,VSP_Fodermiddeldatabase!$A$3:$CP$489,25,),CHAR(32)) ->  | EZ48: =IF($B48>0,VLOOKUP($B48,VSP_Fodermiddeldatabase!$A$3:$CP$489,26,),CHAR(32)) ->  | FA48: =IF($B48>0,VLOOKUP($B48,VSP_Fodermiddeldatabase!$A$3:$CP$489,27,),CHAR(32)) ->  | FB48: =IF($B48>0,VLOOKUP($B48,VSP_Fodermiddeldatabase!$A$3:$CP$489,28,),CHAR(32)) ->  | FC48: =IF($B48>0,VLOOKUP($B48,VSP_Fodermiddeldatabase!$A$3:$CP$489,29,),CHAR(32)) ->  | FD48: =IF($B48>0,VLOOKUP($B48,VSP_Fodermiddeldatabase!$A$3:$CP$489,30,),CHAR(32)) ->  | FE48: =IF($B48>0,VLOOKUP($B48,VSP_Fodermiddeldatabase!$A$3:$CP$489,31,),CHAR(32)) ->  | FF48: =IF($B48>0,VLOOKUP($B48,VSP_Fodermiddeldatabase!$A$3:$CP$489,32,),CHAR(32)) ->  | FG48: =IF($B48>0,VLOOKUP($B48,VSP_Fodermiddeldatabase!$A$3:$CP$489,33,),CHAR(32)) ->  | FH48: =IF($B48>0,VLOOKUP($B48,VSP_Fodermiddeldatabase!$A$3:$CP$489,34,),CHAR(32)) ->  | FI48: =IF($B48>0,VLOOKUP($B48,VSP_Fodermiddeldatabase!$A$3:$CP$489,35,),CHAR(32)) ->  | FJ48: =IF($B48>0,VLOOKUP($B48,VSP_Fodermiddeldatabase!$A$3:$CP$489,36,),CHAR(32)) ->  | FK48: =IF($B48>0,VLOOKUP($B48,VSP_Fodermiddeldatabase!$A$3:$CP$489,37,),CHAR(32)) ->  | FM48: =IF($B48>0,VLOOKUP($B48,VSP_Fodermiddeldatabase!$A$3:$CP$489,74,),CHAR(32)) ->  | FN48: =IF($B48>0,VLOOKUP($B48,VSP_Fodermiddeldatabase!$A$3:$CP$489,75,),CHAR(32)) ->  | FO48: =IF($B48>0,VLOOKUP($B48,VSP_Fodermiddeldatabase!$A$3:$CP$489,76,),CHAR(32)) ->  | FP48: =IF($B48>0,VLOOKUP($B48,VSP_Fodermiddeldatabase!$A$3:$CP$489,77,),CHAR(32)) ->  | FQ48: =IF($B48>0,VLOOKUP($B48,VSP_Fodermiddeldatabase!$A$3:$CP$489,78,),CHAR(32)) ->  | FR48: =IF($B48>0,VLOOKUP($B48,VSP_Fodermiddeldatabase!$A$3:$CP$489,79,),CHAR(32)) ->  | FS48: =IF($B48>0,VLOOKUP($B48,VSP_Fodermiddeldatabase!$A$3:$CP$489,1,),CHAR(32)) ->  | FT48: =IF($B48>0,VLOOKUP($B48,VSP_Fodermiddeldatabase!$A$3:$CP$489,5,),CHAR(32)) ->  | FV48: =IF($A48<>"",100-VLOOKUP($B48,VSP_Fodermiddeldatabase!$A$3:$CP$489,12,),"") ->  | FW48: =IF($A48<>"",VLOOKUP($B48,VSP_Fodermiddeldatabase!$A$3:$CP$489,13,),"") ->  | FX48: =IF($A48<>"",VLOOKUP($B48,VSP_Fodermiddeldatabase!$A$3:$CP$489,14,),"") ->  | FY48: =IF($A48<>"",VLOOKUP($B48,VSP_Fodermiddeldatabase!$A$3:$CP$489,15,),"") ->  | GC48: =IF($A48<>"",VLOOKUP($B48,VSP_Fodermiddeldatabase!$A$3:$CP$489,8,)) -> FALSE | GF48: =IF($A48<>"",VLOOKUP($B48,VSP_Fodermiddeldatabase!$A$3:$CP$489,9,)) -> FALSE | GG48: FALSE | GJ48: =IF($A48<>"",VLOOKUP($B48,VSP_Fodermiddeldatabase!$A$3:$CP$489,11,)) -> FALSE
P49: =IF(A49<>"",IF($B49>0,VLOOKUP($B49,VSP_Fodermiddeldatabase!$A$3:$CP$489,10,),CHAR(32)),"") ->  | Q49: =IF(A49<>"",IF($B49>0,VLOOKUP($B49,VSP_Fodermiddeldatabase!$A$3:$CP$489,11,),CHAR(32)),"") ->  | R49: 90 | BZ49: =IF($B49>0,VLOOKUP($B49,VSP_Fodermiddeldatabase!$A$3:$CP$489,12,),CHAR(32)) ->  | CB49: =IF($B49>0,VLOOKUP($B49,VSP_Fodermiddeldatabase!$A$3:$CP$489,13,),CHAR(32)) ->  | CC49: =IF($B49>0,VLOOKUP($B49,VSP_Fodermiddeldatabase!$A$3:$CP$489,14,),CHAR(32)) ->  | CD49: =IF($B49>0,VLOOKUP($B49,VSP_Fodermiddeldatabase!$A$3:$CP$489,15,),CHAR(32)) ->  | CE49: =IF($B49>0,VLOOKUP($B49,VSP_Fodermiddeldatabase!$A$3:$CP$489,16,),CHAR(32)) ->  | CG49: =IF($B49>0,VLOOKUP($B49,VSP_Fodermiddeldatabase!$A$3:$CP$489,8,),CHAR(32)) ->  | CH49: =IF($B49>0,VLOOKUP($B49,VSP_Fodermiddeldatabase!$A$3:$CP$489,9,),CHAR(32)) ->  | DM49: =IF($B49>0,VLOOKUP($B49,VSP_Fodermiddeldatabase!$A$3:$CP$489,18,),CHAR(32)) ->  | DN49: =IF($B49>0,VLOOKUP($B49,VSP_Fodermiddeldatabase!$A$3:$CP$489,39,),CHAR(32)) ->  | DO49: =IF($B49>0,VLOOKUP($B49,VSP_Fodermiddeldatabase!$A$3:$CP$489,40,),CHAR(32)) ->  | DP49: =IF($B49>0,VLOOKUP($B49,VSP_Fodermiddeldatabase!$A$3:$CP$489,41,),CHAR(32)) ->  | DQ49: =IF($B49>0,VLOOKUP($B49,VSP_Fodermiddeldatabase!$A$3:$CP$489,42,),CHAR(32)) ->  | DR49: =IF($B49>0,VLOOKUP($B49,VSP_Fodermiddeldatabase!$A$3:$CP$489,43,),CHAR(32)) ->  | DS49: =IF($B49>0,VLOOKUP($B49,VSP_Fodermiddeldatabase!$A$3:$CP$489,44,),CHAR(32)) ->  | DT49: =IF($B49>0,VLOOKUP($B49,VSP_Fodermiddeldatabase!$A$3:$CP$489,45,),CHAR(32)) ->  | DU49: =IF($B49>0,VLOOKUP($B49,VSP_Fodermiddeldatabase!$A$3:$CP$489,46,),CHAR(32)) ->  | DV49: =IF($B49>0,VLOOKUP($B49,VSP_Fodermiddeldatabase!$A$3:$CP$489,47,),CHAR(32)) ->  | DW49: =IF($B49>0,VLOOKUP($B49,VSP_Fodermiddeldatabase!$A$3:$CP$489,48,),CHAR(32)) ->  | DX49: =IF($B49>0,VLOOKUP($B49,VSP_Fodermiddeldatabase!$A$3:$CP$489,49,),CHAR(32)) ->  | DY49: =IF($B49>0,VLOOKUP($B49,VSP_Fodermiddeldatabase!$A$3:$CP$489,51,),CHAR(32)) ->  | DZ49: =IF($B49>0,VLOOKUP($B49,VSP_Fodermiddeldatabase!$A$3:$CP$489,52,),CHAR(32)) ->  | EA49: =IF($B49>0,VLOOKUP($B49,VSP_Fodermiddeldatabase!$A$3:$CP$489,53,),CHAR(32)) ->  | EB49: =IF($B49>0,VLOOKUP($B49,VSP_Fodermiddeldatabase!$A$3:$CP$489,54,),CHAR(32)) ->  | EC49: =IF($B49>0,VLOOKUP($B49,VSP_Fodermiddeldatabase!$A$3:$CP$489,55,),CHAR(32)) ->  | ED49: =IF($B49>0,VLOOKUP($B49,VSP_Fodermiddeldatabase!$A$3:$CP$489,56,),CHAR(32)) ->  | EE49: =IF($B49>0,VLOOKUP($B49,VSP_Fodermiddeldatabase!$A$3:$CP$489,57,),CHAR(32)) ->  | EF49: =IF($B49>0,VLOOKUP($B49,VSP_Fodermiddeldatabase!$A$3:$CP$489,58,),CHAR(32)) ->  | EG49: =IF($B49>0,VLOOKUP($B49,VSP_Fodermiddeldatabase!$A$3:$CP$489,59,),CHAR(32)) ->  | EH49: =IF($B49>0,VLOOKUP($B49,VSP_Fodermiddeldatabase!$A$3:$CP$489,60,),CHAR(32)) ->  | EI49: =IF($B49>0,VLOOKUP($B49,VSP_Fodermiddeldatabase!$A$3:$CP$489,61,),CHAR(32)) ->  | EJ49: =IF($B49>0,VLOOKUP($B49,VSP_Fodermiddeldatabase!$A$3:$CP$489,2,),CHAR(32)) ->  | EK49: =IF($B49>0,VLOOKUP($B49,VSP_Fodermiddeldatabase!$A$3:$CP$489,3,),CHAR(32)) ->  | EL49: =IF($B49>0,VLOOKUP($B49,VSP_Fodermiddeldatabase!$A$3:$CP$489,63,),CHAR(32)) ->  | EM49: =IF($B49>0,VLOOKUP($B49,VSP_Fodermiddeldatabase!$A$3:$CP$489,64,),CHAR(32)) ->  | EN49: =IF($B49>0,VLOOKUP($B49,VSP_Fodermiddeldatabase!$A$3:$CP$489,65,),CHAR(32)) ->  | EO49: =IF($B49>0,VLOOKUP($B49,VSP_Fodermiddeldatabase!$A$3:$CP$489,66,),CHAR(32)) ->  | EP49: =IF($B49>0,VLOOKUP($B49,VSP_Fodermiddeldatabase!$A$3:$CP$489,68,),CHAR(32)) ->  | EQ49: =IF($B49>0,VLOOKUP($B49,VSP_Fodermiddeldatabase!$A$3:$CP$489,69,),CHAR(32)) ->  | ER49: =IF($B49>0,VLOOKUP($B49,VSP_Fodermiddeldatabase!$A$3:$CP$489,70,),CHAR(32)) ->  | ES49: =IF($B49>0,VLOOKUP($B49,VSP_Fodermiddeldatabase!$A$3:$CP$489,71,),CHAR(32)) ->  | ET49: =IF($B49>0,VLOOKUP($B49,VSP_Fodermiddeldatabase!$A$3:$CP$489,19,),CHAR(32)) ->  | EU49: =IF($B49>0,VLOOKUP($B49,VSP_Fodermiddeldatabase!$A$3:$CP$489,20,),CHAR(32)) ->  | EV49: =IF($B49>0,VLOOKUP($B49,VSP_Fodermiddeldatabase!$A$3:$CP$489,21,),CHAR(32)) ->  | EW49: =IF($B49>0,VLOOKUP($B49,VSP_Fodermiddeldatabase!$A$3:$CP$489,22,),CHAR(32)) ->  | EX49: =IF($B49>0,VLOOKUP($B49,VSP_Fodermiddeldatabase!$A$3:$CP$489,23,),CHAR(32)) ->  | EY49: =IF($B49>0,VLOOKUP($B49,VSP_Fodermiddeldatabase!$A$3:$CP$489,25,),CHAR(32)) ->  | EZ49: =IF($B49>0,VLOOKUP($B49,VSP_Fodermiddeldatabase!$A$3:$CP$489,26,),CHAR(32)) ->  | FA49: =IF($B49>0,VLOOKUP($B49,VSP_Fodermiddeldatabase!$A$3:$CP$489,27,),CHAR(32)) ->  | FB49: =IF($B49>0,VLOOKUP($B49,VSP_Fodermiddeldatabase!$A$3:$CP$489,28,),CHAR(32)) ->  | FC49: =IF($B49>0,VLOOKUP($B49,VSP_Fodermiddeldatabase!$A$3:$CP$489,29,),CHAR(32)) ->  | FD49: =IF($B49>0,VLOOKUP($B49,VSP_Fodermiddeldatabase!$A$3:$CP$489,30,),CHAR(32)) ->  | FE49: =IF($B49>0,VLOOKUP($B49,VSP_Fodermiddeldatabase!$A$3:$CP$489,31,),CHAR(32)) ->  | FF49: =IF($B49>0,VLOOKUP($B49,VSP_Fodermiddeldatabase!$A$3:$CP$489,32,),CHAR(32)) ->  | FG49: =IF($B49>0,VLOOKUP($B49,VSP_Fodermiddeldatabase!$A$3:$CP$489,33,),CHAR(32)) ->  | FH49: =IF($B49>0,VLOOKUP($B49,VSP_Fodermiddeldatabase!$A$3:$CP$489,34,),CHAR(32)) ->  | FI49: =IF($B49>0,VLOOKUP($B49,VSP_Fodermiddeldatabase!$A$3:$CP$489,35,),CHAR(32)) ->  | FJ49: =IF($B49>0,VLOOKUP($B49,VSP_Fodermiddeldatabase!$A$3:$CP$489,36,),CHAR(32)) ->  | FK49: =IF($B49>0,VLOOKUP($B49,VSP_Fodermiddeldatabase!$A$3:$CP$489,37,),CHAR(32)) ->  | FM49: =IF($B49>0,VLOOKUP($B49,VSP_Fodermiddeldatabase!$A$3:$CP$489,74,),CHAR(32)) ->  | FN49: =IF($B49>0,VLOOKUP($B49,VSP_Fodermiddeldatabase!$A$3:$CP$489,75,),CHAR(32)) ->  | FO49: =IF($B49>0,VLOOKUP($B49,VSP_Fodermiddeldatabase!$A$3:$CP$489,76,),CHAR(32)) ->  | FP49: =IF($B49>0,VLOOKUP($B49,VSP_Fodermiddeldatabase!$A$3:$CP$489,77,),CHAR(32)) ->  | FQ49: =IF($B49>0,VLOOKUP($B49,VSP_Fodermiddeldatabase!$A$3:$CP$489,78,),CHAR(32)) ->  | FR49: =IF($B49>0,VLOOKUP($B49,VSP_Fodermiddeldatabase!$A$3:$CP$489,79,),CHAR(32)) ->  | FS49: =IF($B49>0,VLOOKUP($B49,VSP_Fodermiddeldatabase!$A$3:$CP$489,1,),CHAR(32)) ->  | FT49: =IF($B49>0,VLOOKUP($B49,VSP_Fodermiddeldatabase!$A$3:$CP$489,5,),CHAR(32)) ->  | FV49: =IF($A49<>"",100-VLOOKUP($B49,VSP_Fodermiddeldatabase!$A$3:$CP$489,12,),"") ->  | FW49: =IF($A49<>"",VLOOKUP($B49,VSP_Fodermiddeldatabase!$A$3:$CP$489,13,),"") ->  | FX49: =IF($A49<>"",VLOOKUP($B49,VSP_Fodermiddeldatabase!$A$3:$CP$489,14,),"") ->  | FY49: =IF($A49<>"",VLOOKUP($B49,VSP_Fodermiddeldatabase!$A$3:$CP$489,15,),"") ->  | GC49: =IF($A49<>"",VLOOKUP($B49,VSP_Fodermiddeldatabase!$A$3:$CP$489,8,)) -> FALSE | GF49: =IF($A49<>"",VLOOKUP($B49,VSP_Fodermiddeldatabase!$A$3:$CP$489,9,)) -> FALSE | GG49: FALSE | GJ49: =IF($A49<>"",VLOOKUP($B49,VSP_Fodermiddeldatabase!$A$3:$CP$489,11,)) -> FALSE
P50: =IF(A50<>"",IF($B50>0,VLOOKUP($B50,VSP_Fodermiddeldatabase!$A$3:$CP$489,10,),CHAR(32)),"") ->  | Q50: =IF(A50<>"",IF($B50>0,VLOOKUP($B50,VSP_Fodermiddeldatabase!$A$3:$CP$489,11,),CHAR(32)),"") ->  | R50: 90 | BZ50: =IF($B50>0,VLOOKUP($B50,VSP_Fodermiddeldatabase!$A$3:$CP$489,12,),CHAR(32)) ->  | CB50: =IF($B50>0,VLOOKUP($B50,VSP_Fodermiddeldatabase!$A$3:$CP$489,13,),CHAR(32)) ->  | CC50: =IF($B50>0,VLOOKUP($B50,VSP_Fodermiddeldatabase!$A$3:$CP$489,14,),CHAR(32)) ->  | CD50: =IF($B50>0,VLOOKUP($B50,VSP_Fodermiddeldatabase!$A$3:$CP$489,15,),CHAR(32)) ->  | CE50: =IF($B50>0,VLOOKUP($B50,VSP_Fodermiddeldatabase!$A$3:$CP$489,16,),CHAR(32)) ->  | CG50: =IF($B50>0,VLOOKUP($B50,VSP_Fodermiddeldatabase!$A$3:$CP$489,8,),CHAR(32)) ->  | CH50: =IF($B50>0,VLOOKUP($B50,VSP_Fodermiddeldatabase!$A$3:$CP$489,9,),CHAR(32)) ->  | DM50: =IF($B50>0,VLOOKUP($B50,VSP_Fodermiddeldatabase!$A$3:$CP$489,18,),CHAR(32)) ->  | DN50: =IF($B50>0,VLOOKUP($B50,VSP_Fodermiddeldatabase!$A$3:$CP$489,39,),CHAR(32)) ->  | DO50: =IF($B50>0,VLOOKUP($B50,VSP_Fodermiddeldatabase!$A$3:$CP$489,40,),CHAR(32)) ->  | DP50: =IF($B50>0,VLOOKUP($B50,VSP_Fodermiddeldatabase!$A$3:$CP$489,41,),CHAR(32)) ->  | DQ50: =IF($B50>0,VLOOKUP($B50,VSP_Fodermiddeldatabase!$A$3:$CP$489,42,),CHAR(32)) ->  | DR50: =IF($B50>0,VLOOKUP($B50,VSP_Fodermiddeldatabase!$A$3:$CP$489,43,),CHAR(32)) ->  | DS50: =IF($B50>0,VLOOKUP($B50,VSP_Fodermiddeldatabase!$A$3:$CP$489,44,),CHAR(32)) ->  | DT50: =IF($B50>0,VLOOKUP($B50,VSP_Fodermiddeldatabase!$A$3:$CP$489,45,),CHAR(32)) ->  | DU50: =IF($B50>0,VLOOKUP($B50,VSP_Fodermiddeldatabase!$A$3:$CP$489,46,),CHAR(32)) ->  | DV50: =IF($B50>0,VLOOKUP($B50,VSP_Fodermiddeldatabase!$A$3:$CP$489,47,),CHAR(32)) ->  | DW50: =IF($B50>0,VLOOKUP($B50,VSP_Fodermiddeldatabase!$A$3:$CP$489,48,),CHAR(32)) ->  | DX50: =IF($B50>0,VLOOKUP($B50,VSP_Fodermiddeldatabase!$A$3:$CP$489,49,),CHAR(32)) ->  | DY50: =IF($B50>0,VLOOKUP($B50,VSP_Fodermiddeldatabase!$A$3:$CP$489,51,),CHAR(32)) ->  | DZ50: =IF($B50>0,VLOOKUP($B50,VSP_Fodermiddeldatabase!$A$3:$CP$489,52,),CHAR(32)) ->  | EA50: =IF($B50>0,VLOOKUP($B50,VSP_Fodermiddeldatabase!$A$3:$CP$489,53,),CHAR(32)) ->  | EB50: =IF($B50>0,VLOOKUP($B50,VSP_Fodermiddeldatabase!$A$3:$CP$489,54,),CHAR(32)) ->  | EC50: =IF($B50>0,VLOOKUP($B50,VSP_Fodermiddeldatabase!$A$3:$CP$489,55,),CHAR(32)) ->  | ED50: =IF($B50>0,VLOOKUP($B50,VSP_Fodermiddeldatabase!$A$3:$CP$489,56,),CHAR(32)) ->  | EE50: =IF($B50>0,VLOOKUP($B50,VSP_Fodermiddeldatabase!$A$3:$CP$489,57,),CHAR(32)) ->  | EF50: =IF($B50>0,VLOOKUP($B50,VSP_Fodermiddeldatabase!$A$3:$CP$489,58,),CHAR(32)) ->  | EG50: =IF($B50>0,VLOOKUP($B50,VSP_Fodermiddeldatabase!$A$3:$CP$489,59,),CHAR(32)) ->  | EH50: =IF($B50>0,VLOOKUP($B50,VSP_Fodermiddeldatabase!$A$3:$CP$489,60,),CHAR(32)) ->  | EI50: =IF($B50>0,VLOOKUP($B50,VSP_Fodermiddeldatabase!$A$3:$CP$489,61,),CHAR(32)) ->  | EJ50: =IF($B50>0,VLOOKUP($B50,VSP_Fodermiddeldatabase!$A$3:$CP$489,2,),CHAR(32)) ->  | EK50: =IF($B50>0,VLOOKUP($B50,VSP_Fodermiddeldatabase!$A$3:$CP$489,3,),CHAR(32)) ->  | EL50: =IF($B50>0,VLOOKUP($B50,VSP_Fodermiddeldatabase!$A$3:$CP$489,63,),CHAR(32)) ->  | EM50: =IF($B50>0,VLOOKUP($B50,VSP_Fodermiddeldatabase!$A$3:$CP$489,64,),CHAR(32)) ->  | EN50: =IF($B50>0,VLOOKUP($B50,VSP_Fodermiddeldatabase!$A$3:$CP$489,65,),CHAR(32)) ->  | EO50: =IF($B50>0,VLOOKUP($B50,VSP_Fodermiddeldatabase!$A$3:$CP$489,66,),CHAR(32)) ->  | EP50: =IF($B50>0,VLOOKUP($B50,VSP_Fodermiddeldatabase!$A$3:$CP$489,68,),CHAR(32)) ->  | EQ50: =IF($B50>0,VLOOKUP($B50,VSP_Fodermiddeldatabase!$A$3:$CP$489,69,),CHAR(32)) ->  | ER50: =IF($B50>0,VLOOKUP($B50,VSP_Fodermiddeldatabase!$A$3:$CP$489,70,),CHAR(32)) ->  | ES50: =IF($B50>0,VLOOKUP($B50,VSP_Fodermiddeldatabase!$A$3:$CP$489,71,),CHAR(32)) ->  | ET50: =IF($B50>0,VLOOKUP($B50,VSP_Fodermiddeldatabase!$A$3:$CP$489,19,),CHAR(32)) ->  | EU50: =IF($B50>0,VLOOKUP($B50,VSP_Fodermiddeldatabase!$A$3:$CP$489,20,),CHAR(32)) ->  | EV50: =IF($B50>0,VLOOKUP($B50,VSP_Fodermiddeldatabase!$A$3:$CP$489,21,),CHAR(32)) ->  | EW50: =IF($B50>0,VLOOKUP($B50,VSP_Fodermiddeldatabase!$A$3:$CP$489,22,),CHAR(32)) ->  | EX50: =IF($B50>0,VLOOKUP($B50,VSP_Fodermiddeldatabase!$A$3:$CP$489,23,),CHAR(32)) ->  | EY50: =IF($B50>0,VLOOKUP($B50,VSP_Fodermiddeldatabase!$A$3:$CP$489,25,),CHAR(32)) ->  | EZ50: =IF($B50>0,VLOOKUP($B50,VSP_Fodermiddeldatabase!$A$3:$CP$489,26,),CHAR(32)) ->  | FA50: =IF($B50>0,VLOOKUP($B50,VSP_Fodermiddeldatabase!$A$3:$CP$489,27,),CHAR(32)) ->  | FB50: =IF($B50>0,VLOOKUP($B50,VSP_Fodermiddeldatabase!$A$3:$CP$489,28,),CHAR(32)) ->  | FC50: =IF($B50>0,VLOOKUP($B50,VSP_Fodermiddeldatabase!$A$3:$CP$489,29,),CHAR(32)) ->  | FD50: =IF($B50>0,VLOOKUP($B50,VSP_Fodermiddeldatabase!$A$3:$CP$489,30,),CHAR(32)) ->  | FE50: =IF($B50>0,VLOOKUP($B50,VSP_Fodermiddeldatabase!$A$3:$CP$489,31,),CHAR(32)) ->  | FF50: =IF($B50>0,VLOOKUP($B50,VSP_Fodermiddeldatabase!$A$3:$CP$489,32,),CHAR(32)) ->  | FG50: =IF($B50>0,VLOOKUP($B50,VSP_Fodermiddeldatabase!$A$3:$CP$489,33,),CHAR(32)) ->  | FH50: =IF($B50>0,VLOOKUP($B50,VSP_Fodermiddeldatabase!$A$3:$CP$489,34,),CHAR(32)) ->  | FI50: =IF($B50>0,VLOOKUP($B50,VSP_Fodermiddeldatabase!$A$3:$CP$489,35,),CHAR(32)) ->  | FJ50: =IF($B50>0,VLOOKUP($B50,VSP_Fodermiddeldatabase!$A$3:$CP$489,36,),CHAR(32)) ->  | FK50: =IF($B50>0,VLOOKUP($B50,VSP_Fodermiddeldatabase!$A$3:$CP$489,37,),CHAR(32)) ->  | FM50: =IF($B50>0,VLOOKUP($B50,VSP_Fodermiddeldatabase!$A$3:$CP$489,74,),CHAR(32)) ->  | FN50: =IF($B50>0,VLOOKUP($B50,VSP_Fodermiddeldatabase!$A$3:$CP$489,75,),CHAR(32)) ->  | FO50: =IF($B50>0,VLOOKUP($B50,VSP_Fodermiddeldatabase!$A$3:$CP$489,76,),CHAR(32)) ->  | FP50: =IF($B50>0,VLOOKUP($B50,VSP_Fodermiddeldatabase!$A$3:$CP$489,77,),CHAR(32)) ->  | FQ50: =IF($B50>0,VLOOKUP($B50,VSP_Fodermiddeldatabase!$A$3:$CP$489,78,),CHAR(32)) ->  | FR50: =IF($B50>0,VLOOKUP($B50,VSP_Fodermiddeldatabase!$A$3:$CP$489,79,),CHAR(32)) ->  | FS50: =IF($B50>0,VLOOKUP($B50,VSP_Fodermiddeldatabase!$A$3:$CP$489,1,),CHAR(32)) ->  | FT50: =IF($B50>0,VLOOKUP($B50,VSP_Fodermiddeldatabase!$A$3:$CP$489,5,),CHAR(32)) ->  | FV50: =IF($A50<>"",100-VLOOKUP($B50,VSP_Fodermiddeldatabase!$A$3:$CP$489,12,),"") ->  | FW50: =IF($A50<>"",VLOOKUP($B50,VSP_Fodermiddeldatabase!$A$3:$CP$489,13,),"") ->  | FX50: =IF($A50<>"",VLOOKUP($B50,VSP_Fodermiddeldatabase!$A$3:$CP$489,14,),"") ->  | FY50: =IF($A50<>"",VLOOKUP($B50,VSP_Fodermiddeldatabase!$A$3:$CP$489,15,),"") ->  | GC50: =IF($A50<>"",VLOOKUP($B50,VSP_Fodermiddeldatabase!$A$3:$CP$489,8,)) -> FALSE | GF50: =IF($A50<>"",VLOOKUP($B50,VSP_Fodermiddeldatabase!$A$3:$CP$489,9,)) -> FALSE | GG50: FALSE | GJ50: =IF($A50<>"",VLOOKUP($B50,VSP_Fodermiddeldatabase!$A$3:$CP$489,11,)) -> FALSE
P51: =IF(A51<>"",IF($B51>0,VLOOKUP($B51,VSP_Fodermiddeldatabase!$A$3:$CP$489,10,),CHAR(32)),"") ->  | Q51: =IF(A51<>"",IF($B51>0,VLOOKUP($B51,VSP_Fodermiddeldatabase!$A$3:$CP$489,11,),CHAR(32)),"") ->  | R51: 90 | BZ51: =IF($B51>0,VLOOKUP($B51,VSP_Fodermiddeldatabase!$A$3:$CP$489,12,),CHAR(32)) ->  | CB51: =IF($B51>0,VLOOKUP($B51,VSP_Fodermiddeldatabase!$A$3:$CP$489,13,),CHAR(32)) ->  | CC51: =IF($B51>0,VLOOKUP($B51,VSP_Fodermiddeldatabase!$A$3:$CP$489,14,),CHAR(32)) ->  | CD51: =IF($B51>0,VLOOKUP($B51,VSP_Fodermiddeldatabase!$A$3:$CP$489,15,),CHAR(32)) ->  | CE51: =IF($B51>0,VLOOKUP($B51,VSP_Fodermiddeldatabase!$A$3:$CP$489,16,),CHAR(32)) ->  | CG51: =IF($B51>0,VLOOKUP($B51,VSP_Fodermiddeldatabase!$A$3:$CP$489,8,),CHAR(32)) ->  | CH51: =IF($B51>0,VLOOKUP($B51,VSP_Fodermiddeldatabase!$A$3:$CP$489,9,),CHAR(32)) ->  | DM51: =IF($B51>0,VLOOKUP($B51,VSP_Fodermiddeldatabase!$A$3:$CP$489,18,),CHAR(32)) ->  | DN51: =IF($B51>0,VLOOKUP($B51,VSP_Fodermiddeldatabase!$A$3:$CP$489,39,),CHAR(32)) ->  | DO51: =IF($B51>0,VLOOKUP($B51,VSP_Fodermiddeldatabase!$A$3:$CP$489,40,),CHAR(32)) ->  | DP51: =IF($B51>0,VLOOKUP($B51,VSP_Fodermiddeldatabase!$A$3:$CP$489,41,),CHAR(32)) ->  | DQ51: =IF($B51>0,VLOOKUP($B51,VSP_Fodermiddeldatabase!$A$3:$CP$489,42,),CHAR(32)) ->  | DR51: =IF($B51>0,VLOOKUP($B51,VSP_Fodermiddeldatabase!$A$3:$CP$489,43,),CHAR(32)) ->  | DS51: =IF($B51>0,VLOOKUP($B51,VSP_Fodermiddeldatabase!$A$3:$CP$489,44,),CHAR(32)) ->  | DT51: =IF($B51>0,VLOOKUP($B51,VSP_Fodermiddeldatabase!$A$3:$CP$489,45,),CHAR(32)) ->  | DU51: =IF($B51>0,VLOOKUP($B51,VSP_Fodermiddeldatabase!$A$3:$CP$489,46,),CHAR(32)) ->  | DV51: =IF($B51>0,VLOOKUP($B51,VSP_Fodermiddeldatabase!$A$3:$CP$489,47,),CHAR(32)) ->  | DW51: =IF($B51>0,VLOOKUP($B51,VSP_Fodermiddeldatabase!$A$3:$CP$489,48,),CHAR(32)) ->  | DX51: =IF($B51>0,VLOOKUP($B51,VSP_Fodermiddeldatabase!$A$3:$CP$489,49,),CHAR(32)) ->  | DY51: =IF($B51>0,VLOOKUP($B51,VSP_Fodermiddeldatabase!$A$3:$CP$489,51,),CHAR(32)) ->  | DZ51: =IF($B51>0,VLOOKUP($B51,VSP_Fodermiddeldatabase!$A$3:$CP$489,52,),CHAR(32)) ->  | EA51: =IF($B51>0,VLOOKUP($B51,VSP_Fodermiddeldatabase!$A$3:$CP$489,53,),CHAR(32)) ->  | EB51: =IF($B51>0,VLOOKUP($B51,VSP_Fodermiddeldatabase!$A$3:$CP$489,54,),CHAR(32)) ->  | EC51: =IF($B51>0,VLOOKUP($B51,VSP_Fodermiddeldatabase!$A$3:$CP$489,55,),CHAR(32)) ->  | ED51: =IF($B51>0,VLOOKUP($B51,VSP_Fodermiddeldatabase!$A$3:$CP$489,56,),CHAR(32)) ->  | EE51: =IF($B51>0,VLOOKUP($B51,VSP_Fodermiddeldatabase!$A$3:$CP$489,57,),CHAR(32)) ->  | EF51: =IF($B51>0,VLOOKUP($B51,VSP_Fodermiddeldatabase!$A$3:$CP$489,58,),CHAR(32)) ->  | EG51: =IF($B51>0,VLOOKUP($B51,VSP_Fodermiddeldatabase!$A$3:$CP$489,59,),CHAR(32)) ->  | EH51: =IF($B51>0,VLOOKUP($B51,VSP_Fodermiddeldatabase!$A$3:$CP$489,60,),CHAR(32)) ->  | EI51: =IF($B51>0,VLOOKUP($B51,VSP_Fodermiddeldatabase!$A$3:$CP$489,61,),CHAR(32)) ->  | EJ51: =IF($B51>0,VLOOKUP($B51,VSP_Fodermiddeldatabase!$A$3:$CP$489,2,),CHAR(32)) ->  | EK51: =IF($B51>0,VLOOKUP($B51,VSP_Fodermiddeldatabase!$A$3:$CP$489,3,),CHAR(32)) ->  | EL51: =IF($B51>0,VLOOKUP($B51,VSP_Fodermiddeldatabase!$A$3:$CP$489,63,),CHAR(32)) ->  | EM51: =IF($B51>0,VLOOKUP($B51,VSP_Fodermiddeldatabase!$A$3:$CP$489,64,),CHAR(32)) ->  | EN51: =IF($B51>0,VLOOKUP($B51,VSP_Fodermiddeldatabase!$A$3:$CP$489,65,),CHAR(32)) ->  | EO51: =IF($B51>0,VLOOKUP($B51,VSP_Fodermiddeldatabase!$A$3:$CP$489,66,),CHAR(32)) ->  | EP51: =IF($B51>0,VLOOKUP($B51,VSP_Fodermiddeldatabase!$A$3:$CP$489,68,),CHAR(32)) ->  | EQ51: =IF($B51>0,VLOOKUP($B51,VSP_Fodermiddeldatabase!$A$3:$CP$489,69,),CHAR(32)) ->  | ER51: =IF($B51>0,VLOOKUP($B51,VSP_Fodermiddeldatabase!$A$3:$CP$489,70,),CHAR(32)) ->  | ES51: =IF($B51>0,VLOOKUP($B51,VSP_Fodermiddeldatabase!$A$3:$CP$489,71,),CHAR(32)) ->  | ET51: =IF($B51>0,VLOOKUP($B51,VSP_Fodermiddeldatabase!$A$3:$CP$489,19,),CHAR(32)) ->  | EU51: =IF($B51>0,VLOOKUP($B51,VSP_Fodermiddeldatabase!$A$3:$CP$489,20,),CHAR(32)) ->  | EV51: =IF($B51>0,VLOOKUP($B51,VSP_Fodermiddeldatabase!$A$3:$CP$489,21,),CHAR(32)) ->  | EW51: =IF($B51>0,VLOOKUP($B51,VSP_Fodermiddeldatabase!$A$3:$CP$489,22,),CHAR(32)) ->  | EX51: =IF($B51>0,VLOOKUP($B51,VSP_Fodermiddeldatabase!$A$3:$CP$489,23,),CHAR(32)) ->  | EY51: =IF($B51>0,VLOOKUP($B51,VSP_Fodermiddeldatabase!$A$3:$CP$489,25,),CHAR(32)) ->  | EZ51: =IF($B51>0,VLOOKUP($B51,VSP_Fodermiddeldatabase!$A$3:$CP$489,26,),CHAR(32)) ->  | FA51: =IF($B51>0,VLOOKUP($B51,VSP_Fodermiddeldatabase!$A$3:$CP$489,27,),CHAR(32)) ->  | FB51: =IF($B51>0,VLOOKUP($B51,VSP_Fodermiddeldatabase!$A$3:$CP$489,28,),CHAR(32)) ->  | FC51: =IF($B51>0,VLOOKUP($B51,VSP_Fodermiddeldatabase!$A$3:$CP$489,29,),CHAR(32)) ->  | FD51: =IF($B51>0,VLOOKUP($B51,VSP_Fodermiddeldatabase!$A$3:$CP$489,30,),CHAR(32)) ->  | FE51: =IF($B51>0,VLOOKUP($B51,VSP_Fodermiddeldatabase!$A$3:$CP$489,31,),CHAR(32)) ->  | FF51: =IF($B51>0,VLOOKUP($B51,VSP_Fodermiddeldatabase!$A$3:$CP$489,32,),CHAR(32)) ->  | FG51: =IF($B51>0,VLOOKUP($B51,VSP_Fodermiddeldatabase!$A$3:$CP$489,33,),CHAR(32)) ->  | FH51: =IF($B51>0,VLOOKUP($B51,VSP_Fodermiddeldatabase!$A$3:$CP$489,34,),CHAR(32)) ->  | FI51: =IF($B51>0,VLOOKUP($B51,VSP_Fodermiddeldatabase!$A$3:$CP$489,35,),CHAR(32)) ->  | FJ51: =IF($B51>0,VLOOKUP($B51,VSP_Fodermiddeldatabase!$A$3:$CP$489,36,),CHAR(32)) ->  | FK51: =IF($B51>0,VLOOKUP($B51,VSP_Fodermiddeldatabase!$A$3:$CP$489,37,),CHAR(32)) ->  | FM51: =IF($B51>0,VLOOKUP($B51,VSP_Fodermiddeldatabase!$A$3:$CP$489,74,),CHAR(32)) ->  | FN51: =IF($B51>0,VLOOKUP($B51,VSP_Fodermiddeldatabase!$A$3:$CP$489,75,),CHAR(32)) ->  | FO51: =IF($B51>0,VLOOKUP($B51,VSP_Fodermiddeldatabase!$A$3:$CP$489,76,),CHAR(32)) ->  | FP51: =IF($B51>0,VLOOKUP($B51,VSP_Fodermiddeldatabase!$A$3:$CP$489,77,),CHAR(32)) ->  | FQ51: =IF($B51>0,VLOOKUP($B51,VSP_Fodermiddeldatabase!$A$3:$CP$489,78,),CHAR(32)) ->  | FR51: =IF($B51>0,VLOOKUP($B51,VSP_Fodermiddeldatabase!$A$3:$CP$489,79,),CHAR(32)) ->  | FS51: =IF($B51>0,VLOOKUP($B51,VSP_Fodermiddeldatabase!$A$3:$CP$489,1,),CHAR(32)) ->  | FT51: =IF($B51>0,VLOOKUP($B51,VSP_Fodermiddeldatabase!$A$3:$CP$489,5,),CHAR(32)) ->  | FV51: =IF($A51<>"",100-VLOOKUP($B51,VSP_Fodermiddeldatabase!$A$3:$CP$489,12,),"") ->  | FW51: =IF($A51<>"",VLOOKUP($B51,VSP_Fodermiddeldatabase!$A$3:$CP$489,13,),"") ->  | FX51: =IF($A51<>"",VLOOKUP($B51,VSP_Fodermiddeldatabase!$A$3:$CP$489,14,),"") ->  | FY51: =IF($A51<>"",VLOOKUP($B51,VSP_Fodermiddeldatabase!$A$3:$CP$489,15,),"") ->  | GC51: =IF($A51<>"",VLOOKUP($B51,VSP_Fodermiddeldatabase!$A$3:$CP$489,8,)) -> FALSE | GF51: =IF($A51<>"",VLOOKUP($B51,VSP_Fodermiddeldatabase!$A$3:$CP$489,9,)) -> FALSE | GG51: FALSE | GJ51: =IF($A51<>"",VLOOKUP($B51,VSP_Fodermiddeldatabase!$A$3:$CP$489,11,)) -> FALSE
P52: =IF(A52<>"",IF($B52>0,VLOOKUP($B52,VSP_Fodermiddeldatabase!$A$3:$CP$489,10,),CHAR(32)),"") ->  | Q52: =IF(A52<>"",IF($B52>0,VLOOKUP($B52,VSP_Fodermiddeldatabase!$A$3:$CP$489,11,),CHAR(32)),"") ->  | R52: 90 | BZ52: =IF($B52>0,VLOOKUP($B52,VSP_Fodermiddeldatabase!$A$3:$CP$489,12,),CHAR(32)) ->  | CB52: =IF($B52>0,VLOOKUP($B52,VSP_Fodermiddeldatabase!$A$3:$CP$489,13,),CHAR(32)) ->  | CC52: =IF($B52>0,VLOOKUP($B52,VSP_Fodermiddeldatabase!$A$3:$CP$489,14,),CHAR(32)) ->  | CD52: =IF($B52>0,VLOOKUP($B52,VSP_Fodermiddeldatabase!$A$3:$CP$489,15,),CHAR(32)) ->  | CE52: =IF($B52>0,VLOOKUP($B52,VSP_Fodermiddeldatabase!$A$3:$CP$489,16,),CHAR(32)) ->  | CG52: =IF($B52>0,VLOOKUP($B52,VSP_Fodermiddeldatabase!$A$3:$CP$489,8,),CHAR(32)) ->  | CH52: =IF($B52>0,VLOOKUP($B52,VSP_Fodermiddeldatabase!$A$3:$CP$489,9,),CHAR(32)) ->  | DM52: =IF($B52>0,VLOOKUP($B52,VSP_Fodermiddeldatabase!$A$3:$CP$489,18,),CHAR(32)) ->  | DN52: =IF($B52>0,VLOOKUP($B52,VSP_Fodermiddeldatabase!$A$3:$CP$489,39,),CHAR(32)) ->  | DO52: =IF($B52>0,VLOOKUP($B52,VSP_Fodermiddeldatabase!$A$3:$CP$489,40,),CHAR(32)) ->  | DP52: =IF($B52>0,VLOOKUP($B52,VSP_Fodermiddeldatabase!$A$3:$CP$489,41,),CHAR(32)) ->  | DQ52: =IF($B52>0,VLOOKUP($B52,VSP_Fodermiddeldatabase!$A$3:$CP$489,42,),CHAR(32)) ->  | DR52: =IF($B52>0,VLOOKUP($B52,VSP_Fodermiddeldatabase!$A$3:$CP$489,43,),CHAR(32)) ->  | DS52: =IF($B52>0,VLOOKUP($B52,VSP_Fodermiddeldatabase!$A$3:$CP$489,44,),CHAR(32)) ->  | DT52: =IF($B52>0,VLOOKUP($B52,VSP_Fodermiddeldatabase!$A$3:$CP$489,45,),CHAR(32)) ->  | DU52: =IF($B52>0,VLOOKUP($B52,VSP_Fodermiddeldatabase!$A$3:$CP$489,46,),CHAR(32)) ->  | DV52: =IF($B52>0,VLOOKUP($B52,VSP_Fodermiddeldatabase!$A$3:$CP$489,47,),CHAR(32)) ->  | DW52: =IF($B52>0,VLOOKUP($B52,VSP_Fodermiddeldatabase!$A$3:$CP$489,48,),CHAR(32)) ->  | DX52: =IF($B52>0,VLOOKUP($B52,VSP_Fodermiddeldatabase!$A$3:$CP$489,49,),CHAR(32)) ->  | DY52: =IF($B52>0,VLOOKUP($B52,VSP_Fodermiddeldatabase!$A$3:$CP$489,51,),CHAR(32)) ->  | DZ52: =IF($B52>0,VLOOKUP($B52,VSP_Fodermiddeldatabase!$A$3:$CP$489,52,),CHAR(32)) ->  | EA52: =IF($B52>0,VLOOKUP($B52,VSP_Fodermiddeldatabase!$A$3:$CP$489,53,),CHAR(32)) ->  | EB52: =IF($B52>0,VLOOKUP($B52,VSP_Fodermiddeldatabase!$A$3:$CP$489,54,),CHAR(32)) ->  | EC52: =IF($B52>0,VLOOKUP($B52,VSP_Fodermiddeldatabase!$A$3:$CP$489,55,),CHAR(32)) ->  | ED52: =IF($B52>0,VLOOKUP($B52,VSP_Fodermiddeldatabase!$A$3:$CP$489,56,),CHAR(32)) ->  | EE52: =IF($B52>0,VLOOKUP($B52,VSP_Fodermiddeldatabase!$A$3:$CP$489,57,),CHAR(32)) ->  | EF52: =IF($B52>0,VLOOKUP($B52,VSP_Fodermiddeldatabase!$A$3:$CP$489,58,),CHAR(32)) ->  | EG52: =IF($B52>0,VLOOKUP($B52,VSP_Fodermiddeldatabase!$A$3:$CP$489,59,),CHAR(32)) ->  | EH52: =IF($B52>0,VLOOKUP($B52,VSP_Fodermiddeldatabase!$A$3:$CP$489,60,),CHAR(32)) ->  | EI52: =IF($B52>0,VLOOKUP($B52,VSP_Fodermiddeldatabase!$A$3:$CP$489,61,),CHAR(32)) ->  | EJ52: =IF($B52>0,VLOOKUP($B52,VSP_Fodermiddeldatabase!$A$3:$CP$489,2,),CHAR(32)) ->  | EK52: =IF($B52>0,VLOOKUP($B52,VSP_Fodermiddeldatabase!$A$3:$CP$489,3,),CHAR(32)) ->  | EL52: =IF($B52>0,VLOOKUP($B52,VSP_Fodermiddeldatabase!$A$3:$CP$489,63,),CHAR(32)) ->  | EM52: =IF($B52>0,VLOOKUP($B52,VSP_Fodermiddeldatabase!$A$3:$CP$489,64,),CHAR(32)) ->  | EN52: =IF($B52>0,VLOOKUP($B52,VSP_Fodermiddeldatabase!$A$3:$CP$489,65,),CHAR(32)) ->  | EO52: =IF($B52>0,VLOOKUP($B52,VSP_Fodermiddeldatabase!$A$3:$CP$489,66,),CHAR(32)) ->  | EP52: =IF($B52>0,VLOOKUP($B52,VSP_Fodermiddeldatabase!$A$3:$CP$489,68,),CHAR(32)) ->  | EQ52: =IF($B52>0,VLOOKUP($B52,VSP_Fodermiddeldatabase!$A$3:$CP$489,69,),CHAR(32)) ->  | ER52: =IF($B52>0,VLOOKUP($B52,VSP_Fodermiddeldatabase!$A$3:$CP$489,70,),CHAR(32)) ->  | ES52: =IF($B52>0,VLOOKUP($B52,VSP_Fodermiddeldatabase!$A$3:$CP$489,71,),CHAR(32)) ->  | ET52: =IF($B52>0,VLOOKUP($B52,VSP_Fodermiddeldatabase!$A$3:$CP$489,19,),CHAR(32)) ->  | EU52: =IF($B52>0,VLOOKUP($B52,VSP_Fodermiddeldatabase!$A$3:$CP$489,20,),CHAR(32)) ->  | EV52: =IF($B52>0,VLOOKUP($B52,VSP_Fodermiddeldatabase!$A$3:$CP$489,21,),CHAR(32)) ->  | EW52: =IF($B52>0,VLOOKUP($B52,VSP_Fodermiddeldatabase!$A$3:$CP$489,22,),CHAR(32)) ->  | EX52: =IF($B52>0,VLOOKUP($B52,VSP_Fodermiddeldatabase!$A$3:$CP$489,23,),CHAR(32)) ->  | EY52: =IF($B52>0,VLOOKUP($B52,VSP_Fodermiddeldatabase!$A$3:$CP$489,25,),CHAR(32)) ->  | EZ52: =IF($B52>0,VLOOKUP($B52,VSP_Fodermiddeldatabase!$A$3:$CP$489,26,),CHAR(32)) ->  | FA52: =IF($B52>0,VLOOKUP($B52,VSP_Fodermiddeldatabase!$A$3:$CP$489,27,),CHAR(32)) ->  | FB52: =IF($B52>0,VLOOKUP($B52,VSP_Fodermiddeldatabase!$A$3:$CP$489,28,),CHAR(32)) ->  | FC52: =IF($B52>0,VLOOKUP($B52,VSP_Fodermiddeldatabase!$A$3:$CP$489,29,),CHAR(32)) ->  | FD52: =IF($B52>0,VLOOKUP($B52,VSP_Fodermiddeldatabase!$A$3:$CP$489,30,),CHAR(32)) ->  | FE52: =IF($B52>0,VLOOKUP($B52,VSP_Fodermiddeldatabase!$A$3:$CP$489,31,),CHAR(32)) ->  | FF52: =IF($B52>0,VLOOKUP($B52,VSP_Fodermiddeldatabase!$A$3:$CP$489,32,),CHAR(32)) ->  | FG52: =IF($B52>0,VLOOKUP($B52,VSP_Fodermiddeldatabase!$A$3:$CP$489,33,),CHAR(32)) ->  | FH52: =IF($B52>0,VLOOKUP($B52,VSP_Fodermiddeldatabase!$A$3:$CP$489,34,),CHAR(32)) ->  | FI52: =IF($B52>0,VLOOKUP($B52,VSP_Fodermiddeldatabase!$A$3:$CP$489,35,),CHAR(32)) ->  | FJ52: =IF($B52>0,VLOOKUP($B52,VSP_Fodermiddeldatabase!$A$3:$CP$489,36,),CHAR(32)) ->  | FK52: =IF($B52>0,VLOOKUP($B52,VSP_Fodermiddeldatabase!$A$3:$CP$489,37,),CHAR(32)) ->  | FM52: =IF($B52>0,VLOOKUP($B52,VSP_Fodermiddeldatabase!$A$3:$CP$489,74,),CHAR(32)) ->  | FN52: =IF($B52>0,VLOOKUP($B52,VSP_Fodermiddeldatabase!$A$3:$CP$489,75,),CHAR(32)) ->  | FO52: =IF($B52>0,VLOOKUP($B52,VSP_Fodermiddeldatabase!$A$3:$CP$489,76,),CHAR(32)) ->  | FP52: =IF($B52>0,VLOOKUP($B52,VSP_Fodermiddeldatabase!$A$3:$CP$489,77,),CHAR(32)) ->  | FQ52: =IF($B52>0,VLOOKUP($B52,VSP_Fodermiddeldatabase!$A$3:$CP$489,78,),CHAR(32)) ->  | FR52: =IF($B52>0,VLOOKUP($B52,VSP_Fodermiddeldatabase!$A$3:$CP$489,79,),CHAR(32)) ->  | FS52: =IF($B52>0,VLOOKUP($B52,VSP_Fodermiddeldatabase!$A$3:$CP$489,1,),CHAR(32)) ->  | FT52: =IF($B52>0,VLOOKUP($B52,VSP_Fodermiddeldatabase!$A$3:$CP$489,5,),CHAR(32)) ->  | FV52: =IF($A52<>"",100-VLOOKUP($B52,VSP_Fodermiddeldatabase!$A$3:$CP$489,12,),"") ->  | FW52: =IF($A52<>"",VLOOKUP($B52,VSP_Fodermiddeldatabase!$A$3:$CP$489,13,),"") ->  | FX52: =IF($A52<>"",VLOOKUP($B52,VSP_Fodermiddeldatabase!$A$3:$CP$489,14,),"") ->  | FY52: =IF($A52<>"",VLOOKUP($B52,VSP_Fodermiddeldatabase!$A$3:$CP$489,15,),"") ->  | GC52: =IF($A52<>"",VLOOKUP($B52,VSP_Fodermiddeldatabase!$A$3:$CP$489,8,)) -> FALSE | GF52: =IF($A52<>"",VLOOKUP($B52,VSP_Fodermiddeldatabase!$A$3:$CP$489,9,)) -> FALSE | GG52: FALSE | GJ52: =IF($A52<>"",VLOOKUP($B52,VSP_Fodermiddeldatabase!$A$3:$CP$489,11,)) -> FALSE
